Workbook

Sheet fnd budget
T1: =VLOOKUP(orderCHA,charterinfo_a,4) -> 3510
T2: =VLOOKUP(orderCHA,charterinfo_a,5) -> 281
T3: =VLOOKUP(orderCHA,charterinfo_a,6) -> 281
A6: Massachusetts Department of Elementary and Secondary Education
A7: F Y 1 7 F O U N D A T I O N B U D G E T
A8: =VLOOKUP(orderCHA,charterinfo_a,2) -> 3510 - SPRINGFIELD PREPARATORY Charter School - SPRINGFIELD pupils
C9: Items | D9: ---------------------------------------- Base Foundation Components ------------------------------------------------- | O9: --- Incremental Costs Above The Base ---
C10: Adj by | D10: (1) | E10: (2) | F10: (3) | G10: (4) | H10: (5) | I10: (6) | J10: (7) | K10: (8) | L10: (9) | M10: (10) | O10: (11) | P10: (12) | Q10: (13) | R10: (14)
C11: Wage | D11: Pre- | E11: -- Kindergarten -- | G11: Elem- | H11: Jr High/ | I11: High | J11: ELL | K11: ELL | L11: ELL | M11: Voca- | O11: Sped In-school | P11: Sped Out | Q11: -- Low Income --
C12: Fctr = w | D12: School | E12: K Half | F12: K Full | G12: entary | H12: Middle | I12: School | J12: PK | K12: K Half | L12: KF - 12 | M12: tional | O12: (3.75% of total) | P12: of District* | Q12: Elem | R12: Other | T12: TOTAL**
B14: Foundation Enrollment | D14: =VLOOKUP(VLOOKUP(orderCHA,charterinfo_a,3), rate_chafnd,3) -> 0 | E14: =VLOOKUP(VLOOKUP(orderCHA,charterinfo_a,3),rate_chafnd,4) -> 0 | F14: =VLOOKUP(VLOOKUP(orderCHA,charterinfo_a,3),rate_chafnd,5) -> 39 | G14: =VLOOKUP(VLOOKUP(orderCHA,charterinfo_a,3),rate_chafnd,6) -> 43 | H14: =VLOOKUP(VLOOKUP(orderCHA,charterinfo_a,3),rate_chafnd,7) -> 0 | I14: =VLOOKUP(VLOOKUP(orderCHA,charterinfo_a,3),rate_chafnd,8) -> 0 | J14: =VLOOKUP(VLOOKUP(orderCHA,charterinfo_a,3),rate_chafnd,11) -> 0 | K14: =VLOOKUP(VLOOKUP(orderCHA,charterinfo_a,3),rate_chafnd,12) -> 0 | L14: =VLOOKUP(VLOOKUP(orderCHA,charterinfo_a,3),rate_chafnd,13) -> 25 | M14: =VLOOKUP(VLOOKUP(orderCHA,charterinfo_a,3),rate_chafnd,14) -> 0 | O14: =VLOOKUP(VLOOKUP(orderCHA,charterinfo_a,3),rate_chafnd,9) -> 4.0125 | P14: =VLOOKUP(VLOOKUP(orderCHA,charterinfo_a,3),rate_chafnd,10) -> 0 | Q14: =VLOOKUP(VLOOKUP(orderCHA,charterinfo_a,3),rate_chafnd,15) -> 36 | R14: =VLOOKUP(VLOOKUP(orderCHA,charterinfo_a,3),rate_chafnd,16) -> 42 | T14: =VLOOKUP(VLOOKUP(orderCHA,charterinfo_a,3),rate_chafnd,17) -> 107
A16: 1 | B16: Administration | C16: w | D16: ='fnd base rates'!$C48*$D$30*D$14 -> 0 | E16: ='fnd base rates'!$C49*$D$30*E$14 -> 0 | F16: ='fnd base rates'!$C50*$D$30*F$14 -> 14196 | G16: ='fnd base rates'!$C51*$D$30*G$14 -> 15652 | H16: ='fnd base rates'!$C52*$D$30*H$14 -> 0 | I16: ='fnd base rates'!$C53*$D$30*I$14 -> 0 | J16: ='fnd base rates'!$C56*$D$30*J$14 -> 0 | K16: ='fnd base rates'!$C57*$D$30*K$14 -> 0 | L16: ='fnd base rates'!$C58*$D$30*L$14 -> 9100 | M16: ='fnd base rates'!$C59*$D$30*M$14 -> 0 | O16: ='fnd base rates'!$C54*$D$30*O$14 -> 10080.44325 | P16: ='fnd base rates'!$C55*$D$30*P$14 -> 0 | Q16: =VLOOKUP((VLOOKUP(VLOOKUP(orderCHA,charterinfo_a,3),rate_chafnd,19)+14),rate_basefnd,3)*$D$30*Q$14 -> 0 | R16: =VLOOKUP((VLOOKUP(VLOOKUP(orderCHA,charterinfo_a,3),rate_chafnd,19)+14),rate_basefnd,3)*$D$30*R$14 -> 0 | T16: =SUM(D16:R16) -> 49028.44325
A17: 2 | B17: Instructional Leadership | C17: w | D17: ='fnd base rates'!$D48*$D$30*D$14 -> 0 | E17: ='fnd base rates'!$D49*$D$30*E$14 -> 0 | F17: ='fnd base rates'!$D50*$D$30*F$14 -> 25639.38 | G17: ='fnd base rates'!$D51*$D$30*G$14 -> 28269.06 | H17: ='fnd base rates'!$D52*$D$30*H$14 -> 0 | I17: ='fnd base rates'!$D53*$D$30*I$14 -> 0 | J17: ='fnd base rates'!$D56*$D$30*J$14 -> 0 | K17: ='fnd base rates'!$D57*$D$30*K$14 -> 0 | L17: ='fnd base rates'!$D58*$D$30*L$14 -> 16435.5 | M17: ='fnd base rates'!$D59*$D$30*M$14 -> 0 | O17: ='fnd base rates'!$D54*$D$30*O$14 -> 0 | P17: ='fnd base rates'!$D55*$D$30*P$14 -> 0 | Q17: =VLOOKUP((VLOOKUP(VLOOKUP(orderCHA,charterinfo_a,3),rate_chafnd,19)+14),rate_basefnd,4)*$D$30*Q$14 -> 0 | R17: =VLOOKUP((VLOOKUP(VLOOKUP(orderCHA,charterinfo_a,3),rate_chafnd,19)+14),rate_basefnd,4)*$D$30*R$14 -> 0 | T17: =SUM(D17:R17) -> 70343.94
A18: 3 | B18: Classroom and Specialist Teachers | C18: w | D18: ='fnd base rates'!$E48*$D$30*D$14 -> 0 | E18: ='fnd base rates'!$E49*$D$30*E$14 -> 0 | F18: ='fnd base rates'!$E50*$D$30*F$14 -> 117565.89 | G18: ='fnd base rates'!$E51*$D$30*G$14 -> 129622.21 | H18: ='fnd base rates'!$E52*$D$30*H$14 -> 0 | I18: ='fnd base rates'!$E53*$D$30*I$14 -> 0 | J18: ='fnd base rates'!$E56*$D$30*J$14 -> 0 | K18: ='fnd base rates'!$E57*$D$30*K$14 -> 0 | L18: ='fnd base rates'!$E58*$D$30*L$14 -> 113498.5 | M18: ='fnd base rates'!$E59*$D$30*M$14 -> 0 | O18: ='fnd base rates'!$E54*$D$30*O$14 -> 33262.94288 | P18: ='fnd base rates'!$E55*$D$30*P$14 -> 0 | Q18: =VLOOKUP((VLOOKUP(VLOOKUP(orderCHA,charterinfo_a,3),rate_chafnd,19)+14),rate_basefnd,5)*$D$30*Q$14 -> 116482.32 | R18: =VLOOKUP((VLOOKUP(VLOOKUP(orderCHA,charterinfo_a,3),rate_chafnd,19)+14),rate_basefnd,5)*$D$30*R$14 -> 135896.04 | T18: 646327.9029
A19: 4 | B19: Other Teaching Services | C19: w | D19: ='fnd base rates'!$F48*$D$30*D$14 -> 0 | E19: ='fnd base rates'!$F49*$D$30*E$14 -> 0 | F19: ='fnd base rates'!$F50*$D$30*F$14 -> 30153.24 | G19: ='fnd base rates'!$F51*$D$30*G$14 -> 33245.88 | H19: ='fnd base rates'!$F52*$D$30*H$14 -> 0 | I19: ='fnd base rates'!$F53*$D$30*I$14 -> 0 | J19: ='fnd base rates'!$F56*$D$30*J$14 -> 0 | K19: ='fnd base rates'!$F57*$D$30*K$14 -> 0 | L19: ='fnd base rates'!$F58*$D$30*L$14 -> 15455.5 | M19: ='fnd base rates'!$F59*$D$30*M$14 -> 0 | O19: ='fnd base rates'!$F54*$D$30*O$14 -> 31057.15125 | P19: ='fnd base rates'!$F55*$D$30*P$14 -> 0 | Q19: =VLOOKUP((VLOOKUP(VLOOKUP(orderCHA,charterinfo_a,3),rate_chafnd,19)+14),rate_basefnd,6)*$D$30*Q$14 -> 0 | R19: =VLOOKUP((VLOOKUP(VLOOKUP(orderCHA,charterinfo_a,3),rate_chafnd,19)+14),rate_basefnd,6)*$D$30*R$14 -> 0 | T19: 109911.7712
A20: 5 | B20: Professional Development | C20: w | D20: ='fnd base rates'!$G48*$D$30*D$14 -> 0 | E20: ='fnd base rates'!$G49*$D$30*E$14 -> 0 | F20: ='fnd base rates'!$G50*$D$30*F$14 -> 4651.92 | G20: ='fnd base rates'!$G51*$D$30*G$14 -> 5129.9 | H20: ='fnd base rates'!$G52*$D$30*H$14 -> 0 | I20: ='fnd base rates'!$G53*$D$30*I$14 -> 0 | J20: ='fnd base rates'!$G56*$D$30*J$14 -> 0 | K20: ='fnd base rates'!$G57*$D$30*K$14 -> 0 | L20: ='fnd base rates'!$G58*$D$30*L$14 -> 4036.75 | M20: ='fnd base rates'!$G59*$D$30*M$14 -> 0 | O20: ='fnd base rates'!$G54*$D$30*O$14 -> 1604.59875 | P20: ='fnd base rates'!$G55*$D$30*P$14 -> 0 | Q20: =VLOOKUP((VLOOKUP(VLOOKUP(orderCHA,charterinfo_a,3),rate_chafnd,19)+14),rate_basefnd,7)*$D$30*Q$14 -> 2563.56 | R20: =VLOOKUP((VLOOKUP(VLOOKUP(orderCHA,charterinfo_a,3),rate_chafnd,19)+14),rate_basefnd,7)*$D$30*R$14 -> 2990.82 | T20: 20977.54875
A21: 6 | B21: Instructional Equipment & Tech | C21: nw | D21: ='fnd base rates'!$H48*D$14 -> 0 | E21: ='fnd base rates'!$H49*E$14 -> 0 | F21: ='fnd base rates'!$H50*F$14 -> 17016.09 | G21: ='fnd base rates'!$H51*G$14 -> 18761.33 | H21: ='fnd base rates'!$H52*H$14 -> 0 | I21: ='fnd base rates'!$H53*I$14 -> 0 | J21: ='fnd base rates'!$H56*J$14 -> 0 | K21: ='fnd base rates'!$H57*K$14 -> 0 | L21: ='fnd base rates'!$H58*L$14 -> 10907.75 | M21: ='fnd base rates'!$H59*M$14 -> 0 | O21: ='fnd base rates'!$H54*O$14 -> 1400.563125 | P21: ='fnd base rates'!$H55*P$14 -> 0 | Q21: =VLOOKUP((VLOOKUP(VLOOKUP(orderCHA,charterinfo_a,3),rate_chafnd,19)+14),rate_basefnd,8)*Q$14 -> 0 | R21: =VLOOKUP((VLOOKUP(VLOOKUP(orderCHA,charterinfo_a,3),rate_chafnd,19)+14),rate_basefnd,8)*R$14 -> 0 | T21: 48085.73312
A22: 7 | B22: Guidance and Pschological | C22: w | D22: ='fnd base rates'!$I48*$D$30*D$14 -> 0 | E22: ='fnd base rates'!$I49*$D$30*E$14 -> 0 | F22: ='fnd base rates'!$I50*$D$30*F$14 -> 8555.04 | G22: ='fnd base rates'!$I51*$D$30*G$14 -> 9432.48 | H22: ='fnd base rates'!$I52*$D$30*H$14 -> 0 | I22: ='fnd base rates'!$I53*$D$30*I$14 -> 0 | J22: ='fnd base rates'!$I56*$D$30*J$14 -> 0 | K22: ='fnd base rates'!$I57*$D$30*K$14 -> 0 | L22: ='fnd base rates'!$I58*$D$30*L$14 -> 7299.75 | M22: ='fnd base rates'!$I59*$D$30*M$14 -> 0 | O22: ='fnd base rates'!$I54*$D$30*O$14 -> 0 | P22: ='fnd base rates'!$I55*$D$30*P$14 -> 0 | Q22: =VLOOKUP((VLOOKUP(VLOOKUP(orderCHA,charterinfo_a,3),rate_chafnd,19)+14),rate_basefnd,9)*$D$30*Q$14 -> 0 | R22: =VLOOKUP((VLOOKUP(VLOOKUP(orderCHA,charterinfo_a,3),rate_chafnd,19)+14),rate_basefnd,9)*$D$30*R$14 -> 0 | T22: 25287.27
A23: 8 | B23: Pupil Services | C23: w | D23: ='fnd base rates'!$J48*$D$30*D$14 -> 0 | E23: ='fnd base rates'!$J49*$D$30*E$14 -> 0 | F23: ='fnd base rates'!$J50*$D$30*F$14 -> 3403.53 | G23: ='fnd base rates'!$J51*$D$30*G$14 -> 5628.7 | H23: ='fnd base rates'!$J52*$D$30*H$14 -> 0 | I23: ='fnd base rates'!$J53*$D$30*I$14 -> 0 | J23: ='fnd base rates'!$J56*$D$30*J$14 -> 0 | K23: ='fnd base rates'!$J57*$D$30*K$14 -> 0 | L23: ='fnd base rates'!$J58*$D$30*L$14 -> 3272.5 | M23: ='fnd base rates'!$J59*$D$30*M$14 -> 0 | O23: ='fnd base rates'!$J54*$D$30*O$14 -> 0 | P23: ='fnd base rates'!$J55*$D$30*P$14 -> 0 | Q23: =VLOOKUP((VLOOKUP(VLOOKUP(orderCHA,charterinfo_a,3),rate_chafnd,19)+14),rate_basefnd,10)*$D$30*Q$14 -> 0 | R23: =VLOOKUP((VLOOKUP(VLOOKUP(orderCHA,charterinfo_a,3),rate_chafnd,19)+14),rate_basefnd,10)*$D$30*R$14 -> 0 | T23: 12304.73
A24: 9 | B24: Operations and Maintenance | C24: w | D24: ='fnd base rates'!$K48*$D$30*D$14 -> 0 | E24: ='fnd base rates'!$K49*$D$30*E$14 -> 0 | F24: ='fnd base rates'!$K50*$D$30*F$14 -> 32646.51 | G24: ='fnd base rates'!$K51*$D$30*G$14 -> 35994.87 | H24: ='fnd base rates'!$K52*$D$30*H$14 -> 0 | I24: ='fnd base rates'!$K53*$D$30*I$14 -> 0 | J24: ='fnd base rates'!$K56*$D$30*J$14 -> 0 | K24: ='fnd base rates'!$K57*$D$30*K$14 -> 0 | L24: ='fnd base rates'!$K58*$D$30*L$14 -> 28330.75 | M24: ='fnd base rates'!$K59*$D$30*M$14 -> 0 | O24: ='fnd base rates'!$K54*$D$30*O$14 -> 11260.359 | P24: ='fnd base rates'!$K55*$D$30*P$14 -> 0 | Q24: =VLOOKUP((VLOOKUP(VLOOKUP(orderCHA,charterinfo_a,3),rate_chafnd,19)+14),rate_basefnd,11)*$D$30*Q$14 -> 17989.92 | R24: =VLOOKUP((VLOOKUP(VLOOKUP(orderCHA,charterinfo_a,3),rate_chafnd,19)+14),rate_basefnd,11)*$D$30*R$14 -> 20988.24 | T24: 147210.649
A25: 10 | B25: Employee Benefits & Fixed Charges | C25: nw | D25: ='fnd base rates'!$L48*D$14 -> 0 | E25: ='fnd base rates'!$L49*E$14 -> 0 | F25: ='fnd base rates'!$L50*F$14 -> 29426.28 | G25: ='fnd base rates'!$L51*G$14 -> 32446.51 | H25: ='fnd base rates'!$L52*H$14 -> 0 | I25: ='fnd base rates'!$L53*I$14 -> 0 | J25: ='fnd base rates'!$L56*J$14 -> 0 | K25: ='fnd base rates'!$L57*K$14 -> 0 | L25: ='fnd base rates'!$L58*L$14 -> 23730.25 | M25: ='fnd base rates'!$L59*M$14 -> 0 | O25: ='fnd base rates'!$L54*O$14 -> 12756.62025 | P25: ='fnd base rates'!$L55*P$14 -> 0 | Q25: =VLOOKUP((VLOOKUP(VLOOKUP(orderCHA,charterinfo_a,3),rate_chafnd,19)+14),rate_basefnd,12)*Q$14 -> 11824.2 | R25: =VLOOKUP((VLOOKUP(VLOOKUP(orderCHA,charterinfo_a,3),rate_chafnd,19)+14),rate_basefnd,12)*R$14 -> 13794.9 | T25: 123978.7603
A26: 11 | B26: Special Ed Tuition | C26: nw | D26: ='fnd base rates'!$M48*D$14 -> 0 | E26: ='fnd base rates'!$M49*E$14 -> 0 | F26: ='fnd base rates'!$M50*F$14 -> 0 | G26: ='fnd base rates'!$M51*G$14 -> 0 | H26: ='fnd base rates'!$M52*H$14 -> 0 | I26: ='fnd base rates'!$M53*I$14 -> 0 | J26: ='fnd base rates'!$M56*J$14 -> 0 | K26: ='fnd base rates'!$M57*K$14 -> 0 | L26: ='fnd base rates'!$M58*L$14 -> 0 | M26: ='fnd base rates'!$M59*M$14 -> 0 | O26: ='fnd base rates'!$M54*O$14 -> 0 | P26: ='fnd base rates'!$M55*P$14 -> 0 | Q26: =VLOOKUP((VLOOKUP(VLOOKUP(orderCHA,charterinfo_a,3),rate_chafnd,19)+14),rate_basefnd,13)*Q$14 -> 0 | R26: =VLOOKUP((VLOOKUP(VLOOKUP(orderCHA,charterinfo_a,3),rate_chafnd,19)+14),rate_basefnd,13)*R$14 -> 0 | T26: 0
A28: 12 | B28: Total | D28: =SUM(D16:D26) -> 0 | E28: 0 | F28: 283253.88 | G28: 314182.94 | H28: 0 | I28: 0 | J28: 0 | K28: 0 | L28: 232067.25 | M28: 0 | O28: =SUM(O16:O26) -> 101422.6785 | P28: =SUM(P16:P26) -> 0 | Q28: =SUM(Q16:Q26) -> 148860 | R28: =SUM(R16:R26) -> 173670 | T28: =SUM(T16:T26) -> 1253456.749
A30: 13 | B30: Wage Adjustment Factor | D30: =VLOOKUP(orderCHA,charterinfo_a,8) -> 1 | R30: FOUNDATION RATE: | T30: =IF(T14=0,0,ROUND(T28/T14,0)) -> 11715
A31: 14 | B31: Low Income Decile
A32: * | B32: Charter schools do not send special education pupils to other districts or private programs; this category is removed from the calculation. The in-district special education increment uses an "assumed" enrollment
B33: percentage of 3.75 percent, as stipulated by the Chapter 70 statute.
A35: ** | B35: Total foundation enrollment does not include columns 11 through 14, because those columns are increments. The pupils have already been counted in columns 1 to 10. Pre-kindergarten and half-time kindergarten
B36: pupils count as one-half in total foundation enrollment. Low income headcount is the number of pupils in columns 1 through 10 who are eligible for free or reduced lunch. Each component of the foundation budget
B37: represents the enrollment on line 1 multiplied by the appropriate state-wide foundation allotment. The wage adjustment factor is applied to underlying rates in all functions except instructional equipment, benefits,
B38: and special education. October 2015 pupils are used to generate the FY17 rate. The resulting rate will be applied to the actual number of pupils enrolled during FY17.

Sheet charterinfo (hidden)
A1: chalocsend from 17 - PROJa fnd enro.xls | C1: Input fnd enro chalocsend | J1: 768
I6: NEW!
A7: Order | D7: Cha | E7: Campus | F7: Send | G7: # of District/ | H7: Wage | J7: Above | K7: Found | L7: Above | M7: Fac
A8: # | B8: Drop Down Menu Chalocsend | C8: chalocsend | D8: Lea | E8: Lea | F8: Lea | G8: Campuses | H8: Adj Factor | I8: Decile | J8: Fnd % | K8: Rate | L8: Fnd Rate | M8: Rate
A10: 1 | B10: =IF(G10=1,D10 & " - " &VLOOKUP(D10,codeCHA,2)&" Charter School - "&VLOOKUP(F10,code436,2)&" pupils",IF(OR(D10=450,D10=466),D10 & " - " &VLOOKUP(D10,codeCHA,2)&" Charter School - "&VLOOKUP(E10,code436,2)&" District - "&VLOOKUP(F10,code436,2)&" pupils",D10 & " - " &VLOOKUP(D10,codeCHA,2)&" Charter School - "&VLOOKUP(E10,code436,2)&" Campus - "&VLOOKUP(F10,code436,2)&" pupils")) -> 409 - ALMA DEL MAR Charter School - NEW BEDFORD pupils | C10: 409201201 | D10: =IF(VALUE(MID(C10,1,1))=4,VALUE(MID(C10,1,3)),VALUE(MID(C10,1,4))) -> 409 | E10: =IF(VALUE(MID(C10,1,1))=4,VALUE(MID(C10,4,3)),VALUE(MID(C10,5,3))) -> 201 | F10: =IF(VALUE(MID(C10,1,1))=4,VALUE(MID(C10,7,3)),VALUE(MID(C10,8,3))) -> 201 | G10: =IF(OR(D10=410,D10=466,D10=487),2,1) -> 1 | H10: =VLOOKUP(E10,distinfo,4) -> 1 | I10: =VLOOKUP(C10,enro_chafnd,17) -> 10 | J10: =VLOOKUP(F10,distinfo,6) -> 0 | K10: =IF(VLOOKUP(C10,rate_chafnd,41)>0,VLOOKUP(C10,rate_chafnd,41),VLOOKUP(F10,distinfo,7)) -> 10984
A11: 2 | B11: 410 - EXCEL ACADEMY Charter School - BOSTON Campus - BOSTON pupils | C11: 410035035 | D11: =IF(VALUE(MID(C11,1,1))=4,VALUE(MID(C11,1,3)),VALUE(MID(C11,1,4))) -> 410 | E11: =IF(VALUE(MID(C11,1,1))=4,VALUE(MID(C11,4,3)),VALUE(MID(C11,5,3))) -> 35 | F11: =IF(VALUE(MID(C11,1,1))=4,VALUE(MID(C11,7,3)),VALUE(MID(C11,8,3))) -> 35 | G11: =IF(OR(D11=410,D11=466,D11=487),2,1) -> 2 | H11: =VLOOKUP(E11,distinfo,4) -> 1.077 | I11: 10 | J11: 0 | K11: 11226
A12: 3 | B12: 410 - EXCEL ACADEMY Charter School - BOSTON Campus - BROCKTON pupils | C12: 410035044 | D12: 410 | E12: 35 | F12: 44 | G12: 2 | H12: 1.077 | I12: 10 | J12: 0 | K12: 14635
A13: 4 | B13: 410 - EXCEL ACADEMY Charter School - BOSTON Campus - CHELSEA pupils | C13: 410035057 | D13: 410 | E13: 35 | F13: 57 | G13: 2 | H13: 1.077 | I13: 9 | J13: 0 | K13: 11440
A14: 5 | B14: 410 - EXCEL ACADEMY Charter School - BOSTON Campus - EVERETT pupils | C14: 410035093 | D14: 410 | E14: 35 | F14: 93 | G14: 2 | H14: 1.077 | I14: 9 | J14: 0 | K14: 10866
A15: 6 | B15: 410 - EXCEL ACADEMY Charter School - BOSTON Campus - LEXINGTON pupils | C15: 410035155 | D15: 410 | E15: 35 | F15: 155 | G15: 2 | H15: 1.077 | I15: 10 | J15: 0 | K15: 14635
A16: 7 | B16: 410 - EXCEL ACADEMY Charter School - BOSTON Campus - LOWELL pupils | C16: 410035160 | D16: 410 | E16: 35 | F16: 160 | G16: 2 | H16: 1.077 | I16: 1 | J16: 0 | K16: 10207
A17: 8 | B17: 410 - EXCEL ACADEMY Charter School - BOSTON Campus - LYNN pupils | C17: 410035163 | D17: 410 | E17: 35 | F17: 163 | G17: 2 | H17: 1.077 | I17: 10 | J17: 0 | K17: 11908
A18: 9 | B18: 410 - EXCEL ACADEMY Charter School - BOSTON Campus - REVERE pupils | C18: 410035248 | D18: 410 | E18: 35 | F18: 248 | G18: 2 | H18: 1.077 | I18: 9 | J18: 0 | K18: 11201
A19: 10 | B19: 410 - EXCEL ACADEMY Charter School - BOSTON Campus - WALTHAM pupils | C19: 410035308 | D19: 410 | E19: 35 | F19: 308 | G19: 2 | H19: 1.077 | I19: 10 | J19: 0 | K19: 14635
A20: 11 | B20: 410 - EXCEL ACADEMY Charter School - BOSTON Campus - WINTHROP pupils | C20: 410035346 | D20: 410 | E20: 35 | F20: 346 | G20: 2 | H20: 1.077 | I20: 10 | J20: 0 | K20: 10900
A21: 12 | B21: 410 - EXCEL ACADEMY Charter School - CHELSEA Campus - BOSTON pupils | C21: 410057035 | D21: 410 | E21: 57 | F21: 35 | G21: 2 | H21: 1.038 | I21: 10 | J21: 0 | K21: 12036
A22: 13 | B22: 410 - EXCEL ACADEMY Charter School - CHELSEA Campus - CHELSEA pupils | C22: 410057057 | D22: 410 | E22: 57 | F22: 57 | G22: 2 | H22: 1.038 | I22: 10 | J22: 0 | K22: 10642
A23: 14 | B23: 410 - EXCEL ACADEMY Charter School - CHELSEA Campus - REVERE pupils | C23: 410057248 | D23: 410 | E23: 57 | F23: 248 | G23: 2 | H23: 1.038 | I23: 1 | J23: 0 | K23: 8125
A24: 15 | B24: 412 - ACADEMY OF THE PACIFIC RIM Charter School - BOSTON pupils | C24: 412035035 | D24: 412 | E24: 35 | F24: 35 | G24: 1 | H24: 1.077 | I24: 9 | J24: 0 | K24: 11073
A25: 16 | B25: 412 - ACADEMY OF THE PACIFIC RIM Charter School - BROCKTON pupils | C25: 412035044 | D25: 412 | E25: 35 | F25: 44 | G25: 1 | H25: 1.077 | I25: 8 | J25: 0 | K25: 10573
A26: 17 | B26: 412 - ACADEMY OF THE PACIFIC RIM Charter School - MILTON pupils | C26: 412035189 | D26: 412 | E26: 35 | F26: 189 | G26: 1 | H26: 1.077 | I26: 10 | J26: 0 | K26: 11508
A27: 18 | B27: 412 - ACADEMY OF THE PACIFIC RIM Charter School - NORWOOD pupils | C27: 412035220 | D27: 412 | E27: 35 | F27: 220 | G27: 1 | H27: 1.077 | I27: 10 | J27: 0 | K27: 13159
A28: 19 | B28: 412 - ACADEMY OF THE PACIFIC RIM Charter School - RANDOLPH pupils | C28: 412035244 | D28: 412 | E28: 35 | F28: 244 | G28: 1 | H28: 1.077 | I28: 8 | J28: 0 | K28: 11122
A29: 20 | B29: 412 - ACADEMY OF THE PACIFIC RIM Charter School - STOUGHTON pupils | C29: 412035285 | D29: 412 | E29: 35 | F29: 285 | G29: 1 | H29: 1.077 | I29: 1 | J29: 0 | K29: 9497
A30: 21 | B30: 412 - ACADEMY OF THE PACIFIC RIM Charter School - TAUNTON pupils | C30: 412035293 | D30: 412 | E30: 35 | F30: 293 | G30: 1 | H30: 1.077 | I30: 1 | J30: 0 | K30: 10207
A31: 22 | B31: 412 - ACADEMY OF THE PACIFIC RIM Charter School - WATERTOWN pupils | C31: 412035314 | D31: 412 | E31: 35 | F31: 314 | G31: 1 | H31: 1.077 | I31: 10 | J31: 0 | K31: 12810
A32: 23 | B32: 412 - ACADEMY OF THE PACIFIC RIM Charter School - WEYMOUTH pupils | C32: 412035336 | D32: 412 | E32: 35 | F32: 336 | G32: 1 | H32: 1.077 | I32: 10 | J32: 0 | K32: 14027
A33: 24 | B33: 413 - FOUR RIVERS Charter School - BELCHERTOWN pupils | C33: 413114024 | D33: 413 | E33: 114 | F33: 24 | G33: 1 | H33: 1 | I33: 10 | J33: 0 | K33: 12010
A34: 25 | B34: 413 - FOUR RIVERS Charter School - EAST BRIDGEWATER pupils | C34: 413114083 | D34: 413 | E34: 114 | F34: 83 | G34: 1 | H34: 1 | I34: 10 | J34: 0 | K34: 12010
A35: 26 | B35: 413 - FOUR RIVERS Charter School - ERVING pupils | C35: 413114091 | D35: 413 | E35: 114 | F35: 91 | G35: 1 | H35: 1 | I35: 5 | J35: 0 | K35: 10270
A36: 27 | B36: 413 - FOUR RIVERS Charter School - GREENFIELD pupils | C36: 413114114 | D36: 413 | E36: 114 | F36: 114 | G36: 1 | H36: 1 | I36: 7 | J36: 0 | K36: 10356
A37: 28 | B37: 413 - FOUR RIVERS Charter School - HADLEY pupils | C37: 413114117 | D37: 413 | E37: 114 | F37: 117 | G37: 1 | H37: 1 | I37: 10 | J37: 0 | K37: 13720
A38: 29 | B38: 413 - FOUR RIVERS Charter School - NORTHAMPTON pupils | C38: 413114210 | D38: 413 | E38: 114 | F38: 210 | G38: 1 | H38: 1 | I38: 10 | J38: 0 | K38: 13720
A39: 30 | B39: 413 - FOUR RIVERS Charter School - ROWE pupils | C39: 413114253 | D39: 413 | E39: 114 | F39: 253 | G39: 1 | H39: 1 | I39: 10 | J39: 0 | K39: 10798
A40: 31 | B40: 413 - FOUR RIVERS Charter School - AMHERST PELHAM pupils | C40: 413114605 | D40: 413 | E40: 114 | F40: 605 | G40: 1 | H40: 1 | I40: 10 | J40: 0 | K40: 12865
A41: 32 | B41: 413 - FOUR RIVERS Charter School - FRONTIER pupils | C41: 413114670 | D41: 413 | E41: 114 | F41: 670 | G41: 1 | H41: 1 | I41: 5 | J41: 0 | K41: 9694
A42: 33 | B42: 413 - FOUR RIVERS Charter School - GILL MONTAGUE pupils | C42: 413114674 | D42: 413 | E42: 114 | F42: 674 | G42: 1 | H42: 1 | I42: 7 | J42: 0 | K42: 10382
A43: 34 | B43: 413 - FOUR RIVERS Charter School - HAMPSHIRE pupils | C43: 413114683 | D43: 413 | E43: 114 | F43: 683 | G43: 1 | H43: 1 | I43: 1 | J43: 0 | K43: 9585
A44: 35 | B44: 413 - FOUR RIVERS Charter School - MOHAWK TRAIL pupils | C44: 413114717 | D44: 413 | E44: 114 | F44: 717 | G44: 1 | H44: 1 | I44: 8 | J44: 0 | K44: 10429
A45: 36 | B45: 413 - FOUR RIVERS Charter School - PIONEER pupils | C45: 413114750 | D45: 413 | E45: 114 | F45: 750 | G45: 1 | H45: 1 | I45: 8 | J45: 0 | K45: 10423
A46: 37 | B46: 413 - FOUR RIVERS Charter School - RALPH C MAHAR pupils | C46: 413114755 | D46: 413 | E46: 114 | F46: 755 | G46: 1 | H46: 1 | I46: 5 | J46: 0 | K46: 9574
A47: 38 | B47: 414 - BERKSHIRE ARTS AND TECHNOLOGY Charter School - CLARKSBURG pupils | C47: 414603063 | D47: 414 | E47: 603 | F47: 63 | G47: 1 | H47: 1 | I47: 1 | J47: 0 | K47: 9015
A48: 39 | B48: 414 - BERKSHIRE ARTS AND TECHNOLOGY Charter School - FLORIDA pupils | C48: 414603098 | D48: 414 | E48: 603 | F48: 98 | G48: 1 | H48: 1 | I48: 1 | J48: 0 | K48: 8445
A49: 40 | B49: 414 - BERKSHIRE ARTS AND TECHNOLOGY Charter School - LANESBOROUGH pupils | C49: 414603148 | D49: 414 | E49: 603 | F49: 148 | G49: 1 | H49: 1 | I49: 10 | J49: 0 | K49: 12010
A50: 41 | B50: 414 - BERKSHIRE ARTS AND TECHNOLOGY Charter School - LEE pupils | C50: 414603150 | D50: 414 | E50: 603 | F50: 150 | G50: 1 | H50: 1 | I50: 1 | J50: 0 | K50: 9585
A51: 42 | B51: 414 - BERKSHIRE ARTS AND TECHNOLOGY Charter School - LENOX pupils | C51: 414603152 | D51: 414 | E51: 603 | F51: 152 | G51: 1 | H51: 1 | I51: 10 | J51: 0 | K51: 9942
A52: 43 | B52: 414 - BERKSHIRE ARTS AND TECHNOLOGY Charter School - NORTH ADAMS pupils | C52: 414603209 | D52: 414 | E52: 603 | F52: 209 | G52: 1 | H52: 1 | I52: 10 | J52: 0 | K52: 11071
A53: 44 | B53: 414 - BERKSHIRE ARTS AND TECHNOLOGY Charter School - PITTSFIELD pupils | C53: 414603236 | D53: 414 | E53: 603 | F53: 236 | G53: 1 | H53: 1 | I53: 9 | J53: 0 | K53: 10545
A54: 45 | B54: 414 - BERKSHIRE ARTS AND TECHNOLOGY Charter School - SAVOY pupils | C54: 414603263 | D54: 414 | E54: 603 | F54: 263 | G54: 1 | H54: 1 | I54: 8 | J54: 0 | K54: 10367
A55: 46 | B55: 414 - BERKSHIRE ARTS AND TECHNOLOGY Charter School - WORTHINGTON pupils | C55: 414603349 | D55: 414 | E55: 603 | F55: 349 | G55: 1 | H55: 1 | I55: 1 | J55: 0 | K55: 9585
A56: 47 | B56: 414 - BERKSHIRE ARTS AND TECHNOLOGY Charter School - ADAMS CHESHIRE pupils | C56: 414603603 | D56: 414 | E56: 603 | F56: 603 | G56: 1 | H56: 1 | I56: 10 | J56: 0 | K56: 10598
A57: 48 | B57: 414 - BERKSHIRE ARTS AND TECHNOLOGY Charter School - BERKSHIRE HILLS pupils | C57: 414603618 | D57: 414 | E57: 603 | F57: 618 | G57: 1 | H57: 1 | I57: 1 | J57: 0 | K57: 7875
A58: 49 | B58: 414 - BERKSHIRE ARTS AND TECHNOLOGY Charter School - CENTRAL BERKSHIRE pupils | C58: 414603635 | D58: 414 | E58: 603 | F58: 635 | G58: 1 | H58: 1 | I58: 10 | J58: 0 | K58: 10365
A59: 50 | B59: 414 - BERKSHIRE ARTS AND TECHNOLOGY Charter School - MOUNT GREYLOCK pupils | C59: 414603715 | D59: 414 | E59: 603 | F59: 715 | G59: 1 | H59: 1 | I59: 3 | J59: 0 | K59: 9384
A60: 51 | B60: 416 - BOSTON PREPARATORY Charter School - BOSTON pupils | C60: 416035035 | D60: 416 | E60: 35 | F60: 35 | G60: 1 | H60: 1.077 | I60: 10 | J60: 0 | K60: 11707
A61: 52 | B61: 416 - BOSTON PREPARATORY Charter School - BROCKTON pupils | C61: 416035044 | D61: 416 | E61: 35 | F61: 44 | G61: 1 | H61: 1.077 | I61: 10 | J61: 0 | K61: 14635
A62: 53 | B62: 416 - BOSTON PREPARATORY Charter School - DEDHAM pupils | C62: 416035073 | D62: 416 | E62: 35 | F62: 73 | G62: 1 | H62: 1.077 | I62: 1 | J62: 0 | K62: 10207
A63: 54 | B63: 416 - BOSTON PREPARATORY Charter School - MILTON pupils | C63: 416035189 | D63: 416 | E63: 35 | F63: 189 | G63: 1 | H63: 1.077 | I63: 1 | J63: 0 | K63: 8382
A64: 55 | B64: 416 - BOSTON PREPARATORY Charter School - RANDOLPH pupils | C64: 416035244 | D64: 416 | E64: 35 | F64: 244 | G64: 1 | H64: 1.077 | I64: 8 | J64: 0 | K64: 11654
A65: 56 | B65: 416 - BOSTON PREPARATORY Charter School - STOUGHTON pupils | C65: 416035285 | D65: 416 | E65: 35 | F65: 285 | G65: 1 | H65: 1.077 | I65: 1 | J65: 0 | K65: 9598
A66: 57 | B66: 417 - BRIDGE BOSTON Charter School - BOSTON pupils | C66: 417035035 | D66: 417 | E66: 35 | F66: 35 | G66: 1 | H66: 1.077 | I66: 10 | J66: 0 | K66: 12285
A67: 58 | B67: 417 - BRIDGE BOSTON Charter School - RANDOLPH pupils | C67: 417035244 | D67: 417 | E67: 35 | F67: 244 | G67: 1 | H67: 1.077 | I67: 1 | J67: 0 | K67: 10901
A68: 59 | B68: 417 - BRIDGE BOSTON Charter School - SOMERVILLE pupils | C68: 417035274 | D68: 417 | E68: 35 | F68: 274 | G68: 1 | H68: 1.077 | I68: 10 | J68: 0 | K68: 8541
A69: 60 | B69: 417 - BRIDGE BOSTON Charter School - TAUNTON pupils | C69: 417035293 | D69: 417 | E69: 35 | F69: 293 | G69: 1 | H69: 1.077 | I69: 1 | J69: 0 | K69: 4945
A70: 61 | B70: 418 - CHRISTA MCAULIFFE Charter School - ASHLAND pupils | C70: 418100014 | D70: 418 | E70: 100 | F70: 14 | G70: 1 | H70: 1.054 | I70: 2 | J70: 0 | K70: 8642
A71: 62 | B71: 418 - CHRISTA MCAULIFFE Charter School - BOSTON pupils | C71: 418100035 | D71: 418 | E71: 100 | F71: 35 | G71: 1 | H71: 1.054 | I71: 1 | J71: 0 | K71: 8231
A72: 63 | B72: 418 - CHRISTA MCAULIFFE Charter School - EVERETT pupils | C72: 418100093 | D72: 418 | E72: 100 | F72: 93 | G72: 1 | H72: 1.054 | I72: 10 | J72: 0 | K72: 12571
A73: 64 | B73: 418 - CHRISTA MCAULIFFE Charter School - FRAMINGHAM pupils | C73: 418100100 | D73: 418 | E73: 100 | F73: 100 | G73: 1 | H73: 1.054 | I73: 5 | J73: 0 | K73: 9285
A74: 65 | B74: =IF(G74=1,D74 & " - " &VLOOKUP(D74,codeCHA,2)&" Charter School - "&VLOOKUP(F74,code436,2)&" pupils",IF(OR(D74=450,D74=466),D74 & " - " &VLOOKUP(D74,codeCHA,2)&" Charter School - "&VLOOKUP(E74,code436,2)&" District - "&VLOOKUP(F74,code436,2)&" pupils",D74 & " - " &VLOOKUP(D74,codeCHA,2)&" Charter School - "&VLOOKUP(E74,code436,2)&" Campus - "&VLOOKUP(F74,code436,2)&" pupils")) -> 418 - CHRISTA MCAULIFFE Charter School - HOLLISTON pupils | C74: 418100136 | D74: 418 | E74: 100 | F74: 136 | G74: 1 | H74: 1.054 | I74: =VLOOKUP(C74,enro_chafnd,17) -> 5 | J74: =VLOOKUP(F74,distinfo,6) -> 0 | K74: =IF(VLOOKUP(C74,rate_chafnd,41)>0,VLOOKUP(C74,rate_chafnd,41),VLOOKUP(F74,distinfo,7)) -> 9149
A75: 66 | B75: 418 - CHRISTA MCAULIFFE Charter School - HOPKINTON pupils | C75: 418100139 | D75: =IF(VALUE(MID(C75,1,1))=4,VALUE(MID(C75,1,3)),VALUE(MID(C75,1,4))) -> 418 | E75: =IF(VALUE(MID(C75,1,1))=4,VALUE(MID(C75,4,3)),VALUE(MID(C75,5,3))) -> 100 | F75: =IF(VALUE(MID(C75,1,1))=4,VALUE(MID(C75,7,3)),VALUE(MID(C75,8,3))) -> 139 | G75: =IF(OR(D75=410,D75=466,D75=487),2,1) -> 1 | H75: =VLOOKUP(E75,distinfo,4) -> 1.054 | I75: 2 | J75: 0 | K75: 8676
A76: 67 | B76: 418 - CHRISTA MCAULIFFE Charter School - MARLBOROUGH pupils | C76: 418100170 | D76: 418 | E76: 100 | F76: 170 | G76: 1 | H76: 1.054 | I76: 3 | J76: 0 | K76: 9045
A77: 68 | B77: 418 - CHRISTA MCAULIFFE Charter School - MAYNARD pupils | C77: 418100174 | D77: 418 | E77: 100 | F77: 174 | G77: 1 | H77: 1.054 | I77: 10 | J77: 0 | K77: 12571
A78: 69 | B78: 418 - CHRISTA MCAULIFFE Charter School - MEDFIELD pupils | C78: 418100175 | D78: 418 | E78: 100 | F78: 175 | G78: 1 | H78: 1.054 | I78: 1 | J78: 0 | K78: 8231
A79: 70 | B79: 418 - CHRISTA MCAULIFFE Charter School - MILFORD pupils | C79: 418100185 | D79: 418 | E79: 100 | F79: 185 | G79: 1 | H79: 1.054 | I79: 1 | J79: 0 | K79: 8231
A80: 71 | B80: 418 - CHRISTA MCAULIFFE Charter School - NATICK pupils | C80: 418100198 | D80: 418 | E80: 100 | F80: 198 | G80: 1 | H80: 1.054 | I80: 2 | J80: 0 | K80: 8645
A81: 72 | B81: 418 - CHRISTA MCAULIFFE Charter School - NORTHBOROUGH pupils | C81: 418100213 | D81: 418 | E81: 100 | F81: 213 | G81: 1 | H81: 1.054 | I81: 1 | J81: 0 | K81: 8231
A82: 73 | B82: 418 - CHRISTA MCAULIFFE Charter School - SOUTHBOROUGH pupils | C82: 418100276 | D82: 418 | E82: 100 | F82: 276 | G82: 1 | H82: 1.054 | I82: 1 | J82: 0 | K82: 8231
A83: 74 | B83: 418 - CHRISTA MCAULIFFE Charter School - SUDBURY pupils | C83: 418100288 | D83: 418 | E83: 100 | F83: 288 | G83: 1 | H83: 1.054 | I83: 1 | J83: 0 | K83: 8231
A84: 75 | B84: 418 - CHRISTA MCAULIFFE Charter School - UXBRIDGE pupils | C84: 418100304 | D84: 418 | E84: 100 | F84: 304 | G84: 1 | H84: 1.054 | I84: 10 | J84: 0 | K84: 12571
A85: 76 | B85: 418 - CHRISTA MCAULIFFE Charter School - WAYLAND pupils | C85: 418100315 | D85: 418 | E85: 100 | F85: 315 | G85: 1 | H85: 1.054 | I85: 1 | J85: 0 | K85: 8231
A86: 77 | B86: 418 - CHRISTA MCAULIFFE Charter School - WESTBOROUGH pupils | C86: 418100321 | D86: 418 | E86: 100 | F86: 321 | G86: 1 | H86: 1.054 | I86: 1 | J86: 0 | K86: 8231
A87: 78 | B87: 418 - CHRISTA MCAULIFFE Charter School - DOVER SHERBORN pupils | C87: 418100655 | D87: 418 | E87: 100 | F87: 655 | G87: 1 | H87: 1.054 | I87: 1 | J87: 0 | K87: 8231
A88: 79 | B88: 418 - CHRISTA MCAULIFFE Charter School - MENDON UPTON pupils | C88: 418100710 | D88: 418 | E88: 100 | F88: 710 | G88: 1 | H88: 1.054 | I88: 1 | J88: 0 | K88: 8231
A89: 80 | B89: 419 - HELEN Y. DAVIS LEADERSHIP ACADEMY Charter School - BOSTON pupils | C89: 419035035 | D89: 419 | E89: 35 | F89: 35 | G89: 1 | H89: 1.077 | I89: 10 | J89: 0 | K89: 11468
A90: 81 | B90: 419 - HELEN Y. DAVIS LEADERSHIP ACADEMY Charter School - BROCKTON pupils | C90: 419035044 | D90: 419 | E90: 35 | F90: 44 | G90: 1 | H90: 1.077 | I90: 9 | J90: 0 | K90: 10136
A91: 82 | B91: 419 - HELEN Y. DAVIS LEADERSHIP ACADEMY Charter School - CAMBRIDGE pupils | C91: 419035049 | D91: 419 | E91: 35 | F91: 49 | G91: 1 | H91: 1.077 | I91: 10 | J91: 0 | K91: 10596
A92: 83 | B92: 419 - HELEN Y. DAVIS LEADERSHIP ACADEMY Charter School - HOLBROOK pupils | C92: 419035133 | D92: 419 | E92: 35 | F92: 133 | G92: 1 | H92: 1.077 | I92: 10 | J92: 0 | K92: 12810
A93: 84 | B93: 419 - HELEN Y. DAVIS LEADERSHIP ACADEMY Charter School - MALDEN pupils | C93: 419035165 | D93: 419 | E93: 35 | F93: 165 | G93: 1 | H93: 1.077 | I93: 10 | J93: 0 | K93: 12810
A94: 85 | B94: 419 - HELEN Y. DAVIS LEADERSHIP ACADEMY Charter School - RANDOLPH pupils | C94: 419035244 | D94: 419 | E94: 35 | F94: 244 | G94: 1 | H94: 1.077 | I94: 5 | J94: 0 | K94: 9729
A95: 86 | B95: 420 - BENJAMIN BANNEKER Charter School - ARLINGTON pupils | C95: 420049010 | D95: 420 | E95: 49 | F95: 10 | G95: 1 | H95: 1.093 | I95: 10 | J95: 0 | K95: 11892
A96: 87 | B96: 420 - BENJAMIN BANNEKER Charter School - BEDFORD pupils | C96: 420049023 | D96: 420 | E96: 49 | F96: 23 | G96: 1 | H96: 1.093 | I96: 1 | J96: 0 | K96: 8899
A97: 88 | B97: 420 - BENJAMIN BANNEKER Charter School - BELMONT pupils | C97: 420049026 | D97: 420 | E97: 49 | F97: 26 | G97: 1 | H97: 1.093 | I97: 10 | J97: 0 | K97: 13388
A98: 89 | B98: 420 - BENJAMIN BANNEKER Charter School - BILLERICA pupils | C98: 420049031 | D98: 420 | E98: 49 | F98: 31 | G98: 1 | H98: 1.093 | I98: 1 | J98: 0 | K98: 8899
A99: 90 | B99: 420 - BENJAMIN BANNEKER Charter School - BOSTON pupils | C99: 420049035 | D99: 420 | E99: 49 | F99: 35 | G99: 1 | H99: 1.093 | I99: 10 | J99: 0 | K99: 11282
A100: 91 | B100: 420 - BENJAMIN BANNEKER Charter School - BROCKTON pupils | C100: 420049044 | D100: 420 | E100: 49 | F100: 44 | G100: 1 | H100: 1.093 | I100: 10 | J100: 0 | K100: 13364
A101: 92 | B101: 420 - BENJAMIN BANNEKER Charter School - CAMBRIDGE pupils | C101: 420049049 | D101: 420 | E101: 49 | F101: 49 | G101: 1 | H101: 1.093 | I101: 10 | J101: 0 | K101: 12236
A102: 93 | B102: 420 - BENJAMIN BANNEKER Charter School - CHELSEA pupils | C102: 420049057 | D102: 420 | E102: 49 | F102: 57 | G102: 1 | H102: 1.093 | I102: 9 | J102: 0 | K102: 11524
A103: 94 | B103: 420 - BENJAMIN BANNEKER Charter School - EVERETT pupils | C103: 420049093 | D103: 420 | E103: 49 | F103: 93 | G103: 1 | H103: 1.093 | I103: 10 | J103: 0 | K103: 11270
A104: 95 | B104: 420 - BENJAMIN BANNEKER Charter School - LAWRENCE pupils | C104: 420049149 | D104: 420 | E104: 49 | F104: 149 | G104: 1 | H104: 1.093 | I104: 1 | J104: 0 | K104: 8899
A105: 96 | B105: 420 - BENJAMIN BANNEKER Charter School - LYNN pupils | C105: 420049163 | D105: 420 | E105: 49 | F105: 163 | G105: 1 | H105: 1.093 | I105: 1 | J105: 0 | K105: 8817
A106: 97 | B106: 420 - BENJAMIN BANNEKER Charter School - MALDEN pupils | C106: 420049165 | D106: 420 | E106: 49 | F106: 165 | G106: 1 | H106: 1.093 | I106: 10 | J106: 0 | K106: 12033
A107: 98 | B107: 420 - BENJAMIN BANNEKER Charter School - MEDFORD pupils | C107: 420049176 | D107: 420 | E107: 49 | F107: 176 | G107: 1 | H107: 1.093 | I107: 10 | J107: 0 | K107: 11680
A108: 99 | B108: 420 - BENJAMIN BANNEKER Charter School - METHUEN pupils | C108: 420049181 | D108: 420 | E108: 49 | F108: 181 | G108: 1 | H108: 1.093 | I108: 1 | J108: 0 | K108: 8899
A109: 100 | B109: 420 - BENJAMIN BANNEKER Charter School - QUINCY pupils | C109: 420049243 | D109: 420 | E109: 49 | F109: 243 | G109: 1 | H109: 1.093 | I109: 10 | J109: 0 | K109: 11144
A110: 101 | B110: 420 - BENJAMIN BANNEKER Charter School - RANDOLPH pupils | C110: 420049244 | D110: 420 | E110: 49 | F110: 244 | G110: 1 | H110: 1.093 | I110: 1 | J110: 0 | K110: 8880
A111: 102 | B111: 420 - BENJAMIN BANNEKER Charter School - REVERE pupils | C111: 420049248 | D111: 420 | E111: 49 | F111: 248 | G111: 1 | H111: 1.093 | I111: 10 | J111: 0 | K111: 12151
A112: 103 | B112: 420 - BENJAMIN BANNEKER Charter School - SAUGUS pupils | C112: 420049262 | D112: 420 | E112: 49 | F112: 262 | G112: 1 | H112: 1.093 | I112: 10 | J112: 0 | K112: 13388
A113: 104 | B113: 420 - BENJAMIN BANNEKER Charter School - SOMERVILLE pupils | C113: 420049274 | D113: 420 | E113: 49 | F113: 274 | G113: 1 | H113: 1.093 | I113: 10 | J113: 0 | K113: 11473
A114: 105 | B114: 420 - BENJAMIN BANNEKER Charter School - WALTHAM pupils | C114: 420049308 | D114: 420 | E114: 49 | F114: 308 | G114: 1 | H114: 1.093 | I114: 1 | J114: 0 | K114: 8899
A115: 106 | B115: 420 - BENJAMIN BANNEKER Charter School - WOBURN pupils | C115: 420049347 | D115: 420 | E115: 49 | F115: 347 | G115: 1 | H115: 1.093 | I115: 1 | J115: 0 | K115: 8851
A116: 107 | B116: 420 - BENJAMIN BANNEKER Charter School - AYER SHIRLEY pupils | C116: 420049616 | D116: 420 | E116: 49 | F116: 616 | G116: 1 | H116: 1.093 | I116: 10 | J116: 0 | K116: 13388
A117: 108 | B117: 426 - COMMUNITY DAY - GATEWAY Charter School - ANDOVER pupils | C117: 426149009 | D117: 426 | E117: 149 | F117: 9 | G117: 1 | H117: 1 | I117: 10 | J117: 0 | K117: 11310
A118: 109 | B118: 426 - COMMUNITY DAY - GATEWAY Charter School - CHELMSFORD pupils | C118: 426149056 | D118: 426 | E118: 149 | F118: 56 | G118: 1 | H118: 1 | I118: 10 | J118: 0 | K118: 8776
A119: 110 | B119: 426 - COMMUNITY DAY - GATEWAY Charter School - DRACUT pupils | C119: 426149079 | D119: 426 | E119: 149 | F119: 79 | G119: 1 | H119: 1 | I119: 1 | J119: 0 | K119: 8254
A120: 111 | B120: 426 - COMMUNITY DAY - GATEWAY Charter School - LAWRENCE pupils | C120: 426149149 | D120: 426 | E120: 149 | F120: 149 | G120: 1 | H120: 1 | I120: 10 | J120: 0 | K120: 12070
A121: 112 | B121: 426 - COMMUNITY DAY - GATEWAY Charter School - METHUEN pupils | C121: 426149181 | D121: 426 | E121: 149 | F121: 181 | G121: 1 | H121: 1 | I121: 5 | J121: 0 | K121: 8868
A122: 113 | B122: 428 - BROOKE ROSLINDALE Charter School - BOSTON pupils | C122: 428035035 | D122: 428 | E122: 35 | F122: 35 | G122: 1 | H122: 1.077 | I122: 10 | J122: 0 | K122: 11189
A123: 114 | B123: 428 - BROOKE ROSLINDALE Charter School - BRAINTREE pupils | C123: 428035040 | D123: 428 | E123: 35 | F123: 40 | G123: 1 | H123: 1.077 | I123: 10 | J123: 0 | K123: 13216
A124: 115 | B124: 428 - BROOKE ROSLINDALE Charter School - BROCKTON pupils | C124: 428035044 | D124: 428 | E124: 35 | F124: 44 | G124: 1 | H124: 1.077 | I124: 8 | J124: 0 | K124: 10236
A125: 116 | B125: 428 - BROOKE ROSLINDALE Charter School - CANTON pupils | C125: 428035050 | D125: 428 | E125: 35 | F125: 50 | G125: 1 | H125: 1.077 | I125: 10 | J125: 0 | K125: 13216
A126: 117 | B126: 428 - BROOKE ROSLINDALE Charter School - CHELSEA pupils | C126: 428035057 | D126: 428 | E126: 35 | F126: 57 | G126: 1 | H126: 1.077 | I126: 10 | J126: 0 | K126: 11473
A127: 118 | B127: 428 - BROOKE ROSLINDALE Charter School - DEDHAM pupils | C127: 428035073 | D127: 428 | E127: 35 | F127: 73 | G127: 1 | H127: 1.077 | I127: 1 | J127: 0 | K127: 8687
A128: 119 | B128: 428 - BROOKE ROSLINDALE Charter School - EVERETT pupils | C128: 428035093 | D128: 428 | E128: 35 | F128: 93 | G128: 1 | H128: 1.077 | I128: 10 | J128: 0 | K128: 13103
A129: 120 | B129: 428 - BROOKE ROSLINDALE Charter School - LYNN pupils | C129: 428035163 | D129: 428 | E129: 35 | F129: 163 | G129: 1 | H129: 1.077 | I129: 6 | J129: 0 | K129: 10279
A130: 121 | B130: 428 - BROOKE ROSLINDALE Charter School - MILTON pupils | C130: 428035189 | D130: 428 | E130: 35 | F130: 189 | G130: 1 | H130: 1.077 | I130: 1 | J130: 0 | K130: 8585
A131: 122 | B131: 428 - BROOKE ROSLINDALE Charter School - NORWOOD pupils | C131: 428035220 | D131: 428 | E131: 35 | F131: 220 | G131: 1 | H131: 1.077 | I131: 10 | J131: 0 | K131: 12008
A132: 123 | B132: 428 - BROOKE ROSLINDALE Charter School - QUINCY pupils | C132: 428035243 | D132: 428 | E132: 35 | F132: 243 | G132: 1 | H132: 1.077 | I132: 8 | J132: 0 | K132: 10085
A133: 124 | B133: 428 - BROOKE ROSLINDALE Charter School - RANDOLPH pupils | C133: 428035244 | D133: 428 | E133: 35 | F133: 244 | G133: 1 | H133: 1.077 | I133: 2 | J133: 0 | K133: 8960
A134: 125 | B134: 428 - BROOKE ROSLINDALE Charter School - REVERE pupils | C134: 428035248 | D134: 428 | E134: 35 | F134: 248 | G134: 1 | H134: 1.077 | I134: 10 | J134: 0 | K134: 11935
A135: 126 | B135: 428 - BROOKE ROSLINDALE Charter School - STOUGHTON pupils | C135: 428035285 | D135: 428 | E135: 35 | F135: 285 | G135: 1 | H135: 1.077 | I135: 10 | J135: 0 | K135: 13081
A136: 127 | B136: 428 - BROOKE ROSLINDALE Charter School - WALTHAM pupils | C136: 428035308 | D136: 428 | E136: 35 | F136: 308 | G136: 1 | H136: 1.077 | I136: 10 | J136: 0 | K136: 15330
A137: 128 | B137: 428 - BROOKE ROSLINDALE Charter School - WINTHROP pupils | C137: 428035346 | D137: 428 | E137: 35 | F137: 346 | G137: 1 | H137: 1.077 | I137: 10 | J137: 0 | K137: 11002
A138: 129 | B138: =IF(G138=1,D138 & " - " &VLOOKUP(D138,codeCHA,2)&" Charter School - "&VLOOKUP(F138,code436,2)&" pupils",IF(OR(D138=450,D138=466),D138 & " - " &VLOOKUP(D138,codeCHA,2)&" Charter School - "&VLOOKUP(E138,code436,2)&" District - "&VLOOKUP(F138,code436,2)&" pupils",D138 & " - " &VLOOKUP(D138,codeCHA,2)&" Charter School - "&VLOOKUP(E138,code436,2)&" Campus - "&VLOOKUP(F138,code436,2)&" pupils")) -> 428 - BROOKE ROSLINDALE Charter School - BRIDGEWATER RAYNHAM pupils | C138: 428035625 | D138: 428 | E138: 35 | F138: 625 | G138: 1 | H138: 1.077 | I138: =VLOOKUP(C138,enro_chafnd,17) -> 1 | J138: =VLOOKUP(F138,distinfo,6) -> 0 | K138: =IF(VLOOKUP(C138,rate_chafnd,41)>0,VLOOKUP(C138,rate_chafnd,41),VLOOKUP(F138,distinfo,7)) -> 8788
A139: 130 | B139: 428 - BROOKE ROSLINDALE Charter School - DIGHTON REHOBOTH pupils | C139: 428035650 | D139: =IF(VALUE(MID(C139,1,1))=4,VALUE(MID(C139,1,3)),VALUE(MID(C139,1,4))) -> 428 | E139: =IF(VALUE(MID(C139,1,1))=4,VALUE(MID(C139,4,3)),VALUE(MID(C139,5,3))) -> 35 | F139: =IF(VALUE(MID(C139,1,1))=4,VALUE(MID(C139,7,3)),VALUE(MID(C139,8,3))) -> 650 | G139: =IF(OR(D139=410,D139=466,D139=487),2,1) -> 1 | H139: =VLOOKUP(E139,distinfo,4) -> 1.077 | I139: 1 | J139: 0 | K139: 8788
A140: 131 | B140: 429 - KIPP ACADEMY LYNN Charter School - BEVERLY pupils | C140: 429163030 | D140: 429 | E140: 163 | F140: 30 | G140: 1 | H140: 1 | I140: 10 | J140: 0 | K140: 12643
A141: 132 | B141: 429 - KIPP ACADEMY LYNN Charter School - CHELSEA pupils | C141: 429163057 | D141: 429 | E141: 163 | F141: 57 | G141: 1 | H141: 1 | I141: 10 | J141: 0 | K141: 14043
A142: 133 | B142: 429 - KIPP ACADEMY LYNN Charter School - LYNN pupils | C142: 429163163 | D142: 429 | E142: 163 | F142: 163 | G142: 1 | H142: 1 | I142: 10 | J142: 0 | K142: 11338
A143: 134 | B143: 429 - KIPP ACADEMY LYNN Charter School - LYNNFIELD pupils | C143: 429163164 | D143: 429 | E143: 163 | F143: 164 | G143: 1 | H143: 1 | I143: 10 | J143: 0 | K143: 11976
A144: 135 | B144: 429 - KIPP ACADEMY LYNN Charter School - MARBLEHEAD pupils | C144: 429163168 | D144: 429 | E144: 163 | F144: 168 | G144: 1 | H144: 1 | I144: 1 | J144: 0 | K144: 8730
A145: 136 | B145: 429 - KIPP ACADEMY LYNN Charter School - MEDFORD pupils | C145: 429163176 | D145: 429 | E145: 163 | F145: 176 | G145: 1 | H145: 1 | I145: 1 | J145: 0 | K145: 9585
A146: 137 | B146: 429 - KIPP ACADEMY LYNN Charter School - PEABODY pupils | C146: 429163229 | D146: 429 | E146: 163 | F146: 229 | G146: 1 | H146: 1 | I146: 10 | J146: 0 | K146: 12893
A147: 138 | B147: 429 - KIPP ACADEMY LYNN Charter School - REVERE pupils | C147: 429163248 | D147: 429 | E147: 163 | F147: 248 | G147: 1 | H147: 1 | I147: 1 | J147: 0 | K147: 9585
A148: 139 | B148: 429 - KIPP ACADEMY LYNN Charter School - SALEM pupils | C148: 429163258 | D148: 429 | E148: 163 | F148: 258 | G148: 1 | H148: 1 | I148: 9 | J148: 0 | K148: 11359
A149: 140 | B149: 429 - KIPP ACADEMY LYNN Charter School - SAUGUS pupils | C149: 429163262 | D149: 429 | E149: 163 | F149: 262 | G149: 1 | H149: 1 | I149: 10 | J149: 0 | K149: 12420
A150: 141 | B150: 429 - KIPP ACADEMY LYNN Charter School - SWAMPSCOTT pupils | C150: 429163291 | D150: 429 | E150: 163 | F150: 291 | G150: 1 | H150: 1 | I150: 10 | J150: 0 | K150: 12259
A151: 142 | B151: 430 - ADVANCED MATH AND SCIENCE ACADEMY Charter School - ANDOVER pupils | C151: 430170009 | D151: 430 | E151: 170 | F151: 9 | G151: 1 | H151: 1.065 | I151: 1 | J151: 0 | K151: 8303
A152: 143 | B152: 430 - ADVANCED MATH AND SCIENCE ACADEMY Charter School - ASHLAND pupils | C152: 430170014 | D152: 430 | E152: 170 | F152: 14 | G152: 1 | H152: 1.065 | I152: 1 | J152: 0 | K152: 9902
A153: 144 | B153: 430 - ADVANCED MATH AND SCIENCE ACADEMY Charter School - AUBURN pupils | C153: 430170017 | D153: 430 | E153: 170 | F153: 17 | G153: 1 | H153: 1.065 | I153: 1 | J153: 0 | K153: 10110
A154: 145 | B154: 430 - ADVANCED MATH AND SCIENCE ACADEMY Charter School - BILLERICA pupils | C154: 430170031 | D154: 430 | E154: 170 | F154: 31 | G154: 1 | H154: 1.065 | I154: 1 | J154: 0 | K154: 10110
A155: 146 | B155: 430 - ADVANCED MATH AND SCIENCE ACADEMY Charter School - CHELMSFORD pupils | C155: 430170056 | D155: 430 | E155: 170 | F155: 56 | G155: 1 | H155: 1.065 | I155: 1 | J155: 0 | K155: 10110
A156: 147 | B156: 430 - ADVANCED MATH AND SCIENCE ACADEMY Charter School - CLINTON pupils | C156: 430170064 | D156: 430 | E156: 170 | F156: 64 | G156: 1 | H156: 1.065 | I156: 1 | J156: 0 | K156: 9263
A157: 148 | B157: 430 - ADVANCED MATH AND SCIENCE ACADEMY Charter School - FRAMINGHAM pupils | C157: 430170100 | D157: 430 | E157: 170 | F157: 100 | G157: 1 | H157: 1.065 | I157: 1 | J157: 0 | K157: 9855
A158: 149 | B158: 430 - ADVANCED MATH AND SCIENCE ACADEMY Charter School - FRANKLIN pupils | C158: 430170101 | D158: 430 | E158: 170 | F158: 101 | G158: 1 | H158: 1.065 | I158: 1 | J158: 0 | K158: 8303
A159: 150 | B159: 430 - ADVANCED MATH AND SCIENCE ACADEMY Charter School - GRAFTON pupils | C159: 430170110 | D159: 430 | E159: 170 | F159: 110 | G159: 1 | H159: 1.065 | I159: 1 | J159: 0 | K159: 9793
A160: 151 | B160: 430 - ADVANCED MATH AND SCIENCE ACADEMY Charter School - HARVARD pupils | C160: 430170125 | D160: 430 | E160: 170 | F160: 125 | G160: 1 | H160: 1.065 | I160: 1 | J160: 0 | K160: 10110
A161: 152 | B161: 430 - ADVANCED MATH AND SCIENCE ACADEMY Charter School - HOLLISTON pupils | C161: 430170136 | D161: 430 | E161: 170 | F161: 136 | G161: 1 | H161: 1.065 | I161: 1 | J161: 0 | K161: 10110
A162: 153 | B162: 430 - ADVANCED MATH AND SCIENCE ACADEMY Charter School - HOPEDALE pupils | C162: 430170138 | D162: 430 | E162: 170 | F162: 138 | G162: 1 | H162: 1.065 | I162: 1 | J162: 0 | K162: 10110
A163: 154 | B163: 430 - ADVANCED MATH AND SCIENCE ACADEMY Charter School - HOPKINTON pupils | C163: 430170139 | D163: 430 | E163: 170 | F163: 139 | G163: 1 | H163: 1.065 | I163: 1 | J163: 0 | K163: 9723
A164: 155 | B164: 430 - ADVANCED MATH AND SCIENCE ACADEMY Charter School - HUDSON pupils | C164: 430170141 | D164: 430 | E164: 170 | F164: 141 | G164: 1 | H164: 1.065 | I164: 2 | J164: 0 | K164: 9616
A165: 156 | B165: 430 - ADVANCED MATH AND SCIENCE ACADEMY Charter School - LEOMINSTER pupils | C165: 430170153 | D165: 430 | E165: 170 | F165: 153 | G165: 1 | H165: 1.065 | I165: 1 | J165: 0 | K165: 10110
A166: 157 | B166: 430 - ADVANCED MATH AND SCIENCE ACADEMY Charter School - LITTLETON pupils | C166: 430170158 | D166: 430 | E166: 170 | F166: 158 | G166: 1 | H166: 1.065 | I166: 1 | J166: 0 | K166: 9387
A167: 158 | B167: 430 - ADVANCED MATH AND SCIENCE ACADEMY Charter School - MARLBOROUGH pupils | C167: 430170170 | D167: 430 | E167: 170 | F167: 170 | G167: 1 | H167: 1.065 | I167: 2 | J167: 0 | K167: 9559
A168: 159 | B168: 430 - ADVANCED MATH AND SCIENCE ACADEMY Charter School - MAYNARD pupils | C168: 430170174 | D168: 430 | E168: 170 | F168: 174 | G168: 1 | H168: 1.065 | I168: 1 | J168: 0 | K168: 8896
A169: 160 | B169: 430 - ADVANCED MATH AND SCIENCE ACADEMY Charter School - MEDWAY pupils | C169: 430170177 | D169: 430 | E169: 170 | F169: 177 | G169: 1 | H169: 1.065 | I169: 1 | J169: 0 | K169: 9387
A170: 161 | B170: 430 - ADVANCED MATH AND SCIENCE ACADEMY Charter School - NATICK pupils | C170: 430170198 | D170: 430 | E170: 170 | F170: 198 | G170: 1 | H170: 1.065 | I170: 1 | J170: 0 | K170: 9852
A171: 162 | B171: 430 - ADVANCED MATH AND SCIENCE ACADEMY Charter School - NEWTON pupils | C171: 430170207 | D171: 430 | E171: 170 | F171: 207 | G171: 1 | H171: 1.065 | I171: 1 | J171: 0 | K171: 10110
A172: 163 | B172: 430 - ADVANCED MATH AND SCIENCE ACADEMY Charter School - NORTHBOROUGH pupils | C172: 430170213 | D172: 430 | E172: 170 | F172: 213 | G172: 1 | H172: 1.065 | I172: 1 | J172: 0 | K172: 8303
A173: 164 | B173: 430 - ADVANCED MATH AND SCIENCE ACADEMY Charter School - SHREWSBURY pupils | C173: 430170271 | D173: 430 | E173: 170 | F173: 271 | G173: 1 | H173: 1.065 | I173: 1 | J173: 0 | K173: 9934
A174: 165 | B174: 430 - ADVANCED MATH AND SCIENCE ACADEMY Charter School - UXBRIDGE pupils | C174: 430170304 | D174: 430 | E174: 170 | F174: 304 | G174: 1 | H174: 1.065 | I174: 1 | J174: 0 | K174: 10110
A175: 166 | B175: 430 - ADVANCED MATH AND SCIENCE ACADEMY Charter School - WALTHAM pupils | C175: 430170308 | D175: 430 | E175: 170 | F175: 308 | G175: 1 | H175: 1.065 | I175: 1 | J175: 0 | K175: 9508
A176: 167 | B176: 430 - ADVANCED MATH AND SCIENCE ACADEMY Charter School - WATERTOWN pupils | C176: 430170314 | D176: 430 | E176: 170 | F176: 314 | G176: 1 | H176: 1.065 | I176: 1 | J176: 0 | K176: 9207
A177: 168 | B177: 430 - ADVANCED MATH AND SCIENCE ACADEMY Charter School - WELLESLEY pupils | C177: 430170317 | D177: 430 | E177: 170 | F177: 317 | G177: 1 | H177: 1.065 | I177: 1 | J177: 0 | K177: 10110
A178: 169 | B178: 430 - ADVANCED MATH AND SCIENCE ACADEMY Charter School - WESTBOROUGH pupils | C178: 430170321 | D178: 430 | E178: 170 | F178: 321 | G178: 1 | H178: 1.065 | I178: 1 | J178: 0 | K178: 9387
A179: 170 | B179: 430 - ADVANCED MATH AND SCIENCE ACADEMY Charter School - WEST BOYLSTON pupils | C179: 430170322 | D179: 430 | E179: 170 | F179: 322 | G179: 1 | H179: 1.065 | I179: 1 | J179: 0 | K179: 9267
A180: 171 | B180: 430 - ADVANCED MATH AND SCIENCE ACADEMY Charter School - WESTFORD pupils | C180: 430170326 | D180: 430 | E180: 170 | F180: 326 | G180: 1 | H180: 1.065 | I180: 1 | J180: 0 | K180: 9508
A181: 172 | B181: 430 - ADVANCED MATH AND SCIENCE ACADEMY Charter School - WORCESTER pupils | C181: 430170348 | D181: 430 | E181: 170 | F181: 348 | G181: 1 | H181: 1.065 | I181: 7 | J181: 0 | K181: 11009
A182: 173 | B182: 430 - ADVANCED MATH AND SCIENCE ACADEMY Charter School - AYER SHIRLEY pupils | C182: 430170616 | D182: 430 | E182: 170 | F182: 616 | G182: 1 | H182: 1.065 | I182: 1 | J182: 0 | K182: 10110
A183: 174 | B183: 430 - ADVANCED MATH AND SCIENCE ACADEMY Charter School - BERLIN BOYLSTON pupils | C183: 430170620 | D183: 430 | E183: 170 | F183: 620 | G183: 1 | H183: 1.065 | I183: 1 | J183: 0 | K183: 9997
A184: 175 | B184: 430 - ADVANCED MATH AND SCIENCE ACADEMY Charter School - LINCOLN SUDBURY pupils | C184: 430170695 | D184: 430 | E184: 170 | F184: 695 | G184: 1 | H184: 1.065 | I184: 1 | J184: 0 | K184: 10110
A185: 176 | B185: 430 - ADVANCED MATH AND SCIENCE ACADEMY Charter School - MENDON UPTON pupils | C185: 430170710 | D185: 430 | E185: 170 | F185: 710 | G185: 1 | H185: 1.065 | I185: 2 | J185: 0 | K185: 10153
A186: 177 | B186: 430 - ADVANCED MATH AND SCIENCE ACADEMY Charter School - NASHOBA pupils | C186: 430170725 | D186: 430 | E186: 170 | F186: 725 | G186: 1 | H186: 1.065 | I186: 1 | J186: 0 | K186: 10110
A187: 178 | B187: 430 - ADVANCED MATH AND SCIENCE ACADEMY Charter School - NORTHBORO SOUTHBORO pupils | C187: 430170730 | D187: 430 | E187: 170 | F187: 730 | G187: 1 | H187: 1.065 | I187: 1 | J187: 0 | K187: 10110
A188: 179 | B188: 430 - ADVANCED MATH AND SCIENCE ACADEMY Charter School - NORTH MIDDLESEX pupils | C188: 430170735 | D188: 430 | E188: 170 | F188: 735 | G188: 1 | H188: 1.065 | I188: 1 | J188: 0 | K188: 9508
A189: 180 | B189: 430 - ADVANCED MATH AND SCIENCE ACADEMY Charter School - WACHUSETT pupils | C189: 430170775 | D189: 430 | E189: 170 | F189: 775 | G189: 1 | H189: 1.065 | I189: 1 | J189: 0 | K189: 10110
A190: 181 | B190: 431 - COMMUNITY DAY - R. KINGMAN WEBSTER Charter School - HAVERHILL pupils | C190: 431149128 | D190: 431 | E190: 149 | F190: 128 | G190: 1 | H190: 1 | I190: 1 | J190: 0 | K190: 8254
A191: 182 | B191: 431 - COMMUNITY DAY - R. KINGMAN WEBSTER Charter School - LAWRENCE pupils | C191: 431149149 | D191: 431 | E191: 149 | F191: 149 | G191: 1 | H191: 1 | I191: 10 | J191: 0 | K191: 11593
A192: 183 | B192: 431 - COMMUNITY DAY - R. KINGMAN WEBSTER Charter School - METHUEN pupils | C192: 431149181 | D192: 431 | E192: 149 | F192: 181 | G192: 1 | H192: 1 | I192: 7 | J192: 0 | K192: 9005
A193: 184 | B193: 432 - CAPE COD LIGHTHOUSE Charter School - BARNSTABLE pupils | C193: 432712020 | D193: 432 | E193: 712 | F193: 20 | G193: 1 | H193: 1 | I193: 2 | J193: 0 | K193: 8299
A194: 185 | B194: 432 - CAPE COD LIGHTHOUSE Charter School - MASHPEE pupils | C194: 432712172 | D194: 432 | E194: 712 | F194: 172 | G194: 1 | H194: 1 | I194: 1 | J194: 0 | K194: 7875
A195: 186 | B195: 432 - CAPE COD LIGHTHOUSE Charter School - SANDWICH pupils | C195: 432712261 | D195: 432 | E195: 712 | F195: 261 | G195: 1 | H195: 1 | I195: 4 | J195: 0 | K195: 8524
A196: 187 | B196: 432 - CAPE COD LIGHTHOUSE Charter School - TRURO pupils | C196: 432712300 | D196: 432 | E196: 712 | F196: 300 | G196: 1 | H196: 1 | I196: 10 | J196: 0 | K196: 9942
A197: 188 | B197: 432 - CAPE COD LIGHTHOUSE Charter School - DENNIS YARMOUTH pupils | C197: 432712645 | D197: 432 | E197: 712 | F197: 645 | G197: 1 | H197: 1 | I197: 7 | J197: 0 | K197: 9011
A198: 189 | B198: 432 - CAPE COD LIGHTHOUSE Charter School - NAUSET pupils | C198: 432712660 | D198: 432 | E198: 712 | F198: 660 | G198: 1 | H198: 1 | I198: 3 | J198: 0 | K198: 8514
A199: 190 | B199: 432 - CAPE COD LIGHTHOUSE Charter School - MONOMOY pupils | C199: 432712712 | D199: 432 | E199: 712 | F199: 712 | G199: 1 | H199: 1 | I199: 6 | J199: 0 | K199: 8984
A200: 191 | B200: 435 - INNOVATION ACADEMY Charter School - ANDOVER pupils | C200: 435301009 | D200: 435 | E200: 301 | F200: 9 | G200: 1 | H200: 1 | I200: 1 | J200: 0 | K200: 9585
A201: 192 | B201: 435 - INNOVATION ACADEMY Charter School - BILLERICA pupils | C201: 435301031 | D201: 435 | E201: 301 | F201: 31 | G201: 1 | H201: 1 | I201: 2 | J201: 0 | K201: 9145
A202: 193 | B202: =IF(G202=1,D202 & " - " &VLOOKUP(D202,codeCHA,2)&" Charter School - "&VLOOKUP(F202,code436,2)&" pupils",IF(OR(D202=450,D202=466),D202 & " - " &VLOOKUP(D202,codeCHA,2)&" Charter School - "&VLOOKUP(E202,code436,2)&" District - "&VLOOKUP(F202,code436,2)&" pupils",D202 & " - " &VLOOKUP(D202,codeCHA,2)&" Charter School - "&VLOOKUP(E202,code436,2)&" Campus - "&VLOOKUP(F202,code436,2)&" pupils")) -> 435 - INNOVATION ACADEMY Charter School - CHELMSFORD pupils | C202: 435301056 | D202: 435 | E202: 301 | F202: 56 | G202: 1 | H202: 1 | I202: =VLOOKUP(C202,enro_chafnd,17) -> 1 | J202: =VLOOKUP(F202,distinfo,6) -> 0 | K202: =IF(VLOOKUP(C202,rate_chafnd,41)>0,VLOOKUP(C202,rate_chafnd,41),VLOOKUP(F202,distinfo,7)) -> 8978
A203: 194 | B203: 435 - INNOVATION ACADEMY Charter School - DRACUT pupils | C203: 435301079 | D203: =IF(VALUE(MID(C203,1,1))=4,VALUE(MID(C203,1,3)),VALUE(MID(C203,1,4))) -> 435 | E203: =IF(VALUE(MID(C203,1,1))=4,VALUE(MID(C203,4,3)),VALUE(MID(C203,5,3))) -> 301 | F203: =IF(VALUE(MID(C203,1,1))=4,VALUE(MID(C203,7,3)),VALUE(MID(C203,8,3))) -> 79 | G203: =IF(OR(D203=410,D203=466,D203=487),2,1) -> 1 | H203: =VLOOKUP(E203,distinfo,4) -> 1 | I203: 2 | J203: 0 | K203: 9061
A204: 195 | B204: 435 - INNOVATION ACADEMY Charter School - HARVARD pupils | C204: 435301125 | D204: 435 | E204: 301 | F204: 125 | G204: 1 | H204: 1 | I204: 1 | J204: 0 | K204: 9585
A205: 196 | B205: 435 - INNOVATION ACADEMY Charter School - LAWRENCE pupils | C205: 435301149 | D205: 435 | E205: 301 | F205: 149 | G205: 1 | H205: 1 | I205: 1 | J205: 0 | K205: 9585
... 571 more rows

Sheet distinfo (hidden)
A1: Massachusetts Department of Elementary and Secondary Education
A2: Office of School Finance
A3: District Wage Adjustment Factor and Decile
E4: NEW!
C7: Op
A8: Lea | B8: District | C8: Status | D8: WAF | E8: Decile
A10: 1 | B10: ABINGTON | C10: 1 | D10: 1.027 | E10: 5
A11: 2 | B11: ACTON | C11: 0 | D11: 1.044
A12: 3 | B12: ACUSHNET | C12: 1 | D12: 1 | E12: 4
A13: 4 | B13: ADAMS | C13: 0 | D13: 1
A14: 5 | B14: AGAWAM | C14: 1 | D14: 1 | E14: 7
A15: 6 | B15: ALFORD | C15: 0 | D15: 1
A16: 7 | B16: AMESBURY | C16: 1 | D16: 1 | E16: 6
A17: 8 | B17: AMHERST | C17: 1 | D17: 1 | E17: 8
A18: 9 | B18: ANDOVER | C18: 1 | D18: 1.078 | E18: 1
A19: 10 | B19: ARLINGTON | C19: 1 | D19: 1.033 | E19: 2
A20: 11 | B20: ASHBURNHAM | C20: 0 | D20: 1
A21: 12 | B21: ASHBY | C21: 0 | D21: 1
A22: 13 | B22: ASHFIELD | C22: 0 | D22: 1
A23: 14 | B23: ASHLAND | C23: 1 | D23: 1.023 | E23: 3
A24: 15 | B24: ATHOL | C24: 0 | D24: 1
A25: 16 | B25: ATTLEBORO | C25: 1 | D25: 1 | E25: 7
A26: 17 | B26: AUBURN | C26: 1 | D26: 1 | E26: 5
A27: 18 | B27: AVON | C27: 1 | D27: 1 | E27: 9
A28: 19 | B28: AYER | C28: 0 | D28: 1
A29: 20 | B29: BARNSTABLE | C29: 1 | D29: 1 | E29: 8
A30: 21 | B30: BARRE | C30: 0 | D30: 1
A31: 22 | B31: BECKET | C31: 0 | D31: 1
A32: 23 | B32: BEDFORD | C32: 1 | D32: 1.08 | E32: 2
A33: 24 | B33: BELCHERTOWN | C33: 1 | D33: 1 | E33: 5
A34: 25 | B34: BELLINGHAM | C34: 1 | D34: 1 | E34: 4
A35: 26 | B35: BELMONT | C35: 1 | D35: 1.036 | E35: 2
A36: 27 | B36: BERKLEY | C36: 1 | D36: 1 | E36: 5
A37: 28 | B37: BERLIN | C37: 1 | D37: 1.023 | E37: 5
A38: 29 | B38: BERNARDSTON | C38: 0 | D38: 1
A39: 30 | B39: BEVERLY | C39: 1 | D39: 1 | E39: 7
A40: 31 | B40: BILLERICA | C40: 1 | D40: 1.011 | E40: 4
A41: 32 | B41: BLACKSTONE | C41: 0 | D41: 1
A42: 33 | B42: BLANDFORD | C42: 0 | D42: 1
A43: 34 | B43: BOLTON | C43: 0 | D43: 1.042
A44: 35 | B44: BOSTON | C44: 1 | D44: 1.077 | E44: 10
A45: 36 | B45: BOURNE | C45: 1 | D45: 1 | E45: 6
A46: 37 | B46: BOXBOROUGH | C46: 0 | D46: 1.122
A47: 38 | B47: BOXFORD | C47: 1 | D47: 1.04 | E47: 1
A48: 39 | B48: BOYLSTON | C48: 1 | D48: 1 | E48: 2
A49: 40 | B49: BRAINTREE | C49: 1 | D49: 1.039 | E49: 5
A50: 41 | B50: BREWSTER | C50: 1 | D50: 1 | E50: 6
A51: 42 | B51: BRIDGEWATER | C51: 0 | D51: 1
A52: 43 | B52: BRIMFIELD | C52: 1 | D52: 1 | E52: 4
A53: 44 | B53: BROCKTON | C53: 1 | D53: 1 | E53: 10
A54: 45 | B54: BROOKFIELD | C54: 1 | D54: 1 | E54: 8
A55: 46 | B55: BROOKLINE | C55: 1 | D55: 1.055 | E55: 2
A56: 47 | B56: BUCKLAND | C56: 0 | D56: 1
A57: 48 | B57: BURLINGTON | C57: 1 | D57: 1.078 | E57: 3
A58: 49 | B58: CAMBRIDGE | C58: 1 | D58: 1.093 | E58: 8
A59: 50 | B59: CANTON | C59: 1 | D59: 1.058 | E59: 3
A60: 51 | B60: CARLISLE | C60: 1 | D60: 1.048 | E60: 1
A61: 52 | B61: CARVER | C61: 1 | D61: 1.024 | E61: 5
A62: 53 | B62: CHARLEMONT | C62: 0 | D62: 1
A63: 54 | B63: CHARLTON | C63: 0 | D63: 1
A64: 55 | B64: CHATHAM | C64: 0 | D64: 1
A65: 56 | B65: CHELMSFORD | C65: 1 | D65: 1.009 | E65: 2
A66: 57 | B66: CHELSEA | C66: 1 | D66: 1.038 | E66: 10
A67: 58 | B67: CHESHIRE | C67: 0 | D67: 1
A68: 59 | B68: CHESTER | C68: 0 | D68: 1
A69: 60 | B69: CHESTERFIELD | C69: 0 | D69: 1
A70: 61 | B70: CHICOPEE | C70: 1 | D70: 1 | E70: 10
A71: 62 | B71: CHILMARK | C71: 0 | D71: 1
A72: 63 | B72: CLARKSBURG | C72: 1 | D72: 1 | E72: 8
A73: 64 | B73: CLINTON | C73: 1 | D73: 1 | E73: 8
A74: 65 | B74: COHASSET | C74: 1 | D74: 1.024 | E74: 1
A75: 66 | B75: COLRAIN | C75: 0 | D75: 1
A76: 67 | B76: CONCORD | C76: 1 | D76: 1.055 | E76: 1
A77: 68 | B77: CONWAY | C77: 1 | D77: 1 | E77: 6
A78: 69 | B78: CUMMINGTON | C78: 0 | D78: 1
A79: 70 | B79: DALTON | C79: 0 | D79: 1
A80: 71 | B80: DANVERS | C80: 1 | D80: 1 | E80: 5
A81: 72 | B81: DARTMOUTH | C81: 1 | D81: 1 | E81: 5
A82: 73 | B82: DEDHAM | C82: 1 | D82: 1.034 | E82: 5
A83: 74 | B83: DEERFIELD | C83: 1 | D83: 1 | E83: 5
A84: 75 | B84: DENNIS | C84: 0 | D84: 1
A85: 76 | B85: DIGHTON | C85: 0 | D85: 1
A86: 77 | B86: DOUGLAS | C86: 1 | D86: 1 | E86: 4
A87: 78 | B87: DOVER | C87: 1 | D87: 1.048 | E87: 1
A88: 79 | B88: DRACUT | C88: 1 | D88: 1 | E88: 5
A89: 80 | B89: DUDLEY | C89: 0 | D89: 1
A90: 81 | B90: DUNSTABLE | C90: 0 | D90: 1
A91: 82 | B91: DUXBURY | C91: 1 | D91: 1.035 | E91: 1
A92: 83 | B92: EAST BRIDGEWATER | C92: 1 | D92: 1 | E92: 4
A93: 84 | B93: EAST BROOKFIELD | C93: 0 | D93: 1
A94: 85 | B94: EASTHAM | C94: 1 | D94: 1 | E94: 8
A95: 86 | B95: EASTHAMPTON | C95: 1 | D95: 1 | E95: 7
A96: 87 | B96: EAST LONGMEADOW | C96: 1 | D96: 1 | E96: 4
A97: 88 | B97: EASTON | C97: 1 | D97: 1 | E97: 3
A98: 89 | B98: EDGARTOWN | C98: 1 | D98: 1 | E98: 7
A99: 90 | B99: EGREMONT | C99: 0 | D99: 1
A100: 91 | B100: ERVING | C100: 1 | D100: 1 | E100: 5
A101: 92 | B101: ESSEX | C101: 0 | D101: 1.031
A102: 93 | B102: EVERETT | C102: 1 | D102: 1.042 | E102: 10
A103: 94 | B103: FAIRHAVEN | C103: 1 | D103: 1 | E103: 8
A104: 95 | B104: FALL RIVER | C104: 1 | D104: 1 | E104: 10
A105: 96 | B105: FALMOUTH | C105: 1 | D105: 1 | E105: 7
A106: 97 | B106: FITCHBURG | C106: 1 | D106: 1 | E106: 10
A107: 98 | B107: FLORIDA | C107: 1 | D107: 1 | E107: 8
A108: 99 | B108: FOXBOROUGH | C108: 1 | D108: 1.05 | E108: 3
A109: 100 | B109: FRAMINGHAM | C109: 1 | D109: 1.054 | E109: 8
A110: 101 | B110: FRANKLIN | C110: 1 | D110: 1.044 | E110: 2
A111: 102 | B111: FREETOWN | C111: 0 | D111: 1
A112: 103 | B112: GARDNER | C112: 1 | D112: 1 | E112: 10
A113: 104 | B113: AQUINNAH | C113: 0 | D113: 1
A114: 105 | B114: GEORGETOWN | C114: 1 | D114: 1 | E114: 2
A115: 106 | B115: GILL | C115: 0 | D115: 1
A116: 107 | B116: GLOUCESTER | C116: 1 | D116: 1.039 | E116: 8
A117: 108 | B117: GOSHEN | C117: 0 | D117: 1
A118: 109 | B118: GOSNOLD | C118: 0 | D118: 1
A119: 110 | B119: GRAFTON | C119: 1 | D119: 1 | E119: 3
A120: 111 | B120: GRANBY | C120: 1 | D120: 1 | E120: 6
A121: 112 | B121: GRANVILLE | C121: 0 | D121: 1
A122: 113 | B122: GREAT BARRINGTON | C122: 0 | D122: 1
A123: 114 | B123: GREENFIELD | C123: 1 | D123: 1 | E123: 9
A124: 115 | B124: GROTON | C124: 0 | D124: 1
A125: 116 | B125: GROVELAND | C125: 0 | D125: 1
A126: 117 | B126: HADLEY | C126: 1 | D126: 1 | E126: 4
A127: 118 | B127: HALIFAX | C127: 1 | D127: 1.021 | E127: 4
A128: 119 | B128: HAMILTON | C128: 0 | D128: 1.033
A129: 120 | B129: HAMPDEN | C129: 0 | D129: 1
A130: 121 | B130: HANCOCK | C130: 1 | D130: 1 | E130: 4
A131: 122 | B131: HANOVER | C131: 1 | D131: 1.029 | E131: 1
A132: 123 | B132: HANSON | C132: 0 | D132: 1
A133: 124 | B133: HARDWICK | C133: 0 | D133: 1
A134: 125 | B134: HARVARD | C134: 1 | D134: 1.01 | E134: 1
A135: 126 | B135: HARWICH | C135: 0 | D135: 1
A136: 127 | B136: HATFIELD | C136: 1 | D136: 1 | E136: 3
A137: 128 | B137: HAVERHILL | C137: 1 | D137: 1 | E137: 9
A138: 129 | B138: HAWLEY | C138: 0 | D138: 1
A139: 130 | B139: HEATH | C139: 0 | D139: 1
A140: 131 | B140: HINGHAM | C140: 1 | D140: 1.037 | E140: 1
A141: 132 | B141: HINSDALE | C141: 0 | D141: 1
A142: 133 | B142: HOLBROOK | C142: 1 | D142: 1.036 | E142: 8
A143: 134 | B143: HOLDEN | C143: 0 | D143: 1
A144: 135 | B144: HOLLAND | C144: 1 | D144: 1 | E144: 9
A145: 136 | B145: HOLLISTON | C145: 1 | D145: 1.046 | E145: 1
A146: 137 | B146: HOLYOKE | C146: 1 | D146: 1 | E146: 10
A147: 138 | B147: HOPEDALE | C147: 1 | D147: 1.032 | E147: 3
A148: 139 | B148: HOPKINTON | C148: 1 | D148: 1.086 | E148: 1
A149: 140 | B149: HUBBARDSTON | C149: 0 | D149: 1
A150: 141 | B150: HUDSON | C150: 1 | D150: 1.042 | E150: 6
A151: 142 | B151: HULL | C151: 1 | D151: 1.024 | E151: 7
A152: 143 | B152: HUNTINGTON | C152: 0 | D152: 1
A153: 144 | B153: IPSWICH | C153: 1 | D153: 1.048 | E153: 4
A154: 145 | B154: KINGSTON | C154: 1 | D154: 1.024 | E154: 4
A155: 146 | B155: LAKEVILLE | C155: 0 | D155: 1
A156: 147 | B156: LANCASTER | C156: 0 | D156: 1
A157: 148 | B157: LANESBOROUGH | C157: 1 | D157: 1 | E157: 8
A158: 149 | B158: LAWRENCE | C158: 1 | D158: 1 | E158: 10
A159: 150 | B159: LEE | C159: 1 | D159: 1 | E159: 9
A160: 151 | B160: LEICESTER | C160: 1 | D160: 1 | E160: 6
A161: 152 | B161: LENOX | C161: 1 | D161: 1 | E161: 6
A162: 153 | B162: LEOMINSTER | C162: 1 | D162: 1 | E162: 9
A163: 154 | B163: LEVERETT | C163: 1 | D163: 1 | E163: 8
A164: 155 | B164: LEXINGTON | C164: 1 | D164: 1.091 | E164: 1
A165: 156 | B165: LEYDEN | C165: 0 | D165: 1
A166: 157 | B166: LINCOLN | C166: 1 | D166: 1.053 | E166: 2
A167: 158 | B167: LITTLETON | C167: 1 | D167: 1.027 | E167: 2
A168: 159 | B168: LONGMEADOW | C168: 1 | D168: 1 | E168: 2
A169: 160 | B169: LOWELL | C169: 1 | D169: 1 | E169: 10
A170: 161 | B170: LUDLOW | C170: 1 | D170: 1 | E170: 7
A171: 162 | B171: LUNENBURG | C171: 1 | D171: 1 | E171: 4
A172: 163 | B172: LYNN | C172: 1 | D172: 1 | E172: 10
A173: 164 | B173: LYNNFIELD | C173: 1 | D173: 1.034 | E173: 2
A174: 165 | B174: MALDEN | C174: 1 | D174: 1.034 | E174: 10
A175: 166 | B175: MANCHESTER | C175: 0 | D175: 1.037
A176: 167 | B176: MANSFIELD | C176: 1 | D176: 1.069 | E176: 3
A177: 168 | B177: MARBLEHEAD | C177: 1 | D177: 1 | E177: 2
A178: 169 | B178: MARION | C178: 1 | D178: 1 | E178: 4
A179: 170 | B179: MARLBOROUGH | C179: 1 | D179: 1.065 | E179: 7
A180: 171 | B180: MARSHFIELD | C180: 1 | D180: 1.027 | E180: 3
A181: 172 | B181: MASHPEE | C181: 1 | D181: 1 | E181: 7
A182: 173 | B182: MATTAPOISETT | C182: 1 | D182: 1 | E182: 4
A183: 174 | B183: MAYNARD | C183: 1 | D183: 1.061 | E183: 4
A184: 175 | B184: MEDFIELD | C184: 1 | D184: 1.033 | E184: 1
A185: 176 | B185: MEDFORD | C185: 1 | D185: 1.042 | E185: 7
A186: 177 | B186: MEDWAY | C186: 1 | D186: 1.033 | E186: 2
A187: 178 | B187: MELROSE | C187: 1 | D187: 1.032 | E187: 3
A188: 179 | B188: MENDON | C188: 0 | D188: 1.019
A189: 180 | B189: MERRIMAC | C189: 0 | D189: 1
A190: 181 | B190: METHUEN | C190: 1 | D190: 1 | E190: 8
A191: 182 | B191: MIDDLEBOROUGH | C191: 1 | D191: 1 | E191: 7
A192: 183 | B192: MIDDLEFIELD | C192: 0 | D192: 1
A193: 184 | B193: MIDDLETON | C193: 1 | D193: 1.038 | E193: 3
A194: 185 | B194: MILFORD | C194: 1 | D194: 1.048 | E194: 7
A195: 186 | B195: MILLBURY | C195: 1 | D195: 1 | E195: 6
A196: 187 | B196: MILLIS | C196: 1 | D196: 1.024 | E196: 3
A197: 188 | B197: MILLVILLE | C197: 0 | D197: 1
A198: 189 | B198: MILTON | C198: 1 | D198: 1.036 | E198: 2
A199: 190 | B199: MONROE | C199: 0 | D199: 1
A200: 191 | B200: MONSON | C200: 1 | D200: 1 | E200: 6
A201: 192 | B201: MONTAGUE | C201: 0 | D201: 1
A202: 193 | B202: MONTEREY | C202: 0 | D202: 1
A203: 194 | B203: MONTGOMERY | C203: 0 | D203: 1
... 249 more rows

Sheet fnd enro explain (hidden)
A1: Massachusetts Department of Education
A2: Office of School Finance
A3: FOUNDATION ENROLLMENT | M3: 2016-01-01
A5: Foundation enrollment is the total headcount of pupils in grades PK - 12. Enrollment is broken into two categories,
A6: regular education pupils or English language learners (ELL). Pupils are further divided into program groups: pre-
A7: kindergarten; half-time kindergarten; full-time kindergarten; elementary, grades 1 to 5; middle school, grades 6
A8: through 8; or high school, grades 9 through 12.
A10: Foundation enrollment considers PK and K2 to be half day programs. The PK and K2 rates are essentially half the cost
A11: of KF. The headcount is divided by two, rounded to the nearest whole number, then folded into the total enrollment.
A12: PK enrollment is not included in the SPED FTE increment.
A14: FY15 marks the first year all PK enrollment was included. In prior years PK enrollment included only SPED and
A15: role model enrollment.
A17: Foundation enrollment does not use actual special education enrollment. The SPED increment FTE is
A18: determined by formula. The formula determines SPED FTE to be 3.75% of grade K - 12 enrollment.

Sheet fnd enro (hidden)
T1: Source: 17 - PROJa fnd enro.xls
Q5: NEW!
A6: FOUNDATION ENROLLMENT | T6: SIMS OCTOBER 1 DATA
C7: Regular Education | I7: Sped | K7: ELL | O7: Low Income | R7: TOTAL | V7: Regular Education | AB7: ELL | AE7: Voke | AF7: Low Income | AL7: Cha | AM7: Loc | AN7: Sending
A8: chalocsend | B8: charter school | C8: PK | D8: K2 | E8: K | F8: G1-5 | G8: G6-8 | H8: G9-12 | I8: In | J8: Tuit | K8: PK | L8: K2 | M8: GKF-12 | N8: Voke | O8: G1-8 | P8: Rest | Q8: Decile | R8: Enro | T8: chalocsend | U8: charter school | V8: PK | W8: K2 | X8: K | Y8: G1-5 | Z8: G6-8 | AA8: G9-12 | AB8: PK | AC8: K2 | AD8: GKF-12 | AE8: All | AF8: G1-8 | AG8: PK | AH8: K2 | AI8: KF | AJ8: G9-12 | AL8: LEA | AM8: LEA | AN8: LEA | AO8: Decile
A10: 409201201 | B10: ALMA DEL MAR | C10: =ROUND(V10,0) -> 0 | D10: 0 | E10: 27 | F10: 191 | G10: 40 | H10: 0 | I10: =ROUND(0.0375*(SUM(E10:H10)+ROUND(D10*0.5,4)+ROUND(L10*0.5,4)+M10),4)+ROUND((0.0475)*N10,4) -> 10.65 | K10: =ROUND(AB10,0) -> 0 | L10: =ROUND(AC10,0) -> 0 | M10: =ROUND(AD10,0) -> 26 | N10: =ROUND(AE10,0) -> 0 | O10: =ROUND(AF10,0) -> 156 | P10: =ROUND((AG10+AH10)/2,0)+ROUND(AI10+AJ10,0) -> 23 | Q10: =AO10 -> 10 | R10: =SUM(E10:H10)+M10+N10+ROUND(C10*0.5,0)+ROUND(D10*0.5,0)+ROUND(K10*0.5,0)+ROUND(L10*0.5,0) -> 284 | T10: 409201201 | U10: ALMA DEL MAR | V10: 0 | W10: 0 | X10: 27 | Y10: 191 | Z10: 40 | AA10: 0 | AB10: 0 | AC10: 0 | AD10: 26 | AE10: 0 | AF10: 156 | AG10: 0 | AH10: 0 | AI10: 23 | AJ10: 0 | AL10: 409 | AM10: 201 | AN10: 201 | AO10: 10
A11: 410035035 | B11: EXCEL ACADEMY | C11: =ROUND(V11,0) -> 0 | D11: =ROUND(W11,0) -> 0 | E11: =ROUND(X11,0) -> 0 | F11: =ROUND(Y11,0) -> 42 | G11: =ROUND(Z11,0) -> 192 | H11: =ROUND(AA11,0) -> 36 | I11: =ROUND(0.0375*(SUM(E11:H11)+ROUND(D11*0.5,4)+ROUND(L11*0.5,4)+M11),4)+ROUND((0.0475)*N11,4) -> 12.3375 | K11: =ROUND(AB11,0) -> 0 | L11: =ROUND(AC11,0) -> 0 | M11: =ROUND(AD11,0) -> 59 | N11: =ROUND(AE11,0) -> 0 | O11: =ROUND(AF11,0) -> 137 | P11: =ROUND((AG11+AH11)/2,0)+ROUND(AI11+AJ11,0) -> 22 | Q11: =AO11 -> 10 | R11: =SUM(E11:H11)+M11+N11+ROUND(C11*0.5,0)+ROUND(D11*0.5,0)+ROUND(K11*0.5,0)+ROUND(L11*0.5,0) -> 329 | T11: 410035035 | U11: EXCEL ACADEMY | V11: 0 | W11: 0 | X11: 0 | Y11: 42 | Z11: 192 | AA11: 36 | AB11: 0 | AC11: 0 | AD11: 59 | AE11: 0 | AF11: 137 | AG11: 0 | AH11: 0 | AI11: 0 | AJ11: 22 | AL11: 410 | AM11: 35 | AN11: 35 | AO11: 10
A12: 410035044 | B12: EXCEL ACADEMY | C12: 0 | D12: 0 | E12: 0 | F12: 0 | G12: 0 | H12: 1 | I12: 0.0375 | K12: 0 | L12: 0 | M12: 0 | N12: 0 | O12: 0 | P12: 1 | Q12: 10 | R12: 1 | T12: 410035044 | U12: EXCEL ACADEMY | V12: 0 | W12: 0 | X12: 0 | Y12: 0 | Z12: 0 | AA12: 1 | AB12: 0 | AC12: 0 | AD12: 0 | AE12: 0 | AF12: 0 | AG12: 0 | AH12: 0 | AI12: 0 | AJ12: 1 | AL12: 410 | AM12: 35 | AN12: 44 | AO12: 10
A13: 410035057 | B13: EXCEL ACADEMY | C13: 0 | D13: 0 | E13: 0 | F13: 35 | G13: 77 | H13: 59 | I13: 7.5 | K13: 0 | L13: 0 | M13: 29 | N13: 0 | O13: 66 | P13: 29 | Q13: 9 | R13: 200 | T13: 410035057 | U13: EXCEL ACADEMY | V13: 0 | W13: 0 | X13: 0 | Y13: 35 | Z13: 77 | AA13: 59 | AB13: 0 | AC13: 0 | AD13: 29 | AE13: 0 | AF13: 66 | AG13: 0 | AH13: 0 | AI13: 0 | AJ13: 29 | AL13: 410 | AM13: 35 | AN13: 57 | AO13: 9
A14: 410035093 | B14: EXCEL ACADEMY | C14: 0 | D14: 0 | E14: 0 | F14: 0 | G14: 3 | H14: 2 | I14: 0.1875 | K14: 0 | L14: 0 | M14: 0 | N14: 0 | O14: 1 | P14: 1 | Q14: 9 | R14: 5 | T14: 410035093 | U14: EXCEL ACADEMY | V14: 0 | W14: 0 | X14: 0 | Y14: 0 | Z14: 3 | AA14: 2 | AB14: 0 | AC14: 0 | AD14: 0 | AE14: 0 | AF14: 1 | AG14: 0 | AH14: 0 | AI14: 0 | AJ14: 1 | AL14: 410 | AM14: 35 | AN14: 93 | AO14: 9
A15: 410035155 | B15: EXCEL ACADEMY | C15: 0 | D15: 0 | E15: 0 | F15: 0 | G15: 0 | H15: 1 | I15: 0.0375 | K15: 0 | L15: 0 | M15: 0 | N15: 0 | O15: 0 | P15: 1 | Q15: 10 | R15: 1 | T15: 410035155 | U15: EXCEL ACADEMY | V15: 0 | W15: 0 | X15: 0 | Y15: 0 | Z15: 0 | AA15: 1 | AB15: 0 | AC15: 0 | AD15: 0 | AE15: 0 | AF15: 0 | AG15: 0 | AH15: 0 | AI15: 0 | AJ15: 1 | AL15: 410 | AM15: 35 | AN15: 155 | AO15: 10
A16: 410035160 | B16: EXCEL ACADEMY | C16: 0 | D16: 0 | E16: 0 | F16: 0 | G16: 0 | H16: 1 | I16: 0.0375 | K16: 0 | L16: 0 | M16: 0 | N16: 0 | O16: 0 | P16: 0 | Q16: 1 | R16: 1 | T16: 410035160 | U16: EXCEL ACADEMY | V16: 0 | W16: 0 | X16: 0 | Y16: 0 | Z16: 0 | AA16: 1 | AB16: 0 | AC16: 0 | AD16: 0 | AE16: 0 | AF16: 0 | AG16: 0 | AH16: 0 | AI16: 0 | AJ16: 0 | AL16: 410 | AM16: 35 | AN16: 160 | AO16: 1
A17: 410035163 | B17: EXCEL ACADEMY | C17: 0 | D17: 0 | E17: 0 | F17: 0 | G17: 3 | H17: 1 | I17: 0.1875 | K17: 0 | L17: 0 | M17: 1 | N17: 0 | O17: 2 | P17: 1 | Q17: 10 | R17: 5 | T17: 410035163 | U17: EXCEL ACADEMY | V17: 0 | W17: 0 | X17: 0 | Y17: 0 | Z17: 3 | AA17: 1 | AB17: 0 | AC17: 0 | AD17: 1 | AE17: 0 | AF17: 2 | AG17: 0 | AH17: 0 | AI17: 0 | AJ17: 1 | AL17: 410 | AM17: 35 | AN17: 163 | AO17: 10
A18: 410035248 | B18: EXCEL ACADEMY | C18: 0 | D18: 0 | E18: 0 | F18: 2 | G18: 6 | H18: 4 | I18: 0.525 | K18: 0 | L18: 0 | M18: 2 | N18: 0 | O18: 5 | P18: 1 | Q18: 9 | R18: 14 | T18: 410035248 | U18: EXCEL ACADEMY | V18: 0 | W18: 0 | X18: 0 | Y18: 2 | Z18: 6 | AA18: 4 | AB18: 0 | AC18: 0 | AD18: 2 | AE18: 0 | AF18: 5 | AG18: 0 | AH18: 0 | AI18: 0 | AJ18: 1 | AL18: 410 | AM18: 35 | AN18: 248 | AO18: 9
A19: 410035308 | B19: EXCEL ACADEMY | C19: 0 | D19: 0 | E19: 0 | F19: 0 | G19: 0 | H19: 1 | I19: 0.0375 | K19: 0 | L19: 0 | M19: 0 | N19: 0 | O19: 0 | P19: 1 | Q19: 10 | R19: 1 | T19: 410035308 | U19: EXCEL ACADEMY | V19: 0 | W19: 0 | X19: 0 | Y19: 0 | Z19: 0 | AA19: 1 | AB19: 0 | AC19: 0 | AD19: 0 | AE19: 0 | AF19: 0 | AG19: 0 | AH19: 0 | AI19: 0 | AJ19: 1 | AL19: 410 | AM19: 35 | AN19: 308 | AO19: 10
A20: 410035346 | B20: EXCEL ACADEMY | C20: 0 | D20: 0 | E20: 0 | F20: 0 | G20: 5 | H20: 1 | I20: 0.225 | K20: 0 | L20: 0 | M20: 0 | N20: 0 | O20: 2 | P20: 1 | Q20: 10 | R20: 6 | T20: 410035346 | U20: EXCEL ACADEMY | V20: 0 | W20: 0 | X20: 0 | Y20: 0 | Z20: 5 | AA20: 1 | AB20: 0 | AC20: 0 | AD20: 0 | AE20: 0 | AF20: 2 | AG20: 0 | AH20: 0 | AI20: 0 | AJ20: 1 | AL20: 410 | AM20: 35 | AN20: 346 | AO20: 10
A21: 410057035 | B21: EXCEL ACADEMY | C21: 0 | D21: 0 | E21: 0 | F21: 0 | G21: 4 | H21: 0 | I21: 0.1875 | K21: 0 | L21: 0 | M21: 1 | N21: 0 | O21: 4 | P21: 0 | Q21: 10 | R21: 5 | T21: 410057035 | U21: EXCEL ACADEMY | V21: 0 | W21: 0 | X21: 0 | Y21: 0 | Z21: 4 | AA21: 0 | AB21: 0 | AC21: 0 | AD21: 1 | AE21: 0 | AF21: 4 | AG21: 0 | AH21: 0 | AI21: 0 | AJ21: 0 | AL21: 410 | AM21: 57 | AN21: 35 | AO21: 10
A22: 410057057 | B22: EXCEL ACADEMY | C22: 0 | D22: 0 | E22: 0 | F22: 44 | G22: 151 | H22: 0 | I22: 8.0625 | K22: 0 | L22: 0 | M22: 20 | N22: 0 | O22: 111 | P22: 0 | Q22: 10 | R22: 215 | T22: 410057057 | U22: EXCEL ACADEMY | V22: 0 | W22: 0 | X22: 0 | Y22: 44 | Z22: 151 | AA22: 0 | AB22: 0 | AC22: 0 | AD22: 20 | AE22: 0 | AF22: 111 | AG22: 0 | AH22: 0 | AI22: 0 | AJ22: 0 | AL22: 410 | AM22: 57 | AN22: 57 | AO22: 10
A23: 410057248 | B23: EXCEL ACADEMY | C23: 0 | D23: 0 | E23: 0 | F23: 0 | G23: 2 | H23: 0 | I23: 0.075 | K23: 0 | L23: 0 | M23: 0 | N23: 0 | O23: 0 | P23: 0 | Q23: 1 | R23: 2 | T23: 410057248 | U23: EXCEL ACADEMY | V23: 0 | W23: 0 | X23: 0 | Y23: 0 | Z23: 2 | AA23: 0 | AB23: 0 | AC23: 0 | AD23: 0 | AE23: 0 | AF23: 0 | AG23: 0 | AH23: 0 | AI23: 0 | AJ23: 0 | AL23: 410 | AM23: 57 | AN23: 248 | AO23: 1
A24: 412035035 | B24: ACADEMY OF THE PACIFIC RIM | C24: 0 | D24: 0 | E24: 0 | F24: 60 | G24: 199 | H24: 204 | I24: 18.675 | K24: 0 | L24: 0 | M24: 35 | N24: 0 | O24: 129 | P24: 66 | Q24: 9 | R24: 498 | T24: 412035035 | U24: ACADEMY OF THE PACIFIC RIM | V24: 0 | W24: 0 | X24: 0 | Y24: 60 | Z24: 199 | AA24: 204 | AB24: 0 | AC24: 0 | AD24: 35 | AE24: 0 | AF24: 129 | AG24: 0 | AH24: 0 | AI24: 0 | AJ24: 66 | AL24: 412 | AM24: 35 | AN24: 35 | AO24: 9
A25: 412035044 | B25: ACADEMY OF THE PACIFIC RIM | C25: 0 | D25: 0 | E25: 0 | F25: 1 | G25: 1 | H25: 1 | I25: 0.1125 | K25: 0 | L25: 0 | M25: 0 | N25: 0 | O25: 0 | P25: 1 | Q25: 8 | R25: 3 | T25: 412035044 | U25: ACADEMY OF THE PACIFIC RIM | V25: 0 | W25: 0 | X25: 0 | Y25: 1 | Z25: 1 | AA25: 1 | AB25: 0 | AC25: 0 | AD25: 0 | AE25: 0 | AF25: 0 | AG25: 0 | AH25: 0 | AI25: 0 | AJ25: 1 | AL25: 412 | AM25: 35 | AN25: 44 | AO25: 8
A26: 412035189 | B26: ACADEMY OF THE PACIFIC RIM | C26: 0 | D26: 0 | E26: 0 | F26: 0 | G26: 1 | H26: 1 | I26: 0.075 | K26: 0 | L26: 0 | M26: 0 | N26: 0 | O26: 0 | P26: 1 | Q26: 10 | R26: 2 | T26: 412035189 | U26: ACADEMY OF THE PACIFIC RIM | V26: 0 | W26: 0 | X26: 0 | Y26: 0 | Z26: 1 | AA26: 1 | AB26: 0 | AC26: 0 | AD26: 0 | AE26: 0 | AF26: 0 | AG26: 0 | AH26: 0 | AI26: 0 | AJ26: 1 | AL26: 412 | AM26: 35 | AN26: 189 | AO26: 10
A27: 412035220 | B27: ACADEMY OF THE PACIFIC RIM | C27: 0 | D27: 0 | E27: 0 | F27: 0 | G27: 0 | H27: 3 | I27: 0.1125 | K27: 0 | L27: 0 | M27: 0 | N27: 0 | O27: 0 | P27: 2 | Q27: 10 | R27: 3 | T27: 412035220 | U27: ACADEMY OF THE PACIFIC RIM | V27: 0 | W27: 0 | X27: 0 | Y27: 0 | Z27: 0 | AA27: 3 | AB27: 0 | AC27: 0 | AD27: 0 | AE27: 0 | AF27: 0 | AG27: 0 | AH27: 0 | AI27: 0 | AJ27: 2 | AL27: 412 | AM27: 35 | AN27: 220 | AO27: 10
A28: 412035244 | B28: ACADEMY OF THE PACIFIC RIM | C28: 0 | D28: 0 | E28: 0 | F28: 0 | G28: 4 | H28: 7 | I28: 0.4125 | K28: 0 | L28: 0 | M28: 0 | N28: 0 | O28: 1 | P28: 3 | Q28: 8 | R28: 11 | T28: 412035244 | U28: ACADEMY OF THE PACIFIC RIM | V28: 0 | W28: 0 | X28: 0 | Y28: 0 | Z28: 4 | AA28: 7 | AB28: 0 | AC28: 0 | AD28: 0 | AE28: 0 | AF28: 1 | AG28: 0 | AH28: 0 | AI28: 0 | AJ28: 3 | AL28: 412 | AM28: 35 | AN28: 244 | AO28: 8
A29: 412035285 | B29: ACADEMY OF THE PACIFIC RIM | C29: 0 | D29: 0 | E29: 0 | F29: 1 | G29: 0 | H29: 1 | I29: 0.075 | K29: 0 | L29: 0 | M29: 0 | N29: 0 | O29: 0 | P29: 0 | Q29: 1 | R29: 2 | T29: 412035285 | U29: ACADEMY OF THE PACIFIC RIM | V29: 0 | W29: 0 | X29: 0 | Y29: 1 | Z29: 0 | AA29: 1 | AB29: 0 | AC29: 0 | AD29: 0 | AE29: 0 | AF29: 0 | AG29: 0 | AH29: 0 | AI29: 0 | AJ29: 0 | AL29: 412 | AM29: 35 | AN29: 285 | AO29: 1
A30: 412035293 | B30: ACADEMY OF THE PACIFIC RIM | C30: 0 | D30: 0 | E30: 0 | F30: 0 | G30: 0 | H30: 1 | I30: 0.0375 | K30: 0 | L30: 0 | M30: 0 | N30: 0 | O30: 0 | P30: 0 | Q30: 1 | R30: 1 | T30: 412035293 | U30: ACADEMY OF THE PACIFIC RIM | V30: 0 | W30: 0 | X30: 0 | Y30: 0 | Z30: 0 | AA30: 1 | AB30: 0 | AC30: 0 | AD30: 0 | AE30: 0 | AF30: 0 | AG30: 0 | AH30: 0 | AI30: 0 | AJ30: 0 | AL30: 412 | AM30: 35 | AN30: 293 | AO30: 1
A31: 412035314 | B31: ACADEMY OF THE PACIFIC RIM | C31: 0 | D31: 0 | E31: 0 | F31: 0 | G31: 1 | H31: 0 | I31: 0.0375 | K31: 0 | L31: 0 | M31: 0 | N31: 0 | O31: 1 | P31: 0 | Q31: 10 | R31: 1 | T31: 412035314 | U31: ACADEMY OF THE PACIFIC RIM | V31: 0 | W31: 0 | X31: 0 | Y31: 0 | Z31: 1 | AA31: 0 | AB31: 0 | AC31: 0 | AD31: 0 | AE31: 0 | AF31: 1 | AG31: 0 | AH31: 0 | AI31: 0 | AJ31: 0 | AL31: 412 | AM31: 35 | AN31: 314 | AO31: 10
A32: 412035336 | B32: ACADEMY OF THE PACIFIC RIM | C32: 0 | D32: 0 | E32: 0 | F32: 0 | G32: 1 | H32: 2 | I32: 0.1125 | K32: 0 | L32: 0 | M32: 0 | N32: 0 | O32: 1 | P32: 2 | Q32: 10 | R32: 3 | T32: 412035336 | U32: ACADEMY OF THE PACIFIC RIM | V32: 0 | W32: 0 | X32: 0 | Y32: 0 | Z32: 1 | AA32: 2 | AB32: 0 | AC32: 0 | AD32: 0 | AE32: 0 | AF32: 1 | AG32: 0 | AH32: 0 | AI32: 0 | AJ32: 2 | AL32: 412 | AM32: 35 | AN32: 336 | AO32: 10
A33: 413114024 | B33: FOUR RIVERS | C33: 0 | D33: 0 | E33: 0 | F33: 0 | G33: 1 | H33: 0 | I33: 0.0375 | K33: 0 | L33: 0 | M33: 0 | N33: 0 | O33: 1 | P33: 0 | Q33: 10 | R33: 1 | T33: 413114024 | U33: FOUR RIVERS | V33: 0 | W33: 0 | X33: 0 | Y33: 0 | Z33: 1 | AA33: 0 | AB33: 0 | AC33: 0 | AD33: 0 | AE33: 0 | AF33: 1 | AG33: 0 | AH33: 0 | AI33: 0 | AJ33: 0 | AL33: 413 | AM33: 114 | AN33: 24 | AO33: 10
A34: 413114083 | B34: FOUR RIVERS | C34: 0 | D34: 0 | E34: 0 | F34: 0 | G34: 1 | H34: 0 | I34: 0.0375 | K34: 0 | L34: 0 | M34: 0 | N34: 0 | O34: 1 | P34: 0 | Q34: 10 | R34: 1 | T34: 413114083 | U34: FOUR RIVERS | V34: 0 | W34: 0 | X34: 0 | Y34: 0 | Z34: 1 | AA34: 0 | AB34: 0 | AC34: 0 | AD34: 0 | AE34: 0 | AF34: 1 | AG34: 0 | AH34: 0 | AI34: 0 | AJ34: 0 | AL34: 413 | AM34: 114 | AN34: 83 | AO34: 10
A35: 413114091 | B35: FOUR RIVERS | C35: 0 | D35: 0 | E35: 0 | F35: 0 | G35: 1 | H35: 8 | I35: 0.3375 | K35: 0 | L35: 0 | M35: 0 | N35: 0 | O35: 1 | P35: 1 | Q35: 5 | R35: 9 | T35: 413114091 | U35: FOUR RIVERS | V35: 0 | W35: 0 | X35: 0 | Y35: 0 | Z35: 1 | AA35: 8 | AB35: 0 | AC35: 0 | AD35: 0 | AE35: 0 | AF35: 1 | AG35: 0 | AH35: 0 | AI35: 0 | AJ35: 1 | AL35: 413 | AM35: 114 | AN35: 91 | AO35: 5
A36: 413114114 | B36: FOUR RIVERS | C36: 0 | D36: 0 | E36: 0 | F36: 0 | G36: 19 | H36: 43 | I36: 2.325 | K36: 0 | L36: 0 | M36: 0 | N36: 0 | O36: 5 | P36: 15 | Q36: 7 | R36: 62 | T36: 413114114 | U36: FOUR RIVERS | V36: 0 | W36: 0 | X36: 0 | Y36: 0 | Z36: 19 | AA36: 43 | AB36: 0 | AC36: 0 | AD36: 0 | AE36: 0 | AF36: 5 | AG36: 0 | AH36: 0 | AI36: 0 | AJ36: 15 | AL36: 413 | AM36: 114 | AN36: 114 | AO36: 7
A37: 413114117 | B37: FOUR RIVERS | C37: 0 | D37: 0 | E37: 0 | F37: 0 | G37: 0 | H37: 1 | I37: 0.0375 | K37: 0 | L37: 0 | M37: 0 | N37: 0 | O37: 0 | P37: 1 | Q37: 10 | R37: 1 | T37: 413114117 | U37: FOUR RIVERS | V37: 0 | W37: 0 | X37: 0 | Y37: 0 | Z37: 0 | AA37: 1 | AB37: 0 | AC37: 0 | AD37: 0 | AE37: 0 | AF37: 0 | AG37: 0 | AH37: 0 | AI37: 0 | AJ37: 1 | AL37: 413 | AM37: 114 | AN37: 117 | AO37: 10
A38: 413114210 | B38: FOUR RIVERS | C38: 0 | D38: 0 | E38: 0 | F38: 0 | G38: 0 | H38: 1 | I38: 0.0375 | K38: 0 | L38: 0 | M38: 0 | N38: 0 | O38: 0 | P38: 1 | Q38: 10 | R38: 1 | T38: 413114210 | U38: FOUR RIVERS | V38: 0 | W38: 0 | X38: 0 | Y38: 0 | Z38: 0 | AA38: 1 | AB38: 0 | AC38: 0 | AD38: 0 | AE38: 0 | AF38: 0 | AG38: 0 | AH38: 0 | AI38: 0 | AJ38: 1 | AL38: 413 | AM38: 114 | AN38: 210 | AO38: 10
A39: 413114253 | B39: FOUR RIVERS | C39: 0 | D39: 0 | E39: 0 | F39: 0 | G39: 1 | H39: 1 | I39: 0.075 | K39: 0 | L39: 0 | M39: 0 | N39: 0 | O39: 1 | P39: 0 | Q39: 10 | R39: 2 | T39: 413114253 | U39: FOUR RIVERS | V39: 0 | W39: 0 | X39: 0 | Y39: 0 | Z39: 1 | AA39: 1 | AB39: 0 | AC39: 0 | AD39: 0 | AE39: 0 | AF39: 1 | AG39: 0 | AH39: 0 | AI39: 0 | AJ39: 0 | AL39: 413 | AM39: 114 | AN39: 253 | AO39: 10
A40: 413114605 | B40: FOUR RIVERS | C40: 0 | D40: 0 | E40: 0 | F40: 0 | G40: 1 | H40: 1 | I40: 0.075 | K40: 0 | L40: 0 | M40: 0 | N40: 0 | O40: 1 | P40: 1 | Q40: 10 | R40: 2 | T40: 413114605 | U40: FOUR RIVERS | V40: 0 | W40: 0 | X40: 0 | Y40: 0 | Z40: 1 | AA40: 1 | AB40: 0 | AC40: 0 | AD40: 0 | AE40: 0 | AF40: 1 | AG40: 0 | AH40: 0 | AI40: 0 | AJ40: 1 | AL40: 413 | AM40: 114 | AN40: 605 | AO40: 10
A41: 413114670 | B41: FOUR RIVERS | C41: 0 | D41: 0 | E41: 0 | F41: 0 | G41: 8 | H41: 11 | I41: 0.7125 | K41: 0 | L41: 0 | M41: 0 | N41: 0 | O41: 1 | P41: 3 | Q41: 5 | R41: 19 | T41: 413114670 | U41: FOUR RIVERS | V41: 0 | W41: 0 | X41: 0 | Y41: 0 | Z41: 8 | AA41: 11 | AB41: 0 | AC41: 0 | AD41: 0 | AE41: 0 | AF41: 1 | AG41: 0 | AH41: 0 | AI41: 0 | AJ41: 3 | AL41: 413 | AM41: 114 | AN41: 670 | AO41: 5
A42: 413114674 | B42: FOUR RIVERS | C42: 0 | D42: 0 | E42: 0 | F42: 0 | G42: 10 | H42: 29 | I42: 1.4625 | K42: 0 | L42: 0 | M42: 0 | N42: 0 | O42: 3 | P42: 9 | Q42: 7 | R42: 39 | T42: 413114674 | U42: FOUR RIVERS | V42: 0 | W42: 0 | X42: 0 | Y42: 0 | Z42: 10 | AA42: 29 | AB42: 0 | AC42: 0 | AD42: 0 | AE42: 0 | AF42: 3 | AG42: 0 | AH42: 0 | AI42: 0 | AJ42: 9 | AL42: 413 | AM42: 114 | AN42: 674 | AO42: 7
A43: 413114683 | B43: FOUR RIVERS | C43: 0 | D43: 0 | E43: 0 | F43: 0 | G43: 0 | H43: 3 | I43: 0.1125 | K43: 0 | L43: 0 | M43: 0 | N43: 0 | O43: 0 | P43: 0 | Q43: 1 | R43: 3 | T43: 413114683 | U43: FOUR RIVERS | V43: 0 | W43: 0 | X43: 0 | Y43: 0 | Z43: 0 | AA43: 3 | AB43: 0 | AC43: 0 | AD43: 0 | AE43: 0 | AF43: 0 | AG43: 0 | AH43: 0 | AI43: 0 | AJ43: 0 | AL43: 413 | AM43: 114 | AN43: 683 | AO43: 1
A44: 413114717 | B44: FOUR RIVERS | C44: 0 | D44: 0 | E44: 0 | F44: 0 | G44: 19 | H44: 29 | I44: 1.8 | K44: 0 | L44: 0 | M44: 0 | N44: 0 | O44: 8 | P44: 10 | Q44: 8 | R44: 48 | T44: 413114717 | U44: FOUR RIVERS | V44: 0 | W44: 0 | X44: 0 | Y44: 0 | Z44: 19 | AA44: 29 | AB44: 0 | AC44: 0 | AD44: 0 | AE44: 0 | AF44: 8 | AG44: 0 | AH44: 0 | AI44: 0 | AJ44: 10 | AL44: 413 | AM44: 114 | AN44: 717 | AO44: 8
A45: 413114750 | B45: FOUR RIVERS | C45: 0 | D45: 0 | E45: 0 | F45: 0 | G45: 5 | H45: 9 | I45: 0.525 | K45: 0 | L45: 0 | M45: 0 | N45: 0 | O45: 1 | P45: 4 | Q45: 8 | R45: 14 | T45: 413114750 | U45: FOUR RIVERS | V45: 0 | W45: 0 | X45: 0 | Y45: 0 | Z45: 5 | AA45: 9 | AB45: 0 | AC45: 0 | AD45: 0 | AE45: 0 | AF45: 1 | AG45: 0 | AH45: 0 | AI45: 0 | AJ45: 4 | AL45: 413 | AM45: 114 | AN45: 750 | AO45: 8
A46: 413114755 | B46: FOUR RIVERS | C46: 0 | D46: 0 | E46: 0 | F46: 0 | G46: 7 | H46: 8 | I46: 0.5625 | K46: 0 | L46: 0 | M46: 0 | N46: 0 | O46: 1 | P46: 2 | Q46: 5 | R46: 15 | T46: 413114755 | U46: FOUR RIVERS | V46: 0 | W46: 0 | X46: 0 | Y46: 0 | Z46: 7 | AA46: 8 | AB46: 0 | AC46: 0 | AD46: 0 | AE46: 0 | AF46: 1 | AG46: 0 | AH46: 0 | AI46: 0 | AJ46: 2 | AL46: 413 | AM46: 114 | AN46: 755 | AO46: 5
A47: 414603063 | B47: BERKSHIRE ARTS AND TECHNOLOGY | C47: 0 | D47: 0 | E47: 0 | F47: 0 | G47: 1 | H47: 2 | I47: 0.1125 | K47: 0 | L47: 0 | M47: 0 | N47: 0 | O47: 0 | P47: 0 | Q47: 1 | R47: 3 | T47: 414603063 | U47: BERKSHIRE ARTS AND TECHNOLOGY | V47: 0 | W47: 0 | X47: 0 | Y47: 0 | Z47: 1 | AA47: 2 | AB47: 0 | AC47: 0 | AD47: 0 | AE47: 0 | AF47: 0 | AG47: 0 | AH47: 0 | AI47: 0 | AJ47: 0 | AL47: 414 | AM47: 603 | AN47: 63 | AO47: 1
A48: 414603098 | B48: BERKSHIRE ARTS AND TECHNOLOGY | C48: 0 | D48: 0 | E48: 0 | F48: 0 | G48: 2 | H48: 1 | I48: 0.1125 | K48: 0 | L48: 0 | M48: 0 | N48: 0 | O48: 0 | P48: 0 | Q48: 1 | R48: 3 | T48: 414603098 | U48: BERKSHIRE ARTS AND TECHNOLOGY | V48: 0 | W48: 0 | X48: 0 | Y48: 0 | Z48: 2 | AA48: 1 | AB48: 0 | AC48: 0 | AD48: 0 | AE48: 0 | AF48: 0 | AG48: 0 | AH48: 0 | AI48: 0 | AJ48: 0 | AL48: 414 | AM48: 603 | AN48: 98 | AO48: 1
A49: 414603148 | B49: BERKSHIRE ARTS AND TECHNOLOGY | C49: 0 | D49: 0 | E49: 0 | F49: 0 | G49: 1 | H49: 0 | I49: 0.0375 | K49: 0 | L49: 0 | M49: 0 | N49: 0 | O49: 1 | P49: 0 | Q49: 10 | R49: 1 | T49: 414603148 | U49: BERKSHIRE ARTS AND TECHNOLOGY | V49: 0 | W49: 0 | X49: 0 | Y49: 0 | Z49: 1 | AA49: 0 | AB49: 0 | AC49: 0 | AD49: 0 | AE49: 0 | AF49: 1 | AG49: 0 | AH49: 0 | AI49: 0 | AJ49: 0 | AL49: 414 | AM49: 603 | AN49: 148 | AO49: 10
A50: 414603150 | B50: BERKSHIRE ARTS AND TECHNOLOGY | C50: 0 | D50: 0 | E50: 0 | F50: 0 | G50: 0 | H50: 1 | I50: 0.0375 | K50: 0 | L50: 0 | M50: 0 | N50: 0 | O50: 0 | P50: 0 | Q50: 1 | R50: 1 | T50: 414603150 | U50: BERKSHIRE ARTS AND TECHNOLOGY | V50: 0 | W50: 0 | X50: 0 | Y50: 0 | Z50: 0 | AA50: 1 | AB50: 0 | AC50: 0 | AD50: 0 | AE50: 0 | AF50: 0 | AG50: 0 | AH50: 0 | AI50: 0 | AJ50: 0 | AL50: 414 | AM50: 603 | AN50: 150 | AO50: 1
A51: 414603152 | B51: BERKSHIRE ARTS AND TECHNOLOGY | C51: 0 | D51: 0 | E51: 0 | F51: 0 | G51: 2 | H51: 0 | I51: 0.075 | K51: 0 | L51: 0 | M51: 0 | N51: 0 | O51: 1 | P51: 0 | Q51: 10 | R51: 2 | T51: 414603152 | U51: BERKSHIRE ARTS AND TECHNOLOGY | V51: 0 | W51: 0 | X51: 0 | Y51: 0 | Z51: 2 | AA51: 0 | AB51: 0 | AC51: 0 | AD51: 0 | AE51: 0 | AF51: 1 | AG51: 0 | AH51: 0 | AI51: 0 | AJ51: 0 | AL51: 414 | AM51: 603 | AN51: 152 | AO51: 10
A52: 414603209 | B52: BERKSHIRE ARTS AND TECHNOLOGY | C52: 0 | D52: 0 | E52: 0 | F52: 0 | G52: 32 | H52: 23 | I52: 2.0625 | K52: 0 | L52: 0 | M52: 0 | N52: 0 | O52: 19 | P52: 14 | Q52: 10 | R52: 55 | T52: 414603209 | U52: BERKSHIRE ARTS AND TECHNOLOGY | V52: 0 | W52: 0 | X52: 0 | Y52: 0 | Z52: 32 | AA52: 23 | AB52: 0 | AC52: 0 | AD52: 0 | AE52: 0 | AF52: 19 | AG52: 0 | AH52: 0 | AI52: 0 | AJ52: 14 | AL52: 414 | AM52: 603 | AN52: 209 | AO52: 10
A53: 414603236 | B53: BERKSHIRE ARTS AND TECHNOLOGY | C53: 0 | D53: 0 | E53: 0 | F53: 0 | G53: 103 | H53: 70 | I53: 6.7125 | K53: 0 | L53: 0 | M53: 6 | N53: 0 | O53: 57 | P53: 27 | Q53: 9 | R53: 179 | T53: 414603236 | U53: BERKSHIRE ARTS AND TECHNOLOGY | V53: 0 | W53: 0 | X53: 0 | Y53: 0 | Z53: 103 | AA53: 70 | AB53: 0 | AC53: 0 | AD53: 6 | AE53: 0 | AF53: 57 | AG53: 0 | AH53: 0 | AI53: 0 | AJ53: 27 | AL53: 414 | AM53: 603 | AN53: 236 | AO53: 9
A54: 414603263 | B54: BERKSHIRE ARTS AND TECHNOLOGY | C54: 0 | D54: 0 | E54: 0 | F54: 0 | G54: 1 | H54: 2 | I54: 0.1125 | K54: 0 | L54: 0 | M54: 0 | N54: 0 | O54: 0 | P54: 1 | Q54: 8 | R54: 3 | T54: 414603263 | U54: BERKSHIRE ARTS AND TECHNOLOGY | V54: 0 | W54: 0 | X54: 0 | Y54: 0 | Z54: 1 | AA54: 2 | AB54: 0 | AC54: 0 | AD54: 0 | AE54: 0 | AF54: 0 | AG54: 0 | AH54: 0 | AI54: 0 | AJ54: 1 | AL54: 414 | AM54: 603 | AN54: 263 | AO54: 8
A55: 414603349 | B55: BERKSHIRE ARTS AND TECHNOLOGY | C55: 0 | D55: 0 | E55: 0 | F55: 0 | G55: 0 | H55: 1 | I55: 0.0375 | K55: 0 | L55: 0 | M55: 0 | N55: 0 | O55: 0 | P55: 0 | Q55: 1 | R55: 1 | T55: 414603349 | U55: BERKSHIRE ARTS AND TECHNOLOGY | V55: 0 | W55: 0 | X55: 0 | Y55: 0 | Z55: 0 | AA55: 1 | AB55: 0 | AC55: 0 | AD55: 0 | AE55: 0 | AF55: 0 | AG55: 0 | AH55: 0 | AI55: 0 | AJ55: 0 | AL55: 414 | AM55: 603 | AN55: 349 | AO55: 1
A56: 414603603 | B56: BERKSHIRE ARTS AND TECHNOLOGY | C56: 0 | D56: 0 | E56: 0 | F56: 0 | G56: 42 | H56: 30 | I56: 2.7 | K56: 0 | L56: 0 | M56: 0 | N56: 0 | O56: 16 | P56: 19 | Q56: 10 | R56: 72 | T56: 414603603 | U56: BERKSHIRE ARTS AND TECHNOLOGY | V56: 0 | W56: 0 | X56: 0 | Y56: 0 | Z56: 42 | AA56: 30 | AB56: 0 | AC56: 0 | AD56: 0 | AE56: 0 | AF56: 16 | AG56: 0 | AH56: 0 | AI56: 0 | AJ56: 19 | AL56: 414 | AM56: 603 | AN56: 603 | AO56: 10
A57: 414603618 | B57: BERKSHIRE ARTS AND TECHNOLOGY | C57: 0 | D57: 0 | E57: 0 | F57: 0 | G57: 1 | H57: 0 | I57: 0.0375 | K57: 0 | L57: 0 | M57: 0 | N57: 0 | O57: 0 | P57: 0 | Q57: 1 | R57: 1 | T57: 414603618 | U57: BERKSHIRE ARTS AND TECHNOLOGY | V57: 0 | W57: 0 | X57: 0 | Y57: 0 | Z57: 1 | AA57: 0 | AB57: 0 | AC57: 0 | AD57: 0 | AE57: 0 | AF57: 0 | AG57: 0 | AH57: 0 | AI57: 0 | AJ57: 0 | AL57: 414 | AM57: 603 | AN57: 618 | AO57: 1
A58: 414603635 | B58: BERKSHIRE ARTS AND TECHNOLOGY | C58: 0 | D58: 0 | E58: 0 | F58: 0 | G58: 11 | H58: 2 | I58: 0.4875 | K58: 0 | L58: 0 | M58: 0 | N58: 0 | O58: 6 | P58: 1 | Q58: 10 | R58: 13 | T58: 414603635 | U58: BERKSHIRE ARTS AND TECHNOLOGY | V58: 0 | W58: 0 | X58: 0 | Y58: 0 | Z58: 11 | AA58: 2 | AB58: 0 | AC58: 0 | AD58: 0 | AE58: 0 | AF58: 6 | AG58: 0 | AH58: 0 | AI58: 0 | AJ58: 1 | AL58: 414 | AM58: 603 | AN58: 635 | AO58: 10
A59: 414603715 | B59: BERKSHIRE ARTS AND TECHNOLOGY | C59: 0 | D59: 0 | E59: 0 | F59: 0 | G59: 9 | H59: 10 | I59: 0.7125 | K59: 0 | L59: 0 | M59: 0 | N59: 0 | O59: 1 | P59: 2 | Q59: 3 | R59: 19 | T59: 414603715 | U59: BERKSHIRE ARTS AND TECHNOLOGY | V59: 0 | W59: 0 | X59: 0 | Y59: 0 | Z59: 9 | AA59: 10 | AB59: 0 | AC59: 0 | AD59: 0 | AE59: 0 | AF59: 1 | AG59: 0 | AH59: 0 | AI59: 0 | AJ59: 2 | AL59: 414 | AM59: 603 | AN59: 715 | AO59: 3
A60: 416035035 | B60: BOSTON PREPARATORY | C60: 0 | D60: 0 | E60: 0 | F60: 0 | G60: 157 | H60: 209 | I60: 15.225 | K60: 0 | L60: 0 | M60: 40 | N60: 0 | O60: 93 | P60: 103 | Q60: 10 | R60: 406 | T60: 416035035 | U60: BOSTON PREPARATORY | V60: 0 | W60: 0 | X60: 0 | Y60: 0 | Z60: 157 | AA60: 209 | AB60: 0 | AC60: 0 | AD60: 40 | AE60: 0 | AF60: 93 | AG60: 0 | AH60: 0 | AI60: 0 | AJ60: 103 | AL60: 416 | AM60: 35 | AN60: 35 | AO60: 10
A61: 416035044 | B61: BOSTON PREPARATORY | C61: 0 | D61: 0 | E61: 0 | F61: 0 | G61: 0 | H61: 1 | I61: 0.0375 | K61: 0 | L61: 0 | M61: 0 | N61: 0 | O61: 0 | P61: 1 | Q61: 10 | R61: 1 | T61: 416035044 | U61: BOSTON PREPARATORY | V61: 0 | W61: 0 | X61: 0 | Y61: 0 | Z61: 0 | AA61: 1 | AB61: 0 | AC61: 0 | AD61: 0 | AE61: 0 | AF61: 0 | AG61: 0 | AH61: 0 | AI61: 0 | AJ61: 1 | AL61: 416 | AM61: 35 | AN61: 44 | AO61: 10
A62: 416035073 | B62: BOSTON PREPARATORY | C62: 0 | D62: 0 | E62: 0 | F62: 0 | G62: 0 | H62: 1 | I62: 0.0375 | K62: 0 | L62: 0 | M62: 0 | N62: 0 | O62: 0 | P62: 0 | Q62: 1 | R62: 1 | T62: 416035073 | U62: BOSTON PREPARATORY | V62: 0 | W62: 0 | X62: 0 | Y62: 0 | Z62: 0 | AA62: 1 | AB62: 0 | AC62: 0 | AD62: 0 | AE62: 0 | AF62: 0 | AG62: 0 | AH62: 0 | AI62: 0 | AJ62: 0 | AL62: 416 | AM62: 35 | AN62: 73 | AO62: 1
A63: 416035189 | B63: BOSTON PREPARATORY | C63: 0 | D63: 0 | E63: 0 | F63: 0 | G63: 1 | H63: 0 | I63: 0.0375 | K63: 0 | L63: 0 | M63: 0 | N63: 0 | O63: 0 | P63: 0 | Q63: 1 | R63: 1 | T63: 416035189 | U63: BOSTON PREPARATORY | V63: 0 | W63: 0 | X63: 0 | Y63: 0 | Z63: 1 | AA63: 0 | AB63: 0 | AC63: 0 | AD63: 0 | AE63: 0 | AF63: 0 | AG63: 0 | AH63: 0 | AI63: 0 | AJ63: 0 | AL63: 416 | AM63: 35 | AN63: 189 | AO63: 1
A64: 416035244 | B64: BOSTON PREPARATORY | C64: 0 | D64: 0 | E64: 0 | F64: 0 | G64: 0 | H64: 3 | I64: 0.1125 | K64: 0 | L64: 0 | M64: 0 | N64: 0 | O64: 0 | P64: 1 | Q64: 8 | R64: 3 | T64: 416035244 | U64: BOSTON PREPARATORY | V64: 0 | W64: 0 | X64: 0 | Y64: 0 | Z64: 0 | AA64: 3 | AB64: 0 | AC64: 0 | AD64: 0 | AE64: 0 | AF64: 0 | AG64: 0 | AH64: 0 | AI64: 0 | AJ64: 1 | AL64: 416 | AM64: 35 | AN64: 244 | AO64: 8
A65: 416035285 | B65: BOSTON PREPARATORY | C65: 0 | D65: 0 | E65: 0 | F65: 0 | G65: 1 | H65: 2 | I65: 0.1125 | K65: 0 | L65: 0 | M65: 0 | N65: 0 | O65: 0 | P65: 0 | Q65: 1 | R65: 3 | T65: 416035285 | U65: BOSTON PREPARATORY | V65: 0 | W65: 0 | X65: 0 | Y65: 0 | Z65: 1 | AA65: 2 | AB65: 0 | AC65: 0 | AD65: 0 | AE65: 0 | AF65: 0 | AG65: 0 | AH65: 0 | AI65: 0 | AJ65: 0 | AL65: 416 | AM65: 35 | AN65: 285 | AO65: 1
A66: 417035035 | B66: BRIDGE BOSTON | C66: 13 | D66: 0 | E66: 22 | F66: 103 | G66: 0 | H66: 0 | I66: 6.7875 | K66: 24 | L66: 0 | M66: 56 | N66: 0 | O66: 93 | P66: 38 | Q66: 10 | R66: 200 | T66: 417035035 | U66: BRIDGE BOSTON | V66: 13 | W66: 0 | X66: 22 | Y66: 103 | Z66: 0 | AA66: 0 | AB66: 24 | AC66: 0 | AD66: 56 | AE66: 0 | AF66: 93 | AG66: 23 | AH66: 0 | AI66: 26 | AJ66: 0 | AL66: 417 | AM66: 35 | AN66: 35 | AO66: 10
A67: 417035244 | B67: BRIDGE BOSTON | C67: 0 | D67: 0 | E67: 0 | F67: 0 | G67: 0 | H67: 0 | I67: 0.0375 | K67: 0 | L67: 0 | M67: 1 | N67: 0 | O67: 0 | P67: 0 | Q67: 1 | R67: 1 | T67: 417035244 | U67: BRIDGE BOSTON | V67: 0 | W67: 0 | X67: 0 | Y67: 0 | Z67: 0 | AA67: 0 | AB67: 0 | AC67: 0 | AD67: 1 | AE67: 0 | AF67: 0 | AG67: 0 | AH67: 0 | AI67: 0 | AJ67: 0 | AL67: 417 | AM67: 35 | AN67: 244 | AO67: 1
A68: 417035274 | B68: BRIDGE BOSTON | C68: 1 | D68: 0 | E68: 0 | F68: 1 | G68: 0 | H68: 0 | I68: 0.0375 | K68: 0 | L68: 0 | M68: 0 | N68: 0 | O68: 1 | P68: 0 | Q68: 10 | R68: 2 | T68: 417035274 | U68: BRIDGE BOSTON | V68: 1 | W68: 0 | X68: 0 | Y68: 1 | Z68: 0 | AA68: 0 | AB68: 0 | AC68: 0 | AD68: 0 | AE68: 0 | AF68: 1 | AG68: 0 | AH68: 0 | AI68: 0 | AJ68: 0 | AL68: 417 | AM68: 35 | AN68: 274 | AO68: 10
A69: 417035293 | B69: BRIDGE BOSTON | C69: 0 | D69: 0 | E69: 0 | F69: 0 | G69: 0 | H69: 0 | I69: 0 | K69: 1 | L69: 0 | M69: 0 | N69: 0 | O69: 0 | P69: 0 | Q69: 1 | R69: 1 | T69: 417035293 | U69: BRIDGE BOSTON | V69: 0 | W69: 0 | X69: 0 | Y69: 0 | Z69: 0 | AA69: 0 | AB69: 1 | AC69: 0 | AD69: 0 | AE69: 0 | AF69: 0 | AG69: 0 | AH69: 0 | AI69: 0 | AJ69: 0 | AL69: 417 | AM69: 35 | AN69: 293 | AO69: 1
A70: 418100014 | B70: CHRISTA MCAULIFFE | C70: 0 | D70: 0 | E70: 0 | F70: 0 | G70: 39 | H70: 0 | I70: 1.4625 | K70: 0 | L70: 0 | M70: 0 | N70: 0 | O70: 4 | P70: 0 | Q70: 2 | R70: 39 | T70: 418100014 | U70: CHRISTA MCAULIFFE | V70: 0 | W70: 0 | X70: 0 | Y70: 0 | Z70: 39 | AA70: 0 | AB70: 0 | AC70: 0 | AD70: 0 | AE70: 0 | AF70: 4 | AG70: 0 | AH70: 0 | AI70: 0 | AJ70: 0 | AL70: 418 | AM70: 100 | AN70: 14 | AO70: 2
A71: 418100035 | B71: CHRISTA MCAULIFFE | C71: 0 | D71: 0 | E71: 0 | F71: 0 | G71: 1 | H71: 0 | I71: 0.0375 | K71: 0 | L71: 0 | M71: 0 | N71: 0 | O71: 0 | P71: 0 | Q71: 1 | R71: 1 | T71: 418100035 | U71: CHRISTA MCAULIFFE | V71: 0 | W71: 0 | X71: 0 | Y71: 0 | Z71: 1 | AA71: 0 | AB71: 0 | AC71: 0 | AD71: 0 | AE71: 0 | AF71: 0 | AG71: 0 | AH71: 0 | AI71: 0 | AJ71: 0 | AL71: 418 | AM71: 100 | AN71: 35 | AO71: 1
A72: 418100093 | B72: CHRISTA MCAULIFFE | C72: 0 | D72: 0 | E72: 0 | F72: 0 | G72: 1 | H72: 0 | I72: 0.0375 | K72: 0 | L72: 0 | M72: 0 | N72: 0 | O72: 1 | P72: 0 | Q72: 10 | R72: 1 | T72: 418100093 | U72: CHRISTA MCAULIFFE | V72: 0 | W72: 0 | X72: 0 | Y72: 0 | Z72: 1 | AA72: 0 | AB72: 0 | AC72: 0 | AD72: 0 | AE72: 0 | AF72: 1 | AG72: 0 | AH72: 0 | AI72: 0 | AJ72: 0 | AL72: 418 | AM72: 100 | AN72: 93 | AO72: 10
A73: 418100100 | B73: CHRISTA MCAULIFFE | C73: 0 | D73: 0 | E73: 0 | F73: 0 | G73: 276 | H73: 0 | I73: 10.8375 | K73: 0 | L73: 0 | M73: 13 | N73: 0 | O73: 66 | P73: 0 | Q73: 5 | R73: 289 | T73: 418100100 | U73: CHRISTA MCAULIFFE | V73: 0 | W73: 0 | X73: 0 | Y73: 0 | Z73: 276 | AA73: 0 | AB73: 0 | AC73: 0 | AD73: 13 | AE73: 0 | AF73: 66 | AG73: 0 | AH73: 0 | AI73: 0 | AJ73: 0 | AL73: 418 | AM73: 100 | AN73: 100 | AO73: 5
A74: 418100136 | B74: CHRISTA MCAULIFFE | C74: 0 | D74: 0 | E74: 0 | F74: 0 | G74: 9 | H74: 0 | I74: 0.3375 | K74: 0 | L74: 0 | M74: 0 | N74: 0 | O74: 2 | P74: 0 | Q74: 5 | R74: 9 | T74: 418100136 | U74: CHRISTA MCAULIFFE | V74: 0 | W74: 0 | X74: 0 | Y74: 0 | Z74: 9 | AA74: 0 | AB74: 0 | AC74: 0 | AD74: 0 | AE74: 0 | AF74: 2 | AG74: 0 | AH74: 0 | AI74: 0 | AJ74: 0 | AL74: 418 | AM74: 100 | AN74: 136 | AO74: 5
A75: 418100139 | B75: CHRISTA MCAULIFFE | C75: =ROUND(V75,0) -> 0 | D75: =ROUND(W75,0) -> 0 | E75: =ROUND(X75,0) -> 0 | F75: =ROUND(Y75,0) -> 0 | G75: =ROUND(Z75,0) -> 9 | H75: =ROUND(AA75,0) -> 0 | I75: =ROUND(0.0375*(SUM(E75:H75)+ROUND(D75*0.5,4)+ROUND(L75*0.5,4)+M75),4)+ROUND((0.0475)*N75,4) -> 0.3375 | K75: =ROUND(AB75,0) -> 0 | L75: =ROUND(AC75,0) -> 0 | M75: =ROUND(AD75,0) -> 0 | N75: =ROUND(AE75,0) -> 0 | O75: =ROUND(AF75,0) -> 1 | P75: =ROUND((AG75+AH75)/2,0)+ROUND(AI75+AJ75,0) -> 0 | Q75: =AO75 -> 2 | R75: =SUM(E75:H75)+M75+N75+ROUND(C75*0.5,0)+ROUND(D75*0.5,0)+ROUND(K75*0.5,0)+ROUND(L75*0.5,0) -> 9 | T75: 418100139 | U75: CHRISTA MCAULIFFE | V75: 0 | W75: 0 | X75: 0 | Y75: 0 | Z75: 9 | AA75: 0 | AB75: 0 | AC75: 0 | AD75: 0 | AE75: 0 | AF75: 1 | AG75: 0 | AH75: 0 | AI75: 0 | AJ75: 0 | AL75: 418 | AM75: 100 | AN75: 139 | AO75: 2
A76: 418100170 | B76: CHRISTA MCAULIFFE | C76: 0 | D76: 0 | E76: 0 | F76: 0 | G76: 7 | H76: 0 | I76: 0.3 | K76: 0 | L76: 0 | M76: 1 | N76: 0 | O76: 1 | P76: 0 | Q76: 3 | R76: 8 | T76: 418100170 | U76: CHRISTA MCAULIFFE | V76: 0 | W76: 0 | X76: 0 | Y76: 0 | Z76: 7 | AA76: 0 | AB76: 0 | AC76: 0 | AD76: 1 | AE76: 0 | AF76: 1 | AG76: 0 | AH76: 0 | AI76: 0 | AJ76: 0 | AL76: 418 | AM76: 100 | AN76: 170 | AO76: 3
A77: 418100174 | B77: CHRISTA MCAULIFFE | C77: 0 | D77: 0 | E77: 0 | F77: 0 | G77: 1 | H77: 0 | I77: 0.0375 | K77: 0 | L77: 0 | M77: 0 | N77: 0 | O77: 1 | P77: 0 | Q77: 10 | R77: 1 | T77: 418100174 | U77: CHRISTA MCAULIFFE | V77: 0 | W77: 0 | X77: 0 | Y77: 0 | Z77: 1 | AA77: 0 | AB77: 0 | AC77: 0 | AD77: 0 | AE77: 0 | AF77: 1 | AG77: 0 | AH77: 0 | AI77: 0 | AJ77: 0 | AL77: 418 | AM77: 100 | AN77: 174 | AO77: 10
A78: 418100175 | B78: CHRISTA MCAULIFFE | C78: 0 | D78: 0 | E78: 0 | F78: 0 | G78: 1 | H78: 0 | I78: 0.0375 | K78: 0 | L78: 0 | M78: 0 | N78: 0 | O78: 0 | P78: 0 | Q78: 1 | R78: 1 | T78: 418100175 | U78: CHRISTA MCAULIFFE | V78: 0 | W78: 0 | X78: 0 | Y78: 0 | Z78: 1 | AA78: 0 | AB78: 0 | AC78: 0 | AD78: 0 | AE78: 0 | AF78: 0 | AG78: 0 | AH78: 0 | AI78: 0 | AJ78: 0 | AL78: 418 | AM78: 100 | AN78: 175 | AO78: 1
A79: 418100185 | B79: CHRISTA MCAULIFFE | C79: 0 | D79: 0 | E79: 0 | F79: 0 | G79: 3 | H79: 0 | I79: 0.1125 | K79: 0 | L79: 0 | M79: 0 | N79: 0 | O79: 0 | P79: 0 | Q79: 1 | R79: 3 | T79: 418100185 | U79: CHRISTA MCAULIFFE | V79: 0 | W79: 0 | X79: 0 | Y79: 0 | Z79: 3 | AA79: 0 | AB79: 0 | AC79: 0 | AD79: 0 | AE79: 0 | AF79: 0 | AG79: 0 | AH79: 0 | AI79: 0 | AJ79: 0 | AL79: 418 | AM79: 100 | AN79: 185 | AO79: 1
A80: 418100198 | B80: CHRISTA MCAULIFFE | C80: 0 | D80: 0 | E80: 0 | F80: 0 | G80: 29 | H80: 0 | I80: 1.0875 | K80: 0 | L80: 0 | M80: 0 | N80: 0 | O80: 3 | P80: 0 | Q80: 2 | R80: 29 | T80: 418100198 | U80: CHRISTA MCAULIFFE | V80: 0 | W80: 0 | X80: 0 | Y80: 0 | Z80: 29 | AA80: 0 | AB80: 0 | AC80: 0 | AD80: 0 | AE80: 0 | AF80: 3 | AG80: 0 | AH80: 0 | AI80: 0 | AJ80: 0 | AL80: 418 | AM80: 100 | AN80: 198 | AO80: 2
A81: 418100213 | B81: CHRISTA MCAULIFFE | C81: 0 | D81: 0 | E81: 0 | F81: 0 | G81: 1 | H81: 0 | I81: 0.0375 | K81: 0 | L81: 0 | M81: 0 | N81: 0 | O81: 0 | P81: 0 | Q81: 1 | R81: 1 | T81: 418100213 | U81: CHRISTA MCAULIFFE | V81: 0 | W81: 0 | X81: 0 | Y81: 0 | Z81: 1 | AA81: 0 | AB81: 0 | AC81: 0 | AD81: 0 | AE81: 0 | AF81: 0 | AG81: 0 | AH81: 0 | AI81: 0 | AJ81: 0 | AL81: 418 | AM81: 100 | AN81: 213 | AO81: 1
A82: 418100276 | B82: CHRISTA MCAULIFFE | C82: 0 | D82: 0 | E82: 0 | F82: 0 | G82: 1 | H82: 0 | I82: 0.0375 | K82: 0 | L82: 0 | M82: 0 | N82: 0 | O82: 0 | P82: 0 | Q82: 1 | R82: 1 | T82: 418100276 | U82: CHRISTA MCAULIFFE | V82: 0 | W82: 0 | X82: 0 | Y82: 0 | Z82: 1 | AA82: 0 | AB82: 0 | AC82: 0 | AD82: 0 | AE82: 0 | AF82: 0 | AG82: 0 | AH82: 0 | AI82: 0 | AJ82: 0 | AL82: 418 | AM82: 100 | AN82: 276 | AO82: 1
A83: 418100288 | B83: CHRISTA MCAULIFFE | C83: 0 | D83: 0 | E83: 0 | F83: 0 | G83: 3 | H83: 0 | I83: 0.1125 | K83: 0 | L83: 0 | M83: 0 | N83: 0 | O83: 0 | P83: 0 | Q83: 1 | R83: 3 | T83: 418100288 | U83: CHRISTA MCAULIFFE | V83: 0 | W83: 0 | X83: 0 | Y83: 0 | Z83: 3 | AA83: 0 | AB83: 0 | AC83: 0 | AD83: 0 | AE83: 0 | AF83: 0 | AG83: 0 | AH83: 0 | AI83: 0 | AJ83: 0 | AL83: 418 | AM83: 100 | AN83: 288 | AO83: 1
A84: 418100304 | B84: CHRISTA MCAULIFFE | C84: 0 | D84: 0 | E84: 0 | F84: 0 | G84: 1 | H84: 0 | I84: 0.0375 | K84: 0 | L84: 0 | M84: 0 | N84: 0 | O84: 1 | P84: 0 | Q84: 10 | R84: 1 | T84: 418100304 | U84: CHRISTA MCAULIFFE | V84: 0 | W84: 0 | X84: 0 | Y84: 0 | Z84: 1 | AA84: 0 | AB84: 0 | AC84: 0 | AD84: 0 | AE84: 0 | AF84: 1 | AG84: 0 | AH84: 0 | AI84: 0 | AJ84: 0 | AL84: 418 | AM84: 100 | AN84: 304 | AO84: 10
A85: 418100315 | B85: CHRISTA MCAULIFFE | C85: 0 | D85: 0 | E85: 0 | F85: 0 | G85: 1 | H85: 0 | I85: 0.0375 | K85: 0 | L85: 0 | M85: 0 | N85: 0 | O85: 0 | P85: 0 | Q85: 1 | R85: 1 | T85: 418100315 | U85: CHRISTA MCAULIFFE | V85: 0 | W85: 0 | X85: 0 | Y85: 0 | Z85: 1 | AA85: 0 | AB85: 0 | AC85: 0 | AD85: 0 | AE85: 0 | AF85: 0 | AG85: 0 | AH85: 0 | AI85: 0 | AJ85: 0 | AL85: 418 | AM85: 100 | AN85: 315 | AO85: 1
A86: 418100321 | B86: CHRISTA MCAULIFFE | C86: 0 | D86: 0 | E86: 0 | F86: 0 | G86: 1 | H86: 0 | I86: 0.0375 | K86: 0 | L86: 0 | M86: 0 | N86: 0 | O86: 0 | P86: 0 | Q86: 1 | R86: 1 | T86: 418100321 | U86: CHRISTA MCAULIFFE | V86: 0 | W86: 0 | X86: 0 | Y86: 0 | Z86: 1 | AA86: 0 | AB86: 0 | AC86: 0 | AD86: 0 | AE86: 0 | AF86: 0 | AG86: 0 | AH86: 0 | AI86: 0 | AJ86: 0 | AL86: 418 | AM86: 100 | AN86: 321 | AO86: 1
A87: 418100655 | B87: CHRISTA MCAULIFFE | C87: 0 | D87: 0 | E87: 0 | F87: 0 | G87: 1 | H87: 0 | I87: 0.0375 | K87: 0 | L87: 0 | M87: 0 | N87: 0 | O87: 0 | P87: 0 | Q87: 1 | R87: 1 | T87: 418100655 | U87: CHRISTA MCAULIFFE | V87: 0 | W87: 0 | X87: 0 | Y87: 0 | Z87: 1 | AA87: 0 | AB87: 0 | AC87: 0 | AD87: 0 | AE87: 0 | AF87: 0 | AG87: 0 | AH87: 0 | AI87: 0 | AJ87: 0 | AL87: 418 | AM87: 100 | AN87: 655 | AO87: 1
A88: 418100710 | B88: CHRISTA MCAULIFFE | C88: 0 | D88: 0 | E88: 0 | F88: 0 | G88: 3 | H88: 0 | I88: 0.1125 | K88: 0 | L88: 0 | M88: 0 | N88: 0 | O88: 0 | P88: 0 | Q88: 1 | R88: 3 | T88: 418100710 | U88: CHRISTA MCAULIFFE | V88: 0 | W88: 0 | X88: 0 | Y88: 0 | Z88: 3 | AA88: 0 | AB88: 0 | AC88: 0 | AD88: 0 | AE88: 0 | AF88: 0 | AG88: 0 | AH88: 0 | AI88: 0 | AJ88: 0 | AL88: 418 | AM88: 100 | AN88: 710 | AO88: 1
A89: 419035035 | B89: HELEN Y. DAVIS LEADERSHIP ACADEMY | C89: 0 | D89: 0 | E89: 0 | F89: 0 | G89: 171 | H89: 0 | I89: 7.5375 | K89: 0 | L89: 0 | M89: 30 | N89: 0 | O89: 123 | P89: 0 | Q89: 10 | R89: 201 | T89: 419035035 | U89: HELEN Y. DAVIS LEADERSHIP ACADEMY | V89: 0 | W89: 0 | X89: 0 | Y89: 0 | Z89: 171 | AA89: 0 | AB89: 0 | AC89: 0 | AD89: 30 | AE89: 0 | AF89: 123 | AG89: 0 | AH89: 0 | AI89: 0 | AJ89: 0 | AL89: 419 | AM89: 35 | AN89: 35 | AO89: 10
A90: 419035044 | B90: HELEN Y. DAVIS LEADERSHIP ACADEMY | C90: 0 | D90: 0 | E90: 0 | F90: 0 | G90: 5 | H90: 0 | I90: 0.1875 | K90: 0 | L90: 0 | M90: 0 | N90: 0 | O90: 2 | P90: 0 | Q90: 9 | R90: 5 | T90: 419035044 | U90: HELEN Y. DAVIS LEADERSHIP ACADEMY | V90: 0 | W90: 0 | X90: 0 | Y90: 0 | Z90: 5 | AA90: 0 | AB90: 0 | AC90: 0 | AD90: 0 | AE90: 0 | AF90: 2 | AG90: 0 | AH90: 0 | AI90: 0 | AJ90: 0 | AL90: 419 | AM90: 35 | AN90: 44 | AO90: 9
A91: 419035049 | B91: HELEN Y. DAVIS LEADERSHIP ACADEMY | C91: 0 | D91: 0 | E91: 0 | F91: 0 | G91: 4 | H91: 0 | I91: 0.15 | K91: 0 | L91: 0 | M91: 0 | N91: 0 | O91: 2 | P91: 0 | Q91: 10 | R91: 4 | T91: 419035049 | U91: HELEN Y. DAVIS LEADERSHIP ACADEMY | V91: 0 | W91: 0 | X91: 0 | Y91: 0 | Z91: 4 | AA91: 0 | AB91: 0 | AC91: 0 | AD91: 0 | AE91: 0 | AF91: 2 | AG91: 0 | AH91: 0 | AI91: 0 | AJ91: 0 | AL91: 419 | AM91: 35 | AN91: 49 | AO91: 10
A92: 419035133 | B92: HELEN Y. DAVIS LEADERSHIP ACADEMY | C92: 0 | D92: 0 | E92: 0 | F92: 0 | G92: 1 | H92: 0 | I92: 0.0375 | K92: 0 | L92: 0 | M92: 0 | N92: 0 | O92: 1 | P92: 0 | Q92: 10 | R92: 1 | T92: 419035133 | U92: HELEN Y. DAVIS LEADERSHIP ACADEMY | V92: 0 | W92: 0 | X92: 0 | Y92: 0 | Z92: 1 | AA92: 0 | AB92: 0 | AC92: 0 | AD92: 0 | AE92: 0 | AF92: 1 | AG92: 0 | AH92: 0 | AI92: 0 | AJ92: 0 | AL92: 419 | AM92: 35 | AN92: 133 | AO92: 10
A93: 419035165 | B93: HELEN Y. DAVIS LEADERSHIP ACADEMY | C93: 0 | D93: 0 | E93: 0 | F93: 0 | G93: 1 | H93: 0 | I93: 0.0375 | K93: 0 | L93: 0 | M93: 0 | N93: 0 | O93: 1 | P93: 0 | Q93: 10 | R93: 1 | T93: 419035165 | U93: HELEN Y. DAVIS LEADERSHIP ACADEMY | V93: 0 | W93: 0 | X93: 0 | Y93: 0 | Z93: 1 | AA93: 0 | AB93: 0 | AC93: 0 | AD93: 0 | AE93: 0 | AF93: 1 | AG93: 0 | AH93: 0 | AI93: 0 | AJ93: 0 | AL93: 419 | AM93: 35 | AN93: 165 | AO93: 10
A94: 419035244 | B94: HELEN Y. DAVIS LEADERSHIP ACADEMY | C94: 0 | D94: 0 | E94: 0 | F94: 0 | G94: 4 | H94: 0 | I94: 0.1875 | K94: 0 | L94: 0 | M94: 1 | N94: 0 | O94: 1 | P94: 0 | Q94: 5 | R94: 5 | T94: 419035244 | U94: HELEN Y. DAVIS LEADERSHIP ACADEMY | V94: 0 | W94: 0 | X94: 0 | Y94: 0 | Z94: 4 | AA94: 0 | AB94: 0 | AC94: 0 | AD94: 1 | AE94: 0 | AF94: 1 | AG94: 0 | AH94: 0 | AI94: 0 | AJ94: 0 | AL94: 419 | AM94: 35 | AN94: 244 | AO94: 5
A95: 420049010 | B95: BENJAMIN BANNEKER | C95: 0 | D95: 0 | E95: 0 | F95: 3 | G95: 0 | H95: 0 | I95: 0.1125 | K95: 0 | L95: 0 | M95: 0 | N95: 0 | O95: 2 | P95: 0 | Q95: 10 | R95: 3 | T95: 420049010 | U95: BENJAMIN BANNEKER | V95: 0 | W95: 0 | X95: 0 | Y95: 3 | Z95: 0 | AA95: 0 | AB95: 0 | AC95: 0 | AD95: 0 | AE95: 0 | AF95: 2 | AG95: 0 | AH95: 0 | AI95: 0 | AJ95: 0 | AL95: 420 | AM95: 49 | AN95: 10 | AO95: 10
A96: 420049023 | B96: BENJAMIN BANNEKER | C96: 0 | D96: 0 | E96: 0 | F96: 2 | G96: 0 | H96: 0 | I96: 0.075 | K96: 0 | L96: 0 | M96: 0 | N96: 0 | O96: 0 | P96: 0 | Q96: 1 | R96: 2 | T96: 420049023 | U96: BENJAMIN BANNEKER | V96: 0 | W96: 0 | X96: 0 | Y96: 2 | Z96: 0 | AA96: 0 | AB96: 0 | AC96: 0 | AD96: 0 | AE96: 0 | AF96: 0 | AG96: 0 | AH96: 0 | AI96: 0 | AJ96: 0 | AL96: 420 | AM96: 49 | AN96: 23 | AO96: 1
A97: 420049026 | B97: BENJAMIN BANNEKER | C97: 0 | D97: 0 | E97: 0 | F97: 2 | G97: 0 | H97: 0 | I97: 0.075 | K97: 0 | L97: 0 | M97: 0 | N97: 0 | O97: 2 | P97: 0 | Q97: 10 | R97: 2 | T97: 420049026 | U97: BENJAMIN BANNEKER | V97: 0 | W97: 0 | X97: 0 | Y97: 2 | Z97: 0 | AA97: 0 | AB97: 0 | AC97: 0 | AD97: 0 | AE97: 0 | AF97: 2 | AG97: 0 | AH97: 0 | AI97: 0 | AJ97: 0 | AL97: 420 | AM97: 49 | AN97: 26 | AO97: 10
A98: 420049031 | B98: BENJAMIN BANNEKER | C98: 0 | D98: 0 | E98: 0 | F98: 1 | G98: 0 | H98: 0 | I98: 0.0375 | K98: 0 | L98: 0 | M98: 0 | N98: 0 | O98: 0 | P98: 0 | Q98: 1 | R98: 1 | T98: 420049031 | U98: BENJAMIN BANNEKER | V98: 0 | W98: 0 | X98: 0 | Y98: 1 | Z98: 0 | AA98: 0 | AB98: 0 | AC98: 0 | AD98: 0 | AE98: 0 | AF98: 0 | AG98: 0 | AH98: 0 | AI98: 0 | AJ98: 0 | AL98: 420 | AM98: 49 | AN98: 31 | AO98: 1
A99: 420049035 | B99: BENJAMIN BANNEKER | C99: 0 | D99: 0 | E99: 10 | F99: 81 | G99: 12 | H99: 0 | I99: 3.9375 | K99: 0 | L99: 0 | M99: 2 | N99: 0 | O99: 50 | P99: 6 | Q99: 10 | R99: 105 | T99: 420049035 | U99: BENJAMIN BANNEKER | V99: 0 | W99: 0 | X99: 10 | Y99: 81 | Z99: 12 | AA99: 0 | AB99: 0 | AC99: 0 | AD99: 2 | AE99: 0 | AF99: 50 | AG99: 0 | AH99: 0 | AI99: 6 | AJ99: 0 | AL99: 420 | AM99: 49 | AN99: 35 | AO99: 10
A100: 420049044 | B100: BENJAMIN BANNEKER | C100: 0 | D100: 0 | E100: 1 | F100: 1 | G100: 0 | H100: 0 | I100: 0.075 | K100: 0 | L100: 0 | M100: 0 | N100: 0 | O100: 1 | P100: 1 | Q100: 10 | R100: 2 | T100: 420049044 | U100: BENJAMIN BANNEKER | V100: 0 | W100: 0 | X100: 1 | Y100: 1 | Z100: 0 | AA100: 0 | AB100: 0 | AC100: 0 | AD100: 0 | AE100: 0 | AF100: 1 | AG100: 0 | AH100: 0 | AI100: 1 | AJ100: 0 | AL100: 420 | AM100: 49 | AN100: 44 | AO100: 10
A101: 420049049 | B101: BENJAMIN BANNEKER | C101: 0 | D101: 0 | E101: 37 | F101: 82 | G101: 12 | H101: 0 | I101: 5.2125 | K101: 0 | L101: 0 | M101: 8 | N101: 0 | O101: 78 | P101: 23 | Q101: 10 | R101: 139 | T101: 420049049 | U101: BENJAMIN BANNEKER | V101: 0 | W101: 0 | X101: 37 | Y101: 82 | Z101: 12 | AA101: 0 | AB101: 0 | AC101: 0 | AD101: 8 | AE101: 0 | AF101: 78 | AG101: 0 | AH101: 0 | AI101: 23 | AJ101: 0 | AL101: 420 | AM101: 49 | AN101: 49 | AO101: 10
A102: 420049057 | B102: BENJAMIN BANNEKER | C102: 0 | D102: 0 | E102: 1 | F102: 2 | G102: 0 | H102: 0 | I102: 0.1875 | K102: 0 | L102: 0 | M102: 2 | N102: 0 | O102: 2 | P102: 0 | Q102: 9 | R102: 5 | T102: 420049057 | U102: BENJAMIN BANNEKER | V102: 0 | W102: 0 | X102: 1 | Y102: 2 | Z102: 0 | AA102: 0 | AB102: 0 | AC102: 0 | AD102: 2 | AE102: 0 | AF102: 2 | AG102: 0 | AH102: 0 | AI102: 0 | AJ102: 0 | AL102: 420 | AM102: 49 | AN102: 57 | AO102: 9
A103: 420049093 | B103: BENJAMIN BANNEKER | C103: 0 | D103: 0 | E103: 8 | F103: 26 | G103: 3 | H103: 0 | I103: 1.4625 | K103: 0 | L103: 0 | M103: 2 | N103: 0 | O103: 18 | P103: 2 | Q103: 10 | R103: 39 | T103: 420049093 | U103: BENJAMIN BANNEKER | V103: 0 | W103: 0 | X103: 8 | Y103: 26 | Z103: 3 | AA103: 0 | AB103: 0 | AC103: 0 | AD103: 2 | AE103: 0 | AF103: 18 | AG103: 0 | AH103: 0 | AI103: 2 | AJ103: 0 | AL103: 420 | AM103: 49 | AN103: 93 | AO103: 10
A104: 420049149 | B104: BENJAMIN BANNEKER | C104: 0 | D104: 0 | E104: 0 | F104: 1 | G104: 0 | H104: 0 | I104: 0.0375 | K104: 0 | L104: 0 | M104: 0 | N104: 0 | O104: 0 | P104: 0 | Q104: 1 | R104: 1 | T104: 420049149 | U104: BENJAMIN BANNEKER | V104: 0 | W104: 0 | X104: 0 | Y104: 1 | Z104: 0 | AA104: 0 | AB104: 0 | AC104: 0 | AD104: 0 | AE104: 0 | AF104: 0 | AG104: 0 | AH104: 0 | AI104: 0 | AJ104: 0 | AL104: 420 | AM104: 49 | AN104: 149 | AO104: 1
A105: 420049163 | B105: BENJAMIN BANNEKER | C105: 0 | D105: 0 | E105: 0 | F105: 4 | G105: 1 | H105: 0 | I105: 0.1875 | K105: 0 | L105: 0 | M105: 0 | N105: 0 | O105: 0 | P105: 0 | Q105: 1 | R105: 5 | T105: 420049163 | U105: BENJAMIN BANNEKER | V105: 0 | W105: 0 | X105: 0 | Y105: 4 | Z105: 1 | AA105: 0 | AB105: 0 | AC105: 0 | AD105: 0 | AE105: 0 | AF105: 0 | AG105: 0 | AH105: 0 | AI105: 0 | AJ105: 0 | AL105: 420 | AM105: 49 | AN105: 163 | AO105: 1
A106: 420049165 | B106: BENJAMIN BANNEKER | C106: 0 | D106: 0 | E106: 2 | F106: 4 | G106: 1 | H106: 0 | I106: 0.2625 | K106: 0 | L106: 0 | M106: 0 | N106: 0 | O106: 3 | P106: 2 | Q106: 10 | R106: 7 | T106: 420049165 | U106: BENJAMIN BANNEKER | V106: 0 | W106: 0 | X106: 2 | Y106: 4 | Z106: 1 | AA106: 0 | AB106: 0 | AC106: 0 | AD106: 0 | AE106: 0 | AF106: 3 | AG106: 0 | AH106: 0 | AI106: 2 | AJ106: 0 | AL106: 420 | AM106: 49 | AN106: 165 | AO106: 10
A107: 420049176 | B107: BENJAMIN BANNEKER | C107: 0 | D107: 0 | E107: 5 | F107: 6 | G107: 3 | H107: 0 | I107: 0.525 | K107: 0 | L107: 0 | M107: 0 | N107: 0 | O107: 5 | P107: 4 | Q107: 10 | R107: 14 | T107: 420049176 | U107: BENJAMIN BANNEKER | V107: 0 | W107: 0 | X107: 5 | Y107: 6 | Z107: 3 | AA107: 0 | AB107: 0 | AC107: 0 | AD107: 0 | AE107: 0 | AF107: 5 | AG107: 0 | AH107: 0 | AI107: 4 | AJ107: 0 | AL107: 420 | AM107: 49 | AN107: 176 | AO107: 10
A108: 420049181 | B108: BENJAMIN BANNEKER | C108: 0 | D108: 0 | E108: 0 | F108: 1 | G108: 0 | H108: 0 | I108: 0.0375 | K108: 0 | L108: 0 | M108: 0 | N108: 0 | O108: 0 | P108: 0 | Q108: 1 | R108: 1 | T108: 420049181 | U108: BENJAMIN BANNEKER | V108: 0 | W108: 0 | X108: 0 | Y108: 1 | Z108: 0 | AA108: 0 | AB108: 0 | AC108: 0 | AD108: 0 | AE108: 0 | AF108: 0 | AG108: 0 | AH108: 0 | AI108: 0 | AJ108: 0 | AL108: 420 | AM108: 49 | AN108: 181 | AO108: 1
A109: 420049243 | B109: BENJAMIN BANNEKER | C109: 0 | D109: 0 | E109: 0 | F109: 2 | G109: 0 | H109: 0 | I109: 0.075 | K109: 0 | L109: 0 | M109: 0 | N109: 0 | O109: 1 | P109: 0 | Q109: 10 | R109: 2 | T109: 420049243 | U109: BENJAMIN BANNEKER | V109: 0 | W109: 0 | X109: 0 | Y109: 2 | Z109: 0 | AA109: 0 | AB109: 0 | AC109: 0 | AD109: 0 | AE109: 0 | AF109: 1 | AG109: 0 | AH109: 0 | AI109: 0 | AJ109: 0 | AL109: 420 | AM109: 49 | AN109: 243 | AO109: 10
A110: 420049244 | B110: BENJAMIN BANNEKER | C110: 0 | D110: 0 | E110: 2 | F110: 3 | G110: 0 | H110: 0 | I110: 0.1875 | K110: 0 | L110: 0 | M110: 0 | N110: 0 | O110: 0 | P110: 0 | Q110: 1 | R110: 5 | T110: 420049244 | U110: BENJAMIN BANNEKER | V110: 0 | W110: 0 | X110: 2 | Y110: 3 | Z110: 0 | AA110: 0 | AB110: 0 | AC110: 0 | AD110: 0 | AE110: 0 | AF110: 0 | AG110: 0 | AH110: 0 | AI110: 0 | AJ110: 0 | AL110: 420 | AM110: 49 | AN110: 244 | AO110: 1
A111: 420049248 | B111: BENJAMIN BANNEKER | C111: 0 | D111: 0 | E111: 1 | F111: 2 | G111: 1 | H111: 0 | I111: 0.15 | K111: 0 | L111: 0 | M111: 0 | N111: 0 | O111: 2 | P111: 1 | Q111: 10 | R111: 4 | T111: 420049248 | U111: BENJAMIN BANNEKER | V111: 0 | W111: 0 | X111: 1 | Y111: 2 | Z111: 1 | AA111: 0 | AB111: 0 | AC111: 0 | AD111: 0 | AE111: 0 | AF111: 2 | AG111: 0 | AH111: 0 | AI111: 1 | AJ111: 0 | AL111: 420 | AM111: 49 | AN111: 248 | AO111: 10
A112: 420049262 | B112: BENJAMIN BANNEKER | C112: 0 | D112: 0 | E112: 0 | F112: 1 | G112: 0 | H112: 0 | I112: 0.0375 | K112: 0 | L112: 0 | M112: 0 | N112: 0 | O112: 1 | P112: 0 | Q112: 10 | R112: 1 | T112: 420049262 | U112: BENJAMIN BANNEKER | V112: 0 | W112: 0 | X112: 0 | Y112: 1 | Z112: 0 | AA112: 0 | AB112: 0 | AC112: 0 | AD112: 0 | AE112: 0 | AF112: 1 | AG112: 0 | AH112: 0 | AI112: 0 | AJ112: 0 | AL112: 420 | AM112: 49 | AN112: 262 | AO112: 10
A113: 420049274 | B113: BENJAMIN BANNEKER | C113: 0 | D113: 0 | E113: 0 | F113: 1 | G113: 2 | H113: 0 | I113: 0.15 | K113: 0 | L113: 0 | M113: 1 | N113: 0 | O113: 2 | P113: 0 | Q113: 10 | R113: 4 | T113: 420049274 | U113: BENJAMIN BANNEKER | V113: 0 | W113: 0 | X113: 0 | Y113: 1 | Z113: 2 | AA113: 0 | AB113: 0 | AC113: 0 | AD113: 1 | AE113: 0 | AF113: 2 | AG113: 0 | AH113: 0 | AI113: 0 | AJ113: 0 | AL113: 420 | AM113: 49 | AN113: 274 | AO113: 10
A114: 420049308 | B114: BENJAMIN BANNEKER | C114: 0 | D114: 0 | E114: 0 | F114: 4 | G114: 0 | H114: 0 | I114: 0.15 | K114: 0 | L114: 0 | M114: 0 | N114: 0 | O114: 0 | P114: 0 | Q114: 1 | R114: 4 | T114: 420049308 | U114: BENJAMIN BANNEKER | V114: 0 | W114: 0 | X114: 0 | Y114: 4 | Z114: 0 | AA114: 0 | AB114: 0 | AC114: 0 | AD114: 0 | AE114: 0 | AF114: 0 | AG114: 0 | AH114: 0 | AI114: 0 | AJ114: 0 | AL114: 420 | AM114: 49 | AN114: 308 | AO114: 1
A115: 420049347 | B115: BENJAMIN BANNEKER | C115: 0 | D115: 0 | E115: 1 | F115: 0 | G115: 0 | H115: 0 | I115: 0.0375 | K115: 0 | L115: 0 | M115: 0 | N115: 0 | O115: 0 | P115: 0 | Q115: 1 | R115: 1 | T115: 420049347 | U115: BENJAMIN BANNEKER | V115: 0 | W115: 0 | X115: 1 | Y115: 0 | Z115: 0 | AA115: 0 | AB115: 0 | AC115: 0 | AD115: 0 | AE115: 0 | AF115: 0 | AG115: 0 | AH115: 0 | AI115: 0 | AJ115: 0 | AL115: 420 | AM115: 49 | AN115: 347 | AO115: 1
A116: 420049616 | B116: BENJAMIN BANNEKER | C116: 0 | D116: 0 | E116: 0 | F116: 2 | G116: 0 | H116: 0 | I116: 0.075 | K116: 0 | L116: 0 | M116: 0 | N116: 0 | O116: 2 | P116: 0 | Q116: 10 | R116: 2 | T116: 420049616 | U116: BENJAMIN BANNEKER | V116: 0 | W116: 0 | X116: 0 | Y116: 2 | Z116: 0 | AA116: 0 | AB116: 0 | AC116: 0 | AD116: 0 | AE116: 0 | AF116: 2 | AG116: 0 | AH116: 0 | AI116: 0 | AJ116: 0 | AL116: 420 | AM116: 49 | AN116: 616 | AO116: 10
A117: 426149009 | B117: COMMUNITY DAY - GATEWAY | C117: 0 | D117: 0 | E117: 0 | F117: 1 | G117: 0 | H117: 0 | I117: 0.075 | K117: 0 | L117: 0 | M117: 1 | N117: 0 | O117: 1 | P117: 0 | Q117: 10 | R117: 2 | T117: 426149009 | U117: COMMUNITY DAY - GATEWAY | V117: 0 | W117: 0 | X117: 0 | Y117: 1 | Z117: 0 | AA117: 0 | AB117: 0 | AC117: 0 | AD117: 1 | AE117: 0 | AF117: 1 | AG117: 0 | AH117: 0 | AI117: 0 | AJ117: 0 | AL117: 426 | AM117: 149 | AN117: 9 | AO117: 10
A118: 426149056 | B118: COMMUNITY DAY - GATEWAY | C118: 0 | D118: 0 | E118: 0 | F118: 0 | G118: 0 | H118: 0 | I118: 0 | K118: 1 | L118: 0 | M118: 0 | N118: 0 | O118: 0 | P118: 1 | Q118: 10 | R118: 1 | T118: 426149056 | U118: COMMUNITY DAY - GATEWAY | V118: 0 | W118: 0 | X118: 0 | Y118: 0 | Z118: 0 | AA118: 0 | AB118: 1 | AC118: 0 | AD118: 0 | AE118: 0 | AF118: 0 | AG118: 1 | AH118: 0 | AI118: 0 | AJ118: 0 | AL118: 426 | AM118: 149 | AN118: 56 | AO118: 10
A119: 426149079 | B119: COMMUNITY DAY - GATEWAY | C119: 0 | D119: 0 | E119: 0 | F119: 1 | G119: 0 | H119: 0 | I119: 0.0375 | K119: 0 | L119: 0 | M119: 0 | N119: 0 | O119: 0 | P119: 0 | Q119: 1 | R119: 1 | T119: 426149079 | U119: COMMUNITY DAY - GATEWAY | V119: 0 | W119: 0 | X119: 0 | Y119: 1 | Z119: 0 | AA119: 0 | AB119: 0 | AC119: 0 | AD119: 0 | AE119: 0 | AF119: 0 | AG119: 0 | AH119: 0 | AI119: 0 | AJ119: 0 | AL119: 426 | AM119: 149 | AN119: 79 | AO119: 1
A120: 426149149 | B120: COMMUNITY DAY - GATEWAY | C120: 18 | D120: 0 | E120: 22 | F120: 39 | G120: 0 | H120: 0 | I120: 7.05 | K120: 21 | L120: 0 | M120: 127 | N120: 0 | O120: 101 | P120: 31 | Q120: 10 | R120: 208 | T120: 426149149 | U120: COMMUNITY DAY - GATEWAY | V120: 18 | W120: 0 | X120: 22 | Y120: 39 | Z120: 0 | AA120: 0 | AB120: 21 | AC120: 0 | AD120: 127 | AE120: 0 | AF120: 101 | AG120: 19 | AH120: 0 | AI120: 21 | AJ120: 0 | AL120: 426 | AM120: 149 | AN120: 149 | AO120: 10
A121: 426149181 | B121: COMMUNITY DAY - GATEWAY | C121: 1 | D121: 0 | E121: 1 | F121: 3 | G121: 0 | H121: 0 | I121: 0.2625 | K121: 1 | L121: 0 | M121: 3 | N121: 0 | O121: 1 | P121: 1 | Q121: 5 | R121: 9 | T121: 426149181 | U121: COMMUNITY DAY - GATEWAY | V121: 1 | W121: 0 | X121: 1 | Y121: 3 | Z121: 0 | AA121: 0 | AB121: 1 | AC121: 0 | AD121: 3 | AE121: 0 | AF121: 1 | AG121: 0 | AH121: 0 | AI121: 1 | AJ121: 0 | AL121: 426 | AM121: 149 | AN121: 181 | AO121: 5
A122: 428035035 | B122: BROOKE ROSLINDALE | C122: 0 | D122: 0 | E122: 137 | F122: 772 | G122: 323 | H122: 0 | I122: 48.45 | K122: 0 | L122: 0 | M122: 60 | N122: 0 | O122: 610 | P122: 93 | Q122: 10 | R122: 1292 | T122: 428035035 | U122: BROOKE ROSLINDALE | V122: 0 | W122: 0 | X122: 137 | Y122: 772 | Z122: 323 | AA122: 0 | AB122: 0 | AC122: 0 | AD122: 60 | AE122: 0 | AF122: 610 | AG122: 0 | AH122: 0 | AI122: 93 | AJ122: 0 | AL122: 428 | AM122: 35 | AN122: 35 | AO122: 10
A123: 428035040 | B123: BROOKE ROSLINDALE | C123: 0 | D123: 0 | E123: 0 | F123: 1 | G123: 0 | H123: 0 | I123: 0.0375 | K123: 0 | L123: 0 | M123: 0 | N123: 0 | O123: 1 | P123: 0 | Q123: 10 | R123: 1 | T123: 428035040 | U123: BROOKE ROSLINDALE | V123: 0 | W123: 0 | X123: 0 | Y123: 1 | Z123: 0 | AA123: 0 | AB123: 0 | AC123: 0 | AD123: 0 | AE123: 0 | AF123: 1 | AG123: 0 | AH123: 0 | AI123: 0 | AJ123: 0 | AL123: 428 | AM123: 35 | AN123: 40 | AO123: 10
A124: 428035044 | B124: BROOKE ROSLINDALE | C124: 0 | D124: 0 | E124: 0 | F124: 6 | G124: 0 | H124: 0 | I124: 0.225 | K124: 0 | L124: 0 | M124: 0 | N124: 0 | O124: 2 | P124: 0 | Q124: 8 | R124: 6 | T124: 428035044 | U124: BROOKE ROSLINDALE | V124: 0 | W124: 0 | X124: 0 | Y124: 6 | Z124: 0 | AA124: 0 | AB124: 0 | AC124: 0 | AD124: 0 | AE124: 0 | AF124: 2 | AG124: 0 | AH124: 0 | AI124: 0 | AJ124: 0 | AL124: 428 | AM124: 35 | AN124: 44 | AO124: 8
A125: 428035050 | B125: BROOKE ROSLINDALE | C125: 0 | D125: 0 | E125: 0 | F125: 1 | G125: 0 | H125: 0 | I125: 0.0375 | K125: 0 | L125: 0 | M125: 0 | N125: 0 | O125: 1 | P125: 0 | Q125: 10 | R125: 1 | T125: 428035050 | U125: BROOKE ROSLINDALE | V125: 0 | W125: 0 | X125: 0 | Y125: 1 | Z125: 0 | AA125: 0 | AB125: 0 | AC125: 0 | AD125: 0 | AE125: 0 | AF125: 1 | AG125: 0 | AH125: 0 | AI125: 0 | AJ125: 0 | AL125: 428 | AM125: 35 | AN125: 50 | AO125: 10
A126: 428035057 | B126: BROOKE ROSLINDALE | C126: 0 | D126: 0 | E126: 9 | F126: 75 | G126: 34 | H126: 0 | I126: 5.3625 | K126: 0 | L126: 0 | M126: 25 | N126: 0 | O126: 68 | P126: 10 | Q126: 10 | R126: 143 | T126: 428035057 | U126: BROOKE ROSLINDALE | V126: 0 | W126: 0 | X126: 9 | Y126: 75 | Z126: 34 | AA126: 0 | AB126: 0 | AC126: 0 | AD126: 25 | AE126: 0 | AF126: 68 | AG126: 0 | AH126: 0 | AI126: 10 | AJ126: 0 | AL126: 428 | AM126: 35 | AN126: 57 | AO126: 10
A127: 428035073 | B127: BROOKE ROSLINDALE | C127: 0 | D127: 0 | E127: 0 | F127: 3 | G127: 1 | H127: 0 | I127: 0.15 | K127: 0 | L127: 0 | M127: 0 | N127: 0 | O127: 0 | P127: 0 | Q127: 1 | R127: 4 | T127: 428035073 | U127: BROOKE ROSLINDALE | V127: 0 | W127: 0 | X127: 0 | Y127: 3 | Z127: 1 | AA127: 0 | AB127: 0 | AC127: 0 | AD127: 0 | AE127: 0 | AF127: 0 | AG127: 0 | AH127: 0 | AI127: 0 | AJ127: 0 | AL127: 428 | AM127: 35 | AN127: 73 | AO127: 1
A128: 428035093 | B128: BROOKE ROSLINDALE | C128: 0 | D128: 0 | E128: 1 | F128: 2 | G128: 1 | H128: 0 | I128: 0.15 | K128: 0 | L128: 0 | M128: 0 | N128: 0 | O128: 3 | P128: 1 | Q128: 10 | R128: 4 | T128: 428035093 | U128: BROOKE ROSLINDALE | V128: 0 | W128: 0 | X128: 1 | Y128: 2 | Z128: 1 | AA128: 0 | AB128: 0 | AC128: 0 | AD128: 0 | AE128: 0 | AF128: 3 | AG128: 0 | AH128: 0 | AI128: 1 | AJ128: 0 | AL128: 428 | AM128: 35 | AN128: 93 | AO128: 10
A129: 428035163 | B129: BROOKE ROSLINDALE | C129: 0 | D129: 0 | E129: 0 | F129: 2 | G129: 1 | H129: 0 | I129: 0.15 | K129: 0 | L129: 0 | M129: 1 | N129: 0 | O129: 1 | P129: 0 | Q129: 6 | R129: 4 | T129: 428035163 | U129: BROOKE ROSLINDALE | V129: 0 | W129: 0 | X129: 0 | Y129: 2 | Z129: 1 | AA129: 0 | AB129: 0 | AC129: 0 | AD129: 1 | AE129: 0 | AF129: 1 | AG129: 0 | AH129: 0 | AI129: 0 | AJ129: 0 | AL129: 428 | AM129: 35 | AN129: 163 | AO129: 6
A130: 428035189 | B130: BROOKE ROSLINDALE | C130: 0 | D130: 0 | E130: 0 | F130: 1 | G130: 1 | H130: 0 | I130: 0.075 | K130: 0 | L130: 0 | M130: 0 | N130: 0 | O130: 0 | P130: 0 | Q130: 1 | R130: 2 | T130: 428035189 | U130: BROOKE ROSLINDALE | V130: 0 | W130: 0 | X130: 0 | Y130: 1 | Z130: 1 | AA130: 0 | AB130: 0 | AC130: 0 | AD130: 0 | AE130: 0 | AF130: 0 | AG130: 0 | AH130: 0 | AI130: 0 | AJ130: 0 | AL130: 428 | AM130: 35 | AN130: 189 | AO130: 1
A131: 428035220 | B131: BROOKE ROSLINDALE | C131: 0 | D131: 0 | E131: 0 | F131: 3 | G131: 1 | H131: 0 | I131: 0.15 | K131: 0 | L131: 0 | M131: 0 | N131: 0 | O131: 3 | P131: 0 | Q131: 10 | R131: 4 | T131: 428035220 | U131: BROOKE ROSLINDALE | V131: 0 | W131: 0 | X131: 0 | Y131: 3 | Z131: 1 | AA131: 0 | AB131: 0 | AC131: 0 | AD131: 0 | AE131: 0 | AF131: 3 | AG131: 0 | AH131: 0 | AI131: 0 | AJ131: 0 | AL131: 428 | AM131: 35 | AN131: 220 | AO131: 10
A132: 428035243 | B132: BROOKE ROSLINDALE | C132: 0 | D132: 0 | E132: 2 | F132: 2 | G132: 2 | H132: 0 | I132: 0.225 | K132: 0 | L132: 0 | M132: 0 | N132: 0 | O132: 1 | P132: 1 | Q132: 8 | R132: 6 | T132: 428035243 | U132: BROOKE ROSLINDALE | V132: 0 | W132: 0 | X132: 2 | Y132: 2 | Z132: 2 | AA132: 0 | AB132: 0 | AC132: 0 | AD132: 0 | AE132: 0 | AF132: 1 | AG132: 0 | AH132: 0 | AI132: 1 | AJ132: 0 | AL132: 428 | AM132: 35 | AN132: 243 | AO132: 8
A133: 428035244 | B133: BROOKE ROSLINDALE | C133: 0 | D133: 0 | E133: 0 | F133: 7 | G133: 5 | H133: 0 | I133: 0.45 | K133: 0 | L133: 0 | M133: 0 | N133: 0 | O133: 1 | P133: 0 | Q133: 2 | R133: 12 | T133: 428035244 | U133: BROOKE ROSLINDALE | V133: 0 | W133: 0 | X133: 0 | Y133: 7 | Z133: 5 | AA133: 0 | AB133: 0 | AC133: 0 | AD133: 0 | AE133: 0 | AF133: 1 | AG133: 0 | AH133: 0 | AI133: 0 | AJ133: 0 | AL133: 428 | AM133: 35 | AN133: 244 | AO133: 2
A134: 428035248 | B134: BROOKE ROSLINDALE | C134: 0 | D134: 0 | E134: 0 | F134: 6 | G134: 1 | H134: 0 | I134: 0.4125 | K134: 0 | L134: 0 | M134: 4 | N134: 0 | O134: 6 | P134: 0 | Q134: 10 | R134: 11 | T134: 428035248 | U134: BROOKE ROSLINDALE | V134: 0 | W134: 0 | X134: 0 | Y134: 6 | Z134: 1 | AA134: 0 | AB134: 0 | AC134: 0 | AD134: 4 | AE134: 0 | AF134: 6 | AG134: 0 | AH134: 0 | AI134: 0 | AJ134: 0 | AL134: 428 | AM134: 35 | AN134: 248 | AO134: 10
A135: 428035285 | B135: BROOKE ROSLINDALE | C135: 0 | D135: 0 | E135: 0 | F135: 2 | G135: 1 | H135: 0 | I135: 0.1125 | K135: 0 | L135: 0 | M135: 0 | N135: 0 | O135: 3 | P135: 0 | Q135: 10 | R135: 3 | T135: 428035285 | U135: BROOKE ROSLINDALE | V135: 0 | W135: 0 | X135: 0 | Y135: 2 | Z135: 1 | AA135: 0 | AB135: 0 | AC135: 0 | AD135: 0 | AE135: 0 | AF135: 3 | AG135: 0 | AH135: 0 | AI135: 0 | AJ135: 0 | AL135: 428 | AM135: 35 | AN135: 285 | AO135: 10
A136: 428035308 | B136: BROOKE ROSLINDALE | C136: 0 | D136: 0 | E136: 0 | F136: 0 | G136: 0 | H136: 0 | I136: 0.0375 | K136: 0 | L136: 0 | M136: 1 | N136: 0 | O136: 1 | P136: 0 | Q136: 10 | R136: 1 | T136: 428035308 | U136: BROOKE ROSLINDALE | V136: 0 | W136: 0 | X136: 0 | Y136: 0 | Z136: 0 | AA136: 0 | AB136: 0 | AC136: 0 | AD136: 1 | AE136: 0 | AF136: 1 | AG136: 0 | AH136: 0 | AI136: 0 | AJ136: 0 | AL136: 428 | AM136: 35 | AN136: 308 | AO136: 10
A137: 428035346 | B137: BROOKE ROSLINDALE | C137: 0 | D137: 0 | E137: 0 | F137: 2 | G137: 0 | H137: 0 | I137: 0.075 | K137: 0 | L137: 0 | M137: 0 | N137: 0 | O137: 1 | P137: 0 | Q137: 10 | R137: 2 | T137: 428035346 | U137: BROOKE ROSLINDALE | V137: 0 | W137: 0 | X137: 0 | Y137: 2 | Z137: 0 | AA137: 0 | AB137: 0 | AC137: 0 | AD137: 0 | AE137: 0 | AF137: 1 | AG137: 0 | AH137: 0 | AI137: 0 | AJ137: 0 | AL137: 428 | AM137: 35 | AN137: 346 | AO137: 10
A138: 428035625 | B138: BROOKE ROSLINDALE | C138: 0 | D138: 0 | E138: 0 | F138: 1 | G138: 0 | H138: 0 | I138: 0.0375 | K138: 0 | L138: 0 | M138: 0 | N138: 0 | O138: 0 | P138: 0 | Q138: 1 | R138: 1 | T138: 428035625 | U138: BROOKE ROSLINDALE | V138: 0 | W138: 0 | X138: 0 | Y138: 1 | Z138: 0 | AA138: 0 | AB138: 0 | AC138: 0 | AD138: 0 | AE138: 0 | AF138: 0 | AG138: 0 | AH138: 0 | AI138: 0 | AJ138: 0 | AL138: 428 | AM138: 35 | AN138: 625 | AO138: 1
A139: 428035650 | B139: BROOKE ROSLINDALE | C139: =ROUND(V139,0) -> 0 | D139: =ROUND(W139,0) -> 0 | E139: =ROUND(X139,0) -> 0 | F139: =ROUND(Y139,0) -> 1 | G139: =ROUND(Z139,0) -> 0 | H139: =ROUND(AA139,0) -> 0 | I139: =ROUND(0.0375*(SUM(E139:H139)+ROUND(D139*0.5,4)+ROUND(L139*0.5,4)+M139),4)+ROUND((0.0475)*N139,4) -> 0.0375 | K139: =ROUND(AB139,0) -> 0 | L139: =ROUND(AC139,0) -> 0 | M139: =ROUND(AD139,0) -> 0 | N139: =ROUND(AE139,0) -> 0 | O139: =ROUND(AF139,0) -> 0 | P139: =ROUND((AG139+AH139)/2,0)+ROUND(AI139+AJ139,0) -> 0 | Q139: =AO139 -> 1 | R139: =SUM(E139:H139)+M139+N139+ROUND(C139*0.5,0)+ROUND(D139*0.5,0)+ROUND(K139*0.5,0)+ROUND(L139*0.5,0) -> 1 | T139: 428035650 | U139: BROOKE ROSLINDALE | V139: 0 | W139: 0 | X139: 0 | Y139: 1 | Z139: 0 | AA139: 0 | AB139: 0 | AC139: 0 | AD139: 0 | AE139: 0 | AF139: 0 | AG139: 0 | AH139: 0 | AI139: 0 | AJ139: 0 | AL139: 428 | AM139: 35 | AN139: 650 | AO139: 1
A140: 429163030 | B140: KIPP ACADEMY LYNN | C140: 0 | D140: 0 | E140: 0 | F140: 1 | G140: 3 | H140: 2 | I140: 0.225 | K140: 0 | L140: 0 | M140: 0 | N140: 0 | O140: 4 | P140: 2 | Q140: 10 | R140: 6 | T140: 429163030 | U140: KIPP ACADEMY LYNN | V140: 0 | W140: 0 | X140: 0 | Y140: 1 | Z140: 3 | AA140: 2 | AB140: 0 | AC140: 0 | AD140: 0 | AE140: 0 | AF140: 4 | AG140: 0 | AH140: 0 | AI140: 0 | AJ140: 2 | AL140: 429 | AM140: 163 | AN140: 30 | AO140: 10
A141: 429163057 | B141: KIPP ACADEMY LYNN | C141: 0 | D141: 0 | E141: 0 | F141: 0 | G141: 0 | H141: 1 | I141: 0.075 | K141: 0 | L141: 0 | M141: 1 | N141: 0 | O141: 1 | P141: 1 | Q141: 10 | R141: 2 | T141: 429163057 | U141: KIPP ACADEMY LYNN | V141: 0 | W141: 0 | X141: 0 | Y141: 0 | Z141: 0 | AA141: 1 | AB141: 0 | AC141: 0 | AD141: 1 | AE141: 0 | AF141: 1 | AG141: 0 | AH141: 0 | AI141: 0 | AJ141: 1 | AL141: 429 | AM141: 163 | AN141: 57 | AO141: 10
A142: 429163163 | B142: KIPP ACADEMY LYNN | C142: 0 | D142: 0 | E142: 95 | F142: 25 | G142: 280 | H142: 359 | I142: 37.5375 | K142: 0 | L142: 0 | M142: 242 | N142: 0 | O142: 261 | P142: 281 | Q142: 10 | R142: 1001 | T142: 429163163 | U142: KIPP ACADEMY LYNN | V142: 0 | W142: 0 | X142: 95 | Y142: 25 | Z142: 280 | AA142: 359 | AB142: 0 | AC142: 0 | AD142: 242 | AE142: 0 | AF142: 261 | AG142: 0 | AH142: 0 | AI142: 69 | AJ142: 212 | AL142: 429 | AM142: 163 | AN142: 163 | AO142: 10
A143: 429163164 | B143: KIPP ACADEMY LYNN | C143: 0 | D143: 0 | E143: 0 | F143: 0 | G143: 0 | H143: 1 | I143: 0.075 | K143: 0 | L143: 0 | M143: 1 | N143: 0 | O143: 1 | P143: 0 | Q143: 10 | R143: 2 | T143: 429163164 | U143: KIPP ACADEMY LYNN | V143: 0 | W143: 0 | X143: 0 | Y143: 0 | Z143: 0 | AA143: 1 | AB143: 0 | AC143: 0 | AD143: 1 | AE143: 0 | AF143: 1 | AG143: 0 | AH143: 0 | AI143: 0 | AJ143: 0 | AL143: 429 | AM143: 163 | AN143: 164 | AO143: 10
A144: 429163168 | B144: KIPP ACADEMY LYNN | C144: 0 | D144: 0 | E144: 0 | F144: 0 | G144: 1 | H144: 1 | I144: 0.075 | K144: 0 | L144: 0 | M144: 0 | N144: 0 | O144: 0 | P144: 0 | Q144: 1 | R144: 2 | T144: 429163168 | U144: KIPP ACADEMY LYNN | V144: 0 | W144: 0 | X144: 0 | Y144: 0 | Z144: 1 | AA144: 1 | AB144: 0 | AC144: 0 | AD144: 0 | AE144: 0 | AF144: 0 | AG144: 0 | AH144: 0 | AI144: 0 | AJ144: 0 | AL144: 429 | AM144: 163 | AN144: 168 | AO144: 1
A145: 429163176 | B145: KIPP ACADEMY LYNN | C145: 0 | D145: 0 | E145: 0 | F145: 0 | G145: 0 | H145: 1 | I145: 0.0375 | K145: 0 | L145: 0 | M145: 0 | N145: 0 | O145: 0 | P145: 0 | Q145: 1 | R145: 1 | T145: 429163176 | U145: KIPP ACADEMY LYNN | V145: 0 | W145: 0 | X145: 0 | Y145: 0 | Z145: 0 | AA145: 1 | AB145: 0 | AC145: 0 | AD145: 0 | AE145: 0 | AF145: 0 | AG145: 0 | AH145: 0 | AI145: 0 | AJ145: 0 | AL145: 429 | AM145: 163 | AN145: 176 | AO145: 1
A146: 429163229 | B146: KIPP ACADEMY LYNN | C146: 0 | D146: 0 | E146: 0 | F146: 0 | G146: 0 | H146: 5 | I146: 0.1875 | K146: 0 | L146: 0 | M146: 0 | N146: 0 | O146: 0 | P146: 4 | Q146: 10 | R146: 5 | T146: 429163229 | U146: KIPP ACADEMY LYNN | V146: 0 | W146: 0 | X146: 0 | Y146: 0 | Z146: 0 | AA146: 5 | AB146: 0 | AC146: 0 | AD146: 0 | AE146: 0 | AF146: 0 | AG146: 0 | AH146: 0 | AI146: 0 | AJ146: 4 | AL146: 429 | AM146: 163 | AN146: 229 | AO146: 10
A147: 429163248 | B147: KIPP ACADEMY LYNN | C147: 0 | D147: 0 | E147: 0 | F147: 0 | G147: 0 | H147: 1 | I147: 0.0375 | K147: 0 | L147: 0 | M147: 0 | N147: 0 | O147: 0 | P147: 0 | Q147: 1 | R147: 1 | T147: 429163248 | U147: KIPP ACADEMY LYNN | V147: 0 | W147: 0 | X147: 0 | Y147: 0 | Z147: 0 | AA147: 1 | AB147: 0 | AC147: 0 | AD147: 0 | AE147: 0 | AF147: 0 | AG147: 0 | AH147: 0 | AI147: 0 | AJ147: 0 | AL147: 429 | AM147: 163 | AN147: 248 | AO147: 1
A148: 429163258 | B148: KIPP ACADEMY LYNN | C148: 0 | D148: 0 | E148: 0 | F148: 0 | G148: 1 | H148: 6 | I148: 0.3375 | K148: 0 | L148: 0 | M148: 2 | N148: 0 | O148: 2 | P148: 2 | Q148: 9 | R148: 9 | T148: 429163258 | U148: KIPP ACADEMY LYNN | V148: 0 | W148: 0 | X148: 0 | Y148: 0 | Z148: 1 | AA148: 6 | AB148: 0 | AC148: 0 | AD148: 2 | AE148: 0 | AF148: 2 | AG148: 0 | AH148: 0 | AI148: 0 | AJ148: 2 | AL148: 429 | AM148: 163 | AN148: 258 | AO148: 9
A149: 429163262 | B149: KIPP ACADEMY LYNN | C149: 0 | D149: 0 | E149: 0 | F149: 0 | G149: 1 | H149: 2 | I149: 0.15 | K149: 0 | L149: 0 | M149: 1 | N149: 0 | O149: 2 | P149: 1 | Q149: 10 | R149: 4 | T149: 429163262 | U149: KIPP ACADEMY LYNN | V149: 0 | W149: 0 | X149: 0 | Y149: 0 | Z149: 1 | AA149: 2 | AB149: 0 | AC149: 0 | AD149: 1 | AE149: 0 | AF149: 2 | AG149: 0 | AH149: 0 | AI149: 0 | AJ149: 1 | AL149: 429 | AM149: 163 | AN149: 262 | AO149: 10
A150: 429163291 | B150: KIPP ACADEMY LYNN | C150: 0 | D150: 0 | E150: 0 | F150: 0 | G150: 1 | H150: 3 | I150: 0.15 | K150: 0 | L150: 0 | M150: 0 | N150: 0 | O150: 1 | P150: 2 | Q150: 10 | R150: 4 | T150: 429163291 | U150: KIPP ACADEMY LYNN | V150: 0 | W150: 0 | X150: 0 | Y150: 0 | Z150: 1 | AA150: 3 | AB150: 0 | AC150: 0 | AD150: 0 | AE150: 0 | AF150: 1 | AG150: 0 | AH150: 0 | AI150: 0 | AJ150: 2 | AL150: 429 | AM150: 163 | AN150: 291 | AO150: 10
A151: 430170009 | B151: ADVANCED MATH AND SCIENCE ACADEMY | C151: 0 | D151: 0 | E151: 0 | F151: 0 | G151: 1 | H151: 0 | I151: 0.0375 | K151: 0 | L151: 0 | M151: 0 | N151: 0 | O151: 0 | P151: 0 | Q151: 1 | R151: 1 | T151: 430170009 | U151: ADVANCED MATH AND SCIENCE ACADEMY | V151: 0 | W151: 0 | X151: 0 | Y151: 0 | Z151: 1 | AA151: 0 | AB151: 0 | AC151: 0 | AD151: 0 | AE151: 0 | AF151: 0 | AG151: 0 | AH151: 0 | AI151: 0 | AJ151: 0 | AL151: 430 | AM151: 170 | AN151: 9 | AO151: 1
A152: 430170014 | B152: ADVANCED MATH AND SCIENCE ACADEMY | C152: 0 | D152: 0 | E152: 0 | F152: 0 | G152: 8 | H152: 23 | I152: 1.1625 | K152: 0 | L152: 0 | M152: 0 | N152: 0 | O152: 0 | P152: 2 | Q152: 1 | R152: 31 | T152: 430170014 | U152: ADVANCED MATH AND SCIENCE ACADEMY | V152: 0 | W152: 0 | X152: 0 | Y152: 0 | Z152: 8 | AA152: 23 | AB152: 0 | AC152: 0 | AD152: 0 | AE152: 0 | AF152: 0 | AG152: 0 | AH152: 0 | AI152: 0 | AJ152: 2 | AL152: 430 | AM152: 170 | AN152: 14 | AO152: 1
A153: 430170017 | B153: ADVANCED MATH AND SCIENCE ACADEMY | C153: 0 | D153: 0 | E153: 0 | F153: 0 | G153: 0 | H153: 1 | I153: 0.0375 | K153: 0 | L153: 0 | M153: 0 | N153: 0 | O153: 0 | P153: 0 | Q153: 1 | R153: 1 | T153: 430170017 | U153: ADVANCED MATH AND SCIENCE ACADEMY | V153: 0 | W153: 0 | X153: 0 | Y153: 0 | Z153: 0 | AA153: 1 | AB153: 0 | AC153: 0 | AD153: 0 | AE153: 0 | AF153: 0 | AG153: 0 | AH153: 0 | AI153: 0 | AJ153: 0 | AL153: 430 | AM153: 170 | AN153: 17 | AO153: 1
A154: 430170031 | B154: ADVANCED MATH AND SCIENCE ACADEMY | C154: 0 | D154: 0 | E154: 0 | F154: 0 | G154: 0 | H154: 2 | I154: 0.075 | K154: 0 | L154: 0 | M154: 0 | N154: 0 | O154: 0 | P154: 0 | Q154: 1 | R154: 2 | T154: 430170031 | U154: ADVANCED MATH AND SCIENCE ACADEMY | V154: 0 | W154: 0 | X154: 0 | Y154: 0 | Z154: 0 | AA154: 2 | AB154: 0 | AC154: 0 | AD154: 0 | AE154: 0 | AF154: 0 | AG154: 0 | AH154: 0 | AI154: 0 | AJ154: 0 | AL154: 430 | AM154: 170 | AN154: 31 | AO154: 1
A155: 430170056 | B155: ADVANCED MATH AND SCIENCE ACADEMY | C155: 0 | D155: 0 | E155: 0 | F155: 0 | G155: 0 | H155: 1 | I155: 0.0375 | K155: 0 | L155: 0 | M155: 0 | N155: 0 | O155: 0 | P155: 0 | Q155: 1 | R155: 1 | T155: 430170056 | U155: ADVANCED MATH AND SCIENCE ACADEMY | V155: 0 | W155: 0 | X155: 0 | Y155: 0 | Z155: 0 | AA155: 1 | AB155: 0 | AC155: 0 | AD155: 0 | AE155: 0 | AF155: 0 | AG155: 0 | AH155: 0 | AI155: 0 | AJ155: 0 | AL155: 430 | AM155: 170 | AN155: 56 | AO155: 1
A156: 430170064 | B156: ADVANCED MATH AND SCIENCE ACADEMY | C156: 0 | D156: 0 | E156: 0 | F156: 0 | G156: 26 | H156: 20 | I156: 1.725 | K156: 0 | L156: 0 | M156: 0 | N156: 0 | O156: 2 | P156: 0 | Q156: 1 | R156: 46 | T156: 430170064 | U156: ADVANCED MATH AND SCIENCE ACADEMY | V156: 0 | W156: 0 | X156: 0 | Y156: 0 | Z156: 26 | AA156: 20 | AB156: 0 | AC156: 0 | AD156: 0 | AE156: 0 | AF156: 2 | AG156: 0 | AH156: 0 | AI156: 0 | AJ156: 0 | AL156: 430 | AM156: 170 | AN156: 64 | AO156: 1
A157: 430170100 | B157: ADVANCED MATH AND SCIENCE ACADEMY | C157: 0 | D157: 0 | E157: 0 | F157: 0 | G157: 8 | H157: 33 | I157: 1.5375 | K157: 0 | L157: 0 | M157: 0 | N157: 0 | O157: 0 | P157: 1 | Q157: 1 | R157: 41 | T157: 430170100 | U157: ADVANCED MATH AND SCIENCE ACADEMY | V157: 0 | W157: 0 | X157: 0 | Y157: 0 | Z157: 8 | AA157: 33 | AB157: 0 | AC157: 0 | AD157: 0 | AE157: 0 | AF157: 0 | AG157: 0 | AH157: 0 | AI157: 0 | AJ157: 1 | AL157: 430 | AM157: 170 | AN157: 100 | AO157: 1
A158: 430170101 | B158: ADVANCED MATH AND SCIENCE ACADEMY | C158: 0 | D158: 0 | E158: 0 | F158: 0 | G158: 1 | H158: 0 | I158: 0.0375 | K158: 0 | L158: 0 | M158: 0 | N158: 0 | O158: 0 | P158: 0 | Q158: 1 | R158: 1 | T158: 430170101 | U158: ADVANCED MATH AND SCIENCE ACADEMY | V158: 0 | W158: 0 | X158: 0 | Y158: 0 | Z158: 1 | AA158: 0 | AB158: 0 | AC158: 0 | AD158: 0 | AE158: 0 | AF158: 0 | AG158: 0 | AH158: 0 | AI158: 0 | AJ158: 0 | AL158: 430 | AM158: 170 | AN158: 101 | AO158: 1
A159: 430170110 | B159: ADVANCED MATH AND SCIENCE ACADEMY | C159: 0 | D159: 0 | E159: 0 | F159: 0 | G159: 14 | H159: 28 | I159: 1.575 | K159: 0 | L159: 0 | M159: 0 | N159: 0 | O159: 1 | P159: 2 | Q159: 1 | R159: 42 | T159: 430170110 | U159: ADVANCED MATH AND SCIENCE ACADEMY | V159: 0 | W159: 0 | X159: 0 | Y159: 0 | Z159: 14 | AA159: 28 | AB159: 0 | AC159: 0 | AD159: 0 | AE159: 0 | AF159: 1 | AG159: 0 | AH159: 0 | AI159: 0 | AJ159: 2 | AL159: 430 | AM159: 170 | AN159: 110 | AO159: 1
A160: 430170125 | B160: ADVANCED MATH AND SCIENCE ACADEMY | C160: 0 | D160: 0 | E160: 0 | F160: 0 | G160: 0 | H160: 3 | I160: 0.1125 | K160: 0 | L160: 0 | M160: 0 | N160: 0 | O160: 0 | P160: 0 | Q160: 1 | R160: 3 | T160: 430170125 | U160: ADVANCED MATH AND SCIENCE ACADEMY | V160: 0 | W160: 0 | X160: 0 | Y160: 0 | Z160: 0 | AA160: 3 | AB160: 0 | AC160: 0 | AD160: 0 | AE160: 0 | AF160: 0 | AG160: 0 | AH160: 0 | AI160: 0 | AJ160: 0 | AL160: 430 | AM160: 170 | AN160: 125 | AO160: 1
A161: 430170136 | B161: ADVANCED MATH AND SCIENCE ACADEMY | C161: 0 | D161: 0 | E161: 0 | F161: 0 | G161: 0 | H161: 2 | I161: 0.075 | K161: 0 | L161: 0 | M161: 0 | N161: 0 | O161: 0 | P161: 0 | Q161: 1 | R161: 2 | T161: 430170136 | U161: ADVANCED MATH AND SCIENCE ACADEMY | V161: 0 | W161: 0 | X161: 0 | Y161: 0 | Z161: 0 | AA161: 2 | AB161: 0 | AC161: 0 | AD161: 0 | AE161: 0 | AF161: 0 | AG161: 0 | AH161: 0 | AI161: 0 | AJ161: 0 | AL161: 430 | AM161: 170 | AN161: 136 | AO161: 1
A162: 430170138 | B162: ADVANCED MATH AND SCIENCE ACADEMY | C162: 0 | D162: 0 | E162: 0 | F162: 0 | G162: 0 | H162: 1 | I162: 0.0375 | K162: 0 | L162: 0 | M162: 0 | N162: 0 | O162: 0 | P162: 0 | Q162: 1 | R162: 1 | T162: 430170138 | U162: ADVANCED MATH AND SCIENCE ACADEMY | V162: 0 | W162: 0 | X162: 0 | Y162: 0 | Z162: 0 | AA162: 1 | AB162: 0 | AC162: 0 | AD162: 0 | AE162: 0 | AF162: 0 | AG162: 0 | AH162: 0 | AI162: 0 | AJ162: 0 | AL162: 430 | AM162: 170 | AN162: 138 | AO162: 1
A163: 430170139 | B163: ADVANCED MATH AND SCIENCE ACADEMY | C163: 0 | D163: 0 | E163: 0 | F163: 0 | G163: 5 | H163: 8 | I163: 0.4875 | K163: 0 | L163: 0 | M163: 0 | N163: 0 | O163: 0 | P163: 1 | Q163: 1 | R163: 13 | T163: 430170139 | U163: ADVANCED MATH AND SCIENCE ACADEMY | V163: 0 | W163: 0 | X163: 0 | Y163: 0 | Z163: 5 | AA163: 8 | AB163: 0 | AC163: 0 | AD163: 0 | AE163: 0 | AF163: 0 | AG163: 0 | AH163: 0 | AI163: 0 | AJ163: 1 | AL163: 430 | AM163: 170 | AN163: 139 | AO163: 1
A164: 430170141 | B164: ADVANCED MATH AND SCIENCE ACADEMY | C164: 0 | D164: 0 | E164: 0 | F164: 0 | G164: 39 | H164: 44 | I164: 3.15 | K164: 0 | L164: 0 | M164: 1 | N164: 0 | O164: 2 | P164: 5 | Q164: 2 | R164: 84 | T164: 430170141 | U164: ADVANCED MATH AND SCIENCE ACADEMY | V164: 0 | W164: 0 | X164: 0 | Y164: 0 | Z164: 39 | AA164: 44 | AB164: 0 | AC164: 0 | AD164: 1 | AE164: 0 | AF164: 2 | AG164: 0 | AH164: 0 | AI164: 0 | AJ164: 5 | AL164: 430 | AM164: 170 | AN164: 141 | AO164: 2
A165: 430170153 | B165: ADVANCED MATH AND SCIENCE ACADEMY | C165: 0 | D165: 0 | E165: 0 | F165: 0 | G165: 0 | H165: 1 | I165: 0.0375 | K165: 0 | L165: 0 | M165: 0 | N165: 0 | O165: 0 | P165: 0 | Q165: 1 | R165: 1 | T165: 430170153 | U165: ADVANCED MATH AND SCIENCE ACADEMY | V165: 0 | W165: 0 | X165: 0 | Y165: 0 | Z165: 0 | AA165: 1 | AB165: 0 | AC165: 0 | AD165: 0 | AE165: 0 | AF165: 0 | AG165: 0 | AH165: 0 | AI165: 0 | AJ165: 0 | AL165: 430 | AM165: 170 | AN165: 153 | AO165: 1
A166: 430170158 | B166: ADVANCED MATH AND SCIENCE ACADEMY | C166: 0 | D166: 0 | E166: 0 | F166: 0 | G166: 2 | H166: 3 | I166: 0.1875 | K166: 0 | L166: 0 | M166: 0 | N166: 0 | O166: 0 | P166: 0 | Q166: 1 | R166: 5 | T166: 430170158 | U166: ADVANCED MATH AND SCIENCE ACADEMY | V166: 0 | W166: 0 | X166: 0 | Y166: 0 | Z166: 2 | AA166: 3 | AB166: 0 | AC166: 0 | AD166: 0 | AE166: 0 | AF166: 0 | AG166: 0 | AH166: 0 | AI166: 0 | AJ166: 0 | AL166: 430 | AM166: 170 | AN166: 158 | AO166: 1
A167: 430170170 | B167: ADVANCED MATH AND SCIENCE ACADEMY | C167: 0 | D167: 0 | E167: 0 | F167: 0 | G167: 261 | H167: 213 | I167: 17.775 | K167: 0 | L167: 0 | M167: 0 | N167: 0 | O167: 29 | P167: 23 | Q167: 2 | R167: 474 | T167: 430170170 | U167: ADVANCED MATH AND SCIENCE ACADEMY | V167: 0 | W167: 0 | X167: 0 | Y167: 0 | Z167: 261 | AA167: 213 | AB167: 0 | AC167: 0 | AD167: 0 | AE167: 0 | AF167: 29 | AG167: 0 | AH167: 0 | AI167: 0 | AJ167: 23 | AL167: 430 | AM167: 170 | AN167: 170 | AO167: 2
A168: 430170174 | B168: ADVANCED MATH AND SCIENCE ACADEMY | C168: 0 | D168: 0 | E168: 0 | F168: 0 | G168: 17 | H168: 5 | I168: 0.825 | K168: 0 | L168: 0 | M168: 0 | N168: 0 | O168: 0 | P168: 1 | Q168: 1 | R168: 22 | T168: 430170174 | U168: ADVANCED MATH AND SCIENCE ACADEMY | V168: 0 | W168: 0 | X168: 0 | Y168: 0 | Z168: 17 | AA168: 5 | AB168: 0 | AC168: 0 | AD168: 0 | AE168: 0 | AF168: 0 | AG168: 0 | AH168: 0 | AI168: 0 | AJ168: 1 | AL168: 430 | AM168: 170 | AN168: 174 | AO168: 1
A169: 430170177 | B169: ADVANCED MATH AND SCIENCE ACADEMY | C169: 0 | D169: 0 | E169: 0 | F169: 0 | G169: 2 | H169: 3 | I169: 0.1875 | K169: 0 | L169: 0 | M169: 0 | N169: 0 | O169: 0 | P169: 0 | Q169: 1 | R169: 5 | T169: 430170177 | U169: ADVANCED MATH AND SCIENCE ACADEMY | V169: 0 | W169: 0 | X169: 0 | Y169: 0 | Z169: 2 | AA169: 3 | AB169: 0 | AC169: 0 | AD169: 0 | AE169: 0 | AF169: 0 | AG169: 0 | AH169: 0 | AI169: 0 | AJ169: 0 | AL169: 430 | AM169: 170 | AN169: 177 | AO169: 1
A170: 430170198 | B170: ADVANCED MATH AND SCIENCE ACADEMY | C170: 0 | D170: 0 | E170: 0 | F170: 0 | G170: 1 | H170: 6 | I170: 0.2625 | K170: 0 | L170: 0 | M170: 0 | N170: 0 | O170: 0 | P170: 0 | Q170: 1 | R170: 7 | T170: 430170198 | U170: ADVANCED MATH AND SCIENCE ACADEMY | V170: 0 | W170: 0 | X170: 0 | Y170: 0 | Z170: 1 | AA170: 6 | AB170: 0 | AC170: 0 | AD170: 0 | AE170: 0 | AF170: 0 | AG170: 0 | AH170: 0 | AI170: 0 | AJ170: 0 | AL170: 430 | AM170: 170 | AN170: 198 | AO170: 1
A171: 430170207 | B171: ADVANCED MATH AND SCIENCE ACADEMY | C171: 0 | D171: 0 | E171: 0 | F171: 0 | G171: 0 | H171: 2 | I171: 0.075 | K171: 0 | L171: 0 | M171: 0 | N171: 0 | O171: 0 | P171: 0 | Q171: 1 | R171: 2 | T171: 430170207 | U171: ADVANCED MATH AND SCIENCE ACADEMY | V171: 0 | W171: 0 | X171: 0 | Y171: 0 | Z171: 0 | AA171: 2 | AB171: 0 | AC171: 0 | AD171: 0 | AE171: 0 | AF171: 0 | AG171: 0 | AH171: 0 | AI171: 0 | AJ171: 0 | AL171: 430 | AM171: 170 | AN171: 207 | AO171: 1
A172: 430170213 | B172: ADVANCED MATH AND SCIENCE ACADEMY | C172: 0 | D172: 0 | E172: 0 | F172: 0 | G172: 4 | H172: 0 | I172: 0.15 | K172: 0 | L172: 0 | M172: 0 | N172: 0 | O172: 0 | P172: 0 | Q172: 1 | R172: 4 | T172: 430170213 | U172: ADVANCED MATH AND SCIENCE ACADEMY | V172: 0 | W172: 0 | X172: 0 | Y172: 0 | Z172: 4 | AA172: 0 | AB172: 0 | AC172: 0 | AD172: 0 | AE172: 0 | AF172: 0 | AG172: 0 | AH172: 0 | AI172: 0 | AJ172: 0 | AL172: 430 | AM172: 170 | AN172: 213 | AO172: 1
A173: 430170271 | B173: ADVANCED MATH AND SCIENCE ACADEMY | C173: 0 | D173: 0 | E173: 0 | F173: 0 | G173: 15 | H173: 48 | I173: 2.3625 | K173: 0 | L173: 0 | M173: 0 | N173: 0 | O173: 2 | P173: 2 | Q173: 1 | R173: 63 | T173: 430170271 | U173: ADVANCED MATH AND SCIENCE ACADEMY | V173: 0 | W173: 0 | X173: 0 | Y173: 0 | Z173: 15 | AA173: 48 | AB173: 0 | AC173: 0 | AD173: 0 | AE173: 0 | AF173: 2 | AG173: 0 | AH173: 0 | AI173: 0 | AJ173: 2 | AL173: 430 | AM173: 170 | AN173: 271 | AO173: 1
A174: 430170304 | B174: ADVANCED MATH AND SCIENCE ACADEMY | C174: 0 | D174: 0 | E174: 0 | F174: 0 | G174: 0 | H174: 1 | I174: 0.0375 | K174: 0 | L174: 0 | M174: 0 | N174: 0 | O174: 0 | P174: 0 | Q174: 1 | R174: 1 | T174: 430170304 | U174: ADVANCED MATH AND SCIENCE ACADEMY | V174: 0 | W174: 0 | X174: 0 | Y174: 0 | Z174: 0 | AA174: 1 | AB174: 0 | AC174: 0 | AD174: 0 | AE174: 0 | AF174: 0 | AG174: 0 | AH174: 0 | AI174: 0 | AJ174: 0 | AL174: 430 | AM174: 170 | AN174: 304 | AO174: 1
A175: 430170308 | B175: ADVANCED MATH AND SCIENCE ACADEMY | C175: 0 | D175: 0 | E175: 0 | F175: 0 | G175: 1 | H175: 2 | I175: 0.1125 | K175: 0 | L175: 0 | M175: 0 | N175: 0 | O175: 0 | P175: 0 | Q175: 1 | R175: 3 | T175: 430170308 | U175: ADVANCED MATH AND SCIENCE ACADEMY | V175: 0 | W175: 0 | X175: 0 | Y175: 0 | Z175: 1 | AA175: 2 | AB175: 0 | AC175: 0 | AD175: 0 | AE175: 0 | AF175: 0 | AG175: 0 | AH175: 0 | AI175: 0 | AJ175: 0 | AL175: 430 | AM175: 170 | AN175: 308 | AO175: 1
A176: 430170314 | B176: ADVANCED MATH AND SCIENCE ACADEMY | C176: 0 | D176: 0 | E176: 0 | F176: 0 | G176: 1 | H176: 1 | I176: 0.075 | K176: 0 | L176: 0 | M176: 0 | N176: 0 | O176: 0 | P176: 0 | Q176: 1 | R176: 2 | T176: 430170314 | U176: ADVANCED MATH AND SCIENCE ACADEMY | V176: 0 | W176: 0 | X176: 0 | Y176: 0 | Z176: 1 | AA176: 1 | AB176: 0 | AC176: 0 | AD176: 0 | AE176: 0 | AF176: 0 | AG176: 0 | AH176: 0 | AI176: 0 | AJ176: 0 | AL176: 430 | AM176: 170 | AN176: 314 | AO176: 1
A177: 430170317 | B177: ADVANCED MATH AND SCIENCE ACADEMY | C177: 0 | D177: 0 | E177: 0 | F177: 0 | G177: 0 | H177: 1 | I177: 0.0375 | K177: 0 | L177: 0 | M177: 0 | N177: 0 | O177: 0 | P177: 0 | Q177: 1 | R177: 1 | T177: 430170317 | U177: ADVANCED MATH AND SCIENCE ACADEMY | V177: 0 | W177: 0 | X177: 0 | Y177: 0 | Z177: 0 | AA177: 1 | AB177: 0 | AC177: 0 | AD177: 0 | AE177: 0 | AF177: 0 | AG177: 0 | AH177: 0 | AI177: 0 | AJ177: 0 | AL177: 430 | AM177: 170 | AN177: 317 | AO177: 1
A178: 430170321 | B178: ADVANCED MATH AND SCIENCE ACADEMY | C178: 0 | D178: 0 | E178: 0 | F178: 0 | G178: 2 | H178: 3 | I178: 0.1875 | K178: 0 | L178: 0 | M178: 0 | N178: 0 | O178: 0 | P178: 0 | Q178: 1 | R178: 5 | T178: 430170321 | U178: ADVANCED MATH AND SCIENCE ACADEMY | V178: 0 | W178: 0 | X178: 0 | Y178: 0 | Z178: 2 | AA178: 3 | AB178: 0 | AC178: 0 | AD178: 0 | AE178: 0 | AF178: 0 | AG178: 0 | AH178: 0 | AI178: 0 | AJ178: 0 | AL178: 430 | AM178: 170 | AN178: 321 | AO178: 1
A179: 430170322 | B179: ADVANCED MATH AND SCIENCE ACADEMY | C179: 0 | D179: 0 | E179: 0 | F179: 0 | G179: 7 | H179: 8 | I179: 0.5625 | K179: 0 | L179: 0 | M179: 0 | N179: 0 | O179: 0 | P179: 0 | Q179: 1 | R179: 15 | T179: 430170322 | U179: ADVANCED MATH AND SCIENCE ACADEMY | V179: 0 | W179: 0 | X179: 0 | Y179: 0 | Z179: 7 | AA179: 8 | AB179: 0 | AC179: 0 | AD179: 0 | AE179: 0 | AF179: 0 | AG179: 0 | AH179: 0 | AI179: 0 | AJ179: 0 | AL179: 430 | AM179: 170 | AN179: 322 | AO179: 1
A180: 430170326 | B180: ADVANCED MATH AND SCIENCE ACADEMY | C180: 0 | D180: 0 | E180: 0 | F180: 0 | G180: 1 | H180: 2 | I180: 0.1125 | K180: 0 | L180: 0 | M180: 0 | N180: 0 | O180: 0 | P180: 0 | Q180: 1 | R180: 3 | T180: 430170326 | U180: ADVANCED MATH AND SCIENCE ACADEMY | V180: 0 | W180: 0 | X180: 0 | Y180: 0 | Z180: 1 | AA180: 2 | AB180: 0 | AC180: 0 | AD180: 0 | AE180: 0 | AF180: 0 | AG180: 0 | AH180: 0 | AI180: 0 | AJ180: 0 | AL180: 430 | AM180: 170 | AN180: 326 | AO180: 1
A181: 430170348 | B181: ADVANCED MATH AND SCIENCE ACADEMY | C181: 0 | D181: 0 | E181: 0 | F181: 0 | G181: 7 | H181: 31 | I181: 1.425 | K181: 0 | L181: 0 | M181: 0 | N181: 0 | O181: 1 | P181: 10 | Q181: 7 | R181: 38 | T181: 430170348 | U181: ADVANCED MATH AND SCIENCE ACADEMY | V181: 0 | W181: 0 | X181: 0 | Y181: 0 | Z181: 7 | AA181: 31 | AB181: 0 | AC181: 0 | AD181: 0 | AE181: 0 | AF181: 1 | AG181: 0 | AH181: 0 | AI181: 0 | AJ181: 10 | AL181: 430 | AM181: 170 | AN181: 348 | AO181: 7
A182: 430170616 | B182: ADVANCED MATH AND SCIENCE ACADEMY | C182: 0 | D182: 0 | E182: 0 | F182: 0 | G182: 0 | H182: 3 | I182: 0.1125 | K182: 0 | L182: 0 | M182: 0 | N182: 0 | O182: 0 | P182: 0 | Q182: 1 | R182: 3 | T182: 430170616 | U182: ADVANCED MATH AND SCIENCE ACADEMY | V182: 0 | W182: 0 | X182: 0 | Y182: 0 | Z182: 0 | AA182: 3 | AB182: 0 | AC182: 0 | AD182: 0 | AE182: 0 | AF182: 0 | AG182: 0 | AH182: 0 | AI182: 0 | AJ182: 0 | AL182: 430 | AM182: 170 | AN182: 616 | AO182: 1
A183: 430170620 | B183: ADVANCED MATH AND SCIENCE ACADEMY | C183: 0 | D183: 0 | E183: 0 | F183: 0 | G183: 1 | H183: 15 | I183: 0.6 | K183: 0 | L183: 0 | M183: 0 | N183: 0 | O183: 0 | P183: 0 | Q183: 1 | R183: 16 | T183: 430170620 | U183: ADVANCED MATH AND SCIENCE ACADEMY | V183: 0 | W183: 0 | X183: 0 | Y183: 0 | Z183: 1 | AA183: 15 | AB183: 0 | AC183: 0 | AD183: 0 | AE183: 0 | AF183: 0 | AG183: 0 | AH183: 0 | AI183: 0 | AJ183: 0 | AL183: 430 | AM183: 170 | AN183: 620 | AO183: 1
A184: 430170695 | B184: ADVANCED MATH AND SCIENCE ACADEMY | C184: 0 | D184: 0 | E184: 0 | F184: 0 | G184: 0 | H184: 1 | I184: 0.0375 | K184: 0 | L184: 0 | M184: 0 | N184: 0 | O184: 0 | P184: 0 | Q184: 1 | R184: 1 | T184: 430170695 | U184: ADVANCED MATH AND SCIENCE ACADEMY | V184: 0 | W184: 0 | X184: 0 | Y184: 0 | Z184: 0 | AA184: 1 | AB184: 0 | AC184: 0 | AD184: 0 | AE184: 0 | AF184: 0 | AG184: 0 | AH184: 0 | AI184: 0 | AJ184: 0 | AL184: 430 | AM184: 170 | AN184: 695 | AO184: 1
A185: 430170710 | B185: ADVANCED MATH AND SCIENCE ACADEMY | C185: 0 | D185: 0 | E185: 0 | F185: 0 | G185: 2 | H185: 8 | I185: 0.375 | K185: 0 | L185: 0 | M185: 0 | N185: 0 | O185: 0 | P185: 1 | Q185: 2 | R185: 10 | T185: 430170710 | U185: ADVANCED MATH AND SCIENCE ACADEMY | V185: 0 | W185: 0 | X185: 0 | Y185: 0 | Z185: 2 | AA185: 8 | AB185: 0 | AC185: 0 | AD185: 0 | AE185: 0 | AF185: 0 | AG185: 0 | AH185: 0 | AI185: 0 | AJ185: 1 | AL185: 430 | AM185: 170 | AN185: 710 | AO185: 2
A186: 430170725 | B186: ADVANCED MATH AND SCIENCE ACADEMY | C186: 0 | D186: 0 | E186: 0 | F186: 0 | G186: 0 | H186: 7 | I186: 0.2625 | K186: 0 | L186: 0 | M186: 0 | N186: 0 | O186: 0 | P186: 0 | Q186: 1 | R186: 7 | T186: 430170725 | U186: ADVANCED MATH AND SCIENCE ACADEMY | V186: 0 | W186: 0 | X186: 0 | Y186: 0 | Z186: 0 | AA186: 7 | AB186: 0 | AC186: 0 | AD186: 0 | AE186: 0 | AF186: 0 | AG186: 0 | AH186: 0 | AI186: 0 | AJ186: 0 | AL186: 430 | AM186: 170 | AN186: 725 | AO186: 1
A187: 430170730 | B187: ADVANCED MATH AND SCIENCE ACADEMY | C187: 0 | D187: 0 | E187: 0 | F187: 0 | G187: 0 | H187: 27 | I187: 1.0125 | K187: 0 | L187: 0 | M187: 0 | N187: 0 | O187: 0 | P187: 0 | Q187: 1 | R187: 27 | T187: 430170730 | U187: ADVANCED MATH AND SCIENCE ACADEMY | V187: 0 | W187: 0 | X187: 0 | Y187: 0 | Z187: 0 | AA187: 27 | AB187: 0 | AC187: 0 | AD187: 0 | AE187: 0 | AF187: 0 | AG187: 0 | AH187: 0 | AI187: 0 | AJ187: 0 | AL187: 430 | AM187: 170 | AN187: 730 | AO187: 1
A188: 430170735 | B188: ADVANCED MATH AND SCIENCE ACADEMY | C188: 0 | D188: 0 | E188: 0 | F188: 0 | G188: 1 | H188: 2 | I188: 0.1125 | K188: 0 | L188: 0 | M188: 0 | N188: 0 | O188: 0 | P188: 0 | Q188: 1 | R188: 3 | T188: 430170735 | U188: ADVANCED MATH AND SCIENCE ACADEMY | V188: 0 | W188: 0 | X188: 0 | Y188: 0 | Z188: 1 | AA188: 2 | AB188: 0 | AC188: 0 | AD188: 0 | AE188: 0 | AF188: 0 | AG188: 0 | AH188: 0 | AI188: 0 | AJ188: 0 | AL188: 430 | AM188: 170 | AN188: 735 | AO188: 1
A189: 430170775 | B189: ADVANCED MATH AND SCIENCE ACADEMY | C189: 0 | D189: 0 | E189: 0 | F189: 0 | G189: 0 | H189: 2 | I189: 0.075 | K189: 0 | L189: 0 | M189: 0 | N189: 0 | O189: 0 | P189: 0 | Q189: 1 | R189: 2 | T189: 430170775 | U189: ADVANCED MATH AND SCIENCE ACADEMY | V189: 0 | W189: 0 | X189: 0 | Y189: 0 | Z189: 0 | AA189: 2 | AB189: 0 | AC189: 0 | AD189: 0 | AE189: 0 | AF189: 0 | AG189: 0 | AH189: 0 | AI189: 0 | AJ189: 0 | AL189: 430 | AM189: 170 | AN189: 775 | AO189: 1
A190: 431149128 | B190: COMMUNITY DAY - R. KINGMAN WEBSTER | C190: 0 | D190: 0 | E190: 0 | F190: 1 | G190: 0 | H190: 0 | I190: 0.0375 | K190: 0 | L190: 0 | M190: 0 | N190: 0 | O190: 0 | P190: 0 | Q190: 1 | R190: 1 | T190: 431149128 | U190: COMMUNITY DAY - R. KINGMAN WEBSTER | V190: 0 | W190: 0 | X190: 0 | Y190: 1 | Z190: 0 | AA190: 0 | AB190: 0 | AC190: 0 | AD190: 0 | AE190: 0 | AF190: 0 | AG190: 0 | AH190: 0 | AI190: 0 | AJ190: 0 | AL190: 431 | AM190: 149 | AN190: 128 | AO190: 1
A191: 431149149 | B191: COMMUNITY DAY - R. KINGMAN WEBSTER | C191: 39 | D191: 0 | E191: 21 | F191: 72 | G191: 0 | H191: 0 | I191: 7.1625 | K191: 2 | L191: 0 | M191: 98 | N191: 0 | O191: 90 | P191: 40 | Q191: 10 | R191: 212 | T191: 431149149 | U191: COMMUNITY DAY - R. KINGMAN WEBSTER | V191: 39 | W191: 0 | X191: 21 | Y191: 72 | Z191: 0 | AA191: 0 | AB191: 2 | AC191: 0 | AD191: 98 | AE191: 0 | AF191: 90 | AG191: 22 | AH191: 0 | AI191: 29 | AJ191: 0 | AL191: 431 | AM191: 149 | AN191: 149 | AO191: 10
A192: 431149181 | B192: COMMUNITY DAY - R. KINGMAN WEBSTER | C192: 1 | D192: 0 | E192: 3 | F192: 2 | G192: 0 | H192: 0 | I192: 0.225 | K192: 0 | L192: 0 | M192: 1 | N192: 0 | O192: 0 | P192: 2 | Q192: 7 | R192: 7 | T192: 431149181 | U192: COMMUNITY DAY - R. KINGMAN WEBSTER | V192: 1 | W192: 0 | X192: 3 | Y192: 2 | Z192: 0 | AA192: 0 | AB192: 0 | AC192: 0 | AD192: 1 | AE192: 0 | AF192: 0 | AG192: 1 | AH192: 0 | AI192: 1 | AJ192: 0 | AL192: 431 | AM192: 149 | AN192: 181 | AO192: 7
A193: 432712020 | B193: CAPE COD LIGHTHOUSE | C193: 0 | D193: 0 | E193: 0 | F193: 0 | G193: 63 | H193: 0 | I193: 2.3625 | K193: 0 | L193: 0 | M193: 0 | N193: 0 | O193: 7 | P193: 0 | Q193: 2 | R193: 63 | T193: 432712020 | U193: CAPE COD LIGHTHOUSE | V193: 0 | W193: 0 | X193: 0 | Y193: 0 | Z193: 63 | AA193: 0 | AB193: 0 | AC193: 0 | AD193: 0 | AE193: 0 | AF193: 7 | AG193: 0 | AH193: 0 | AI193: 0 | AJ193: 0 | AL193: 432 | AM193: 712 | AN193: 20 | AO193: 2
A194: 432712172 | B194: CAPE COD LIGHTHOUSE | C194: 0 | D194: 0 | E194: 0 | F194: 0 | G194: 1 | H194: 0 | I194: 0.0375 | K194: 0 | L194: 0 | M194: 0 | N194: 0 | O194: 0 | P194: 0 | Q194: 1 | R194: 1 | T194: 432712172 | U194: CAPE COD LIGHTHOUSE | V194: 0 | W194: 0 | X194: 0 | Y194: 0 | Z194: 1 | AA194: 0 | AB194: 0 | AC194: 0 | AD194: 0 | AE194: 0 | AF194: 0 | AG194: 0 | AH194: 0 | AI194: 0 | AJ194: 0 | AL194: 432 | AM194: 712 | AN194: 172 | AO194: 1
A195: 432712261 | B195: CAPE COD LIGHTHOUSE | C195: 0 | D195: 0 | E195: 0 | F195: 0 | G195: 12 | H195: 0 | I195: 0.45 | K195: 0 | L195: 0 | M195: 0 | N195: 0 | O195: 2 | P195: 0 | Q195: 4 | R195: 12 | T195: 432712261 | U195: CAPE COD LIGHTHOUSE | V195: 0 | W195: 0 | X195: 0 | Y195: 0 | Z195: 12 | AA195: 0 | AB195: 0 | AC195: 0 | AD195: 0 | AE195: 0 | AF195: 2 | AG195: 0 | AH195: 0 | AI195: 0 | AJ195: 0 | AL195: 432 | AM195: 712 | AN195: 261 | AO195: 4
A196: 432712300 | B196: CAPE COD LIGHTHOUSE | C196: 0 | D196: 0 | E196: 0 | F196: 0 | G196: 4 | H196: 0 | I196: 0.15 | K196: 0 | L196: 0 | M196: 0 | N196: 0 | O196: 2 | P196: 0 | Q196: 10 | R196: 4 | T196: 432712300 | U196: CAPE COD LIGHTHOUSE | V196: 0 | W196: 0 | X196: 0 | Y196: 0 | Z196: 4 | AA196: 0 | AB196: 0 | AC196: 0 | AD196: 0 | AE196: 0 | AF196: 2 | AG196: 0 | AH196: 0 | AI196: 0 | AJ196: 0 | AL196: 432 | AM196: 712 | AN196: 300 | AO196: 10
A197: 432712645 | B197: CAPE COD LIGHTHOUSE | C197: 0 | D197: 0 | E197: 0 | F197: 0 | G197: 53 | H197: 0 | I197: 1.9875 | K197: 0 | L197: 0 | M197: 0 | N197: 0 | O197: 15 | P197: 0 | Q197: 7 | R197: 53 | T197: 432712645 | U197: CAPE COD LIGHTHOUSE | V197: 0 | W197: 0 | X197: 0 | Y197: 0 | Z197: 53 | AA197: 0 | AB197: 0 | AC197: 0 | AD197: 0 | AE197: 0 | AF197: 15 | AG197: 0 | AH197: 0 | AI197: 0 | AJ197: 0 | AL197: 432 | AM197: 712 | AN197: 645 | AO197: 7
A198: 432712660 | B198: CAPE COD LIGHTHOUSE | C198: 0 | D198: 0 | E198: 0 | F198: 0 | G198: 63 | H198: 0 | I198: 2.4 | K198: 0 | L198: 0 | M198: 1 | N198: 0 | O198: 10 | P198: 0 | Q198: 3 | R198: 64 | T198: 432712660 | U198: CAPE COD LIGHTHOUSE | V198: 0 | W198: 0 | X198: 0 | Y198: 0 | Z198: 63 | AA198: 0 | AB198: 0 | AC198: 0 | AD198: 1 | AE198: 0 | AF198: 10 | AG198: 0 | AH198: 0 | AI198: 0 | AJ198: 0 | AL198: 432 | AM198: 712 | AN198: 660 | AO198: 3
A199: 432712712 | B199: CAPE COD LIGHTHOUSE | C199: 0 | D199: 0 | E199: 0 | F199: 0 | G199: 43 | H199: 0 | I199: 1.6125 | K199: 0 | L199: 0 | M199: 0 | N199: 0 | O199: 12 | P199: 0 | Q199: 6 | R199: 43 | T199: 432712712 | U199: CAPE COD LIGHTHOUSE | V199: 0 | W199: 0 | X199: 0 | Y199: 0 | Z199: 43 | AA199: 0 | AB199: 0 | AC199: 0 | AD199: 0 | AE199: 0 | AF199: 12 | AG199: 0 | AH199: 0 | AI199: 0 | AJ199: 0 | AL199: 432 | AM199: 712 | AN199: 712 | AO199: 6
A200: 435301009 | B200: INNOVATION ACADEMY | C200: 0 | D200: 0 | E200: 0 | F200: 0 | G200: 0 | H200: 1 | I200: 0.0375 | K200: 0 | L200: 0 | M200: 0 | N200: 0 | O200: 0 | P200: 0 | Q200: 1 | R200: 1 | T200: 435301009 | U200: INNOVATION ACADEMY | V200: 0 | W200: 0 | X200: 0 | Y200: 0 | Z200: 0 | AA200: 1 | AB200: 0 | AC200: 0 | AD200: 0 | AE200: 0 | AF200: 0 | AG200: 0 | AH200: 0 | AI200: 0 | AJ200: 0 | AL200: 435 | AM200: 301 | AN200: 9 | AO200: 1
A201: 435301031 | B201: INNOVATION ACADEMY | C201: 0 | D201: 0 | E201: 0 | F201: 18 | G201: 61 | H201: 91 | I201: 6.375 | K201: 0 | L201: 0 | M201: 0 | N201: 0 | O201: 6 | P201: 8 | Q201: 2 | R201: 170 | T201: 435301031 | U201: INNOVATION ACADEMY | V201: 0 | W201: 0 | X201: 0 | Y201: 18 | Z201: 61 | AA201: 91 | AB201: 0 | AC201: 0 | AD201: 0 | AE201: 0 | AF201: 6 | AG201: 0 | AH201: 0 | AI201: 0 | AJ201: 8 | AL201: 435 | AM201: 301 | AN201: 31 | AO201: 2
A202: 435301056 | B202: INNOVATION ACADEMY | C202: 0 | D202: 0 | E202: 0 | F202: 9 | G202: 46 | H202: 57 | I202: 4.2 | K202: 0 | L202: 0 | M202: 0 | N202: 0 | O202: 2 | P202: 4 | Q202: 1 | R202: 112 | T202: 435301056 | U202: INNOVATION ACADEMY | V202: 0 | W202: 0 | X202: 0 | Y202: 9 | Z202: 46 | AA202: 57 | AB202: 0 | AC202: 0 | AD202: 0 | AE202: 0 | AF202: 2 | AG202: 0 | AH202: 0 | AI202: 0 | AJ202: 4 | AL202: 435 | AM202: 301 | AN202: 56 | AO202: 1
A203: 435301079 | B203: INNOVATION ACADEMY | C203: =ROUND(V203,0) -> 0 | D203: =ROUND(W203,0) -> 0 | E203: =ROUND(X203,0) -> 0 | F203: =ROUND(Y203,0) -> 26 | G203: =ROUND(Z203,0) -> 47 | H203: =ROUND(AA203,0) -> 45 | I203: =ROUND(0.0375*(SUM(E203:H203)+ROUND(D203*0.5,4)+ROUND(L203*0.5,4)+M203),4)+ROUND((0.0475)*N203,4) -> 4.5375 | K203: =ROUND(AB203,0) -> 0 | L203: =ROUND(AC203,0) -> 0 | M203: =ROUND(AD203,0) -> 3 | N203: =ROUND(AE203,0) -> 0 | O203: =ROUND(AF203,0) -> 4 | P203: =ROUND((AG203+AH203)/2,0)+ROUND(AI203+AJ203,0) -> 9 | Q203: =AO203 -> 2 | R203: =SUM(E203:H203)+M203+N203+ROUND(C203*0.5,0)+ROUND(D203*0.5,0)+ROUND(K203*0.5,0)+ROUND(L203*0.5,0) -> 121 | T203: 435301079 | U203: INNOVATION ACADEMY | V203: 0 | W203: 0 | X203: 0 | Y203: 26 | Z203: 47 | AA203: 45 | AB203: 0 | AC203: 0 | AD203: 3 | AE203: 0 | AF203: 4 | AG203: 0 | AH203: 0 | AI203: 0 | AJ203: 9 | AL203: 435 | AM203: 301 | AN203: 79 | AO203: 2
A204: 435301125 | B204: INNOVATION ACADEMY | C204: 0 | D204: 0 | E204: 0 | F204: 0 | G204: 0 | H204: 1 | I204: 0.0375 | K204: 0 | L204: 0 | M204: 0 | N204: 0 | O204: 0 | P204: 0 | Q204: 1 | R204: 1 | T204: 435301125 | U204: INNOVATION ACADEMY | V204: 0 | W204: 0 | X204: 0 | Y204: 0 | Z204: 0 | AA204: 1 | AB204: 0 | AC204: 0 | AD204: 0 | AE204: 0 | AF204: 0 | AG204: 0 | AH204: 0 | AI204: 0 | AJ204: 0 | AL204: 435 | AM204: 301 | AN204: 125 | AO204: 1
... 574 more rows

Sheet fnd base rates (hidden)
A2: FY16 Base Rates
H3: Instruction- | I3: Guid- | K3: Opera- | L3: Employee | N3: Total
E4: Classroom | F4: Other | G4: Profess- | H4: al Materials, | I4: ance & | K4: tions & | L4: Benefits | N4: Opera-
C5: Admini- | D5: Instructional | E5: & Specialist | F5: Teaching | G5: ional Dev- | H5: Equipment & | I5: Psycho- | J5: Pupil | K5: Maint- | L5: & Fixed | M5: Sped | N5: ting Exp-
A6: Foundation Subsets | C6: stration | D6: Leadership | E6: Teachers | F6: Services | G6: elopment | H6: Technology | I6: logical | J6: Services | K6: enance | L6: Charges | M6: Tuition | N6: enditures
A8: 1 | B8: Pre-School | C8: 182.41 | D8: 329.44 | E8: 1510.58 | F8: 387.42 | G8: 59.74 | H8: 218.64 | I8: 109.9 | J8: 43.72 | K8: 419.47 | L8: 378.11 | M8: 0 | N8: 3639.43
A9: 2 | B9: Kindergarten-Half | C9: 182.41 | D9: 329.44 | E9: 1510.58 | F9: 387.42 | G9: 59.74 | H9: 218.64 | I9: 109.9 | J9: 43.72 | K9: 419.47 | L9: 378.11 | M9: 0 | N9: 3639.43
A10: 3 | B10: Kindergarten-Full | C10: 364.8 | D10: 658.87 | E10: 3021.16 | F10: 774.86 | G10: 119.54 | H10: 437.27 | I10: 219.84 | J10: 87.46 | K10: 838.94 | L10: 756.18 | M10: 0 | N10: 7278.92
A11: 4 | B11: Elementary | C11: 364.8 | D11: 658.87 | E11: 3021.12 | F11: 774.86 | G11: 119.56 | H11: 437.27 | I11: 219.84 | J11: 131.19 | K11: 838.94 | L11: 756.23 | M11: 0 | N11: 7322.68
A12: 5 | B12: Junior/Middle | C12: 364.8 | D12: 658.87 | E12: 2658.6 | F12: 557.78 | G12: 129.61 | H12: 437.27 | I12: 292.63 | J12: 214.28 | K12: 909.52 | L12: 719.02 | M12: 0 | N12: 6942.38
A13: 6 | B13: High School | C13: 364.8 | D13: 658.87 | E13: 3909.69 | F13: 464.36 | G13: 125.67 | H13: 699.64 | I13: 366.83 | J13: 494.12 | K13: 881.87 | L13: 690.79 | M13: 0 | N13: 8656.64
A14: 7 | B14: Special Ed-In School | C14: 2517.8 | D14: 0 | E14: 8308.11 | F14: 7757.17 | G14: 400.78 | H14: 349.82 | I14: 0 | J14: 0 | K14: 2812.51 | L14: 3186.23 | M14: 0 | N14: 25332.42
A15: 8 | B15: Special Ed-Tuitioned Out | C15: 2517.8 | D15: 0 | E15: 0 | F15: 38.46 | G15: 0 | H15: 0 | I15: 0 | J15: 0 | K15: 0 | L15: 0 | M15: 23905.21 | N15: 26461.47
A16: 9 | B16: Limited English PK | C16: 182.42 | D16: 329.44 | E16: 2274.98 | F16: 309.79 | G16: 80.93 | H16: 218.64 | I16: 146.3 | J16: 65.58 | K16: 567.89 | L16: 475.65 | M16: 0 | N16: 4651.62
A17: 10 | B17: Limited English K Half Time | C17: 182.42 | D17: 329.44 | E17: 2274.98 | F17: 309.79 | G17: 80.93 | H17: 218.64 | I17: 146.3 | J17: 65.58 | K17: 567.89 | L17: 475.65 | M17: 0 | N17: 4651.62
A18: 11 | B18: Limited English Full Time | C18: 364.8 | D18: 658.87 | E18: 4549.95 | F18: 619.58 | G18: 161.83 | H18: 437.27 | I18: 292.63 | J18: 131.19 | K18: 1135.73 | L18: 951.3 | M18: 0 | N18: 9303.15
A19: 12 | B19: Vocational | C19: 364.8 | D19: 658.87 | E19: 6646.51 | F19: 464.36 | G19: 207.77 | H19: 1224.35 | I19: 366.83 | J19: 494.12 | K19: 1650.45 | L19: 1121.9 | M19: 0 | N19: 13199.96
A20: 13 | B20: Low Income Elem | C20: 0 | D20: 0 | E20: 2718.08 | F20: 0 | G20: 59.82 | H20: 0 | I20: 0 | J20: 0 | K20: 419.79 | L20: 275.91 | M20: 0 | N20: 3473.6
A21: 14 | B21: Low Income Secondary | C21: 0 | D21: 0 | E21: 2053.44 | F21: 0 | G21: 59.82 | H21: 0 | I21: 0 | J21: 0 | K21: 419.79 | L21: 275.91 | M21: 0 | N21: 2808.96
A22: 15 | B22: Low Income Decile 1 | C22: n/a | D22: n/a | E22: n/a | F22: n/a | G22: n/a | H22: n/a | I22: n/a | J22: n/a | K22: n/a | L22: n/a | M22: n/a | N22: n/a
A23: 16 | B23: Low Income Decile 2 | C23: n/a | D23: n/a | E23: n/a | F23: n/a | G23: n/a | H23: n/a | I23: n/a | J23: n/a | K23: n/a | L23: n/a | M23: n/a | N23: n/a
A24: 17 | B24: Low Income Decile 3 | C24: n/a | D24: n/a | E24: n/a | F24: n/a | G24: n/a | H24: n/a | I24: n/a | J24: n/a | K24: n/a | L24: n/a | M24: n/a | N24: n/a
A25: 18 | B25: Low Income Decile 4 | C25: n/a | D25: n/a | E25: n/a | F25: n/a | G25: n/a | H25: n/a | I25: n/a | J25: n/a | K25: n/a | L25: n/a | M25: n/a | N25: n/a
A26: 19 | B26: Low Income Decile 5 | C26: n/a | D26: n/a | E26: n/a | F26: n/a | G26: n/a | H26: n/a | I26: n/a | J26: n/a | K26: n/a | L26: n/a | M26: n/a | N26: n/a
A27: 20 | B27: Low Income Decile 6 | C27: n/a | D27: n/a | E27: n/a | F27: n/a | G27: n/a | H27: n/a | I27: n/a | J27: n/a | K27: n/a | L27: n/a | M27: n/a | N27: n/a
A28: 21 | B28: Low Income Decile 7 | C28: n/a | D28: n/a | E28: n/a | F28: n/a | G28: n/a | H28: n/a | I28: n/a | J28: n/a | K28: n/a | L28: n/a | M28: n/a | N28: n/a
A29: 22 | B29: Low Income Decile 8 | C29: n/a | D29: n/a | E29: n/a | F29: n/a | G29: n/a | H29: n/a | I29: n/a | J29: n/a | K29: n/a | L29: n/a | M29: n/a | N29: n/a
A30: 23 | B30: Low Income Decile 9 | C30: n/a | D30: n/a | E30: n/a | F30: n/a | G30: n/a | H30: n/a | I30: n/a | J30: n/a | K30: n/a | L30: n/a | M30: n/a | N30: n/a
A31: 24 | B31: Low Income Decile 10 | C31: n/a | D31: n/a | E31: n/a | F31: n/a | G31: n/a | H31: n/a | I31: n/a | J31: n/a | K31: n/a | L31: n/a | M31: n/a | N31: n/a
B37: Inflation Adjustment
B38: FY16 inflation index | C38: 1
B39: FY16 inflation | C39: =-0.0022 -> -0.0022
B40: FY17 adjustment | C40: =C38+C39 -> 0.9978
A42: FY17 Foundation Budget Rates
H43: Instruction- | I43: Guid- | K43: Opera- | L43: Employee | N43: Total
E44: Classroom | F44: Other | G44: Profess- | H44: al Materials, | I44: ance & | K44: tions & | L44: Benefits | N44: Opera- | P44: Inflation
C45: Admini- | D45: Instructional | E45: & Specialist | F45: Teaching | G45: ional Dev- | H45: Equipment & | I45: Psycho- | J45: Pupil | K45: Maint- | L45: & Fixed | M45: Sped | N45: ting Exp-
A46: Adjusted Foundation Budget | C46: stration | D46: Leadership | E46: Teachers | F46: Services | G46: elopment | H46: Technology | I46: logical | J46: Services | K46: enance | L46: Charges | M46: Tuition | N46: enditures
A48: 1 | B48: Pre-School | C48: =IF(C8>0,ROUND(C8*inflat,2),0) -> 182.01 | D48: 328.72 | E48: 1507.26 | F48: 386.57 | G48: =IF(G8>0,ROUND(G8*inflat,2),0) -> 59.61 | H48: =IF(H8>0,ROUND(H8*inflat,2),0) -> 218.16 | I48: 109.66 | J48: =IF(J8>0,ROUND(J8*inflat,2),0) -> 43.62 | K48: 418.55 | L48: =IF(L8>0,ROUND(L8*inflat,2),0) -> 377.28 | M48: 0 | N48: =SUM(C48:M48) -> 3631.44 | P48: =C39 -> -0.0022
A49: 2 | B49: Kindergarten-Half | C49: 182.01 | D49: 328.72 | E49: 1507.26 | F49: 386.57 | G49: 59.61 | H49: 218.16 | I49: 109.66 | J49: 43.62 | K49: 418.55 | L49: 377.28 | M49: 0 | N49: =SUM(C49:M49) -> 3631.44
A50: 3 | B50: Kindergarten-Full | C50: 364 | D50: 657.42 | E50: 3014.51 | F50: 773.16 | G50: 119.28 | H50: 436.31 | I50: 219.36 | J50: 87.27 | K50: 837.09 | L50: 754.52 | M50: 0 | N50: 7262.92
A51: 4 | B51: Elementary | C51: 364 | D51: 657.42 | E51: 3014.47 | F51: 773.16 | G51: 119.3 | H51: 436.31 | I51: 219.36 | J51: 130.9 | K51: 837.09 | L51: 754.57 | M51: 0 | N51: 7306.58
A52: 5 | B52: Junior/Middle | C52: 364 | D52: 657.42 | E52: 2652.75 | F52: 556.55 | G52: 129.32 | H52: 436.31 | I52: 291.99 | J52: 213.81 | K52: 907.52 | L52: 717.44 | M52: 0 | N52: 6927.11
A53: 6 | B53: High School | C53: =IF(C13>0,ROUND(C13*inflat,2),0) -> 364 | D53: 657.42 | E53: 3901.09 | F53: 463.34 | G53: 125.39 | H53: 698.1 | I53: 366.02 | J53: 493.03 | K53: 879.93 | L53: 689.27 | M53: 0 | N53: =SUM(C53:M53) -> 8637.59
A54: 7 | B54: Special Ed-In School | C54: =IF(C14>0,ROUND(C14*inflat,2),0) -> 2512.26 | D54: 0 | E54: 8289.83 | F54: 7740.1 | G54: 399.9 | H54: 349.05 | I54: 0 | J54: 0 | K54: 2806.32 | L54: 3179.22 | M54: 0 | N54: 25276.68
A55: 8 | B55: Special Ed-Tuitioned Out | C55: =IF(C15>0,ROUND(C15*inflat,2),0) -> 2512.26 | D55: 0 | E55: 0 | F55: 38.38 | G55: 0 | H55: 0 | I55: 0 | J55: 0 | K55: 0 | L55: 0 | M55: 23852.62 | N55: 26403.26
A56: 9 | B56: Limited English PK | C56: =IF(C16>0,ROUND(C16*inflat,2),0) -> 182.02 | D56: 328.72 | E56: 2269.98 | F56: 309.11 | G56: 80.75 | H56: 218.16 | I56: 145.98 | J56: 65.44 | K56: 566.64 | L56: 474.6 | M56: 0 | N56: 4641.4
A57: 10 | B57: Limited English K Half Time | C57: =IF(C17>0,ROUND(C17*inflat,2),0) -> 182.02 | D57: 328.72 | E57: 2269.98 | F57: 309.11 | G57: 80.75 | H57: 218.16 | I57: 145.98 | J57: 65.44 | K57: 566.64 | L57: 474.6 | M57: 0 | N57: 4641.4
A58: 11 | B58: Limited English Full Time | C58: =IF(C18>0,ROUND(C18*inflat,2),0) -> 364 | D58: 657.42 | E58: 4539.94 | F58: 618.22 | G58: 161.47 | H58: 436.31 | I58: 291.99 | J58: 130.9 | K58: 1133.23 | L58: 949.21 | M58: 0 | N58: 9282.69
A59: 12 | B59: Vocational | C59: 364 | D59: 657.42 | E59: 6631.89 | F59: 463.34 | G59: 207.31 | H59: 1221.66 | I59: 366.02 | J59: 493.03 | K59: 1646.82 | L59: 1119.43 | M59: 0 | N59: 13170.92
A60: 13 | B60: Low Income Elem | C60: 0 | D60: 0 | E60: =IF(E20>0,ROUND(E20*inflat,2),0) -> 2712.1 | F60: 0 | G60: 59.69 | H60: 0 | I60: 0 | J60: 0 | K60: =IF(K20>0,ROUND(K20*inflat,2),0) -> 418.87 | L60: 275.3 | M60: 0 | N60: 3465.96
A61: 14 | B61: Low Income Secondary | C61: 0 | D61: 0 | E61: =IF(E21>0,ROUND(E21*inflat,2),0) -> 2048.92 | F61: 0 | G61: 59.69 | H61: 0 | I61: 0 | J61: 0 | K61: =IF(K21>0,ROUND(K21*inflat,2),0) -> 418.87 | L61: 275.3 | M61: 0 | N61: 2802.78 | P61: diff
A62: 15 | B62: Low Income Decile 1 | C62: 0 | D62: 0 | E62: 2953.92 | F62: 0 | G62: 65.01 | H62: 0 | I62: 0 | J62: 0 | K62: 456.21 | L62: 299.85 | M62: 0 | N62: 3775 | P62: =(N62-((N60+N61)/2)) -> 640.63
A63: 16 | B63: Low Income Decile 2 | C63: 0 | D63: 0 | E63: 2985.22 | F63: 0 | G63: 65.7 | H63: 0 | I63: 0 | J63: 0 | K63: 461.05 | L63: 303.03 | M63: 0 | N63: =SUM(C63:M63) -> 3815 | P63: =N63-N62 -> 40
A64: 17 | B64: Low Income Decile 3 | C64: 0 | D64: 0 | E64: 3016.52 | F64: 0 | G64: 66.39 | H64: 0 | I64: 0 | J64: 0 | K64: 465.88 | L64: 306.2 | M64: 0 | N64: 3854.99 | P64: 39.99
A65: 18 | B65: Low Income Decile 4 | C65: 0 | D65: 0 | E65: 3047.82 | F65: 0 | G65: 67.08 | H65: 0 | I65: 0 | J65: 0 | K65: 470.72 | L65: 309.38 | M65: 0 | N65: 3895 | P65: 40.01
A66: 19 | B66: Low Income Decile 5 | C66: 0 | D66: 0 | E66: 3079.12 | F66: 0 | G66: 67.77 | H66: 0 | I66: 0 | J66: 0 | K66: 475.55 | L66: 312.56 | M66: 0 | N66: 3935 | P66: 40
A67: 20 | B67: Low Income Decile 6 | C67: 0 | D67: 0 | E67: 3110.42 | F67: 0 | G67: 68.45 | H67: 0 | I67: 0 | J67: 0 | K67: 480.38 | L67: 315.74 | M67: 0 | N67: 3974.99 | P67: 39.99
A68: 21 | B68: Low Income Decile 7 | C68: 0 | D68: 0 | E68: 3141.72 | F68: 0 | G68: 69.14 | H68: 0 | I68: 0 | J68: 0 | K68: 485.22 | L68: 318.91 | M68: 0 | N68: 4014.99 | P68: 40
A69: 22 | B69: Low Income Decile 8 | C69: 0 | D69: 0 | E69: 3173.02 | F69: 0 | G69: 69.83 | H69: 0 | I69: 0 | J69: 0 | K69: 490.05 | L69: 322.09 | M69: 0 | N69: 4054.99 | P69: 40
A70: 23 | B70: Low Income Decile 9 | C70: 0 | D70: 0 | E70: 3204.32 | F70: 0 | G70: 70.52 | H70: 0 | I70: 0 | J70: 0 | K70: 494.89 | L70: 325.27 | M70: 0 | N70: 4095 | P70: 40.01
A71: 24 | B71: Low Income Decile 10 | C71: 0 | D71: 0 | E71: 3235.62 | F71: 0 | G71: 71.21 | H71: 0 | I71: 0 | J71: 0 | K71: 499.72 | L71: 328.45 | M71: 0 | N71: 4135 | P71: 40 | Q71: =N71-N62 -> 360

Sheet pre fnd budg (hidden)
A1: 1 | B1: 2 | C1: 3 | D1: 4 | E1: 5 | F1: 6 | G1: 7 | H1: 8 | I1: 9 | J1: 10 | K1: 11 | L1: 12 | M1: 13 | N1: 14 | O1: 15 | P1: 16 | Q1: 17 | R1: 18 | S1: 19 | T1: 20 | U1: 21 | V1: 22 | W1: 23 | X1: 24 | Y1: 25 | Z1: 26 | AA1: 27 | AB1: 28 | AC1: 29 | AD1: 30 | AE1: 31 | AF1: 32 | AG1: 33 | AH1: 34 | AI1: 35 | AJ1: 36 | AK1: 37 | AL1: 38 | AM1: 39 | AN1: 40 | AO1: 41 | AP1: 42 | AQ1: 43 | AR1: 44
A3: Insert chalocsend & school name from the FND ENRO sheet
S4: NEW!
M5: LEP | P5: Low | R5: WAF | Z5: Instruction- | AA5: Guid- | AC5: Opera- | AD5: Employee
I6: Assumed | J6: Assumed | M6: KF | O6: Low | P6: Income | Q6: Total | R6: Adjusted | S6: Low | W6: Classroom | X6: Other | Y6: Profess- | Z6: al Materials, | AA6: ance & | AC6: tions & | AD6: Benefits | AF6: Found- | AL6: wage
G7: Junior | H7: High | I7: Special Ed | J7: Special Ed | K7: LEP | L7: LEP | M7: thru | O7: Income | P7: K & | Q7: Found | R7: for Low | S7: Income | U7: Admini- | V7: Instructional | W7: & Specialist | X7: Teaching | Y7: ional Dev- | Z7: Equipment & | AA7: Psycho- | AB7: Pupil | AC7: Maint- | AD7: & Fixed | AE7: Sped | AF7: ation | AI7: Cha | AJ7: Loc | AK7: Sending | AL7: fct check
A8: chalocsend | B8: Charter | C8: PK | D8: KP | E8: KF | F8: Elem | G8: Middle | H8: School | I8: In School | J8: Tuitioned | K8: PK | L8: KP | M8: G12 | N8: Voke | O8: Elem & Jr | P8: Sr | Q8: Enro | R8: Income | S8: Decile | U8: stration | V8: Leadership | W8: Teachers | X8: Services | Y8: elopment | Z8: Technology | AA8: logical | AB8: Services | AC8: enance | AD8: Charges | AE8: Tuition | AF8: Budget | AH8: chalocsend | AI8: LEA | AJ8: LEA | AK8: LEA | AL8: 1=good | AM8: enro | AN8: fnd budget | AO8: rate | AP8: diff | AQ8: rate check
AR9: x
A10: 409201201 | B10: ALMA DEL MAR | C10: ='fnd enro'!C10 -> 0 | D10: ='fnd enro'!D10 -> 0 | E10: ='fnd enro'!E10 -> 27 | F10: ='fnd enro'!F10 -> 191 | G10: ='fnd enro'!G10 -> 40 | H10: ='fnd enro'!H10 -> 0 | I10: ='fnd enro'!I10 -> 10.65 | J10: ='fnd enro'!J10 -> 0 | K10: ='fnd enro'!K10 -> 0 | L10: ='fnd enro'!L10 -> 0 | M10: ='fnd enro'!M10 -> 26 | N10: ='fnd enro'!N10 -> 0 | O10: ='fnd enro'!O10 -> 156 | P10: ='fnd enro'!P10 -> 23 | Q10: ='fnd enro'!R10 -> 284 | R10: =VLOOKUP(A10,charterinfo_b,6) -> 1 | S10: =VLOOKUP(A10,charterinfo_b,7) -> 10 | U10: =(($C10*'fnd base rates'!C$48) +($D10*'fnd base rates'!C$49) +($E10*'fnd base rates'!C$50) +($F10*'fnd base rates'!C$51) +($G10*'fnd base rates'!C$52) +($H10*'fnd base rates'!C$53) +($I10*'fnd base rates'!C$54) +($J10*'fnd base rates'!C$55) +($K10*'fnd base rates'!C$56) +($L10*'fnd base rates'!C$57) +($M10*'fnd base rates'!C$58) +($N10*'fnd base rates'!C$59) +(($O10+$P10)*VLOOKUP($S10+14,rate_basefnd,3))) *$R10 -> 130131.569 | V10: =(($C10*'fnd base rates'!D$48) +($D10*'fnd base rates'!D$49) +($E10*'fnd base rates'!D$50) +($F10*'fnd base rates'!D$51) +($G10*'fnd base rates'!D$52) +($H10*'fnd base rates'!D$53) +($I10*'fnd base rates'!D$54) +($J10*'fnd base rates'!D$55) +($K10*'fnd base rates'!D$56) +($L10*'fnd base rates'!D$57) +($M10*'fnd base rates'!D$58) +($N10*'fnd base rates'!D$59) +(($O10+$P10)*VLOOKUP($S10+14,rate_basefnd,4))) *$R10 -> 186707.28 | W10: =(($C10*'fnd base rates'!E$48) +($D10*'fnd base rates'!E$49) +($E10*'fnd base rates'!E$50) +($F10*'fnd base rates'!E$51) +($G10*'fnd base rates'!E$52) +($H10*'fnd base rates'!E$53) +($I10*'fnd base rates'!E$54) +($J10*'fnd base rates'!E$55) +($K10*'fnd base rates'!E$56) +($L10*'fnd base rates'!E$57) +($M10*'fnd base rates'!E$58) +($N10*'fnd base rates'!E$59) +(($O10+$P10)*VLOOKUP($S10+14,rate_basefnd,5))) *$R10 -> 1548766.649 | X10: =(($C10*'fnd base rates'!F$48) +($D10*'fnd base rates'!F$49) +($E10*'fnd base rates'!F$50) +($F10*'fnd base rates'!F$51) +($G10*'fnd base rates'!F$52) +($H10*'fnd base rates'!F$53) +($I10*'fnd base rates'!F$54) +($J10*'fnd base rates'!F$55) +($K10*'fnd base rates'!F$56) +($L10*'fnd base rates'!F$57) +($M10*'fnd base rates'!F$58) +($N10*'fnd base rates'!F$59) +(($O10+$P10)*VLOOKUP($S10+14,rate_basefnd,6))) *$R10 -> 289316.665 | Y10: =(($C10*'fnd base rates'!G$48) +($D10*'fnd base rates'!G$49) +($E10*'fnd base rates'!G$50) +($F10*'fnd base rates'!G$51) +($G10*'fnd base rates'!G$52) +($H10*'fnd base rates'!G$53) +($I10*'fnd base rates'!G$54) +($J10*'fnd base rates'!G$55) +($K10*'fnd base rates'!G$56) +($L10*'fnd base rates'!G$57) +($M10*'fnd base rates'!G$58) +($N10*'fnd base rates'!G$59) +(($O10+$P10)*VLOOKUP($S10+14,rate_basefnd,7))) *$R10 -> 52383.405 | Z10: =(($C10*'fnd base rates'!H$48) +($D10*'fnd base rates'!H$49) +($E10*'fnd base rates'!H$50) +($F10*'fnd base rates'!H$51) +($G10*'fnd base rates'!H$52) +($H10*'fnd base rates'!H$53) +($I10*'fnd base rates'!H$54) +($J10*'fnd base rates'!H$55) +($K10*'fnd base rates'!H$56) +($L10*'fnd base rates'!H$57) +($M10*'fnd base rates'!H$58) +($N10*'fnd base rates'!H$59) +(($O10+$P10)*VLOOKUP($S10+14,rate_basefnd,8))) -> 127629.4225 | AA10: =(($C10*'fnd base rates'!I$48) +($D10*'fnd base rates'!I$49) +($E10*'fnd base rates'!I$50) +($F10*'fnd base rates'!I$51) +($G10*'fnd base rates'!I$52) +($H10*'fnd base rates'!I$53) +($I10*'fnd base rates'!I$54) +($J10*'fnd base rates'!I$55) +($K10*'fnd base rates'!I$56) +($L10*'fnd base rates'!I$57) +($M10*'fnd base rates'!I$58) +($N10*'fnd base rates'!I$59) +(($O10+$P10)*VLOOKUP($S10+14,rate_basefnd,9))) *$R10 -> 67091.82 | AB10: =(($C10*'fnd base rates'!J$48) +($D10*'fnd base rates'!J$49) +($E10*'fnd base rates'!J$50) +($F10*'fnd base rates'!J$51) +($G10*'fnd base rates'!J$52) +($H10*'fnd base rates'!J$53) +($I10*'fnd base rates'!J$54) +($J10*'fnd base rates'!J$55) +($K10*'fnd base rates'!J$56) +($L10*'fnd base rates'!J$57) +($M10*'fnd base rates'!J$58) +($N10*'fnd base rates'!J$59) +(($O10+$P10)*VLOOKUP($S10+14,rate_basefnd,10))) *$R10 -> 39313.99 | AC10: =(($C10*'fnd base rates'!K$48) +($D10*'fnd base rates'!K$49) +($E10*'fnd base rates'!K$50) +($F10*'fnd base rates'!K$51) +($G10*'fnd base rates'!K$52) +($H10*'fnd base rates'!K$53) +($I10*'fnd base rates'!K$54) +($J10*'fnd base rates'!K$55) +($K10*'fnd base rates'!K$56) +($L10*'fnd base rates'!K$57) +($M10*'fnd base rates'!K$58) +($N10*'fnd base rates'!K$59) +(($O10+$P10)*VLOOKUP($S10+14,rate_basefnd,11))) *$R10 -> 367587.588 | AD10: =(($C10*'fnd base rates'!L$48) +($D10*'fnd base rates'!L$49) +($E10*'fnd base rates'!L$50) +($F10*'fnd base rates'!L$51) +($G10*'fnd base rates'!L$52) +($H10*'fnd base rates'!L$53) +($I10*'fnd base rates'!L$54) +($J10*'fnd base rates'!L$55) +($K10*'fnd base rates'!L$56) +($L10*'fnd base rates'!L$57) +($M10*'fnd base rates'!L$58) +($N10*'fnd base rates'!L$59) +(($O10+$P10)*VLOOKUP($S10+14,rate_basefnd,12))) -> 310523.213 | AE10: =(($C10*'fnd base rates'!M$48) +($D10*'fnd base rates'!M$49) +($E10*'fnd base rates'!M$50) +($F10*'fnd base rates'!M$51) +($G10*'fnd base rates'!M$52) +($H10*'fnd base rates'!M$53) +($I10*'fnd base rates'!M$54) +($J10*'fnd base rates'!M$55) +($K10*'fnd base rates'!M$56) +($L10*'fnd base rates'!M$57) +($M10*'fnd base rates'!M$58) +($N10*'fnd base rates'!M$59) +(($O10+$P10)*VLOOKUP($S10+14,rate_basefnd,13))) -> 0 | AF10: =SUM(U10:AE10) -> 3119451.602 | AH10: =A10 -> 409201201 | AI10: =IF($A10<499999999,MID($A10,1,3),MID($A10,1,4)) -> 409 | AJ10: =IF($A10<499999999,MID($A10,4,3),MID($A10,5,3)) -> 201 | AK10: =IF($A10<499999999,MID($A10,7,3),MID($A10,8,3)) -> 201 | AL10: =IF(VLOOKUP(VALUE(IF(AH10<499999999,MID(AH10,4,3),MID(AH10,5,3))),distinfo,4)=R10,1,0) -> 1 | AM10: =enro -> 284 | AN10: =AF10 -> 3119451.602 | AO10: =IF(OR(AF10=0,AM10=0),0,ROUND(AN10/AM10,0)) -> 10984 | AP10: =AQ10-AO10 -> 0 | AQ10: 10984
A11: 410035035 | B11: EXCEL ACADEMY | C11: ='fnd enro'!C11 -> 0 | D11: ='fnd enro'!D11 -> 0 | E11: ='fnd enro'!E11 -> 0 | F11: ='fnd enro'!F11 -> 42 | G11: ='fnd enro'!G11 -> 192 | H11: ='fnd enro'!H11 -> 36 | I11: ='fnd enro'!I11 -> 12.3375 | J11: ='fnd enro'!J11 -> 0 | K11: ='fnd enro'!K11 -> 0 | L11: ='fnd enro'!L11 -> 0 | M11: ='fnd enro'!M11 -> 59 | N11: ='fnd enro'!N11 -> 0 | O11: ='fnd enro'!O11 -> 137 | P11: ='fnd enro'!P11 -> 22 | Q11: ='fnd enro'!R11 -> 329 | R11: =VLOOKUP(A11,charterinfo_b,6) -> 1.077 | S11: 10 | U11: =(($C11*'fnd base rates'!C$48) +($D11*'fnd base rates'!C$49) +($E11*'fnd base rates'!C$50) +($F11*'fnd base rates'!C$51) +($G11*'fnd base rates'!C$52) +($H11*'fnd base rates'!C$53) +($I11*'fnd base rates'!C$54) +($J11*'fnd base rates'!C$55) +($K11*'fnd base rates'!C$56) +($L11*'fnd base rates'!C$57) +($M11*'fnd base rates'!C$58) +($N11*'fnd base rates'!C$59) +(($O11+$P11)*VLOOKUP($S11+14,rate_basefnd,3))) *$R11 -> 162358.8353 | V11: =(($C11*'fnd base rates'!D$48) +($D11*'fnd base rates'!D$49) +($E11*'fnd base rates'!D$50) +($F11*'fnd base rates'!D$51) +($G11*'fnd base rates'!D$52) +($H11*'fnd base rates'!D$53) +($I11*'fnd base rates'!D$54) +($J11*'fnd base rates'!D$55) +($K11*'fnd base rates'!D$56) +($L11*'fnd base rates'!D$57) +($M11*'fnd base rates'!D$58) +($N11*'fnd base rates'!D$59) +(($O11+$P11)*VLOOKUP($S11+14,rate_basefnd,4))) *$R11 -> 232945.6009 | W11: =(($C11*'fnd base rates'!E$48) +($D11*'fnd base rates'!E$49) +($E11*'fnd base rates'!E$50) +($F11*'fnd base rates'!E$51) +($G11*'fnd base rates'!E$52) +($H11*'fnd base rates'!E$53) +($I11*'fnd base rates'!E$54) +($J11*'fnd base rates'!E$55) +($K11*'fnd base rates'!E$56) +($L11*'fnd base rates'!E$57) +($M11*'fnd base rates'!E$58) +($N11*'fnd base rates'!E$59) +(($O11+$P11)*VLOOKUP($S11+14,rate_basefnd,5))) *$R11 -> 1788865.549 | X11: =(($C11*'fnd base rates'!F$48) +($D11*'fnd base rates'!F$49) +($E11*'fnd base rates'!F$50) +($F11*'fnd base rates'!F$51) +($G11*'fnd base rates'!F$52) +($H11*'fnd base rates'!F$53) +($I11*'fnd base rates'!F$54) +($J11*'fnd base rates'!F$55) +($K11*'fnd base rates'!F$56) +($L11*'fnd base rates'!F$57) +($M11*'fnd base rates'!F$58) +($N11*'fnd base rates'!F$59) +(($O11+$P11)*VLOOKUP($S11+14,rate_basefnd,6))) *$R11 -> 310153.4086 | Y11: =(($C11*'fnd base rates'!G$48) +($D11*'fnd base rates'!G$49) +($E11*'fnd base rates'!G$50) +($F11*'fnd base rates'!G$51) +($G11*'fnd base rates'!G$52) +($H11*'fnd base rates'!G$53) +($I11*'fnd base rates'!G$54) +($J11*'fnd base rates'!G$55) +($K11*'fnd base rates'!G$56) +($L11*'fnd base rates'!G$57) +($M11*'fnd base rates'!G$58) +($N11*'fnd base rates'!G$59) +(($O11+$P11)*VLOOKUP($S11+14,rate_basefnd,7))) *$R11 -> 64767.51265 | Z11: =(($C11*'fnd base rates'!H$48) +($D11*'fnd base rates'!H$49) +($E11*'fnd base rates'!H$50) +($F11*'fnd base rates'!H$51) +($G11*'fnd base rates'!H$52) +($H11*'fnd base rates'!H$53) +($I11*'fnd base rates'!H$54) +($J11*'fnd base rates'!H$55) +($K11*'fnd base rates'!H$56) +($L11*'fnd base rates'!H$57) +($M11*'fnd base rates'!H$58) +($N11*'fnd base rates'!H$59) +(($O11+$P11)*VLOOKUP($S11+14,rate_basefnd,8))) -> 157276.8344 | AA11: =(($C11*'fnd base rates'!I$48) +($D11*'fnd base rates'!I$49) +($E11*'fnd base rates'!I$50) +($F11*'fnd base rates'!I$51) +($G11*'fnd base rates'!I$52) +($H11*'fnd base rates'!I$53) +($I11*'fnd base rates'!I$54) +($J11*'fnd base rates'!I$55) +($K11*'fnd base rates'!I$56) +($L11*'fnd base rates'!I$57) +($M11*'fnd base rates'!I$58) +($N11*'fnd base rates'!I$59) +(($O11+$P11)*VLOOKUP($S11+14,rate_basefnd,9))) *$R11 -> 103046.6384 | AB11: =(($C11*'fnd base rates'!J$48) +($D11*'fnd base rates'!J$49) +($E11*'fnd base rates'!J$50) +($F11*'fnd base rates'!J$51) +($G11*'fnd base rates'!J$52) +($H11*'fnd base rates'!J$53) +($I11*'fnd base rates'!J$54) +($J11*'fnd base rates'!J$55) +($K11*'fnd base rates'!J$56) +($L11*'fnd base rates'!J$57) +($M11*'fnd base rates'!J$58) +($N11*'fnd base rates'!J$59) +(($O11+$P11)*VLOOKUP($S11+14,rate_basefnd,10))) *$R11 -> 77567.1555 | AC11: =(($C11*'fnd base rates'!K$48) +($D11*'fnd base rates'!K$49) +($E11*'fnd base rates'!K$50) +($F11*'fnd base rates'!K$51) +($G11*'fnd base rates'!K$52) +($H11*'fnd base rates'!K$53) +($I11*'fnd base rates'!K$54) +($J11*'fnd base rates'!K$55) +($K11*'fnd base rates'!K$56) +($L11*'fnd base rates'!K$57) +($M11*'fnd base rates'!K$58) +($N11*'fnd base rates'!K$59) +(($O11+$P11)*VLOOKUP($S11+14,rate_basefnd,11))) *$R11 -> 454513.5185 | AD11: =(($C11*'fnd base rates'!L$48) +($D11*'fnd base rates'!L$49) +($E11*'fnd base rates'!L$50) +($F11*'fnd base rates'!L$51) +($G11*'fnd base rates'!L$52) +($H11*'fnd base rates'!L$53) +($I11*'fnd base rates'!L$54) +($J11*'fnd base rates'!L$55) +($K11*'fnd base rates'!L$56) +($L11*'fnd base rates'!L$57) +($M11*'fnd base rates'!L$58) +($N11*'fnd base rates'!L$59) +(($O11+$P11)*VLOOKUP($S11+14,rate_basefnd,12))) -> 341704.7068 | AE11: =(($C11*'fnd base rates'!M$48) +($D11*'fnd base rates'!M$49) +($E11*'fnd base rates'!M$50) +($F11*'fnd base rates'!M$51) +($G11*'fnd base rates'!M$52) +($H11*'fnd base rates'!M$53) +($I11*'fnd base rates'!M$54) +($J11*'fnd base rates'!M$55) +($K11*'fnd base rates'!M$56) +($L11*'fnd base rates'!M$57) +($M11*'fnd base rates'!M$58) +($N11*'fnd base rates'!M$59) +(($O11+$P11)*VLOOKUP($S11+14,rate_basefnd,13))) -> 0 | AF11: =SUM(U11:AE11) -> 3693199.76 | AH11: =A11 -> 410035035 | AI11: =IF($A11<499999999,MID($A11,1,3),MID($A11,1,4)) -> 410 | AJ11: =IF($A11<499999999,MID($A11,4,3),MID($A11,5,3)) -> 035 | AK11: =IF($A11<499999999,MID($A11,7,3),MID($A11,8,3)) -> 035 | AL11: =IF(VLOOKUP(VALUE(IF(AH11<499999999,MID(AH11,4,3),MID(AH11,5,3))),distinfo,4)=R11,1,0) -> 1 | AM11: 329 | AN11: =AF11 -> 3693199.76 | AO11: =IF(OR(AF11=0,AM11=0),0,ROUND(AN11/AM11,0)) -> 11226 | AP11: =AQ11-AO11 -> 0 | AQ11: 11226
A12: 410035044 | B12: EXCEL ACADEMY | C12: ='fnd enro'!C12 -> 0 | D12: ='fnd enro'!D12 -> 0 | E12: ='fnd enro'!E12 -> 0 | F12: ='fnd enro'!F12 -> 0 | G12: ='fnd enro'!G12 -> 0 | H12: ='fnd enro'!H12 -> 1 | I12: ='fnd enro'!I12 -> 0.0375 | J12: ='fnd enro'!J12 -> 0 | K12: ='fnd enro'!K12 -> 0 | L12: ='fnd enro'!L12 -> 0 | M12: ='fnd enro'!M12 -> 0 | N12: ='fnd enro'!N12 -> 0 | O12: ='fnd enro'!O12 -> 0 | P12: ='fnd enro'!P12 -> 1 | Q12: ='fnd enro'!R12 -> 1 | R12: 1.077 | S12: 10 | U12: =(($C12*'fnd base rates'!C$48) +($D12*'fnd base rates'!C$49) +($E12*'fnd base rates'!C$50) +($F12*'fnd base rates'!C$51) +($G12*'fnd base rates'!C$52) +($H12*'fnd base rates'!C$53) +($I12*'fnd base rates'!C$54) +($J12*'fnd base rates'!C$55) +($K12*'fnd base rates'!C$56) +($L12*'fnd base rates'!C$57) +($M12*'fnd base rates'!C$58) +($N12*'fnd base rates'!C$59) +(($O12+$P12)*VLOOKUP($S12+14,rate_basefnd,3))) *$R12 -> 493.4919007 | V12: =(($C12*'fnd base rates'!D$48) +($D12*'fnd base rates'!D$49) +($E12*'fnd base rates'!D$50) +($F12*'fnd base rates'!D$51) +($G12*'fnd base rates'!D$52) +($H12*'fnd base rates'!D$53) +($I12*'fnd base rates'!D$54) +($J12*'fnd base rates'!D$55) +($K12*'fnd base rates'!D$56) +($L12*'fnd base rates'!D$57) +($M12*'fnd base rates'!D$58) +($N12*'fnd base rates'!D$59) +(($O12+$P12)*VLOOKUP($S12+14,rate_basefnd,4))) *$R12 -> 708.04134 | W12: =(($C12*'fnd base rates'!E$48) +($D12*'fnd base rates'!E$49) +($E12*'fnd base rates'!E$50) +($F12*'fnd base rates'!E$51) +($G12*'fnd base rates'!E$52) +($H12*'fnd base rates'!E$53) +($I12*'fnd base rates'!E$54) +($J12*'fnd base rates'!E$55) +($K12*'fnd base rates'!E$56) +($L12*'fnd base rates'!E$57) +($M12*'fnd base rates'!E$58) +($N12*'fnd base rates'!E$59) +(($O12+$P12)*VLOOKUP($S12+14,rate_basefnd,5))) *$R12 -> 8021.042179 | X12: =(($C12*'fnd base rates'!F$48) +($D12*'fnd base rates'!F$49) +($E12*'fnd base rates'!F$50) +($F12*'fnd base rates'!F$51) +($G12*'fnd base rates'!F$52) +($H12*'fnd base rates'!F$53) +($I12*'fnd base rates'!F$54) +($J12*'fnd base rates'!F$55) +($K12*'fnd base rates'!F$56) +($L12*'fnd base rates'!F$57) +($M12*'fnd base rates'!F$58) +($N12*'fnd base rates'!F$59) +(($O12+$P12)*VLOOKUP($S12+14,rate_basefnd,6))) *$R12 -> 811.6204687 | Y12: =(($C12*'fnd base rates'!G$48) +($D12*'fnd base rates'!G$49) +($E12*'fnd base rates'!G$50) +($F12*'fnd base rates'!G$51) +($G12*'fnd base rates'!G$52) +($H12*'fnd base rates'!G$53) +($I12*'fnd base rates'!G$54) +($J12*'fnd base rates'!G$55) +($K12*'fnd base rates'!G$56) +($L12*'fnd base rates'!G$57) +($M12*'fnd base rates'!G$58) +($N12*'fnd base rates'!G$59) +(($O12+$P12)*VLOOKUP($S12+14,rate_basefnd,7))) *$R12 -> 227.8891613 | Z12: =(($C12*'fnd base rates'!H$48) +($D12*'fnd base rates'!H$49) +($E12*'fnd base rates'!H$50) +($F12*'fnd base rates'!H$51) +($G12*'fnd base rates'!H$52) +($H12*'fnd base rates'!H$53) +($I12*'fnd base rates'!H$54) +($J12*'fnd base rates'!H$55) +($K12*'fnd base rates'!H$56) +($L12*'fnd base rates'!H$57) +($M12*'fnd base rates'!H$58) +($N12*'fnd base rates'!H$59) +(($O12+$P12)*VLOOKUP($S12+14,rate_basefnd,8))) -> 711.189375 | AA12: =(($C12*'fnd base rates'!I$48) +($D12*'fnd base rates'!I$49) +($E12*'fnd base rates'!I$50) +($F12*'fnd base rates'!I$51) +($G12*'fnd base rates'!I$52) +($H12*'fnd base rates'!I$53) +($I12*'fnd base rates'!I$54) +($J12*'fnd base rates'!I$55) +($K12*'fnd base rates'!I$56) +($L12*'fnd base rates'!I$57) +($M12*'fnd base rates'!I$58) +($N12*'fnd base rates'!I$59) +(($O12+$P12)*VLOOKUP($S12+14,rate_basefnd,9))) *$R12 -> 394.20354 | AB12: =(($C12*'fnd base rates'!J$48) +($D12*'fnd base rates'!J$49) +($E12*'fnd base rates'!J$50) +($F12*'fnd base rates'!J$51) +($G12*'fnd base rates'!J$52) +($H12*'fnd base rates'!J$53) +($I12*'fnd base rates'!J$54) +($J12*'fnd base rates'!J$55) +($K12*'fnd base rates'!J$56) +($L12*'fnd base rates'!J$57) +($M12*'fnd base rates'!J$58) +($N12*'fnd base rates'!J$59) +(($O12+$P12)*VLOOKUP($S12+14,rate_basefnd,10))) *$R12 -> 530.99331 | AC12: =(($C12*'fnd base rates'!K$48) +($D12*'fnd base rates'!K$49) +($E12*'fnd base rates'!K$50) +($F12*'fnd base rates'!K$51) +($G12*'fnd base rates'!K$52) +($H12*'fnd base rates'!K$53) +($I12*'fnd base rates'!K$54) +($J12*'fnd base rates'!K$55) +($K12*'fnd base rates'!K$56) +($L12*'fnd base rates'!K$57) +($M12*'fnd base rates'!K$58) +($N12*'fnd base rates'!K$59) +(($O12+$P12)*VLOOKUP($S12+14,rate_basefnd,11))) *$R12 -> 1599.223299 | AD12: =(($C12*'fnd base rates'!L$48) +($D12*'fnd base rates'!L$49) +($E12*'fnd base rates'!L$50) +($F12*'fnd base rates'!L$51) +($G12*'fnd base rates'!L$52) +($H12*'fnd base rates'!L$53) +($I12*'fnd base rates'!L$54) +($J12*'fnd base rates'!L$55) +($K12*'fnd base rates'!L$56) +($L12*'fnd base rates'!L$57) +($M12*'fnd base rates'!L$58) +($N12*'fnd base rates'!L$59) +(($O12+$P12)*VLOOKUP($S12+14,rate_basefnd,12))) -> 1136.94075 | AE12: =(($C12*'fnd base rates'!M$48) +($D12*'fnd base rates'!M$49) +($E12*'fnd base rates'!M$50) +($F12*'fnd base rates'!M$51) +($G12*'fnd base rates'!M$52) +($H12*'fnd base rates'!M$53) +($I12*'fnd base rates'!M$54) +($J12*'fnd base rates'!M$55) +($K12*'fnd base rates'!M$56) +($L12*'fnd base rates'!M$57) +($M12*'fnd base rates'!M$58) +($N12*'fnd base rates'!M$59) +(($O12+$P12)*VLOOKUP($S12+14,rate_basefnd,13))) -> 0 | AF12: 14634.63532 | AH12: 410035044 | AI12: 410 | AJ12: 035 | AK12: 044 | AL12: 1 | AM12: 1 | AN12: 14634.63532 | AO12: 14635 | AP12: 0 | AQ12: 14635
A13: 410035057 | B13: EXCEL ACADEMY | C13: ='fnd enro'!C13 -> 0 | D13: ='fnd enro'!D13 -> 0 | E13: ='fnd enro'!E13 -> 0 | F13: ='fnd enro'!F13 -> 35 | G13: ='fnd enro'!G13 -> 77 | H13: ='fnd enro'!H13 -> 59 | I13: ='fnd enro'!I13 -> 7.5 | J13: ='fnd enro'!J13 -> 0 | K13: ='fnd enro'!K13 -> 0 | L13: ='fnd enro'!L13 -> 0 | M13: ='fnd enro'!M13 -> 29 | N13: ='fnd enro'!N13 -> 0 | O13: ='fnd enro'!O13 -> 66 | P13: ='fnd enro'!P13 -> 29 | Q13: ='fnd enro'!R13 -> 200 | R13: 1.077 | S13: 9 | U13: =(($C13*'fnd base rates'!C$48) +($D13*'fnd base rates'!C$49) +($E13*'fnd base rates'!C$50) +($F13*'fnd base rates'!C$51) +($G13*'fnd base rates'!C$52) +($H13*'fnd base rates'!C$53) +($I13*'fnd base rates'!C$54) +($J13*'fnd base rates'!C$55) +($K13*'fnd base rates'!C$56) +($L13*'fnd base rates'!C$57) +($M13*'fnd base rates'!C$58) +($N13*'fnd base rates'!C$59) +(($O13+$P13)*VLOOKUP($S13+14,rate_basefnd,3))) *$R13 -> 98698.38015 | V13: =(($C13*'fnd base rates'!D$48) +($D13*'fnd base rates'!D$49) +($E13*'fnd base rates'!D$50) +($F13*'fnd base rates'!D$51) +($G13*'fnd base rates'!D$52) +($H13*'fnd base rates'!D$53) +($I13*'fnd base rates'!D$54) +($J13*'fnd base rates'!D$55) +($K13*'fnd base rates'!D$56) +($L13*'fnd base rates'!D$57) +($M13*'fnd base rates'!D$58) +($N13*'fnd base rates'!D$59) +(($O13+$P13)*VLOOKUP($S13+14,rate_basefnd,4))) *$R13 -> 141608.268 | W13: =(($C13*'fnd base rates'!E$48) +($D13*'fnd base rates'!E$49) +($E13*'fnd base rates'!E$50) +($F13*'fnd base rates'!E$51) +($G13*'fnd base rates'!E$52) +($H13*'fnd base rates'!E$53) +($I13*'fnd base rates'!E$54) +($J13*'fnd base rates'!E$55) +($K13*'fnd base rates'!E$56) +($L13*'fnd base rates'!E$57) +($M13*'fnd base rates'!E$58) +($N13*'fnd base rates'!E$59) +(($O13+$P13)*VLOOKUP($S13+14,rate_basefnd,5))) *$R13 -> 1118114.362 | X13: =(($C13*'fnd base rates'!F$48) +($D13*'fnd base rates'!F$49) +($E13*'fnd base rates'!F$50) +($F13*'fnd base rates'!F$51) +($G13*'fnd base rates'!F$52) +($H13*'fnd base rates'!F$53) +($I13*'fnd base rates'!F$54) +($J13*'fnd base rates'!F$55) +($K13*'fnd base rates'!F$56) +($L13*'fnd base rates'!F$57) +($M13*'fnd base rates'!F$58) +($N13*'fnd base rates'!F$59) +(($O13+$P13)*VLOOKUP($S13+14,rate_basefnd,6))) *$R13 -> 186569.9378 | Y13: =(($C13*'fnd base rates'!G$48) +($D13*'fnd base rates'!G$49) +($E13*'fnd base rates'!G$50) +($F13*'fnd base rates'!G$51) +($G13*'fnd base rates'!G$52) +($H13*'fnd base rates'!G$53) +($I13*'fnd base rates'!G$54) +($J13*'fnd base rates'!G$55) +($K13*'fnd base rates'!G$56) +($L13*'fnd base rates'!G$57) +($M13*'fnd base rates'!G$58) +($N13*'fnd base rates'!G$59) +(($O13+$P13)*VLOOKUP($S13+14,rate_basefnd,7))) *$R13 -> 38677.68711 | Z13: =(($C13*'fnd base rates'!H$48) +($D13*'fnd base rates'!H$49) +($E13*'fnd base rates'!H$50) +($F13*'fnd base rates'!H$51) +($G13*'fnd base rates'!H$52) +($H13*'fnd base rates'!H$53) +($I13*'fnd base rates'!H$54) +($J13*'fnd base rates'!H$55) +($K13*'fnd base rates'!H$56) +($L13*'fnd base rates'!H$57) +($M13*'fnd base rates'!H$58) +($N13*'fnd base rates'!H$59) +(($O13+$P13)*VLOOKUP($S13+14,rate_basefnd,8))) -> 105325.485 | AA13: =(($C13*'fnd base rates'!I$48) +($D13*'fnd base rates'!I$49) +($E13*'fnd base rates'!I$50) +($F13*'fnd base rates'!I$51) +($G13*'fnd base rates'!I$52) +($H13*'fnd base rates'!I$53) +($I13*'fnd base rates'!I$54) +($J13*'fnd base rates'!I$55) +($K13*'fnd base rates'!I$56) +($L13*'fnd base rates'!I$57) +($M13*'fnd base rates'!I$58) +($N13*'fnd base rates'!I$59) +(($O13+$P13)*VLOOKUP($S13+14,rate_basefnd,9))) *$R13 -> 64860.94644 | AB13: =(($C13*'fnd base rates'!J$48) +($D13*'fnd base rates'!J$49) +($E13*'fnd base rates'!J$50) +($F13*'fnd base rates'!J$51) +($G13*'fnd base rates'!J$52) +($H13*'fnd base rates'!J$53) +($I13*'fnd base rates'!J$54) +($J13*'fnd base rates'!J$55) +($K13*'fnd base rates'!J$56) +($L13*'fnd base rates'!J$57) +($M13*'fnd base rates'!J$58) +($N13*'fnd base rates'!J$59) +(($O13+$P13)*VLOOKUP($S13+14,rate_basefnd,10))) *$R13 -> 58082.32998 | AC13: =(($C13*'fnd base rates'!K$48) +($D13*'fnd base rates'!K$49) +($E13*'fnd base rates'!K$50) +($F13*'fnd base rates'!K$51) +($G13*'fnd base rates'!K$52) +($H13*'fnd base rates'!K$53) +($I13*'fnd base rates'!K$54) +($J13*'fnd base rates'!K$55) +($K13*'fnd base rates'!K$56) +($L13*'fnd base rates'!K$57) +($M13*'fnd base rates'!K$58) +($N13*'fnd base rates'!K$59) +(($O13+$P13)*VLOOKUP($S13+14,rate_basefnd,11))) *$R13 -> 271424.1184 | AD13: =(($C13*'fnd base rates'!L$48) +($D13*'fnd base rates'!L$49) +($E13*'fnd base rates'!L$50) +($F13*'fnd base rates'!L$51) +($G13*'fnd base rates'!L$52) +($H13*'fnd base rates'!L$53) +($I13*'fnd base rates'!L$54) +($J13*'fnd base rates'!L$55) +($K13*'fnd base rates'!L$56) +($L13*'fnd base rates'!L$57) +($M13*'fnd base rates'!L$58) +($N13*'fnd base rates'!L$59) +(($O13+$P13)*VLOOKUP($S13+14,rate_basefnd,12))) -> 204591.65 | AE13: =(($C13*'fnd base rates'!M$48) +($D13*'fnd base rates'!M$49) +($E13*'fnd base rates'!M$50) +($F13*'fnd base rates'!M$51) +($G13*'fnd base rates'!M$52) +($H13*'fnd base rates'!M$53) +($I13*'fnd base rates'!M$54) +($J13*'fnd base rates'!M$55) +($K13*'fnd base rates'!M$56) +($L13*'fnd base rates'!M$57) +($M13*'fnd base rates'!M$58) +($N13*'fnd base rates'!M$59) +(($O13+$P13)*VLOOKUP($S13+14,rate_basefnd,13))) -> 0 | AF13: 2287953.165 | AH13: 410035057 | AI13: 410 | AJ13: 035 | AK13: 057 | AL13: 1 | AM13: 200 | AN13: 2287953.165 | AO13: 11440 | AP13: 0 | AQ13: 11440
A14: 410035093 | B14: EXCEL ACADEMY | C14: ='fnd enro'!C14 -> 0 | D14: ='fnd enro'!D14 -> 0 | E14: ='fnd enro'!E14 -> 0 | F14: ='fnd enro'!F14 -> 0 | G14: ='fnd enro'!G14 -> 3 | H14: ='fnd enro'!H14 -> 2 | I14: ='fnd enro'!I14 -> 0.1875 | J14: ='fnd enro'!J14 -> 0 | K14: ='fnd enro'!K14 -> 0 | L14: ='fnd enro'!L14 -> 0 | M14: ='fnd enro'!M14 -> 0 | N14: ='fnd enro'!N14 -> 0 | O14: ='fnd enro'!O14 -> 1 | P14: ='fnd enro'!P14 -> 1 | Q14: ='fnd enro'!R14 -> 5 | R14: 1.077 | S14: 9 | U14: =(($C14*'fnd base rates'!C$48) +($D14*'fnd base rates'!C$49) +($E14*'fnd base rates'!C$50) +($F14*'fnd base rates'!C$51) +($G14*'fnd base rates'!C$52) +($H14*'fnd base rates'!C$53) +($I14*'fnd base rates'!C$54) +($J14*'fnd base rates'!C$55) +($K14*'fnd base rates'!C$56) +($L14*'fnd base rates'!C$57) +($M14*'fnd base rates'!C$58) +($N14*'fnd base rates'!C$59) +(($O14+$P14)*VLOOKUP($S14+14,rate_basefnd,3))) *$R14 -> 2467.459504 | V14: =(($C14*'fnd base rates'!D$48) +($D14*'fnd base rates'!D$49) +($E14*'fnd base rates'!D$50) +($F14*'fnd base rates'!D$51) +($G14*'fnd base rates'!D$52) +($H14*'fnd base rates'!D$53) +($I14*'fnd base rates'!D$54) +($J14*'fnd base rates'!D$55) +($K14*'fnd base rates'!D$56) +($L14*'fnd base rates'!D$57) +($M14*'fnd base rates'!D$58) +($N14*'fnd base rates'!D$59) +(($O14+$P14)*VLOOKUP($S14+14,rate_basefnd,4))) *$R14 -> 3540.2067 | W14: =(($C14*'fnd base rates'!E$48) +($D14*'fnd base rates'!E$49) +($E14*'fnd base rates'!E$50) +($F14*'fnd base rates'!E$51) +($G14*'fnd base rates'!E$52) +($H14*'fnd base rates'!E$53) +($I14*'fnd base rates'!E$54) +($J14*'fnd base rates'!E$55) +($K14*'fnd base rates'!E$56) +($L14*'fnd base rates'!E$57) +($M14*'fnd base rates'!E$58) +($N14*'fnd base rates'!E$59) +(($O14+$P14)*VLOOKUP($S14+14,rate_basefnd,5))) *$R14 -> 25550.11594 | X14: =(($C14*'fnd base rates'!F$48) +($D14*'fnd base rates'!F$49) +($E14*'fnd base rates'!F$50) +($F14*'fnd base rates'!F$51) +($G14*'fnd base rates'!F$52) +($H14*'fnd base rates'!F$53) +($I14*'fnd base rates'!F$54) +($J14*'fnd base rates'!F$55) +($K14*'fnd base rates'!F$56) +($L14*'fnd base rates'!F$57) +($M14*'fnd base rates'!F$58) +($N14*'fnd base rates'!F$59) +(($O14+$P14)*VLOOKUP($S14+14,rate_basefnd,6))) *$R14 -> 4359.263854 | Y14: =(($C14*'fnd base rates'!G$48) +($D14*'fnd base rates'!G$49) +($E14*'fnd base rates'!G$50) +($F14*'fnd base rates'!G$51) +($G14*'fnd base rates'!G$52) +($H14*'fnd base rates'!G$53) +($I14*'fnd base rates'!G$54) +($J14*'fnd base rates'!G$55) +($K14*'fnd base rates'!G$56) +($L14*'fnd base rates'!G$57) +($M14*'fnd base rates'!G$58) +($N14*'fnd base rates'!G$59) +(($O14+$P14)*VLOOKUP($S14+14,rate_basefnd,7))) *$R14 -> 920.5778662 | Z14: =(($C14*'fnd base rates'!H$48) +($D14*'fnd base rates'!H$49) +($E14*'fnd base rates'!H$50) +($F14*'fnd base rates'!H$51) +($G14*'fnd base rates'!H$52) +($H14*'fnd base rates'!H$53) +($I14*'fnd base rates'!H$54) +($J14*'fnd base rates'!H$55) +($K14*'fnd base rates'!H$56) +($L14*'fnd base rates'!H$57) +($M14*'fnd base rates'!H$58) +($N14*'fnd base rates'!H$59) +(($O14+$P14)*VLOOKUP($S14+14,rate_basefnd,8))) -> 2770.576875 | AA14: =(($C14*'fnd base rates'!I$48) +($D14*'fnd base rates'!I$49) +($E14*'fnd base rates'!I$50) +($F14*'fnd base rates'!I$51) +($G14*'fnd base rates'!I$52) +($H14*'fnd base rates'!I$53) +($I14*'fnd base rates'!I$54) +($J14*'fnd base rates'!I$55) +($K14*'fnd base rates'!I$56) +($L14*'fnd base rates'!I$57) +($M14*'fnd base rates'!I$58) +($N14*'fnd base rates'!I$59) +(($O14+$P14)*VLOOKUP($S14+14,rate_basefnd,9))) *$R14 -> 1731.82677 | AB14: =(($C14*'fnd base rates'!J$48) +($D14*'fnd base rates'!J$49) +($E14*'fnd base rates'!J$50) +($F14*'fnd base rates'!J$51) +($G14*'fnd base rates'!J$52) +($H14*'fnd base rates'!J$53) +($I14*'fnd base rates'!J$54) +($J14*'fnd base rates'!J$55) +($K14*'fnd base rates'!J$56) +($L14*'fnd base rates'!J$57) +($M14*'fnd base rates'!J$58) +($N14*'fnd base rates'!J$59) +(($O14+$P14)*VLOOKUP($S14+14,rate_basefnd,10))) *$R14 -> 1752.80673 | AC14: =(($C14*'fnd base rates'!K$48) +($D14*'fnd base rates'!K$49) +($E14*'fnd base rates'!K$50) +($F14*'fnd base rates'!K$51) +($G14*'fnd base rates'!K$52) +($H14*'fnd base rates'!K$53) +($I14*'fnd base rates'!K$54) +($J14*'fnd base rates'!K$55) +($K14*'fnd base rates'!K$56) +($L14*'fnd base rates'!K$57) +($M14*'fnd base rates'!K$58) +($N14*'fnd base rates'!K$59) +(($O14+$P14)*VLOOKUP($S14+14,rate_basefnd,11))) *$R14 -> 6460.260645 | AD14: =(($C14*'fnd base rates'!L$48) +($D14*'fnd base rates'!L$49) +($E14*'fnd base rates'!L$50) +($F14*'fnd base rates'!L$51) +($G14*'fnd base rates'!L$52) +($H14*'fnd base rates'!L$53) +($I14*'fnd base rates'!L$54) +($J14*'fnd base rates'!L$55) +($K14*'fnd base rates'!L$56) +($L14*'fnd base rates'!L$57) +($M14*'fnd base rates'!L$58) +($N14*'fnd base rates'!L$59) +(($O14+$P14)*VLOOKUP($S14+14,rate_basefnd,12))) -> 4777.50375 | AE14: =(($C14*'fnd base rates'!M$48) +($D14*'fnd base rates'!M$49) +($E14*'fnd base rates'!M$50) +($F14*'fnd base rates'!M$51) +($G14*'fnd base rates'!M$52) +($H14*'fnd base rates'!M$53) +($I14*'fnd base rates'!M$54) +($J14*'fnd base rates'!M$55) +($K14*'fnd base rates'!M$56) +($L14*'fnd base rates'!M$57) +($M14*'fnd base rates'!M$58) +($N14*'fnd base rates'!M$59) +(($O14+$P14)*VLOOKUP($S14+14,rate_basefnd,13))) -> 0 | AF14: 54330.59863 | AH14: 410035093 | AI14: 410 | AJ14: 035 | AK14: 093 | AL14: 1 | AM14: 5 | AN14: 54330.59863 | AO14: 10866 | AP14: 0 | AQ14: 10866
A15: 410035155 | B15: EXCEL ACADEMY | C15: ='fnd enro'!C15 -> 0 | D15: ='fnd enro'!D15 -> 0 | E15: ='fnd enro'!E15 -> 0 | F15: ='fnd enro'!F15 -> 0 | G15: ='fnd enro'!G15 -> 0 | H15: ='fnd enro'!H15 -> 1 | I15: ='fnd enro'!I15 -> 0.0375 | J15: ='fnd enro'!J15 -> 0 | K15: ='fnd enro'!K15 -> 0 | L15: ='fnd enro'!L15 -> 0 | M15: ='fnd enro'!M15 -> 0 | N15: ='fnd enro'!N15 -> 0 | O15: ='fnd enro'!O15 -> 0 | P15: ='fnd enro'!P15 -> 1 | Q15: ='fnd enro'!R15 -> 1 | R15: 1.077 | S15: 10 | U15: =(($C15*'fnd base rates'!C$48) +($D15*'fnd base rates'!C$49) +($E15*'fnd base rates'!C$50) +($F15*'fnd base rates'!C$51) +($G15*'fnd base rates'!C$52) +($H15*'fnd base rates'!C$53) +($I15*'fnd base rates'!C$54) +($J15*'fnd base rates'!C$55) +($K15*'fnd base rates'!C$56) +($L15*'fnd base rates'!C$57) +($M15*'fnd base rates'!C$58) +($N15*'fnd base rates'!C$59) +(($O15+$P15)*VLOOKUP($S15+14,rate_basefnd,3))) *$R15 -> 493.4919007 | V15: =(($C15*'fnd base rates'!D$48) +($D15*'fnd base rates'!D$49) +($E15*'fnd base rates'!D$50) +($F15*'fnd base rates'!D$51) +($G15*'fnd base rates'!D$52) +($H15*'fnd base rates'!D$53) +($I15*'fnd base rates'!D$54) +($J15*'fnd base rates'!D$55) +($K15*'fnd base rates'!D$56) +($L15*'fnd base rates'!D$57) +($M15*'fnd base rates'!D$58) +($N15*'fnd base rates'!D$59) +(($O15+$P15)*VLOOKUP($S15+14,rate_basefnd,4))) *$R15 -> 708.04134 | W15: =(($C15*'fnd base rates'!E$48) +($D15*'fnd base rates'!E$49) +($E15*'fnd base rates'!E$50) +($F15*'fnd base rates'!E$51) +($G15*'fnd base rates'!E$52) +($H15*'fnd base rates'!E$53) +($I15*'fnd base rates'!E$54) +($J15*'fnd base rates'!E$55) +($K15*'fnd base rates'!E$56) +($L15*'fnd base rates'!E$57) +($M15*'fnd base rates'!E$58) +($N15*'fnd base rates'!E$59) +(($O15+$P15)*VLOOKUP($S15+14,rate_basefnd,5))) *$R15 -> 8021.042179 | X15: =(($C15*'fnd base rates'!F$48) +($D15*'fnd base rates'!F$49) +($E15*'fnd base rates'!F$50) +($F15*'fnd base rates'!F$51) +($G15*'fnd base rates'!F$52) +($H15*'fnd base rates'!F$53) +($I15*'fnd base rates'!F$54) +($J15*'fnd base rates'!F$55) +($K15*'fnd base rates'!F$56) +($L15*'fnd base rates'!F$57) +($M15*'fnd base rates'!F$58) +($N15*'fnd base rates'!F$59) +(($O15+$P15)*VLOOKUP($S15+14,rate_basefnd,6))) *$R15 -> 811.6204687 | Y15: =(($C15*'fnd base rates'!G$48) +($D15*'fnd base rates'!G$49) +($E15*'fnd base rates'!G$50) +($F15*'fnd base rates'!G$51) +($G15*'fnd base rates'!G$52) +($H15*'fnd base rates'!G$53) +($I15*'fnd base rates'!G$54) +($J15*'fnd base rates'!G$55) +($K15*'fnd base rates'!G$56) +($L15*'fnd base rates'!G$57) +($M15*'fnd base rates'!G$58) +($N15*'fnd base rates'!G$59) +(($O15+$P15)*VLOOKUP($S15+14,rate_basefnd,7))) *$R15 -> 227.8891613 | Z15: =(($C15*'fnd base rates'!H$48) +($D15*'fnd base rates'!H$49) +($E15*'fnd base rates'!H$50) +($F15*'fnd base rates'!H$51) +($G15*'fnd base rates'!H$52) +($H15*'fnd base rates'!H$53) +($I15*'fnd base rates'!H$54) +($J15*'fnd base rates'!H$55) +($K15*'fnd base rates'!H$56) +($L15*'fnd base rates'!H$57) +($M15*'fnd base rates'!H$58) +($N15*'fnd base rates'!H$59) +(($O15+$P15)*VLOOKUP($S15+14,rate_basefnd,8))) -> 711.189375 | AA15: =(($C15*'fnd base rates'!I$48) +($D15*'fnd base rates'!I$49) +($E15*'fnd base rates'!I$50) +($F15*'fnd base rates'!I$51) +($G15*'fnd base rates'!I$52) +($H15*'fnd base rates'!I$53) +($I15*'fnd base rates'!I$54) +($J15*'fnd base rates'!I$55) +($K15*'fnd base rates'!I$56) +($L15*'fnd base rates'!I$57) +($M15*'fnd base rates'!I$58) +($N15*'fnd base rates'!I$59) +(($O15+$P15)*VLOOKUP($S15+14,rate_basefnd,9))) *$R15 -> 394.20354 | AB15: =(($C15*'fnd base rates'!J$48) +($D15*'fnd base rates'!J$49) +($E15*'fnd base rates'!J$50) +($F15*'fnd base rates'!J$51) +($G15*'fnd base rates'!J$52) +($H15*'fnd base rates'!J$53) +($I15*'fnd base rates'!J$54) +($J15*'fnd base rates'!J$55) +($K15*'fnd base rates'!J$56) +($L15*'fnd base rates'!J$57) +($M15*'fnd base rates'!J$58) +($N15*'fnd base rates'!J$59) +(($O15+$P15)*VLOOKUP($S15+14,rate_basefnd,10))) *$R15 -> 530.99331 | AC15: =(($C15*'fnd base rates'!K$48) +($D15*'fnd base rates'!K$49) +($E15*'fnd base rates'!K$50) +($F15*'fnd base rates'!K$51) +($G15*'fnd base rates'!K$52) +($H15*'fnd base rates'!K$53) +($I15*'fnd base rates'!K$54) +($J15*'fnd base rates'!K$55) +($K15*'fnd base rates'!K$56) +($L15*'fnd base rates'!K$57) +($M15*'fnd base rates'!K$58) +($N15*'fnd base rates'!K$59) +(($O15+$P15)*VLOOKUP($S15+14,rate_basefnd,11))) *$R15 -> 1599.223299 | AD15: =(($C15*'fnd base rates'!L$48) +($D15*'fnd base rates'!L$49) +($E15*'fnd base rates'!L$50) +($F15*'fnd base rates'!L$51) +($G15*'fnd base rates'!L$52) +($H15*'fnd base rates'!L$53) +($I15*'fnd base rates'!L$54) +($J15*'fnd base rates'!L$55) +($K15*'fnd base rates'!L$56) +($L15*'fnd base rates'!L$57) +($M15*'fnd base rates'!L$58) +($N15*'fnd base rates'!L$59) +(($O15+$P15)*VLOOKUP($S15+14,rate_basefnd,12))) -> 1136.94075 | AE15: =(($C15*'fnd base rates'!M$48) +($D15*'fnd base rates'!M$49) +($E15*'fnd base rates'!M$50) +($F15*'fnd base rates'!M$51) +($G15*'fnd base rates'!M$52) +($H15*'fnd base rates'!M$53) +($I15*'fnd base rates'!M$54) +($J15*'fnd base rates'!M$55) +($K15*'fnd base rates'!M$56) +($L15*'fnd base rates'!M$57) +($M15*'fnd base rates'!M$58) +($N15*'fnd base rates'!M$59) +(($O15+$P15)*VLOOKUP($S15+14,rate_basefnd,13))) -> 0 | AF15: 14634.63532 | AH15: 410035155 | AI15: 410 | AJ15: 035 | AK15: 155 | AL15: 1 | AM15: 1 | AN15: 14634.63532 | AO15: 14635 | AP15: 0 | AQ15: 14635
A16: 410035160 | B16: EXCEL ACADEMY | C16: ='fnd enro'!C16 -> 0 | D16: ='fnd enro'!D16 -> 0 | E16: ='fnd enro'!E16 -> 0 | F16: ='fnd enro'!F16 -> 0 | G16: ='fnd enro'!G16 -> 0 | H16: ='fnd enro'!H16 -> 1 | I16: ='fnd enro'!I16 -> 0.0375 | J16: ='fnd enro'!J16 -> 0 | K16: ='fnd enro'!K16 -> 0 | L16: ='fnd enro'!L16 -> 0 | M16: ='fnd enro'!M16 -> 0 | N16: ='fnd enro'!N16 -> 0 | O16: ='fnd enro'!O16 -> 0 | P16: ='fnd enro'!P16 -> 0 | Q16: ='fnd enro'!R16 -> 1 | R16: 1.077 | S16: 1 | U16: =(($C16*'fnd base rates'!C$48) +($D16*'fnd base rates'!C$49) +($E16*'fnd base rates'!C$50) +($F16*'fnd base rates'!C$51) +($G16*'fnd base rates'!C$52) +($H16*'fnd base rates'!C$53) +($I16*'fnd base rates'!C$54) +($J16*'fnd base rates'!C$55) +($K16*'fnd base rates'!C$56) +($L16*'fnd base rates'!C$57) +($M16*'fnd base rates'!C$58) +($N16*'fnd base rates'!C$59) +(($O16+$P16)*VLOOKUP($S16+14,rate_basefnd,3))) *$R16 -> 493.4919007 | V16: =(($C16*'fnd base rates'!D$48) +($D16*'fnd base rates'!D$49) +($E16*'fnd base rates'!D$50) +($F16*'fnd base rates'!D$51) +($G16*'fnd base rates'!D$52) +($H16*'fnd base rates'!D$53) +($I16*'fnd base rates'!D$54) +($J16*'fnd base rates'!D$55) +($K16*'fnd base rates'!D$56) +($L16*'fnd base rates'!D$57) +($M16*'fnd base rates'!D$58) +($N16*'fnd base rates'!D$59) +(($O16+$P16)*VLOOKUP($S16+14,rate_basefnd,4))) *$R16 -> 708.04134 | W16: =(($C16*'fnd base rates'!E$48) +($D16*'fnd base rates'!E$49) +($E16*'fnd base rates'!E$50) +($F16*'fnd base rates'!E$51) +($G16*'fnd base rates'!E$52) +($H16*'fnd base rates'!E$53) +($I16*'fnd base rates'!E$54) +($J16*'fnd base rates'!E$55) +($K16*'fnd base rates'!E$56) +($L16*'fnd base rates'!E$57) +($M16*'fnd base rates'!E$58) +($N16*'fnd base rates'!E$59) +(($O16+$P16)*VLOOKUP($S16+14,rate_basefnd,5))) *$R16 -> 4536.279439 | X16: =(($C16*'fnd base rates'!F$48) +($D16*'fnd base rates'!F$49) +($E16*'fnd base rates'!F$50) +($F16*'fnd base rates'!F$51) +($G16*'fnd base rates'!F$52) +($H16*'fnd base rates'!F$53) +($I16*'fnd base rates'!F$54) +($J16*'fnd base rates'!F$55) +($K16*'fnd base rates'!F$56) +($L16*'fnd base rates'!F$57) +($M16*'fnd base rates'!F$58) +($N16*'fnd base rates'!F$59) +(($O16+$P16)*VLOOKUP($S16+14,rate_basefnd,6))) *$R16 -> 811.6204687 | Y16: =(($C16*'fnd base rates'!G$48) +($D16*'fnd base rates'!G$49) +($E16*'fnd base rates'!G$50) +($F16*'fnd base rates'!G$51) +($G16*'fnd base rates'!G$52) +($H16*'fnd base rates'!G$53) +($I16*'fnd base rates'!G$54) +($J16*'fnd base rates'!G$55) +($K16*'fnd base rates'!G$56) +($L16*'fnd base rates'!G$57) +($M16*'fnd base rates'!G$58) +($N16*'fnd base rates'!G$59) +(($O16+$P16)*VLOOKUP($S16+14,rate_basefnd,7))) *$R16 -> 151.1959912 | Z16: =(($C16*'fnd base rates'!H$48) +($D16*'fnd base rates'!H$49) +($E16*'fnd base rates'!H$50) +($F16*'fnd base rates'!H$51) +($G16*'fnd base rates'!H$52) +($H16*'fnd base rates'!H$53) +($I16*'fnd base rates'!H$54) +($J16*'fnd base rates'!H$55) +($K16*'fnd base rates'!H$56) +($L16*'fnd base rates'!H$57) +($M16*'fnd base rates'!H$58) +($N16*'fnd base rates'!H$59) +(($O16+$P16)*VLOOKUP($S16+14,rate_basefnd,8))) -> 711.189375 | AA16: =(($C16*'fnd base rates'!I$48) +($D16*'fnd base rates'!I$49) +($E16*'fnd base rates'!I$50) +($F16*'fnd base rates'!I$51) +($G16*'fnd base rates'!I$52) +($H16*'fnd base rates'!I$53) +($I16*'fnd base rates'!I$54) +($J16*'fnd base rates'!I$55) +($K16*'fnd base rates'!I$56) +($L16*'fnd base rates'!I$57) +($M16*'fnd base rates'!I$58) +($N16*'fnd base rates'!I$59) +(($O16+$P16)*VLOOKUP($S16+14,rate_basefnd,9))) *$R16 -> 394.20354 | AB16: =(($C16*'fnd base rates'!J$48) +($D16*'fnd base rates'!J$49) +($E16*'fnd base rates'!J$50) +($F16*'fnd base rates'!J$51) +($G16*'fnd base rates'!J$52) +($H16*'fnd base rates'!J$53) +($I16*'fnd base rates'!J$54) +($J16*'fnd base rates'!J$55) +($K16*'fnd base rates'!J$56) +($L16*'fnd base rates'!J$57) +($M16*'fnd base rates'!J$58) +($N16*'fnd base rates'!J$59) +(($O16+$P16)*VLOOKUP($S16+14,rate_basefnd,10))) *$R16 -> 530.99331 | AC16: =(($C16*'fnd base rates'!K$48) +($D16*'fnd base rates'!K$49) +($E16*'fnd base rates'!K$50) +($F16*'fnd base rates'!K$51) +($G16*'fnd base rates'!K$52) +($H16*'fnd base rates'!K$53) +($I16*'fnd base rates'!K$54) +($J16*'fnd base rates'!K$55) +($K16*'fnd base rates'!K$56) +($L16*'fnd base rates'!K$57) +($M16*'fnd base rates'!K$58) +($N16*'fnd base rates'!K$59) +(($O16+$P16)*VLOOKUP($S16+14,rate_basefnd,11))) *$R16 -> 1061.024859 | AD16: =(($C16*'fnd base rates'!L$48) +($D16*'fnd base rates'!L$49) +($E16*'fnd base rates'!L$50) +($F16*'fnd base rates'!L$51) +($G16*'fnd base rates'!L$52) +($H16*'fnd base rates'!L$53) +($I16*'fnd base rates'!L$54) +($J16*'fnd base rates'!L$55) +($K16*'fnd base rates'!L$56) +($L16*'fnd base rates'!L$57) +($M16*'fnd base rates'!L$58) +($N16*'fnd base rates'!L$59) +(($O16+$P16)*VLOOKUP($S16+14,rate_basefnd,12))) -> 808.49075 | AE16: =(($C16*'fnd base rates'!M$48) +($D16*'fnd base rates'!M$49) +($E16*'fnd base rates'!M$50) +($F16*'fnd base rates'!M$51) +($G16*'fnd base rates'!M$52) +($H16*'fnd base rates'!M$53) +($I16*'fnd base rates'!M$54) +($J16*'fnd base rates'!M$55) +($K16*'fnd base rates'!M$56) +($L16*'fnd base rates'!M$57) +($M16*'fnd base rates'!M$58) +($N16*'fnd base rates'!M$59) +(($O16+$P16)*VLOOKUP($S16+14,rate_basefnd,13))) -> 0 | AF16: 10206.53097 | AH16: 410035160 | AI16: 410 | AJ16: 035 | AK16: 160 | AL16: 1 | AM16: 1 | AN16: 10206.53097 | AO16: 10207 | AP16: 0 | AQ16: 10207
A17: 410035163 | B17: EXCEL ACADEMY | C17: ='fnd enro'!C17 -> 0 | D17: ='fnd enro'!D17 -> 0 | E17: ='fnd enro'!E17 -> 0 | F17: ='fnd enro'!F17 -> 0 | G17: ='fnd enro'!G17 -> 3 | H17: ='fnd enro'!H17 -> 1 | I17: ='fnd enro'!I17 -> 0.1875 | J17: ='fnd enro'!J17 -> 0 | K17: ='fnd enro'!K17 -> 0 | L17: ='fnd enro'!L17 -> 0 | M17: ='fnd enro'!M17 -> 1 | N17: ='fnd enro'!N17 -> 0 | O17: ='fnd enro'!O17 -> 2 | P17: ='fnd enro'!P17 -> 1 | Q17: ='fnd enro'!R17 -> 5 | R17: 1.077 | S17: 10 | U17: =(($C17*'fnd base rates'!C$48) +($D17*'fnd base rates'!C$49) +($E17*'fnd base rates'!C$50) +($F17*'fnd base rates'!C$51) +($G17*'fnd base rates'!C$52) +($H17*'fnd base rates'!C$53) +($I17*'fnd base rates'!C$54) +($J17*'fnd base rates'!C$55) +($K17*'fnd base rates'!C$56) +($L17*'fnd base rates'!C$57) +($M17*'fnd base rates'!C$58) +($N17*'fnd base rates'!C$59) +(($O17+$P17)*VLOOKUP($S17+14,rate_basefnd,3))) *$R17 -> 2467.459504 | V17: =(($C17*'fnd base rates'!D$48) +($D17*'fnd base rates'!D$49) +($E17*'fnd base rates'!D$50) +($F17*'fnd base rates'!D$51) +($G17*'fnd base rates'!D$52) +($H17*'fnd base rates'!D$53) +($I17*'fnd base rates'!D$54) +($J17*'fnd base rates'!D$55) +($K17*'fnd base rates'!D$56) +($L17*'fnd base rates'!D$57) +($M17*'fnd base rates'!D$58) +($N17*'fnd base rates'!D$59) +(($O17+$P17)*VLOOKUP($S17+14,rate_basefnd,4))) *$R17 -> 3540.2067 | W17: =(($C17*'fnd base rates'!E$48) +($D17*'fnd base rates'!E$49) +($E17*'fnd base rates'!E$50) +($F17*'fnd base rates'!E$51) +($G17*'fnd base rates'!E$52) +($H17*'fnd base rates'!E$53) +($I17*'fnd base rates'!E$54) +($J17*'fnd base rates'!E$55) +($K17*'fnd base rates'!E$56) +($L17*'fnd base rates'!E$57) +($M17*'fnd base rates'!E$58) +($N17*'fnd base rates'!E$59) +(($O17+$P17)*VLOOKUP($S17+14,rate_basefnd,5))) *$R17 -> 29790.34033 | X17: =(($C17*'fnd base rates'!F$48) +($D17*'fnd base rates'!F$49) +($E17*'fnd base rates'!F$50) +($F17*'fnd base rates'!F$51) +($G17*'fnd base rates'!F$52) +($H17*'fnd base rates'!F$53) +($I17*'fnd base rates'!F$54) +($J17*'fnd base rates'!F$55) +($K17*'fnd base rates'!F$56) +($L17*'fnd base rates'!F$57) +($M17*'fnd base rates'!F$58) +($N17*'fnd base rates'!F$59) +(($O17+$P17)*VLOOKUP($S17+14,rate_basefnd,6))) *$R17 -> 4526.069614 | Y17: =(($C17*'fnd base rates'!G$48) +($D17*'fnd base rates'!G$49) +($E17*'fnd base rates'!G$50) +($F17*'fnd base rates'!G$51) +($G17*'fnd base rates'!G$52) +($H17*'fnd base rates'!G$53) +($I17*'fnd base rates'!G$54) +($J17*'fnd base rates'!G$55) +($K17*'fnd base rates'!G$56) +($L17*'fnd base rates'!G$57) +($M17*'fnd base rates'!G$58) +($N17*'fnd base rates'!G$59) +(($O17+$P17)*VLOOKUP($S17+14,rate_basefnd,7))) *$R17 -> 1037.615456 | Z17: =(($C17*'fnd base rates'!H$48) +($D17*'fnd base rates'!H$49) +($E17*'fnd base rates'!H$50) +($F17*'fnd base rates'!H$51) +($G17*'fnd base rates'!H$52) +($H17*'fnd base rates'!H$53) +($I17*'fnd base rates'!H$54) +($J17*'fnd base rates'!H$55) +($K17*'fnd base rates'!H$56) +($L17*'fnd base rates'!H$57) +($M17*'fnd base rates'!H$58) +($N17*'fnd base rates'!H$59) +(($O17+$P17)*VLOOKUP($S17+14,rate_basefnd,8))) -> 2508.786875 | AA17: =(($C17*'fnd base rates'!I$48) +($D17*'fnd base rates'!I$49) +($E17*'fnd base rates'!I$50) +($F17*'fnd base rates'!I$51) +($G17*'fnd base rates'!I$52) +($H17*'fnd base rates'!I$53) +($I17*'fnd base rates'!I$54) +($J17*'fnd base rates'!I$55) +($K17*'fnd base rates'!I$56) +($L17*'fnd base rates'!I$57) +($M17*'fnd base rates'!I$58) +($N17*'fnd base rates'!I$59) +(($O17+$P17)*VLOOKUP($S17+14,rate_basefnd,9))) *$R17 -> 1652.09646 | AB17: =(($C17*'fnd base rates'!J$48) +($D17*'fnd base rates'!J$49) +($E17*'fnd base rates'!J$50) +($F17*'fnd base rates'!J$51) +($G17*'fnd base rates'!J$52) +($H17*'fnd base rates'!J$53) +($I17*'fnd base rates'!J$54) +($J17*'fnd base rates'!J$55) +($K17*'fnd base rates'!J$56) +($L17*'fnd base rates'!J$57) +($M17*'fnd base rates'!J$58) +($N17*'fnd base rates'!J$59) +(($O17+$P17)*VLOOKUP($S17+14,rate_basefnd,10))) *$R17 -> 1362.79272 | AC17: =(($C17*'fnd base rates'!K$48) +($D17*'fnd base rates'!K$49) +($E17*'fnd base rates'!K$50) +($F17*'fnd base rates'!K$51) +($G17*'fnd base rates'!K$52) +($H17*'fnd base rates'!K$53) +($I17*'fnd base rates'!K$54) +($J17*'fnd base rates'!K$55) +($K17*'fnd base rates'!K$56) +($L17*'fnd base rates'!K$57) +($M17*'fnd base rates'!K$58) +($N17*'fnd base rates'!K$59) +(($O17+$P17)*VLOOKUP($S17+14,rate_basefnd,11))) *$R17 -> 7281.667005 | AD17: =(($C17*'fnd base rates'!L$48) +($D17*'fnd base rates'!L$49) +($E17*'fnd base rates'!L$50) +($F17*'fnd base rates'!L$51) +($G17*'fnd base rates'!L$52) +($H17*'fnd base rates'!L$53) +($I17*'fnd base rates'!L$54) +($J17*'fnd base rates'!L$55) +($K17*'fnd base rates'!L$56) +($L17*'fnd base rates'!L$57) +($M17*'fnd base rates'!L$58) +($N17*'fnd base rates'!L$59) +(($O17+$P17)*VLOOKUP($S17+14,rate_basefnd,12))) -> 5372.25375 | AE17: =(($C17*'fnd base rates'!M$48) +($D17*'fnd base rates'!M$49) +($E17*'fnd base rates'!M$50) +($F17*'fnd base rates'!M$51) +($G17*'fnd base rates'!M$52) +($H17*'fnd base rates'!M$53) +($I17*'fnd base rates'!M$54) +($J17*'fnd base rates'!M$55) +($K17*'fnd base rates'!M$56) +($L17*'fnd base rates'!M$57) +($M17*'fnd base rates'!M$58) +($N17*'fnd base rates'!M$59) +(($O17+$P17)*VLOOKUP($S17+14,rate_basefnd,13))) -> 0 | AF17: 59539.28841 | AH17: 410035163 | AI17: 410 | AJ17: 035 | AK17: 163 | AL17: 1 | AM17: 5 | AN17: 59539.28841 | AO17: 11908 | AP17: 0 | AQ17: 11908
A18: 410035248 | B18: EXCEL ACADEMY | C18: ='fnd enro'!C18 -> 0 | D18: ='fnd enro'!D18 -> 0 | E18: ='fnd enro'!E18 -> 0 | F18: ='fnd enro'!F18 -> 2 | G18: ='fnd enro'!G18 -> 6 | H18: ='fnd enro'!H18 -> 4 | I18: ='fnd enro'!I18 -> 0.525 | J18: ='fnd enro'!J18 -> 0 | K18: ='fnd enro'!K18 -> 0 | L18: ='fnd enro'!L18 -> 0 | M18: ='fnd enro'!M18 -> 2 | N18: ='fnd enro'!N18 -> 0 | O18: ='fnd enro'!O18 -> 5 | P18: ='fnd enro'!P18 -> 1 | Q18: ='fnd enro'!R18 -> 14 | R18: 1.077 | S18: 9 | U18: =(($C18*'fnd base rates'!C$48) +($D18*'fnd base rates'!C$49) +($E18*'fnd base rates'!C$50) +($F18*'fnd base rates'!C$51) +($G18*'fnd base rates'!C$52) +($H18*'fnd base rates'!C$53) +($I18*'fnd base rates'!C$54) +($J18*'fnd base rates'!C$55) +($K18*'fnd base rates'!C$56) +($L18*'fnd base rates'!C$57) +($M18*'fnd base rates'!C$58) +($N18*'fnd base rates'!C$59) +(($O18+$P18)*VLOOKUP($S18+14,rate_basefnd,3))) *$R18 -> 6908.88661 | V18: =(($C18*'fnd base rates'!D$48) +($D18*'fnd base rates'!D$49) +($E18*'fnd base rates'!D$50) +($F18*'fnd base rates'!D$51) +($G18*'fnd base rates'!D$52) +($H18*'fnd base rates'!D$53) +($I18*'fnd base rates'!D$54) +($J18*'fnd base rates'!D$55) +($K18*'fnd base rates'!D$56) +($L18*'fnd base rates'!D$57) +($M18*'fnd base rates'!D$58) +($N18*'fnd base rates'!D$59) +(($O18+$P18)*VLOOKUP($S18+14,rate_basefnd,4))) *$R18 -> 9912.57876 | W18: =(($C18*'fnd base rates'!E$48) +($D18*'fnd base rates'!E$49) +($E18*'fnd base rates'!E$50) +($F18*'fnd base rates'!E$51) +($G18*'fnd base rates'!E$52) +($H18*'fnd base rates'!E$53) +($I18*'fnd base rates'!E$54) +($J18*'fnd base rates'!E$55) +($K18*'fnd base rates'!E$56) +($L18*'fnd base rates'!E$57) +($M18*'fnd base rates'!E$58) +($N18*'fnd base rates'!E$59) +(($O18+$P18)*VLOOKUP($S18+14,rate_basefnd,5))) *$R18 -> 75613.75833 | X18: =(($C18*'fnd base rates'!F$48) +($D18*'fnd base rates'!F$49) +($E18*'fnd base rates'!F$50) +($F18*'fnd base rates'!F$51) +($G18*'fnd base rates'!F$52) +($H18*'fnd base rates'!F$53) +($I18*'fnd base rates'!F$54) +($J18*'fnd base rates'!F$55) +($K18*'fnd base rates'!F$56) +($L18*'fnd base rates'!F$57) +($M18*'fnd base rates'!F$58) +($N18*'fnd base rates'!F$59) +(($O18+$P18)*VLOOKUP($S18+14,rate_basefnd,6))) *$R18 -> 12965.97338 | Y18: =(($C18*'fnd base rates'!G$48) +($D18*'fnd base rates'!G$49) +($E18*'fnd base rates'!G$50) +($F18*'fnd base rates'!G$51) +($G18*'fnd base rates'!G$52) +($H18*'fnd base rates'!G$53) +($I18*'fnd base rates'!G$54) +($J18*'fnd base rates'!G$55) +($K18*'fnd base rates'!G$56) +($L18*'fnd base rates'!G$57) +($M18*'fnd base rates'!G$58) +($N18*'fnd base rates'!G$59) +(($O18+$P18)*VLOOKUP($S18+14,rate_basefnd,7))) *$R18 -> 2662.438237 | Z18: =(($C18*'fnd base rates'!H$48) +($D18*'fnd base rates'!H$49) +($E18*'fnd base rates'!H$50) +($F18*'fnd base rates'!H$51) +($G18*'fnd base rates'!H$52) +($H18*'fnd base rates'!H$53) +($I18*'fnd base rates'!H$54) +($J18*'fnd base rates'!H$55) +($K18*'fnd base rates'!H$56) +($L18*'fnd base rates'!H$57) +($M18*'fnd base rates'!H$58) +($N18*'fnd base rates'!H$59) +(($O18+$P18)*VLOOKUP($S18+14,rate_basefnd,8))) -> 7338.75125 | AA18: =(($C18*'fnd base rates'!I$48) +($D18*'fnd base rates'!I$49) +($E18*'fnd base rates'!I$50) +($F18*'fnd base rates'!I$51) +($G18*'fnd base rates'!I$52) +($H18*'fnd base rates'!I$53) +($I18*'fnd base rates'!I$54) +($J18*'fnd base rates'!I$55) +($K18*'fnd base rates'!I$56) +($L18*'fnd base rates'!I$57) +($M18*'fnd base rates'!I$58) +($N18*'fnd base rates'!I$59) +(($O18+$P18)*VLOOKUP($S18+14,rate_basefnd,9))) *$R18 -> 4565.10144 | AB18: =(($C18*'fnd base rates'!J$48) +($D18*'fnd base rates'!J$49) +($E18*'fnd base rates'!J$50) +($F18*'fnd base rates'!J$51) +($G18*'fnd base rates'!J$52) +($H18*'fnd base rates'!J$53) +($I18*'fnd base rates'!J$54) +($J18*'fnd base rates'!J$55) +($K18*'fnd base rates'!J$56) +($L18*'fnd base rates'!J$57) +($M18*'fnd base rates'!J$58) +($N18*'fnd base rates'!J$59) +(($O18+$P18)*VLOOKUP($S18+14,rate_basefnd,10))) *$R18 -> 4069.53066 | AC18: =(($C18*'fnd base rates'!K$48) +($D18*'fnd base rates'!K$49) +($E18*'fnd base rates'!K$50) +($F18*'fnd base rates'!K$51) +($G18*'fnd base rates'!K$52) +($H18*'fnd base rates'!K$53) +($I18*'fnd base rates'!K$54) +($J18*'fnd base rates'!K$55) +($K18*'fnd base rates'!K$56) +($L18*'fnd base rates'!K$57) +($M18*'fnd base rates'!K$58) +($N18*'fnd base rates'!K$59) +(($O18+$P18)*VLOOKUP($S18+14,rate_basefnd,11))) *$R18 -> 18683.94463 | AD18: =(($C18*'fnd base rates'!L$48) +($D18*'fnd base rates'!L$49) +($E18*'fnd base rates'!L$50) +($F18*'fnd base rates'!L$51) +($G18*'fnd base rates'!L$52) +($H18*'fnd base rates'!L$53) +($I18*'fnd base rates'!L$54) +($J18*'fnd base rates'!L$55) +($K18*'fnd base rates'!L$56) +($L18*'fnd base rates'!L$57) +($M18*'fnd base rates'!L$58) +($N18*'fnd base rates'!L$59) +(($O18+$P18)*VLOOKUP($S18+14,rate_basefnd,12))) -> 14089.9905 | AE18: =(($C18*'fnd base rates'!M$48) +($D18*'fnd base rates'!M$49) +($E18*'fnd base rates'!M$50) +($F18*'fnd base rates'!M$51) +($G18*'fnd base rates'!M$52) +($H18*'fnd base rates'!M$53) +($I18*'fnd base rates'!M$54) +($J18*'fnd base rates'!M$55) +($K18*'fnd base rates'!M$56) +($L18*'fnd base rates'!M$57) +($M18*'fnd base rates'!M$58) +($N18*'fnd base rates'!M$59) +(($O18+$P18)*VLOOKUP($S18+14,rate_basefnd,13))) -> 0 | AF18: 156810.9538 | AH18: 410035248 | AI18: 410 | AJ18: 035 | AK18: 248 | AL18: 1 | AM18: 14 | AN18: 156810.9538 | AO18: 11201 | AP18: 0 | AQ18: 11201
A19: 410035308 | B19: EXCEL ACADEMY | C19: ='fnd enro'!C19 -> 0 | D19: ='fnd enro'!D19 -> 0 | E19: ='fnd enro'!E19 -> 0 | F19: ='fnd enro'!F19 -> 0 | G19: ='fnd enro'!G19 -> 0 | H19: ='fnd enro'!H19 -> 1 | I19: ='fnd enro'!I19 -> 0.0375 | J19: ='fnd enro'!J19 -> 0 | K19: ='fnd enro'!K19 -> 0 | L19: ='fnd enro'!L19 -> 0 | M19: ='fnd enro'!M19 -> 0 | N19: ='fnd enro'!N19 -> 0 | O19: ='fnd enro'!O19 -> 0 | P19: ='fnd enro'!P19 -> 1 | Q19: ='fnd enro'!R19 -> 1 | R19: 1.077 | S19: 10 | U19: =(($C19*'fnd base rates'!C$48) +($D19*'fnd base rates'!C$49) +($E19*'fnd base rates'!C$50) +($F19*'fnd base rates'!C$51) +($G19*'fnd base rates'!C$52) +($H19*'fnd base rates'!C$53) +($I19*'fnd base rates'!C$54) +($J19*'fnd base rates'!C$55) +($K19*'fnd base rates'!C$56) +($L19*'fnd base rates'!C$57) +($M19*'fnd base rates'!C$58) +($N19*'fnd base rates'!C$59) +(($O19+$P19)*VLOOKUP($S19+14,rate_basefnd,3))) *$R19 -> 493.4919007 | V19: =(($C19*'fnd base rates'!D$48) +($D19*'fnd base rates'!D$49) +($E19*'fnd base rates'!D$50) +($F19*'fnd base rates'!D$51) +($G19*'fnd base rates'!D$52) +($H19*'fnd base rates'!D$53) +($I19*'fnd base rates'!D$54) +($J19*'fnd base rates'!D$55) +($K19*'fnd base rates'!D$56) +($L19*'fnd base rates'!D$57) +($M19*'fnd base rates'!D$58) +($N19*'fnd base rates'!D$59) +(($O19+$P19)*VLOOKUP($S19+14,rate_basefnd,4))) *$R19 -> 708.04134 | W19: =(($C19*'fnd base rates'!E$48) +($D19*'fnd base rates'!E$49) +($E19*'fnd base rates'!E$50) +($F19*'fnd base rates'!E$51) +($G19*'fnd base rates'!E$52) +($H19*'fnd base rates'!E$53) +($I19*'fnd base rates'!E$54) +($J19*'fnd base rates'!E$55) +($K19*'fnd base rates'!E$56) +($L19*'fnd base rates'!E$57) +($M19*'fnd base rates'!E$58) +($N19*'fnd base rates'!E$59) +(($O19+$P19)*VLOOKUP($S19+14,rate_basefnd,5))) *$R19 -> 8021.042179 | X19: =(($C19*'fnd base rates'!F$48) +($D19*'fnd base rates'!F$49) +($E19*'fnd base rates'!F$50) +($F19*'fnd base rates'!F$51) +($G19*'fnd base rates'!F$52) +($H19*'fnd base rates'!F$53) +($I19*'fnd base rates'!F$54) +($J19*'fnd base rates'!F$55) +($K19*'fnd base rates'!F$56) +($L19*'fnd base rates'!F$57) +($M19*'fnd base rates'!F$58) +($N19*'fnd base rates'!F$59) +(($O19+$P19)*VLOOKUP($S19+14,rate_basefnd,6))) *$R19 -> 811.6204687 | Y19: =(($C19*'fnd base rates'!G$48) +($D19*'fnd base rates'!G$49) +($E19*'fnd base rates'!G$50) +($F19*'fnd base rates'!G$51) +($G19*'fnd base rates'!G$52) +($H19*'fnd base rates'!G$53) +($I19*'fnd base rates'!G$54) +($J19*'fnd base rates'!G$55) +($K19*'fnd base rates'!G$56) +($L19*'fnd base rates'!G$57) +($M19*'fnd base rates'!G$58) +($N19*'fnd base rates'!G$59) +(($O19+$P19)*VLOOKUP($S19+14,rate_basefnd,7))) *$R19 -> 227.8891613 | Z19: =(($C19*'fnd base rates'!H$48) +($D19*'fnd base rates'!H$49) +($E19*'fnd base rates'!H$50) +($F19*'fnd base rates'!H$51) +($G19*'fnd base rates'!H$52) +($H19*'fnd base rates'!H$53) +($I19*'fnd base rates'!H$54) +($J19*'fnd base rates'!H$55) +($K19*'fnd base rates'!H$56) +($L19*'fnd base rates'!H$57) +($M19*'fnd base rates'!H$58) +($N19*'fnd base rates'!H$59) +(($O19+$P19)*VLOOKUP($S19+14,rate_basefnd,8))) -> 711.189375 | AA19: =(($C19*'fnd base rates'!I$48) +($D19*'fnd base rates'!I$49) +($E19*'fnd base rates'!I$50) +($F19*'fnd base rates'!I$51) +($G19*'fnd base rates'!I$52) +($H19*'fnd base rates'!I$53) +($I19*'fnd base rates'!I$54) +($J19*'fnd base rates'!I$55) +($K19*'fnd base rates'!I$56) +($L19*'fnd base rates'!I$57) +($M19*'fnd base rates'!I$58) +($N19*'fnd base rates'!I$59) +(($O19+$P19)*VLOOKUP($S19+14,rate_basefnd,9))) *$R19 -> 394.20354 | AB19: =(($C19*'fnd base rates'!J$48) +($D19*'fnd base rates'!J$49) +($E19*'fnd base rates'!J$50) +($F19*'fnd base rates'!J$51) +($G19*'fnd base rates'!J$52) +($H19*'fnd base rates'!J$53) +($I19*'fnd base rates'!J$54) +($J19*'fnd base rates'!J$55) +($K19*'fnd base rates'!J$56) +($L19*'fnd base rates'!J$57) +($M19*'fnd base rates'!J$58) +($N19*'fnd base rates'!J$59) +(($O19+$P19)*VLOOKUP($S19+14,rate_basefnd,10))) *$R19 -> 530.99331 | AC19: =(($C19*'fnd base rates'!K$48) +($D19*'fnd base rates'!K$49) +($E19*'fnd base rates'!K$50) +($F19*'fnd base rates'!K$51) +($G19*'fnd base rates'!K$52) +($H19*'fnd base rates'!K$53) +($I19*'fnd base rates'!K$54) +($J19*'fnd base rates'!K$55) +($K19*'fnd base rates'!K$56) +($L19*'fnd base rates'!K$57) +($M19*'fnd base rates'!K$58) +($N19*'fnd base rates'!K$59) +(($O19+$P19)*VLOOKUP($S19+14,rate_basefnd,11))) *$R19 -> 1599.223299 | AD19: =(($C19*'fnd base rates'!L$48) +($D19*'fnd base rates'!L$49) +($E19*'fnd base rates'!L$50) +($F19*'fnd base rates'!L$51) +($G19*'fnd base rates'!L$52) +($H19*'fnd base rates'!L$53) +($I19*'fnd base rates'!L$54) +($J19*'fnd base rates'!L$55) +($K19*'fnd base rates'!L$56) +($L19*'fnd base rates'!L$57) +($M19*'fnd base rates'!L$58) +($N19*'fnd base rates'!L$59) +(($O19+$P19)*VLOOKUP($S19+14,rate_basefnd,12))) -> 1136.94075 | AE19: =(($C19*'fnd base rates'!M$48) +($D19*'fnd base rates'!M$49) +($E19*'fnd base rates'!M$50) +($F19*'fnd base rates'!M$51) +($G19*'fnd base rates'!M$52) +($H19*'fnd base rates'!M$53) +($I19*'fnd base rates'!M$54) +($J19*'fnd base rates'!M$55) +($K19*'fnd base rates'!M$56) +($L19*'fnd base rates'!M$57) +($M19*'fnd base rates'!M$58) +($N19*'fnd base rates'!M$59) +(($O19+$P19)*VLOOKUP($S19+14,rate_basefnd,13))) -> 0 | AF19: 14634.63532 | AH19: 410035308 | AI19: 410 | AJ19: 035 | AK19: 308 | AL19: 1 | AM19: 1 | AN19: 14634.63532 | AO19: 14635 | AP19: 0 | AQ19: 14635
A20: 410035346 | B20: EXCEL ACADEMY | C20: ='fnd enro'!C20 -> 0 | D20: ='fnd enro'!D20 -> 0 | E20: ='fnd enro'!E20 -> 0 | F20: ='fnd enro'!F20 -> 0 | G20: ='fnd enro'!G20 -> 5 | H20: ='fnd enro'!H20 -> 1 | I20: ='fnd enro'!I20 -> 0.225 | J20: ='fnd enro'!J20 -> 0 | K20: ='fnd enro'!K20 -> 0 | L20: ='fnd enro'!L20 -> 0 | M20: ='fnd enro'!M20 -> 0 | N20: ='fnd enro'!N20 -> 0 | O20: ='fnd enro'!O20 -> 2 | P20: ='fnd enro'!P20 -> 1 | Q20: ='fnd enro'!R20 -> 6 | R20: 1.077 | S20: 10 | U20: =(($C20*'fnd base rates'!C$48) +($D20*'fnd base rates'!C$49) +($E20*'fnd base rates'!C$50) +($F20*'fnd base rates'!C$51) +($G20*'fnd base rates'!C$52) +($H20*'fnd base rates'!C$53) +($I20*'fnd base rates'!C$54) +($J20*'fnd base rates'!C$55) +($K20*'fnd base rates'!C$56) +($L20*'fnd base rates'!C$57) +($M20*'fnd base rates'!C$58) +($N20*'fnd base rates'!C$59) +(($O20+$P20)*VLOOKUP($S20+14,rate_basefnd,3))) *$R20 -> 2960.951404 | V20: =(($C20*'fnd base rates'!D$48) +($D20*'fnd base rates'!D$49) +($E20*'fnd base rates'!D$50) +($F20*'fnd base rates'!D$51) +($G20*'fnd base rates'!D$52) +($H20*'fnd base rates'!D$53) +($I20*'fnd base rates'!D$54) +($J20*'fnd base rates'!D$55) +($K20*'fnd base rates'!D$56) +($L20*'fnd base rates'!D$57) +($M20*'fnd base rates'!D$58) +($N20*'fnd base rates'!D$59) +(($O20+$P20)*VLOOKUP($S20+14,rate_basefnd,4))) *$R20 -> 4248.24804 | W20: =(($C20*'fnd base rates'!E$48) +($D20*'fnd base rates'!E$49) +($E20*'fnd base rates'!E$50) +($F20*'fnd base rates'!E$51) +($G20*'fnd base rates'!E$52) +($H20*'fnd base rates'!E$53) +($I20*'fnd base rates'!E$54) +($J20*'fnd base rates'!E$55) +($K20*'fnd base rates'!E$56) +($L20*'fnd base rates'!E$57) +($M20*'fnd base rates'!E$58) +($N20*'fnd base rates'!E$59) +(($O20+$P20)*VLOOKUP($S20+14,rate_basefnd,5))) *$R20 -> 30949.65395 | X20: =(($C20*'fnd base rates'!F$48) +($D20*'fnd base rates'!F$49) +($E20*'fnd base rates'!F$50) +($F20*'fnd base rates'!F$51) +($G20*'fnd base rates'!F$52) +($H20*'fnd base rates'!F$53) +($I20*'fnd base rates'!F$54) +($J20*'fnd base rates'!F$55) +($K20*'fnd base rates'!F$56) +($L20*'fnd base rates'!F$57) +($M20*'fnd base rates'!F$58) +($N20*'fnd base rates'!F$59) +(($O20+$P20)*VLOOKUP($S20+14,rate_basefnd,6))) *$R20 -> 5371.658662 | Y20: =(($C20*'fnd base rates'!G$48) +($D20*'fnd base rates'!G$49) +($E20*'fnd base rates'!G$50) +($F20*'fnd base rates'!G$51) +($G20*'fnd base rates'!G$52) +($H20*'fnd base rates'!G$53) +($I20*'fnd base rates'!G$54) +($J20*'fnd base rates'!G$55) +($K20*'fnd base rates'!G$56) +($L20*'fnd base rates'!G$57) +($M20*'fnd base rates'!G$58) +($N20*'fnd base rates'!G$59) +(($O20+$P20)*VLOOKUP($S20+14,rate_basefnd,7))) *$R20 -> 1158.418507 | Z20: =(($C20*'fnd base rates'!H$48) +($D20*'fnd base rates'!H$49) +($E20*'fnd base rates'!H$50) +($F20*'fnd base rates'!H$51) +($G20*'fnd base rates'!H$52) +($H20*'fnd base rates'!H$53) +($I20*'fnd base rates'!H$54) +($J20*'fnd base rates'!H$55) +($K20*'fnd base rates'!H$56) +($L20*'fnd base rates'!H$57) +($M20*'fnd base rates'!H$58) +($N20*'fnd base rates'!H$59) +(($O20+$P20)*VLOOKUP($S20+14,rate_basefnd,8))) -> 2958.18625 | AA20: =(($C20*'fnd base rates'!I$48) +($D20*'fnd base rates'!I$49) +($E20*'fnd base rates'!I$50) +($F20*'fnd base rates'!I$51) +($G20*'fnd base rates'!I$52) +($H20*'fnd base rates'!I$53) +($I20*'fnd base rates'!I$54) +($J20*'fnd base rates'!I$55) +($K20*'fnd base rates'!I$56) +($L20*'fnd base rates'!I$57) +($M20*'fnd base rates'!I$58) +($N20*'fnd base rates'!I$59) +(($O20+$P20)*VLOOKUP($S20+14,rate_basefnd,9))) *$R20 -> 1966.56969 | AB20: =(($C20*'fnd base rates'!J$48) +($D20*'fnd base rates'!J$49) +($E20*'fnd base rates'!J$50) +($F20*'fnd base rates'!J$51) +($G20*'fnd base rates'!J$52) +($H20*'fnd base rates'!J$53) +($I20*'fnd base rates'!J$54) +($J20*'fnd base rates'!J$55) +($K20*'fnd base rates'!J$56) +($L20*'fnd base rates'!J$57) +($M20*'fnd base rates'!J$58) +($N20*'fnd base rates'!J$59) +(($O20+$P20)*VLOOKUP($S20+14,rate_basefnd,10))) *$R20 -> 1682.36016 | AC20: =(($C20*'fnd base rates'!K$48) +($D20*'fnd base rates'!K$49) +($E20*'fnd base rates'!K$50) +($F20*'fnd base rates'!K$51) +($G20*'fnd base rates'!K$52) +($H20*'fnd base rates'!K$53) +($I20*'fnd base rates'!K$54) +($J20*'fnd base rates'!K$55) +($K20*'fnd base rates'!K$56) +($L20*'fnd base rates'!K$57) +($M20*'fnd base rates'!K$58) +($N20*'fnd base rates'!K$59) +(($O20+$P20)*VLOOKUP($S20+14,rate_basefnd,11))) *$R20 -> 8129.316624 | AD20: =(($C20*'fnd base rates'!L$48) +($D20*'fnd base rates'!L$49) +($E20*'fnd base rates'!L$50) +($F20*'fnd base rates'!L$51) +($G20*'fnd base rates'!L$52) +($H20*'fnd base rates'!L$53) +($I20*'fnd base rates'!L$54) +($J20*'fnd base rates'!L$55) +($K20*'fnd base rates'!L$56) +($L20*'fnd base rates'!L$57) +($M20*'fnd base rates'!L$58) +($N20*'fnd base rates'!L$59) +(($O20+$P20)*VLOOKUP($S20+14,rate_basefnd,12))) -> 5977.1445 | AE20: =(($C20*'fnd base rates'!M$48) +($D20*'fnd base rates'!M$49) +($E20*'fnd base rates'!M$50) +($F20*'fnd base rates'!M$51) +($G20*'fnd base rates'!M$52) +($H20*'fnd base rates'!M$53) +($I20*'fnd base rates'!M$54) +($J20*'fnd base rates'!M$55) +($K20*'fnd base rates'!M$56) +($L20*'fnd base rates'!M$57) +($M20*'fnd base rates'!M$58) +($N20*'fnd base rates'!M$59) +(($O20+$P20)*VLOOKUP($S20+14,rate_basefnd,13))) -> 0 | AF20: 65402.50779 | AH20: 410035346 | AI20: 410 | AJ20: 035 | AK20: 346 | AL20: 1 | AM20: 6 | AN20: 65402.50779 | AO20: 10900 | AP20: 0 | AQ20: 10900
A21: 410057035 | B21: EXCEL ACADEMY | C21: ='fnd enro'!C21 -> 0 | D21: ='fnd enro'!D21 -> 0 | E21: ='fnd enro'!E21 -> 0 | F21: ='fnd enro'!F21 -> 0 | G21: ='fnd enro'!G21 -> 4 | H21: ='fnd enro'!H21 -> 0 | I21: ='fnd enro'!I21 -> 0.1875 | J21: ='fnd enro'!J21 -> 0 | K21: ='fnd enro'!K21 -> 0 | L21: ='fnd enro'!L21 -> 0 | M21: ='fnd enro'!M21 -> 1 | N21: ='fnd enro'!N21 -> 0 | O21: ='fnd enro'!O21 -> 4 | P21: ='fnd enro'!P21 -> 0 | Q21: ='fnd enro'!R21 -> 5 | R21: 1.038 | S21: 10 | U21: =(($C21*'fnd base rates'!C$48) +($D21*'fnd base rates'!C$49) +($E21*'fnd base rates'!C$50) +($F21*'fnd base rates'!C$51) +($G21*'fnd base rates'!C$52) +($H21*'fnd base rates'!C$53) +($I21*'fnd base rates'!C$54) +($J21*'fnd base rates'!C$55) +($K21*'fnd base rates'!C$56) +($L21*'fnd base rates'!C$57) +($M21*'fnd base rates'!C$58) +($N21*'fnd base rates'!C$59) +(($O21+$P21)*VLOOKUP($S21+14,rate_basefnd,3))) *$R21 -> 2378.108602 | V21: =(($C21*'fnd base rates'!D$48) +($D21*'fnd base rates'!D$49) +($E21*'fnd base rates'!D$50) +($F21*'fnd base rates'!D$51) +($G21*'fnd base rates'!D$52) +($H21*'fnd base rates'!D$53) +($I21*'fnd base rates'!D$54) +($J21*'fnd base rates'!D$55) +($K21*'fnd base rates'!D$56) +($L21*'fnd base rates'!D$57) +($M21*'fnd base rates'!D$58) +($N21*'fnd base rates'!D$59) +(($O21+$P21)*VLOOKUP($S21+14,rate_basefnd,4))) *$R21 -> 3412.0098 | W21: =(($C21*'fnd base rates'!E$48) +($D21*'fnd base rates'!E$49) +($E21*'fnd base rates'!E$50) +($F21*'fnd base rates'!E$51) +($G21*'fnd base rates'!E$52) +($H21*'fnd base rates'!E$53) +($I21*'fnd base rates'!E$54) +($J21*'fnd base rates'!E$55) +($K21*'fnd base rates'!E$56) +($L21*'fnd base rates'!E$57) +($M21*'fnd base rates'!E$58) +($N21*'fnd base rates'!E$59) +(($O21+$P21)*VLOOKUP($S21+14,rate_basefnd,5))) *$R21 -> 30774.37812 | X21: =(($C21*'fnd base rates'!F$48) +($D21*'fnd base rates'!F$49) +($E21*'fnd base rates'!F$50) +($F21*'fnd base rates'!F$51) +($G21*'fnd base rates'!F$52) +($H21*'fnd base rates'!F$53) +($I21*'fnd base rates'!F$54) +($J21*'fnd base rates'!F$55) +($K21*'fnd base rates'!F$56) +($L21*'fnd base rates'!F$57) +($M21*'fnd base rates'!F$58) +($N21*'fnd base rates'!F$59) +(($O21+$P21)*VLOOKUP($S21+14,rate_basefnd,6))) *$R21 -> 4458.924923 | Y21: =(($C21*'fnd base rates'!G$48) +($D21*'fnd base rates'!G$49) +($E21*'fnd base rates'!G$50) +($F21*'fnd base rates'!G$51) +($G21*'fnd base rates'!G$52) +($H21*'fnd base rates'!G$53) +($I21*'fnd base rates'!G$54) +($J21*'fnd base rates'!G$55) +($K21*'fnd base rates'!G$56) +($L21*'fnd base rates'!G$57) +($M21*'fnd base rates'!G$58) +($N21*'fnd base rates'!G$59) +(($O21+$P21)*VLOOKUP($S21+14,rate_basefnd,7))) *$R21 -> 1078.036957 | Z21: =(($C21*'fnd base rates'!H$48) +($D21*'fnd base rates'!H$49) +($E21*'fnd base rates'!H$50) +($F21*'fnd base rates'!H$51) +($G21*'fnd base rates'!H$52) +($H21*'fnd base rates'!H$53) +($I21*'fnd base rates'!H$54) +($J21*'fnd base rates'!H$55) +($K21*'fnd base rates'!H$56) +($L21*'fnd base rates'!H$57) +($M21*'fnd base rates'!H$58) +($N21*'fnd base rates'!H$59) +(($O21+$P21)*VLOOKUP($S21+14,rate_basefnd,8))) -> 2246.996875 | AA21: =(($C21*'fnd base rates'!I$48) +($D21*'fnd base rates'!I$49) +($E21*'fnd base rates'!I$50) +($F21*'fnd base rates'!I$51) +($G21*'fnd base rates'!I$52) +($H21*'fnd base rates'!I$53) +($I21*'fnd base rates'!I$54) +($J21*'fnd base rates'!I$55) +($K21*'fnd base rates'!I$56) +($L21*'fnd base rates'!I$57) +($M21*'fnd base rates'!I$58) +($N21*'fnd base rates'!I$59) +(($O21+$P21)*VLOOKUP($S21+14,rate_basefnd,9))) *$R21 -> 1515.4281 | AB21: =(($C21*'fnd base rates'!J$48) +($D21*'fnd base rates'!J$49) +($E21*'fnd base rates'!J$50) +($F21*'fnd base rates'!J$51) +($G21*'fnd base rates'!J$52) +($H21*'fnd base rates'!J$53) +($I21*'fnd base rates'!J$54) +($J21*'fnd base rates'!J$55) +($K21*'fnd base rates'!J$56) +($L21*'fnd base rates'!J$57) +($M21*'fnd base rates'!J$58) +($N21*'fnd base rates'!J$59) +(($O21+$P21)*VLOOKUP($S21+14,rate_basefnd,10))) *$R21 -> 1023.61332 | AC21: =(($C21*'fnd base rates'!K$48) +($D21*'fnd base rates'!K$49) +($E21*'fnd base rates'!K$50) +($F21*'fnd base rates'!K$51) +($G21*'fnd base rates'!K$52) +($H21*'fnd base rates'!K$53) +($I21*'fnd base rates'!K$54) +($J21*'fnd base rates'!K$55) +($K21*'fnd base rates'!K$56) +($L21*'fnd base rates'!K$57) +($M21*'fnd base rates'!K$58) +($N21*'fnd base rates'!K$59) +(($O21+$P21)*VLOOKUP($S21+14,rate_basefnd,11))) *$R21 -> 7565.33325 | AD21: =(($C21*'fnd base rates'!L$48) +($D21*'fnd base rates'!L$49) +($E21*'fnd base rates'!L$50) +($F21*'fnd base rates'!L$51) +($G21*'fnd base rates'!L$52) +($H21*'fnd base rates'!L$53) +($I21*'fnd base rates'!L$54) +($J21*'fnd base rates'!L$55) +($K21*'fnd base rates'!L$56) +($L21*'fnd base rates'!L$57) +($M21*'fnd base rates'!L$58) +($N21*'fnd base rates'!L$59) +(($O21+$P21)*VLOOKUP($S21+14,rate_basefnd,12))) -> 5728.87375 | AE21: =(($C21*'fnd base rates'!M$48) +($D21*'fnd base rates'!M$49) +($E21*'fnd base rates'!M$50) +($F21*'fnd base rates'!M$51) +($G21*'fnd base rates'!M$52) +($H21*'fnd base rates'!M$53) +($I21*'fnd base rates'!M$54) +($J21*'fnd base rates'!M$55) +($K21*'fnd base rates'!M$56) +($L21*'fnd base rates'!M$57) +($M21*'fnd base rates'!M$58) +($N21*'fnd base rates'!M$59) +(($O21+$P21)*VLOOKUP($S21+14,rate_basefnd,13))) -> 0 | AF21: 60181.7037 | AH21: 410057035 | AI21: 410 | AJ21: 057 | AK21: 035 | AL21: 1 | AM21: 5 | AN21: 60181.7037 | AO21: 12036 | AP21: 0 | AQ21: 12036
A22: 410057057 | B22: EXCEL ACADEMY | C22: ='fnd enro'!C22 -> 0 | D22: ='fnd enro'!D22 -> 0 | E22: ='fnd enro'!E22 -> 0 | F22: ='fnd enro'!F22 -> 44 | G22: ='fnd enro'!G22 -> 151 | H22: ='fnd enro'!H22 -> 0 | I22: ='fnd enro'!I22 -> 8.0625 | J22: ='fnd enro'!J22 -> 0 | K22: ='fnd enro'!K22 -> 0 | L22: ='fnd enro'!L22 -> 0 | M22: ='fnd enro'!M22 -> 20 | N22: ='fnd enro'!N22 -> 0 | O22: ='fnd enro'!O22 -> 111 | P22: ='fnd enro'!P22 -> 0 | Q22: ='fnd enro'!R22 -> 215 | R22: 1.038 | S22: 10 | U22: =(($C22*'fnd base rates'!C$48) +($D22*'fnd base rates'!C$49) +($E22*'fnd base rates'!C$50) +($F22*'fnd base rates'!C$51) +($G22*'fnd base rates'!C$52) +($H22*'fnd base rates'!C$53) +($I22*'fnd base rates'!C$54) +($J22*'fnd base rates'!C$55) +($K22*'fnd base rates'!C$56) +($L22*'fnd base rates'!C$57) +($M22*'fnd base rates'!C$58) +($N22*'fnd base rates'!C$59) +(($O22+$P22)*VLOOKUP($S22+14,rate_basefnd,3))) *$R22 -> 102258.6699 | V22: =(($C22*'fnd base rates'!D$48) +($D22*'fnd base rates'!D$49) +($E22*'fnd base rates'!D$50) +($F22*'fnd base rates'!D$51) +($G22*'fnd base rates'!D$52) +($H22*'fnd base rates'!D$53) +($I22*'fnd base rates'!D$54) +($J22*'fnd base rates'!D$55) +($K22*'fnd base rates'!D$56) +($L22*'fnd base rates'!D$57) +($M22*'fnd base rates'!D$58) +($N22*'fnd base rates'!D$59) +(($O22+$P22)*VLOOKUP($S22+14,rate_basefnd,4))) *$R22 -> 146716.4214 | W22: =(($C22*'fnd base rates'!E$48) +($D22*'fnd base rates'!E$49) +($E22*'fnd base rates'!E$50) +($F22*'fnd base rates'!E$51) +($G22*'fnd base rates'!E$52) +($H22*'fnd base rates'!E$53) +($I22*'fnd base rates'!E$54) +($J22*'fnd base rates'!E$55) +($K22*'fnd base rates'!E$56) +($L22*'fnd base rates'!E$57) +($M22*'fnd base rates'!E$58) +($N22*'fnd base rates'!E$59) +(($O22+$P22)*VLOOKUP($S22+14,rate_basefnd,5))) *$R22 -> 1089890.974 | X22: =(($C22*'fnd base rates'!F$48) +($D22*'fnd base rates'!F$49) +($E22*'fnd base rates'!F$50) +($F22*'fnd base rates'!F$51) +($G22*'fnd base rates'!F$52) +($H22*'fnd base rates'!F$53) +($I22*'fnd base rates'!F$54) +($J22*'fnd base rates'!F$55) +($K22*'fnd base rates'!F$56) +($L22*'fnd base rates'!F$57) +($M22*'fnd base rates'!F$58) +($N22*'fnd base rates'!F$59) +(($O22+$P22)*VLOOKUP($S22+14,rate_basefnd,6))) *$R22 -> 200154.474 | Y22: =(($C22*'fnd base rates'!G$48) +($D22*'fnd base rates'!G$49) +($E22*'fnd base rates'!G$50) +($F22*'fnd base rates'!G$51) +($G22*'fnd base rates'!G$52) +($H22*'fnd base rates'!G$53) +($I22*'fnd base rates'!G$54) +($J22*'fnd base rates'!G$55) +($K22*'fnd base rates'!G$56) +($L22*'fnd base rates'!G$57) +($M22*'fnd base rates'!G$58) +($N22*'fnd base rates'!G$59) +(($O22+$P22)*VLOOKUP($S22+14,rate_basefnd,7))) *$R22 -> 40621.53185 | Z22: =(($C22*'fnd base rates'!H$48) +($D22*'fnd base rates'!H$49) +($E22*'fnd base rates'!H$50) +($F22*'fnd base rates'!H$51) +($G22*'fnd base rates'!H$52) +($H22*'fnd base rates'!H$53) +($I22*'fnd base rates'!H$54) +($J22*'fnd base rates'!H$55) +($K22*'fnd base rates'!H$56) +($L22*'fnd base rates'!H$57) +($M22*'fnd base rates'!H$58) +($N22*'fnd base rates'!H$59) +(($O22+$P22)*VLOOKUP($S22+14,rate_basefnd,8))) -> 96620.86562 | AA22: =(($C22*'fnd base rates'!I$48) +($D22*'fnd base rates'!I$49) +($E22*'fnd base rates'!I$50) +($F22*'fnd base rates'!I$51) +($G22*'fnd base rates'!I$52) +($H22*'fnd base rates'!I$53) +($I22*'fnd base rates'!I$54) +($J22*'fnd base rates'!I$55) +($K22*'fnd base rates'!I$56) +($L22*'fnd base rates'!I$57) +($M22*'fnd base rates'!I$58) +($N22*'fnd base rates'!I$59) +(($O22+$P22)*VLOOKUP($S22+14,rate_basefnd,9))) *$R22 -> 61846.25094 | AB22: =(($C22*'fnd base rates'!J$48) +($D22*'fnd base rates'!J$49) +($E22*'fnd base rates'!J$50) +($F22*'fnd base rates'!J$51) +($G22*'fnd base rates'!J$52) +($H22*'fnd base rates'!J$53) +($I22*'fnd base rates'!J$54) +($J22*'fnd base rates'!J$55) +($K22*'fnd base rates'!J$56) +($L22*'fnd base rates'!J$57) +($M22*'fnd base rates'!J$58) +($N22*'fnd base rates'!J$59) +(($O22+$P22)*VLOOKUP($S22+14,rate_basefnd,10))) *$R22 -> 42208.10058 | AC22: =(($C22*'fnd base rates'!K$48) +($D22*'fnd base rates'!K$49) +($E22*'fnd base rates'!K$50) +($F22*'fnd base rates'!K$51) +($G22*'fnd base rates'!K$52) +($H22*'fnd base rates'!K$53) +($I22*'fnd base rates'!K$54) +($J22*'fnd base rates'!K$55) +($K22*'fnd base rates'!K$56) +($L22*'fnd base rates'!K$57) +($M22*'fnd base rates'!K$58) +($N22*'fnd base rates'!K$59) +(($O22+$P22)*VLOOKUP($S22+14,rate_basefnd,11))) *$R22 -> 285062.7793 | AD22: =(($C22*'fnd base rates'!L$48) +($D22*'fnd base rates'!L$49) +($E22*'fnd base rates'!L$50) +($F22*'fnd base rates'!L$51) +($G22*'fnd base rates'!L$52) +($H22*'fnd base rates'!L$53) +($I22*'fnd base rates'!L$54) +($J22*'fnd base rates'!L$55) +($K22*'fnd base rates'!L$56) +($L22*'fnd base rates'!L$57) +($M22*'fnd base rates'!L$58) +($N22*'fnd base rates'!L$59) +(($O22+$P22)*VLOOKUP($S22+14,rate_basefnd,12))) -> 222609.1313 | AE22: =(($C22*'fnd base rates'!M$48) +($D22*'fnd base rates'!M$49) +($E22*'fnd base rates'!M$50) +($F22*'fnd base rates'!M$51) +($G22*'fnd base rates'!M$52) +($H22*'fnd base rates'!M$53) +($I22*'fnd base rates'!M$54) +($J22*'fnd base rates'!M$55) +($K22*'fnd base rates'!M$56) +($L22*'fnd base rates'!M$57) +($M22*'fnd base rates'!M$58) +($N22*'fnd base rates'!M$59) +(($O22+$P22)*VLOOKUP($S22+14,rate_basefnd,13))) -> 0 | AF22: 2287989.199 | AH22: 410057057 | AI22: 410 | AJ22: 057 | AK22: 057 | AL22: 1 | AM22: 215 | AN22: 2287989.199 | AO22: 10642 | AP22: 0 | AQ22: 10642
A23: 410057248 | B23: EXCEL ACADEMY | C23: ='fnd enro'!C23 -> 0 | D23: ='fnd enro'!D23 -> 0 | E23: ='fnd enro'!E23 -> 0 | F23: ='fnd enro'!F23 -> 0 | G23: ='fnd enro'!G23 -> 2 | H23: ='fnd enro'!H23 -> 0 | I23: ='fnd enro'!I23 -> 0.075 | J23: ='fnd enro'!J23 -> 0 | K23: ='fnd enro'!K23 -> 0 | L23: ='fnd enro'!L23 -> 0 | M23: ='fnd enro'!M23 -> 0 | N23: ='fnd enro'!N23 -> 0 | O23: ='fnd enro'!O23 -> 0 | P23: ='fnd enro'!P23 -> 0 | Q23: ='fnd enro'!R23 -> 2 | R23: 1.038 | S23: 1 | U23: =(($C23*'fnd base rates'!C$48) +($D23*'fnd base rates'!C$49) +($E23*'fnd base rates'!C$50) +($F23*'fnd base rates'!C$51) +($G23*'fnd base rates'!C$52) +($H23*'fnd base rates'!C$53) +($I23*'fnd base rates'!C$54) +($J23*'fnd base rates'!C$55) +($K23*'fnd base rates'!C$56) +($L23*'fnd base rates'!C$57) +($M23*'fnd base rates'!C$58) +($N23*'fnd base rates'!C$59) +(($O23+$P23)*VLOOKUP($S23+14,rate_basefnd,3))) *$R23 -> 951.243441 | V23: =(($C23*'fnd base rates'!D$48) +($D23*'fnd base rates'!D$49) +($E23*'fnd base rates'!D$50) +($F23*'fnd base rates'!D$51) +($G23*'fnd base rates'!D$52) +($H23*'fnd base rates'!D$53) +($I23*'fnd base rates'!D$54) +($J23*'fnd base rates'!D$55) +($K23*'fnd base rates'!D$56) +($L23*'fnd base rates'!D$57) +($M23*'fnd base rates'!D$58) +($N23*'fnd base rates'!D$59) +(($O23+$P23)*VLOOKUP($S23+14,rate_basefnd,4))) *$R23 -> 1364.80392 | W23: =(($C23*'fnd base rates'!E$48) +($D23*'fnd base rates'!E$49) +($E23*'fnd base rates'!E$50) +($F23*'fnd base rates'!E$51) +($G23*'fnd base rates'!E$52) +($H23*'fnd base rates'!E$53) +($I23*'fnd base rates'!E$54) +($J23*'fnd base rates'!E$55) +($K23*'fnd base rates'!E$56) +($L23*'fnd base rates'!E$57) +($M23*'fnd base rates'!E$58) +($N23*'fnd base rates'!E$59) +(($O23+$P23)*VLOOKUP($S23+14,rate_basefnd,5))) *$R23 -> 6152.472266 | X23: =(($C23*'fnd base rates'!F$48) +($D23*'fnd base rates'!F$49) +($E23*'fnd base rates'!F$50) +($F23*'fnd base rates'!F$51) +($G23*'fnd base rates'!F$52) +($H23*'fnd base rates'!F$53) +($I23*'fnd base rates'!F$54) +($J23*'fnd base rates'!F$55) +($K23*'fnd base rates'!F$56) +($L23*'fnd base rates'!F$57) +($M23*'fnd base rates'!F$58) +($N23*'fnd base rates'!F$59) +(($O23+$P23)*VLOOKUP($S23+14,rate_basefnd,6))) *$R23 -> 1757.964585 | Y23: =(($C23*'fnd base rates'!G$48) +($D23*'fnd base rates'!G$49) +($E23*'fnd base rates'!G$50) +($F23*'fnd base rates'!G$51) +($G23*'fnd base rates'!G$52) +($H23*'fnd base rates'!G$53) +($I23*'fnd base rates'!G$54) +($J23*'fnd base rates'!G$55) +($K23*'fnd base rates'!G$56) +($L23*'fnd base rates'!G$57) +($M23*'fnd base rates'!G$58) +($N23*'fnd base rates'!G$59) +(($O23+$P23)*VLOOKUP($S23+14,rate_basefnd,7))) *$R23 -> 299.600535 | Z23: =(($C23*'fnd base rates'!H$48) +($D23*'fnd base rates'!H$49) +($E23*'fnd base rates'!H$50) +($F23*'fnd base rates'!H$51) +($G23*'fnd base rates'!H$52) +($H23*'fnd base rates'!H$53) +($I23*'fnd base rates'!H$54) +($J23*'fnd base rates'!H$55) +($K23*'fnd base rates'!H$56) +($L23*'fnd base rates'!H$57) +($M23*'fnd base rates'!H$58) +($N23*'fnd base rates'!H$59) +(($O23+$P23)*VLOOKUP($S23+14,rate_basefnd,8))) -> 898.79875 | AA23: =(($C23*'fnd base rates'!I$48) +($D23*'fnd base rates'!I$49) +($E23*'fnd base rates'!I$50) +($F23*'fnd base rates'!I$51) +($G23*'fnd base rates'!I$52) +($H23*'fnd base rates'!I$53) +($I23*'fnd base rates'!I$54) +($J23*'fnd base rates'!I$55) +($K23*'fnd base rates'!I$56) +($L23*'fnd base rates'!I$57) +($M23*'fnd base rates'!I$58) +($N23*'fnd base rates'!I$59) +(($O23+$P23)*VLOOKUP($S23+14,rate_basefnd,9))) *$R23 -> 606.17124 | AB23: =(($C23*'fnd base rates'!J$48) +($D23*'fnd base rates'!J$49) +($E23*'fnd base rates'!J$50) +($F23*'fnd base rates'!J$51) +($G23*'fnd base rates'!J$52) +($H23*'fnd base rates'!J$53) +($I23*'fnd base rates'!J$54) +($J23*'fnd base rates'!J$55) +($K23*'fnd base rates'!J$56) +($L23*'fnd base rates'!J$57) +($M23*'fnd base rates'!J$58) +($N23*'fnd base rates'!J$59) +(($O23+$P23)*VLOOKUP($S23+14,rate_basefnd,10))) *$R23 -> 443.86956 | AC23: =(($C23*'fnd base rates'!K$48) +($D23*'fnd base rates'!K$49) +($E23*'fnd base rates'!K$50) +($F23*'fnd base rates'!K$51) +($G23*'fnd base rates'!K$52) +($H23*'fnd base rates'!K$53) +($I23*'fnd base rates'!K$54) +($J23*'fnd base rates'!K$55) +($K23*'fnd base rates'!K$56) +($L23*'fnd base rates'!K$57) +($M23*'fnd base rates'!K$58) +($N23*'fnd base rates'!K$59) +(($O23+$P23)*VLOOKUP($S23+14,rate_basefnd,11))) *$R23 -> 2102.483532 | AD23: =(($C23*'fnd base rates'!L$48) +($D23*'fnd base rates'!L$49) +($E23*'fnd base rates'!L$50) +($F23*'fnd base rates'!L$51) +($G23*'fnd base rates'!L$52) +($H23*'fnd base rates'!L$53) +($I23*'fnd base rates'!L$54) +($J23*'fnd base rates'!L$55) +($K23*'fnd base rates'!L$56) +($L23*'fnd base rates'!L$57) +($M23*'fnd base rates'!L$58) +($N23*'fnd base rates'!L$59) +(($O23+$P23)*VLOOKUP($S23+14,rate_basefnd,12))) -> 1673.3215 | AE23: =(($C23*'fnd base rates'!M$48) +($D23*'fnd base rates'!M$49) +($E23*'fnd base rates'!M$50) +($F23*'fnd base rates'!M$51) +($G23*'fnd base rates'!M$52) +($H23*'fnd base rates'!M$53) +($I23*'fnd base rates'!M$54) +($J23*'fnd base rates'!M$55) +($K23*'fnd base rates'!M$56) +($L23*'fnd base rates'!M$57) +($M23*'fnd base rates'!M$58) +($N23*'fnd base rates'!M$59) +(($O23+$P23)*VLOOKUP($S23+14,rate_basefnd,13))) -> 0 | AF23: 16250.72933 | AH23: 410057248 | AI23: 410 | AJ23: 057 | AK23: 248 | AL23: 1 | AM23: 2 | AN23: 16250.72933 | AO23: 8125 | AP23: 0 | AQ23: 8125
A24: 412035035 | B24: ACADEMY OF THE PACIFIC RIM | C24: ='fnd enro'!C24 -> 0 | D24: ='fnd enro'!D24 -> 0 | E24: ='fnd enro'!E24 -> 0 | F24: ='fnd enro'!F24 -> 60 | G24: ='fnd enro'!G24 -> 199 | H24: ='fnd enro'!H24 -> 204 | I24: ='fnd enro'!I24 -> 18.675 | J24: ='fnd enro'!J24 -> 0 | K24: ='fnd enro'!K24 -> 0 | L24: ='fnd enro'!L24 -> 0 | M24: ='fnd enro'!M24 -> 35 | N24: ='fnd enro'!N24 -> 0 | O24: ='fnd enro'!O24 -> 129 | P24: ='fnd enro'!P24 -> 66 | Q24: ='fnd enro'!R24 -> 498 | R24: 1.077 | S24: 9 | U24: =(($C24*'fnd base rates'!C$48) +($D24*'fnd base rates'!C$49) +($E24*'fnd base rates'!C$50) +($F24*'fnd base rates'!C$51) +($G24*'fnd base rates'!C$52) +($H24*'fnd base rates'!C$53) +($I24*'fnd base rates'!C$54) +($J24*'fnd base rates'!C$55) +($K24*'fnd base rates'!C$56) +($L24*'fnd base rates'!C$57) +($M24*'fnd base rates'!C$58) +($N24*'fnd base rates'!C$59) +(($O24+$P24)*VLOOKUP($S24+14,rate_basefnd,3))) *$R24 -> 245758.9666 | V24: =(($C24*'fnd base rates'!D$48) +($D24*'fnd base rates'!D$49) +($E24*'fnd base rates'!D$50) +($F24*'fnd base rates'!D$51) +($G24*'fnd base rates'!D$52) +($H24*'fnd base rates'!D$53) +($I24*'fnd base rates'!D$54) +($J24*'fnd base rates'!D$55) +($K24*'fnd base rates'!D$56) +($L24*'fnd base rates'!D$57) +($M24*'fnd base rates'!D$58) +($N24*'fnd base rates'!D$59) +(($O24+$P24)*VLOOKUP($S24+14,rate_basefnd,4))) *$R24 -> 352604.5873 | W24: =(($C24*'fnd base rates'!E$48) +($D24*'fnd base rates'!E$49) +($E24*'fnd base rates'!E$50) +($F24*'fnd base rates'!E$51) +($G24*'fnd base rates'!E$52) +($H24*'fnd base rates'!E$53) +($I24*'fnd base rates'!E$54) +($J24*'fnd base rates'!E$55) +($K24*'fnd base rates'!E$56) +($L24*'fnd base rates'!E$57) +($M24*'fnd base rates'!E$58) +($N24*'fnd base rates'!E$59) +(($O24+$P24)*VLOOKUP($S24+14,rate_basefnd,5))) *$R24 -> 2631262.518 | X24: =(($C24*'fnd base rates'!F$48) +($D24*'fnd base rates'!F$49) +($E24*'fnd base rates'!F$50) +($F24*'fnd base rates'!F$51) +($G24*'fnd base rates'!F$52) +($H24*'fnd base rates'!F$53) +($I24*'fnd base rates'!F$54) +($J24*'fnd base rates'!F$55) +($K24*'fnd base rates'!F$56) +($L24*'fnd base rates'!F$57) +($M24*'fnd base rates'!F$58) +($N24*'fnd base rates'!F$59) +(($O24+$P24)*VLOOKUP($S24+14,rate_basefnd,6))) *$R24 -> 450022.8103 | Y24: =(($C24*'fnd base rates'!G$48) +($D24*'fnd base rates'!G$49) +($E24*'fnd base rates'!G$50) +($F24*'fnd base rates'!G$51) +($G24*'fnd base rates'!G$52) +($H24*'fnd base rates'!G$53) +($I24*'fnd base rates'!G$54) +($J24*'fnd base rates'!G$55) +($K24*'fnd base rates'!G$56) +($L24*'fnd base rates'!G$57) +($M24*'fnd base rates'!G$58) +($N24*'fnd base rates'!G$59) +(($O24+$P24)*VLOOKUP($S24+14,rate_basefnd,7))) *$R24 -> 91914.65063 | Z24: =(($C24*'fnd base rates'!H$48) +($D24*'fnd base rates'!H$49) +($E24*'fnd base rates'!H$50) +($F24*'fnd base rates'!H$51) +($G24*'fnd base rates'!H$52) +($H24*'fnd base rates'!H$53) +($I24*'fnd base rates'!H$54) +($J24*'fnd base rates'!H$55) +($K24*'fnd base rates'!H$56) +($L24*'fnd base rates'!H$57) +($M24*'fnd base rates'!H$58) +($N24*'fnd base rates'!H$59) +(($O24+$P24)*VLOOKUP($S24+14,rate_basefnd,8))) -> 277206.0488 | AA24: =(($C24*'fnd base rates'!I$48) +($D24*'fnd base rates'!I$49) +($E24*'fnd base rates'!I$50) +($F24*'fnd base rates'!I$51) +($G24*'fnd base rates'!I$52) +($H24*'fnd base rates'!I$53) +($I24*'fnd base rates'!I$54) +($J24*'fnd base rates'!I$55) +($K24*'fnd base rates'!I$56) +($L24*'fnd base rates'!I$57) +($M24*'fnd base rates'!I$58) +($N24*'fnd base rates'!I$59) +(($O24+$P24)*VLOOKUP($S24+14,rate_basefnd,9))) *$R24 -> 168179.3012 | AB24: =(($C24*'fnd base rates'!J$48) +($D24*'fnd base rates'!J$49) +($E24*'fnd base rates'!J$50) +($F24*'fnd base rates'!J$51) +($G24*'fnd base rates'!J$52) +($H24*'fnd base rates'!J$53) +($I24*'fnd base rates'!J$54) +($J24*'fnd base rates'!J$55) +($K24*'fnd base rates'!J$56) +($L24*'fnd base rates'!J$57) +($M24*'fnd base rates'!J$58) +($N24*'fnd base rates'!J$59) +(($O24+$P24)*VLOOKUP($S24+14,rate_basefnd,10))) *$R24 -> 167540.0694 | AC24: =(($C24*'fnd base rates'!K$48) +($D24*'fnd base rates'!K$49) +($E24*'fnd base rates'!K$50) +($F24*'fnd base rates'!K$51) +($G24*'fnd base rates'!K$52) +($H24*'fnd base rates'!K$53) +($I24*'fnd base rates'!K$54) +($J24*'fnd base rates'!K$55) +($K24*'fnd base rates'!K$56) +($L24*'fnd base rates'!K$57) +($M24*'fnd base rates'!K$58) +($N24*'fnd base rates'!K$59) +(($O24+$P24)*VLOOKUP($S24+14,rate_basefnd,11))) *$R24 -> 645017.6974 | AD24: =(($C24*'fnd base rates'!L$48) +($D24*'fnd base rates'!L$49) +($E24*'fnd base rates'!L$50) +($F24*'fnd base rates'!L$51) +($G24*'fnd base rates'!L$52) +($H24*'fnd base rates'!L$53) +($I24*'fnd base rates'!L$54) +($J24*'fnd base rates'!L$55) +($K24*'fnd base rates'!L$56) +($L24*'fnd base rates'!L$57) +($M24*'fnd base rates'!L$58) +($N24*'fnd base rates'!L$59) +(($O24+$P24)*VLOOKUP($S24+14,rate_basefnd,12))) -> 484677.7735 | AE24: =(($C24*'fnd base rates'!M$48) +($D24*'fnd base rates'!M$49) +($E24*'fnd base rates'!M$50) +($F24*'fnd base rates'!M$51) +($G24*'fnd base rates'!M$52) +($H24*'fnd base rates'!M$53) +($I24*'fnd base rates'!M$54) +($J24*'fnd base rates'!M$55) +($K24*'fnd base rates'!M$56) +($L24*'fnd base rates'!M$57) +($M24*'fnd base rates'!M$58) +($N24*'fnd base rates'!M$59) +(($O24+$P24)*VLOOKUP($S24+14,rate_basefnd,13))) -> 0 | AF24: 5514184.423 | AH24: 412035035 | AI24: 412 | AJ24: 035 | AK24: 035 | AL24: 1 | AM24: 498 | AN24: 5514184.423 | AO24: 11073 | AP24: 0 | AQ24: 11073
A25: 412035044 | B25: ACADEMY OF THE PACIFIC RIM | C25: ='fnd enro'!C25 -> 0 | D25: ='fnd enro'!D25 -> 0 | E25: ='fnd enro'!E25 -> 0 | F25: ='fnd enro'!F25 -> 1 | G25: ='fnd enro'!G25 -> 1 | H25: ='fnd enro'!H25 -> 1 | I25: ='fnd enro'!I25 -> 0.1125 | J25: ='fnd enro'!J25 -> 0 | K25: ='fnd enro'!K25 -> 0 | L25: ='fnd enro'!L25 -> 0 | M25: ='fnd enro'!M25 -> 0 | N25: ='fnd enro'!N25 -> 0 | O25: ='fnd enro'!O25 -> 0 | P25: ='fnd enro'!P25 -> 1 | Q25: ='fnd enro'!R25 -> 3 | R25: 1.077 | S25: 8 | U25: =(($C25*'fnd base rates'!C$48) +($D25*'fnd base rates'!C$49) +($E25*'fnd base rates'!C$50) +($F25*'fnd base rates'!C$51) +($G25*'fnd base rates'!C$52) +($H25*'fnd base rates'!C$53) +($I25*'fnd base rates'!C$54) +($J25*'fnd base rates'!C$55) +($K25*'fnd base rates'!C$56) +($L25*'fnd base rates'!C$57) +($M25*'fnd base rates'!C$58) +($N25*'fnd base rates'!C$59) +(($O25+$P25)*VLOOKUP($S25+14,rate_basefnd,3))) *$R25 -> 1480.475702 | V25: =(($C25*'fnd base rates'!D$48) +($D25*'fnd base rates'!D$49) +($E25*'fnd base rates'!D$50) +($F25*'fnd base rates'!D$51) +($G25*'fnd base rates'!D$52) +($H25*'fnd base rates'!D$53) +($I25*'fnd base rates'!D$54) +($J25*'fnd base rates'!D$55) +($K25*'fnd base rates'!D$56) +($L25*'fnd base rates'!D$57) +($M25*'fnd base rates'!D$58) +($N25*'fnd base rates'!D$59) +(($O25+$P25)*VLOOKUP($S25+14,rate_basefnd,4))) *$R25 -> 2124.12402 | W25: =(($C25*'fnd base rates'!E$48) +($D25*'fnd base rates'!E$49) +($E25*'fnd base rates'!E$50) +($F25*'fnd base rates'!E$51) +($G25*'fnd base rates'!E$52) +($H25*'fnd base rates'!E$53) +($I25*'fnd base rates'!E$54) +($J25*'fnd base rates'!E$55) +($K25*'fnd base rates'!E$56) +($L25*'fnd base rates'!E$57) +($M25*'fnd base rates'!E$58) +($N25*'fnd base rates'!E$59) +(($O25+$P25)*VLOOKUP($S25+14,rate_basefnd,5))) *$R25 -> 14726.82894 | X25: =(($C25*'fnd base rates'!F$48) +($D25*'fnd base rates'!F$49) +($E25*'fnd base rates'!F$50) +($F25*'fnd base rates'!F$51) +($G25*'fnd base rates'!F$52) +($H25*'fnd base rates'!F$53) +($I25*'fnd base rates'!F$54) +($J25*'fnd base rates'!F$55) +($K25*'fnd base rates'!F$56) +($L25*'fnd base rates'!F$57) +($M25*'fnd base rates'!F$58) +($N25*'fnd base rates'!F$59) +(($O25+$P25)*VLOOKUP($S25+14,rate_basefnd,6))) *$R25 -> 2868.924716 | Y25: =(($C25*'fnd base rates'!G$48) +($D25*'fnd base rates'!G$49) +($E25*'fnd base rates'!G$50) +($F25*'fnd base rates'!G$51) +($G25*'fnd base rates'!G$52) +($H25*'fnd base rates'!G$53) +($I25*'fnd base rates'!G$54) +($J25*'fnd base rates'!G$55) +($K25*'fnd base rates'!G$56) +($L25*'fnd base rates'!G$57) +($M25*'fnd base rates'!G$58) +($N25*'fnd base rates'!G$59) +(($O25+$P25)*VLOOKUP($S25+14,rate_basefnd,7))) *$R25 -> 526.4685637 | Z25: =(($C25*'fnd base rates'!H$48) +($D25*'fnd base rates'!H$49) +($E25*'fnd base rates'!H$50) +($F25*'fnd base rates'!H$51) +($G25*'fnd base rates'!H$52) +($H25*'fnd base rates'!H$53) +($I25*'fnd base rates'!H$54) +($J25*'fnd base rates'!H$55) +($K25*'fnd base rates'!H$56) +($L25*'fnd base rates'!H$57) +($M25*'fnd base rates'!H$58) +($N25*'fnd base rates'!H$59) +(($O25+$P25)*VLOOKUP($S25+14,rate_basefnd,8))) -> 1609.988125 | AA25: =(($C25*'fnd base rates'!I$48) +($D25*'fnd base rates'!I$49) +($E25*'fnd base rates'!I$50) +($F25*'fnd base rates'!I$51) +($G25*'fnd base rates'!I$52) +($H25*'fnd base rates'!I$53) +($I25*'fnd base rates'!I$54) +($J25*'fnd base rates'!I$55) +($K25*'fnd base rates'!I$56) +($L25*'fnd base rates'!I$57) +($M25*'fnd base rates'!I$58) +($N25*'fnd base rates'!I$59) +(($O25+$P25)*VLOOKUP($S25+14,rate_basefnd,9))) *$R25 -> 944.92749 | AB25: =(($C25*'fnd base rates'!J$48) +($D25*'fnd base rates'!J$49) +($E25*'fnd base rates'!J$50) +($F25*'fnd base rates'!J$51) +($G25*'fnd base rates'!J$52) +($H25*'fnd base rates'!J$53) +($I25*'fnd base rates'!J$54) +($J25*'fnd base rates'!J$55) +($K25*'fnd base rates'!J$56) +($L25*'fnd base rates'!J$57) +($M25*'fnd base rates'!J$58) +($N25*'fnd base rates'!J$59) +(($O25+$P25)*VLOOKUP($S25+14,rate_basefnd,10))) *$R25 -> 902.24598 | AC25: =(($C25*'fnd base rates'!K$48) +($D25*'fnd base rates'!K$49) +($E25*'fnd base rates'!K$50) +($F25*'fnd base rates'!K$51) +($G25*'fnd base rates'!K$52) +($H25*'fnd base rates'!K$53) +($I25*'fnd base rates'!K$54) +($J25*'fnd base rates'!K$55) +($K25*'fnd base rates'!K$56) +($L25*'fnd base rates'!K$57) +($M25*'fnd base rates'!K$58) +($N25*'fnd base rates'!K$59) +(($O25+$P25)*VLOOKUP($S25+14,rate_basefnd,11))) *$R25 -> 3694.434177 | AD25: =(($C25*'fnd base rates'!L$48) +($D25*'fnd base rates'!L$49) +($E25*'fnd base rates'!L$50) +($F25*'fnd base rates'!L$51) +($G25*'fnd base rates'!L$52) +($H25*'fnd base rates'!L$53) +($I25*'fnd base rates'!L$54) +($J25*'fnd base rates'!L$55) +($K25*'fnd base rates'!L$56) +($L25*'fnd base rates'!L$57) +($M25*'fnd base rates'!L$58) +($N25*'fnd base rates'!L$59) +(($O25+$P25)*VLOOKUP($S25+14,rate_basefnd,12))) -> 2841.03225 | AE25: =(($C25*'fnd base rates'!M$48) +($D25*'fnd base rates'!M$49) +($E25*'fnd base rates'!M$50) +($F25*'fnd base rates'!M$51) +($G25*'fnd base rates'!M$52) +($H25*'fnd base rates'!M$53) +($I25*'fnd base rates'!M$54) +($J25*'fnd base rates'!M$55) +($K25*'fnd base rates'!M$56) +($L25*'fnd base rates'!M$57) +($M25*'fnd base rates'!M$58) +($N25*'fnd base rates'!M$59) +(($O25+$P25)*VLOOKUP($S25+14,rate_basefnd,13))) -> 0 | AF25: 31719.44996 | AH25: 412035044 | AI25: 412 | AJ25: 035 | AK25: 044 | AL25: 1 | AM25: 3 | AN25: 31719.44996 | AO25: 10573 | AP25: 0 | AQ25: 10573
A26: 412035189 | B26: ACADEMY OF THE PACIFIC RIM | C26: ='fnd enro'!C26 -> 0 | D26: ='fnd enro'!D26 -> 0 | E26: ='fnd enro'!E26 -> 0 | F26: ='fnd enro'!F26 -> 0 | G26: ='fnd enro'!G26 -> 1 | H26: ='fnd enro'!H26 -> 1 | I26: ='fnd enro'!I26 -> 0.075 | J26: ='fnd enro'!J26 -> 0 | K26: ='fnd enro'!K26 -> 0 | L26: ='fnd enro'!L26 -> 0 | M26: ='fnd enro'!M26 -> 0 | N26: ='fnd enro'!N26 -> 0 | O26: ='fnd enro'!O26 -> 0 | P26: ='fnd enro'!P26 -> 1 | Q26: ='fnd enro'!R26 -> 2 | R26: 1.077 | S26: 10 | U26: =(($C26*'fnd base rates'!C$48) +($D26*'fnd base rates'!C$49) +($E26*'fnd base rates'!C$50) +($F26*'fnd base rates'!C$51) +($G26*'fnd base rates'!C$52) +($H26*'fnd base rates'!C$53) +($I26*'fnd base rates'!C$54) +($J26*'fnd base rates'!C$55) +($K26*'fnd base rates'!C$56) +($L26*'fnd base rates'!C$57) +($M26*'fnd base rates'!C$58) +($N26*'fnd base rates'!C$59) +(($O26+$P26)*VLOOKUP($S26+14,rate_basefnd,3))) *$R26 -> 986.9838015 | V26: =(($C26*'fnd base rates'!D$48) +($D26*'fnd base rates'!D$49) +($E26*'fnd base rates'!D$50) +($F26*'fnd base rates'!D$51) +($G26*'fnd base rates'!D$52) +($H26*'fnd base rates'!D$53) +($I26*'fnd base rates'!D$54) +($J26*'fnd base rates'!D$55) +($K26*'fnd base rates'!D$56) +($L26*'fnd base rates'!D$57) +($M26*'fnd base rates'!D$58) +($N26*'fnd base rates'!D$59) +(($O26+$P26)*VLOOKUP($S26+14,rate_basefnd,4))) *$R26 -> 1416.08268 | W26: =(($C26*'fnd base rates'!E$48) +($D26*'fnd base rates'!E$49) +($E26*'fnd base rates'!E$50) +($F26*'fnd base rates'!E$51) +($G26*'fnd base rates'!E$52) +($H26*'fnd base rates'!E$53) +($I26*'fnd base rates'!E$54) +($J26*'fnd base rates'!E$55) +($K26*'fnd base rates'!E$56) +($L26*'fnd base rates'!E$57) +($M26*'fnd base rates'!E$58) +($N26*'fnd base rates'!E$59) +(($O26+$P26)*VLOOKUP($S26+14,rate_basefnd,5))) *$R26 -> 11212.85944 | X26: =(($C26*'fnd base rates'!F$48) +($D26*'fnd base rates'!F$49) +($E26*'fnd base rates'!F$50) +($F26*'fnd base rates'!F$51) +($G26*'fnd base rates'!F$52) +($H26*'fnd base rates'!F$53) +($I26*'fnd base rates'!F$54) +($J26*'fnd base rates'!F$55) +($K26*'fnd base rates'!F$56) +($L26*'fnd base rates'!F$57) +($M26*'fnd base rates'!F$58) +($N26*'fnd base rates'!F$59) +(($O26+$P26)*VLOOKUP($S26+14,rate_basefnd,6))) *$R26 -> 1723.628107 | Y26: =(($C26*'fnd base rates'!G$48) +($D26*'fnd base rates'!G$49) +($E26*'fnd base rates'!G$50) +($F26*'fnd base rates'!G$51) +($G26*'fnd base rates'!G$52) +($H26*'fnd base rates'!G$53) +($I26*'fnd base rates'!G$54) +($J26*'fnd base rates'!G$55) +($K26*'fnd base rates'!G$56) +($L26*'fnd base rates'!G$57) +($M26*'fnd base rates'!G$58) +($N26*'fnd base rates'!G$59) +(($O26+$P26)*VLOOKUP($S26+14,rate_basefnd,7))) *$R26 -> 383.3177625 | Z26: =(($C26*'fnd base rates'!H$48) +($D26*'fnd base rates'!H$49) +($E26*'fnd base rates'!H$50) +($F26*'fnd base rates'!H$51) +($G26*'fnd base rates'!H$52) +($H26*'fnd base rates'!H$53) +($I26*'fnd base rates'!H$54) +($J26*'fnd base rates'!H$55) +($K26*'fnd base rates'!H$56) +($L26*'fnd base rates'!H$57) +($M26*'fnd base rates'!H$58) +($N26*'fnd base rates'!H$59) +(($O26+$P26)*VLOOKUP($S26+14,rate_basefnd,8))) -> 1160.58875 | AA26: =(($C26*'fnd base rates'!I$48) +($D26*'fnd base rates'!I$49) +($E26*'fnd base rates'!I$50) +($F26*'fnd base rates'!I$51) +($G26*'fnd base rates'!I$52) +($H26*'fnd base rates'!I$53) +($I26*'fnd base rates'!I$54) +($J26*'fnd base rates'!I$55) +($K26*'fnd base rates'!I$56) +($L26*'fnd base rates'!I$57) +($M26*'fnd base rates'!I$58) +($N26*'fnd base rates'!I$59) +(($O26+$P26)*VLOOKUP($S26+14,rate_basefnd,9))) *$R26 -> 708.67677 | AB26: =(($C26*'fnd base rates'!J$48) +($D26*'fnd base rates'!J$49) +($E26*'fnd base rates'!J$50) +($F26*'fnd base rates'!J$51) +($G26*'fnd base rates'!J$52) +($H26*'fnd base rates'!J$53) +($I26*'fnd base rates'!J$54) +($J26*'fnd base rates'!J$55) +($K26*'fnd base rates'!J$56) +($L26*'fnd base rates'!J$57) +($M26*'fnd base rates'!J$58) +($N26*'fnd base rates'!J$59) +(($O26+$P26)*VLOOKUP($S26+14,rate_basefnd,10))) *$R26 -> 761.26668 | AC26: =(($C26*'fnd base rates'!K$48) +($D26*'fnd base rates'!K$49) +($E26*'fnd base rates'!K$50) +($F26*'fnd base rates'!K$51) +($G26*'fnd base rates'!K$52) +($H26*'fnd base rates'!K$53) +($I26*'fnd base rates'!K$54) +($J26*'fnd base rates'!K$55) +($K26*'fnd base rates'!K$56) +($L26*'fnd base rates'!K$57) +($M26*'fnd base rates'!K$58) +($N26*'fnd base rates'!K$59) +(($O26+$P26)*VLOOKUP($S26+14,rate_basefnd,11))) *$R26 -> 2689.962588 | AD26: =(($C26*'fnd base rates'!L$48) +($D26*'fnd base rates'!L$49) +($E26*'fnd base rates'!L$50) +($F26*'fnd base rates'!L$51) +($G26*'fnd base rates'!L$52) +($H26*'fnd base rates'!L$53) +($I26*'fnd base rates'!L$54) +($J26*'fnd base rates'!L$55) +($K26*'fnd base rates'!L$56) +($L26*'fnd base rates'!L$57) +($M26*'fnd base rates'!L$58) +($N26*'fnd base rates'!L$59) +(($O26+$P26)*VLOOKUP($S26+14,rate_basefnd,12))) -> 1973.6015 | AE26: =(($C26*'fnd base rates'!M$48) +($D26*'fnd base rates'!M$49) +($E26*'fnd base rates'!M$50) +($F26*'fnd base rates'!M$51) +($G26*'fnd base rates'!M$52) +($H26*'fnd base rates'!M$53) +($I26*'fnd base rates'!M$54) +($J26*'fnd base rates'!M$55) +($K26*'fnd base rates'!M$56) +($L26*'fnd base rates'!M$57) +($M26*'fnd base rates'!M$58) +($N26*'fnd base rates'!M$59) +(($O26+$P26)*VLOOKUP($S26+14,rate_basefnd,13))) -> 0 | AF26: 23016.96808 | AH26: 412035189 | AI26: 412 | AJ26: 035 | AK26: 189 | AL26: 1 | AM26: 2 | AN26: 23016.96808 | AO26: 11508 | AP26: 0 | AQ26: 11508
A27: 412035220 | B27: ACADEMY OF THE PACIFIC RIM | C27: ='fnd enro'!C27 -> 0 | D27: ='fnd enro'!D27 -> 0 | E27: ='fnd enro'!E27 -> 0 | F27: ='fnd enro'!F27 -> 0 | G27: ='fnd enro'!G27 -> 0 | H27: ='fnd enro'!H27 -> 3 | I27: ='fnd enro'!I27 -> 0.1125 | J27: ='fnd enro'!J27 -> 0 | K27: ='fnd enro'!K27 -> 0 | L27: ='fnd enro'!L27 -> 0 | M27: ='fnd enro'!M27 -> 0 | N27: ='fnd enro'!N27 -> 0 | O27: ='fnd enro'!O27 -> 0 | P27: ='fnd enro'!P27 -> 2 | Q27: ='fnd enro'!R27 -> 3 | R27: 1.077 | S27: 10 | U27: =(($C27*'fnd base rates'!C$48) +($D27*'fnd base rates'!C$49) +($E27*'fnd base rates'!C$50) +($F27*'fnd base rates'!C$51) +($G27*'fnd base rates'!C$52) +($H27*'fnd base rates'!C$53) +($I27*'fnd base rates'!C$54) +($J27*'fnd base rates'!C$55) +($K27*'fnd base rates'!C$56) +($L27*'fnd base rates'!C$57) +($M27*'fnd base rates'!C$58) +($N27*'fnd base rates'!C$59) +(($O27+$P27)*VLOOKUP($S27+14,rate_basefnd,3))) *$R27 -> 1480.475702 | V27: =(($C27*'fnd base rates'!D$48) +($D27*'fnd base rates'!D$49) +($E27*'fnd base rates'!D$50) +($F27*'fnd base rates'!D$51) +($G27*'fnd base rates'!D$52) +($H27*'fnd base rates'!D$53) +($I27*'fnd base rates'!D$54) +($J27*'fnd base rates'!D$55) +($K27*'fnd base rates'!D$56) +($L27*'fnd base rates'!D$57) +($M27*'fnd base rates'!D$58) +($N27*'fnd base rates'!D$59) +(($O27+$P27)*VLOOKUP($S27+14,rate_basefnd,4))) *$R27 -> 2124.12402 | W27: =(($C27*'fnd base rates'!E$48) +($D27*'fnd base rates'!E$49) +($E27*'fnd base rates'!E$50) +($F27*'fnd base rates'!E$51) +($G27*'fnd base rates'!E$52) +($H27*'fnd base rates'!E$53) +($I27*'fnd base rates'!E$54) +($J27*'fnd base rates'!E$55) +($K27*'fnd base rates'!E$56) +($L27*'fnd base rates'!E$57) +($M27*'fnd base rates'!E$58) +($N27*'fnd base rates'!E$59) +(($O27+$P27)*VLOOKUP($S27+14,rate_basefnd,5))) *$R27 -> 20578.3638 | X27: =(($C27*'fnd base rates'!F$48) +($D27*'fnd base rates'!F$49) +($E27*'fnd base rates'!F$50) +($F27*'fnd base rates'!F$51) +($G27*'fnd base rates'!F$52) +($H27*'fnd base rates'!F$53) +($I27*'fnd base rates'!F$54) +($J27*'fnd base rates'!F$55) +($K27*'fnd base rates'!F$56) +($L27*'fnd base rates'!F$57) +($M27*'fnd base rates'!F$58) +($N27*'fnd base rates'!F$59) +(($O27+$P27)*VLOOKUP($S27+14,rate_basefnd,6))) *$R27 -> 2434.861406 | Y27: =(($C27*'fnd base rates'!G$48) +($D27*'fnd base rates'!G$49) +($E27*'fnd base rates'!G$50) +($F27*'fnd base rates'!G$51) +($G27*'fnd base rates'!G$52) +($H27*'fnd base rates'!G$53) +($I27*'fnd base rates'!G$54) +($J27*'fnd base rates'!G$55) +($K27*'fnd base rates'!G$56) +($L27*'fnd base rates'!G$57) +($M27*'fnd base rates'!G$58) +($N27*'fnd base rates'!G$59) +(($O27+$P27)*VLOOKUP($S27+14,rate_basefnd,7))) *$R27 -> 606.9743137 | Z27: =(($C27*'fnd base rates'!H$48) +($D27*'fnd base rates'!H$49) +($E27*'fnd base rates'!H$50) +($F27*'fnd base rates'!H$51) +($G27*'fnd base rates'!H$52) +($H27*'fnd base rates'!H$53) +($I27*'fnd base rates'!H$54) +($J27*'fnd base rates'!H$55) +($K27*'fnd base rates'!H$56) +($L27*'fnd base rates'!H$57) +($M27*'fnd base rates'!H$58) +($N27*'fnd base rates'!H$59) +(($O27+$P27)*VLOOKUP($S27+14,rate_basefnd,8))) -> 2133.568125 | AA27: =(($C27*'fnd base rates'!I$48) +($D27*'fnd base rates'!I$49) +($E27*'fnd base rates'!I$50) +($F27*'fnd base rates'!I$51) +($G27*'fnd base rates'!I$52) +($H27*'fnd base rates'!I$53) +($I27*'fnd base rates'!I$54) +($J27*'fnd base rates'!I$55) +($K27*'fnd base rates'!I$56) +($L27*'fnd base rates'!I$57) +($M27*'fnd base rates'!I$58) +($N27*'fnd base rates'!I$59) +(($O27+$P27)*VLOOKUP($S27+14,rate_basefnd,9))) *$R27 -> 1182.61062 | AB27: =(($C27*'fnd base rates'!J$48) +($D27*'fnd base rates'!J$49) +($E27*'fnd base rates'!J$50) +($F27*'fnd base rates'!J$51) +($G27*'fnd base rates'!J$52) +($H27*'fnd base rates'!J$53) +($I27*'fnd base rates'!J$54) +($J27*'fnd base rates'!J$55) +($K27*'fnd base rates'!J$56) +($L27*'fnd base rates'!J$57) +($M27*'fnd base rates'!J$58) +($N27*'fnd base rates'!J$59) +(($O27+$P27)*VLOOKUP($S27+14,rate_basefnd,10))) *$R27 -> 1592.97993 | AC27: =(($C27*'fnd base rates'!K$48) +($D27*'fnd base rates'!K$49) +($E27*'fnd base rates'!K$50) +($F27*'fnd base rates'!K$51) +($G27*'fnd base rates'!K$52) +($H27*'fnd base rates'!K$53) +($I27*'fnd base rates'!K$54) +($J27*'fnd base rates'!K$55) +($K27*'fnd base rates'!K$56) +($L27*'fnd base rates'!K$57) +($M27*'fnd base rates'!K$58) +($N27*'fnd base rates'!K$59) +(($O27+$P27)*VLOOKUP($S27+14,rate_basefnd,11))) *$R27 -> 4259.471457 | AD27: =(($C27*'fnd base rates'!L$48) +($D27*'fnd base rates'!L$49) +($E27*'fnd base rates'!L$50) +($F27*'fnd base rates'!L$51) +($G27*'fnd base rates'!L$52) +($H27*'fnd base rates'!L$53) +($I27*'fnd base rates'!L$54) +($J27*'fnd base rates'!L$55) +($K27*'fnd base rates'!L$56) +($L27*'fnd base rates'!L$57) +($M27*'fnd base rates'!L$58) +($N27*'fnd base rates'!L$59) +(($O27+$P27)*VLOOKUP($S27+14,rate_basefnd,12))) -> 3082.37225 | AE27: =(($C27*'fnd base rates'!M$48) +($D27*'fnd base rates'!M$49) +($E27*'fnd base rates'!M$50) +($F27*'fnd base rates'!M$51) +($G27*'fnd base rates'!M$52) +($H27*'fnd base rates'!M$53) +($I27*'fnd base rates'!M$54) +($J27*'fnd base rates'!M$55) +($K27*'fnd base rates'!M$56) +($L27*'fnd base rates'!M$57) +($M27*'fnd base rates'!M$58) +($N27*'fnd base rates'!M$59) +(($O27+$P27)*VLOOKUP($S27+14,rate_basefnd,13))) -> 0 | AF27: 39475.80162 | AH27: 412035220 | AI27: 412 | AJ27: 035 | AK27: 220 | AL27: 1 | AM27: 3 | AN27: 39475.80162 | AO27: 13159 | AP27: 0 | AQ27: 13159
A28: 412035244 | B28: ACADEMY OF THE PACIFIC RIM | C28: ='fnd enro'!C28 -> 0 | D28: ='fnd enro'!D28 -> 0 | E28: ='fnd enro'!E28 -> 0 | F28: ='fnd enro'!F28 -> 0 | G28: ='fnd enro'!G28 -> 4 | H28: ='fnd enro'!H28 -> 7 | I28: ='fnd enro'!I28 -> 0.4125 | J28: ='fnd enro'!J28 -> 0 | K28: ='fnd enro'!K28 -> 0 | L28: ='fnd enro'!L28 -> 0 | M28: ='fnd enro'!M28 -> 0 | N28: ='fnd enro'!N28 -> 0 | O28: ='fnd enro'!O28 -> 1 | P28: ='fnd enro'!P28 -> 3 | Q28: ='fnd enro'!R28 -> 11 | R28: 1.077 | S28: 8 | U28: =(($C28*'fnd base rates'!C$48) +($D28*'fnd base rates'!C$49) +($E28*'fnd base rates'!C$50) +($F28*'fnd base rates'!C$51) +($G28*'fnd base rates'!C$52) +($H28*'fnd base rates'!C$53) +($I28*'fnd base rates'!C$54) +($J28*'fnd base rates'!C$55) +($K28*'fnd base rates'!C$56) +($L28*'fnd base rates'!C$57) +($M28*'fnd base rates'!C$58) +($N28*'fnd base rates'!C$59) +(($O28+$P28)*VLOOKUP($S28+14,rate_basefnd,3))) *$R28 -> 5428.410908 | V28: =(($C28*'fnd base rates'!D$48) +($D28*'fnd base rates'!D$49) +($E28*'fnd base rates'!D$50) +($F28*'fnd base rates'!D$51) +($G28*'fnd base rates'!D$52) +($H28*'fnd base rates'!D$53) +($I28*'fnd base rates'!D$54) +($J28*'fnd base rates'!D$55) +($K28*'fnd base rates'!D$56) +($L28*'fnd base rates'!D$57) +($M28*'fnd base rates'!D$58) +($N28*'fnd base rates'!D$59) +(($O28+$P28)*VLOOKUP($S28+14,rate_basefnd,4))) *$R28 -> 7788.45474 | W28: =(($C28*'fnd base rates'!E$48) +($D28*'fnd base rates'!E$49) +($E28*'fnd base rates'!E$50) +($F28*'fnd base rates'!E$51) +($G28*'fnd base rates'!E$52) +($H28*'fnd base rates'!E$53) +($I28*'fnd base rates'!E$54) +($J28*'fnd base rates'!E$55) +($K28*'fnd base rates'!E$56) +($L28*'fnd base rates'!E$57) +($M28*'fnd base rates'!E$58) +($N28*'fnd base rates'!E$59) +(($O28+$P28)*VLOOKUP($S28+14,rate_basefnd,5))) *$R28 -> 58190.59527 | X28: =(($C28*'fnd base rates'!F$48) +($D28*'fnd base rates'!F$49) +($E28*'fnd base rates'!F$50) +($F28*'fnd base rates'!F$51) +($G28*'fnd base rates'!F$52) +($H28*'fnd base rates'!F$53) +($I28*'fnd base rates'!F$54) +($J28*'fnd base rates'!F$55) +($K28*'fnd base rates'!F$56) +($L28*'fnd base rates'!F$57) +($M28*'fnd base rates'!F$58) +($N28*'fnd base rates'!F$59) +(($O28+$P28)*VLOOKUP($S28+14,rate_basefnd,6))) *$R28 -> 9329.373836 | Y28: =(($C28*'fnd base rates'!G$48) +($D28*'fnd base rates'!G$49) +($E28*'fnd base rates'!G$50) +($F28*'fnd base rates'!G$51) +($G28*'fnd base rates'!G$52) +($H28*'fnd base rates'!G$53) +($I28*'fnd base rates'!G$54) +($J28*'fnd base rates'!G$55) +($K28*'fnd base rates'!G$56) +($L28*'fnd base rates'!G$57) +($M28*'fnd base rates'!G$58) +($N28*'fnd base rates'!G$59) +(($O28+$P28)*VLOOKUP($S28+14,rate_basefnd,7))) *$R28 -> 1980.913984 | Z28: =(($C28*'fnd base rates'!H$48) +($D28*'fnd base rates'!H$49) +($E28*'fnd base rates'!H$50) +($F28*'fnd base rates'!H$51) +($G28*'fnd base rates'!H$52) +($H28*'fnd base rates'!H$53) +($I28*'fnd base rates'!H$54) +($J28*'fnd base rates'!H$55) +($K28*'fnd base rates'!H$56) +($L28*'fnd base rates'!H$57) +($M28*'fnd base rates'!H$58) +($N28*'fnd base rates'!H$59) +(($O28+$P28)*VLOOKUP($S28+14,rate_basefnd,8))) -> 6775.923125 | AA28: =(($C28*'fnd base rates'!I$48) +($D28*'fnd base rates'!I$49) +($E28*'fnd base rates'!I$50) +($F28*'fnd base rates'!I$51) +($G28*'fnd base rates'!I$52) +($H28*'fnd base rates'!I$53) +($I28*'fnd base rates'!I$54) +($J28*'fnd base rates'!I$55) +($K28*'fnd base rates'!I$56) +($L28*'fnd base rates'!I$57) +($M28*'fnd base rates'!I$58) +($N28*'fnd base rates'!I$59) +(($O28+$P28)*VLOOKUP($S28+14,rate_basefnd,9))) *$R28 -> 4017.3177 | AB28: =(($C28*'fnd base rates'!J$48) +($D28*'fnd base rates'!J$49) +($E28*'fnd base rates'!J$50) +($F28*'fnd base rates'!J$51) +($G28*'fnd base rates'!J$52) +($H28*'fnd base rates'!J$53) +($I28*'fnd base rates'!J$54) +($J28*'fnd base rates'!J$55) +($K28*'fnd base rates'!J$56) +($L28*'fnd base rates'!J$57) +($M28*'fnd base rates'!J$58) +($N28*'fnd base rates'!J$59) +(($O28+$P28)*VLOOKUP($S28+14,rate_basefnd,10))) *$R28 -> 4638.04665 | AC28: =(($C28*'fnd base rates'!K$48) +($D28*'fnd base rates'!K$49) +($E28*'fnd base rates'!K$50) +($F28*'fnd base rates'!K$51) +($G28*'fnd base rates'!K$52) +($H28*'fnd base rates'!K$53) +($I28*'fnd base rates'!K$54) +($J28*'fnd base rates'!K$55) +($K28*'fnd base rates'!K$56) +($L28*'fnd base rates'!K$57) +($M28*'fnd base rates'!K$58) +($N28*'fnd base rates'!K$59) +(($O28+$P28)*VLOOKUP($S28+14,rate_basefnd,11))) *$R28 -> 13901.26657 | AD28: =(($C28*'fnd base rates'!L$48) +($D28*'fnd base rates'!L$49) +($E28*'fnd base rates'!L$50) +($F28*'fnd base rates'!L$51) +($G28*'fnd base rates'!L$52) +($H28*'fnd base rates'!L$53) +($I28*'fnd base rates'!L$54) +($J28*'fnd base rates'!L$55) +($K28*'fnd base rates'!L$56) +($L28*'fnd base rates'!L$57) +($M28*'fnd base rates'!L$58) +($N28*'fnd base rates'!L$59) +(($O28+$P28)*VLOOKUP($S28+14,rate_basefnd,12))) -> 10294.43825 | AE28: =(($C28*'fnd base rates'!M$48) +($D28*'fnd base rates'!M$49) +($E28*'fnd base rates'!M$50) +($F28*'fnd base rates'!M$51) +($G28*'fnd base rates'!M$52) +($H28*'fnd base rates'!M$53) +($I28*'fnd base rates'!M$54) +($J28*'fnd base rates'!M$55) +($K28*'fnd base rates'!M$56) +($L28*'fnd base rates'!M$57) +($M28*'fnd base rates'!M$58) +($N28*'fnd base rates'!M$59) +(($O28+$P28)*VLOOKUP($S28+14,rate_basefnd,13))) -> 0 | AF28: 122344.741 | AH28: 412035244 | AI28: 412 | AJ28: 035 | AK28: 244 | AL28: 1 | AM28: 11 | AN28: 122344.741 | AO28: 11122 | AP28: 0 | AQ28: 11122
A29: 412035285 | B29: ACADEMY OF THE PACIFIC RIM | C29: ='fnd enro'!C29 -> 0 | D29: ='fnd enro'!D29 -> 0 | E29: ='fnd enro'!E29 -> 0 | F29: ='fnd enro'!F29 -> 1 | G29: ='fnd enro'!G29 -> 0 | H29: ='fnd enro'!H29 -> 1 | I29: ='fnd enro'!I29 -> 0.075 | J29: ='fnd enro'!J29 -> 0 | K29: ='fnd enro'!K29 -> 0 | L29: ='fnd enro'!L29 -> 0 | M29: ='fnd enro'!M29 -> 0 | N29: ='fnd enro'!N29 -> 0 | O29: ='fnd enro'!O29 -> 0 | P29: ='fnd enro'!P29 -> 0 | Q29: ='fnd enro'!R29 -> 2 | R29: 1.077 | S29: 1 | U29: =(($C29*'fnd base rates'!C$48) +($D29*'fnd base rates'!C$49) +($E29*'fnd base rates'!C$50) +($F29*'fnd base rates'!C$51) +($G29*'fnd base rates'!C$52) +($H29*'fnd base rates'!C$53) +($I29*'fnd base rates'!C$54) +($J29*'fnd base rates'!C$55) +($K29*'fnd base rates'!C$56) +($L29*'fnd base rates'!C$57) +($M29*'fnd base rates'!C$58) +($N29*'fnd base rates'!C$59) +(($O29+$P29)*VLOOKUP($S29+14,rate_basefnd,3))) *$R29 -> 986.9838015 | V29: =(($C29*'fnd base rates'!D$48) +($D29*'fnd base rates'!D$49) +($E29*'fnd base rates'!D$50) +($F29*'fnd base rates'!D$51) +($G29*'fnd base rates'!D$52) +($H29*'fnd base rates'!D$53) +($I29*'fnd base rates'!D$54) +($J29*'fnd base rates'!D$55) +($K29*'fnd base rates'!D$56) +($L29*'fnd base rates'!D$57) +($M29*'fnd base rates'!D$58) +($N29*'fnd base rates'!D$59) +(($O29+$P29)*VLOOKUP($S29+14,rate_basefnd,4))) *$R29 -> 1416.08268 | W29: =(($C29*'fnd base rates'!E$48) +($D29*'fnd base rates'!E$49) +($E29*'fnd base rates'!E$50) +($F29*'fnd base rates'!E$51) +($G29*'fnd base rates'!E$52) +($H29*'fnd base rates'!E$53) +($I29*'fnd base rates'!E$54) +($J29*'fnd base rates'!E$55) +($K29*'fnd base rates'!E$56) +($L29*'fnd base rates'!E$57) +($M29*'fnd base rates'!E$58) +($N29*'fnd base rates'!E$59) +(($O29+$P29)*VLOOKUP($S29+14,rate_basefnd,5))) *$R29 -> 8117.669138 | X29: =(($C29*'fnd base rates'!F$48) +($D29*'fnd base rates'!F$49) +($E29*'fnd base rates'!F$50) +($F29*'fnd base rates'!F$51) +($G29*'fnd base rates'!F$52) +($H29*'fnd base rates'!F$53) +($I29*'fnd base rates'!F$54) +($J29*'fnd base rates'!F$55) +($K29*'fnd base rates'!F$56) +($L29*'fnd base rates'!F$57) +($M29*'fnd base rates'!F$58) +($N29*'fnd base rates'!F$59) +(($O29+$P29)*VLOOKUP($S29+14,rate_basefnd,6))) *$R29 -> 1956.917078 | Y29: =(($C29*'fnd base rates'!G$48) +($D29*'fnd base rates'!G$49) +($E29*'fnd base rates'!G$50) +($F29*'fnd base rates'!G$51) +($G29*'fnd base rates'!G$52) +($H29*'fnd base rates'!G$53) +($I29*'fnd base rates'!G$54) +($J29*'fnd base rates'!G$55) +($K29*'fnd base rates'!G$56) +($L29*'fnd base rates'!G$57) +($M29*'fnd base rates'!G$58) +($N29*'fnd base rates'!G$59) +(($O29+$P29)*VLOOKUP($S29+14,rate_basefnd,7))) *$R29 -> 295.8330525 | Z29: =(($C29*'fnd base rates'!H$48) +($D29*'fnd base rates'!H$49) +($E29*'fnd base rates'!H$50) +($F29*'fnd base rates'!H$51) +($G29*'fnd base rates'!H$52) +($H29*'fnd base rates'!H$53) +($I29*'fnd base rates'!H$54) +($J29*'fnd base rates'!H$55) +($K29*'fnd base rates'!H$56) +($L29*'fnd base rates'!H$57) +($M29*'fnd base rates'!H$58) +($N29*'fnd base rates'!H$59) +(($O29+$P29)*VLOOKUP($S29+14,rate_basefnd,8))) -> 1160.58875 | AA29: =(($C29*'fnd base rates'!I$48) +($D29*'fnd base rates'!I$49) +($E29*'fnd base rates'!I$50) +($F29*'fnd base rates'!I$51) +($G29*'fnd base rates'!I$52) +($H29*'fnd base rates'!I$53) +($I29*'fnd base rates'!I$54) +($J29*'fnd base rates'!I$55) +($K29*'fnd base rates'!I$56) +($L29*'fnd base rates'!I$57) +($M29*'fnd base rates'!I$58) +($N29*'fnd base rates'!I$59) +(($O29+$P29)*VLOOKUP($S29+14,rate_basefnd,9))) *$R29 -> 630.45426 | AB29: =(($C29*'fnd base rates'!J$48) +($D29*'fnd base rates'!J$49) +($E29*'fnd base rates'!J$50) +($F29*'fnd base rates'!J$51) +($G29*'fnd base rates'!J$52) +($H29*'fnd base rates'!J$53) +($I29*'fnd base rates'!J$54) +($J29*'fnd base rates'!J$55) +($K29*'fnd base rates'!J$56) +($L29*'fnd base rates'!J$57) +($M29*'fnd base rates'!J$58) +($N29*'fnd base rates'!J$59) +(($O29+$P29)*VLOOKUP($S29+14,rate_basefnd,10))) *$R29 -> 671.97261 | AC29: =(($C29*'fnd base rates'!K$48) +($D29*'fnd base rates'!K$49) +($E29*'fnd base rates'!K$50) +($F29*'fnd base rates'!K$51) +($G29*'fnd base rates'!K$52) +($H29*'fnd base rates'!K$53) +($I29*'fnd base rates'!K$54) +($J29*'fnd base rates'!K$55) +($K29*'fnd base rates'!K$56) +($L29*'fnd base rates'!K$57) +($M29*'fnd base rates'!K$58) +($N29*'fnd base rates'!K$59) +(($O29+$P29)*VLOOKUP($S29+14,rate_basefnd,11))) *$R29 -> 2075.911038 | AD29: =(($C29*'fnd base rates'!L$48) +($D29*'fnd base rates'!L$49) +($E29*'fnd base rates'!L$50) +($F29*'fnd base rates'!L$51) +($G29*'fnd base rates'!L$52) +($H29*'fnd base rates'!L$53) +($I29*'fnd base rates'!L$54) +($J29*'fnd base rates'!L$55) +($K29*'fnd base rates'!L$56) +($L29*'fnd base rates'!L$57) +($M29*'fnd base rates'!L$58) +($N29*'fnd base rates'!L$59) +(($O29+$P29)*VLOOKUP($S29+14,rate_basefnd,12))) -> 1682.2815 | AE29: =(($C29*'fnd base rates'!M$48) +($D29*'fnd base rates'!M$49) +($E29*'fnd base rates'!M$50) +($F29*'fnd base rates'!M$51) +($G29*'fnd base rates'!M$52) +($H29*'fnd base rates'!M$53) +($I29*'fnd base rates'!M$54) +($J29*'fnd base rates'!M$55) +($K29*'fnd base rates'!M$56) +($L29*'fnd base rates'!M$57) +($M29*'fnd base rates'!M$58) +($N29*'fnd base rates'!M$59) +(($O29+$P29)*VLOOKUP($S29+14,rate_basefnd,13))) -> 0 | AF29: 18994.69391 | AH29: 412035285 | AI29: 412 | AJ29: 035 | AK29: 285 | AL29: 1 | AM29: 2 | AN29: 18994.69391 | AO29: 9497 | AP29: 0 | AQ29: 9497
A30: 412035293 | B30: ACADEMY OF THE PACIFIC RIM | C30: ='fnd enro'!C30 -> 0 | D30: ='fnd enro'!D30 -> 0 | E30: ='fnd enro'!E30 -> 0 | F30: ='fnd enro'!F30 -> 0 | G30: ='fnd enro'!G30 -> 0 | H30: ='fnd enro'!H30 -> 1 | I30: ='fnd enro'!I30 -> 0.0375 | J30: ='fnd enro'!J30 -> 0 | K30: ='fnd enro'!K30 -> 0 | L30: ='fnd enro'!L30 -> 0 | M30: ='fnd enro'!M30 -> 0 | N30: ='fnd enro'!N30 -> 0 | O30: ='fnd enro'!O30 -> 0 | P30: ='fnd enro'!P30 -> 0 | Q30: ='fnd enro'!R30 -> 1 | R30: 1.077 | S30: 1 | U30: =(($C30*'fnd base rates'!C$48) +($D30*'fnd base rates'!C$49) +($E30*'fnd base rates'!C$50) +($F30*'fnd base rates'!C$51) +($G30*'fnd base rates'!C$52) +($H30*'fnd base rates'!C$53) +($I30*'fnd base rates'!C$54) +($J30*'fnd base rates'!C$55) +($K30*'fnd base rates'!C$56) +($L30*'fnd base rates'!C$57) +($M30*'fnd base rates'!C$58) +($N30*'fnd base rates'!C$59) +(($O30+$P30)*VLOOKUP($S30+14,rate_basefnd,3))) *$R30 -> 493.4919007 | V30: =(($C30*'fnd base rates'!D$48) +($D30*'fnd base rates'!D$49) +($E30*'fnd base rates'!D$50) +($F30*'fnd base rates'!D$51) +($G30*'fnd base rates'!D$52) +($H30*'fnd base rates'!D$53) +($I30*'fnd base rates'!D$54) +($J30*'fnd base rates'!D$55) +($K30*'fnd base rates'!D$56) +($L30*'fnd base rates'!D$57) +($M30*'fnd base rates'!D$58) +($N30*'fnd base rates'!D$59) +(($O30+$P30)*VLOOKUP($S30+14,rate_basefnd,4))) *$R30 -> 708.04134 | W30: =(($C30*'fnd base rates'!E$48) +($D30*'fnd base rates'!E$49) +($E30*'fnd base rates'!E$50) +($F30*'fnd base rates'!E$51) +($G30*'fnd base rates'!E$52) +($H30*'fnd base rates'!E$53) +($I30*'fnd base rates'!E$54) +($J30*'fnd base rates'!E$55) +($K30*'fnd base rates'!E$56) +($L30*'fnd base rates'!E$57) +($M30*'fnd base rates'!E$58) +($N30*'fnd base rates'!E$59) +(($O30+$P30)*VLOOKUP($S30+14,rate_basefnd,5))) *$R30 -> 4536.279439 | X30: =(($C30*'fnd base rates'!F$48) +($D30*'fnd base rates'!F$49) +($E30*'fnd base rates'!F$50) +($F30*'fnd base rates'!F$51) +($G30*'fnd base rates'!F$52) +($H30*'fnd base rates'!F$53) +($I30*'fnd base rates'!F$54) +($J30*'fnd base rates'!F$55) +($K30*'fnd base rates'!F$56) +($L30*'fnd base rates'!F$57) +($M30*'fnd base rates'!F$58) +($N30*'fnd base rates'!F$59) +(($O30+$P30)*VLOOKUP($S30+14,rate_basefnd,6))) *$R30 -> 811.6204687 | Y30: =(($C30*'fnd base rates'!G$48) +($D30*'fnd base rates'!G$49) +($E30*'fnd base rates'!G$50) +($F30*'fnd base rates'!G$51) +($G30*'fnd base rates'!G$52) +($H30*'fnd base rates'!G$53) +($I30*'fnd base rates'!G$54) +($J30*'fnd base rates'!G$55) +($K30*'fnd base rates'!G$56) +($L30*'fnd base rates'!G$57) +($M30*'fnd base rates'!G$58) +($N30*'fnd base rates'!G$59) +(($O30+$P30)*VLOOKUP($S30+14,rate_basefnd,7))) *$R30 -> 151.1959912 | Z30: =(($C30*'fnd base rates'!H$48) +($D30*'fnd base rates'!H$49) +($E30*'fnd base rates'!H$50) +($F30*'fnd base rates'!H$51) +($G30*'fnd base rates'!H$52) +($H30*'fnd base rates'!H$53) +($I30*'fnd base rates'!H$54) +($J30*'fnd base rates'!H$55) +($K30*'fnd base rates'!H$56) +($L30*'fnd base rates'!H$57) +($M30*'fnd base rates'!H$58) +($N30*'fnd base rates'!H$59) +(($O30+$P30)*VLOOKUP($S30+14,rate_basefnd,8))) -> 711.189375 | AA30: =(($C30*'fnd base rates'!I$48) +($D30*'fnd base rates'!I$49) +($E30*'fnd base rates'!I$50) +($F30*'fnd base rates'!I$51) +($G30*'fnd base rates'!I$52) +($H30*'fnd base rates'!I$53) +($I30*'fnd base rates'!I$54) +($J30*'fnd base rates'!I$55) +($K30*'fnd base rates'!I$56) +($L30*'fnd base rates'!I$57) +($M30*'fnd base rates'!I$58) +($N30*'fnd base rates'!I$59) +(($O30+$P30)*VLOOKUP($S30+14,rate_basefnd,9))) *$R30 -> 394.20354 | AB30: =(($C30*'fnd base rates'!J$48) +($D30*'fnd base rates'!J$49) +($E30*'fnd base rates'!J$50) +($F30*'fnd base rates'!J$51) +($G30*'fnd base rates'!J$52) +($H30*'fnd base rates'!J$53) +($I30*'fnd base rates'!J$54) +($J30*'fnd base rates'!J$55) +($K30*'fnd base rates'!J$56) +($L30*'fnd base rates'!J$57) +($M30*'fnd base rates'!J$58) +($N30*'fnd base rates'!J$59) +(($O30+$P30)*VLOOKUP($S30+14,rate_basefnd,10))) *$R30 -> 530.99331 | AC30: =(($C30*'fnd base rates'!K$48) +($D30*'fnd base rates'!K$49) +($E30*'fnd base rates'!K$50) +($F30*'fnd base rates'!K$51) +($G30*'fnd base rates'!K$52) +($H30*'fnd base rates'!K$53) +($I30*'fnd base rates'!K$54) +($J30*'fnd base rates'!K$55) +($K30*'fnd base rates'!K$56) +($L30*'fnd base rates'!K$57) +($M30*'fnd base rates'!K$58) +($N30*'fnd base rates'!K$59) +(($O30+$P30)*VLOOKUP($S30+14,rate_basefnd,11))) *$R30 -> 1061.024859 | AD30: =(($C30*'fnd base rates'!L$48) +($D30*'fnd base rates'!L$49) +($E30*'fnd base rates'!L$50) +($F30*'fnd base rates'!L$51) +($G30*'fnd base rates'!L$52) +($H30*'fnd base rates'!L$53) +($I30*'fnd base rates'!L$54) +($J30*'fnd base rates'!L$55) +($K30*'fnd base rates'!L$56) +($L30*'fnd base rates'!L$57) +($M30*'fnd base rates'!L$58) +($N30*'fnd base rates'!L$59) +(($O30+$P30)*VLOOKUP($S30+14,rate_basefnd,12))) -> 808.49075 | AE30: =(($C30*'fnd base rates'!M$48) +($D30*'fnd base rates'!M$49) +($E30*'fnd base rates'!M$50) +($F30*'fnd base rates'!M$51) +($G30*'fnd base rates'!M$52) +($H30*'fnd base rates'!M$53) +($I30*'fnd base rates'!M$54) +($J30*'fnd base rates'!M$55) +($K30*'fnd base rates'!M$56) +($L30*'fnd base rates'!M$57) +($M30*'fnd base rates'!M$58) +($N30*'fnd base rates'!M$59) +(($O30+$P30)*VLOOKUP($S30+14,rate_basefnd,13))) -> 0 | AF30: 10206.53097 | AH30: 412035293 | AI30: 412 | AJ30: 035 | AK30: 293 | AL30: 1 | AM30: 1 | AN30: 10206.53097 | AO30: 10207 | AP30: 0 | AQ30: 10207
A31: 412035314 | B31: ACADEMY OF THE PACIFIC RIM | C31: ='fnd enro'!C31 -> 0 | D31: ='fnd enro'!D31 -> 0 | E31: ='fnd enro'!E31 -> 0 | F31: ='fnd enro'!F31 -> 0 | G31: ='fnd enro'!G31 -> 1 | H31: ='fnd enro'!H31 -> 0 | I31: ='fnd enro'!I31 -> 0.0375 | J31: ='fnd enro'!J31 -> 0 | K31: ='fnd enro'!K31 -> 0 | L31: ='fnd enro'!L31 -> 0 | M31: ='fnd enro'!M31 -> 0 | N31: ='fnd enro'!N31 -> 0 | O31: ='fnd enro'!O31 -> 1 | P31: ='fnd enro'!P31 -> 0 | Q31: ='fnd enro'!R31 -> 1 | R31: 1.077 | S31: 10 | U31: =(($C31*'fnd base rates'!C$48) +($D31*'fnd base rates'!C$49) +($E31*'fnd base rates'!C$50) +($F31*'fnd base rates'!C$51) +($G31*'fnd base rates'!C$52) +($H31*'fnd base rates'!C$53) +($I31*'fnd base rates'!C$54) +($J31*'fnd base rates'!C$55) +($K31*'fnd base rates'!C$56) +($L31*'fnd base rates'!C$57) +($M31*'fnd base rates'!C$58) +($N31*'fnd base rates'!C$59) +(($O31+$P31)*VLOOKUP($S31+14,rate_basefnd,3))) *$R31 -> 493.4919007 | V31: =(($C31*'fnd base rates'!D$48) +($D31*'fnd base rates'!D$49) +($E31*'fnd base rates'!D$50) +($F31*'fnd base rates'!D$51) +($G31*'fnd base rates'!D$52) +($H31*'fnd base rates'!D$53) +($I31*'fnd base rates'!D$54) +($J31*'fnd base rates'!D$55) +($K31*'fnd base rates'!D$56) +($L31*'fnd base rates'!D$57) +($M31*'fnd base rates'!D$58) +($N31*'fnd base rates'!D$59) +(($O31+$P31)*VLOOKUP($S31+14,rate_basefnd,4))) *$R31 -> 708.04134 | W31: =(($C31*'fnd base rates'!E$48) +($D31*'fnd base rates'!E$49) +($E31*'fnd base rates'!E$50) +($F31*'fnd base rates'!E$51) +($G31*'fnd base rates'!E$52) +($H31*'fnd base rates'!E$53) +($I31*'fnd base rates'!E$54) +($J31*'fnd base rates'!E$55) +($K31*'fnd base rates'!E$56) +($L31*'fnd base rates'!E$57) +($M31*'fnd base rates'!E$58) +($N31*'fnd base rates'!E$59) +(($O31+$P31)*VLOOKUP($S31+14,rate_basefnd,5))) *$R31 -> 6676.579999 | X31: =(($C31*'fnd base rates'!F$48) +($D31*'fnd base rates'!F$49) +($E31*'fnd base rates'!F$50) +($F31*'fnd base rates'!F$51) +($G31*'fnd base rates'!F$52) +($H31*'fnd base rates'!F$53) +($I31*'fnd base rates'!F$54) +($J31*'fnd base rates'!F$55) +($K31*'fnd base rates'!F$56) +($L31*'fnd base rates'!F$57) +($M31*'fnd base rates'!F$58) +($N31*'fnd base rates'!F$59) +(($O31+$P31)*VLOOKUP($S31+14,rate_basefnd,6))) *$R31 -> 912.0076387 | Y31: =(($C31*'fnd base rates'!G$48) +($D31*'fnd base rates'!G$49) +($E31*'fnd base rates'!G$50) +($F31*'fnd base rates'!G$51) +($G31*'fnd base rates'!G$52) +($H31*'fnd base rates'!G$53) +($I31*'fnd base rates'!G$54) +($J31*'fnd base rates'!G$55) +($K31*'fnd base rates'!G$56) +($L31*'fnd base rates'!G$57) +($M31*'fnd base rates'!G$58) +($N31*'fnd base rates'!G$59) +(($O31+$P31)*VLOOKUP($S31+14,rate_basefnd,7))) *$R31 -> 232.1217712 | Z31: =(($C31*'fnd base rates'!H$48) +($D31*'fnd base rates'!H$49) +($E31*'fnd base rates'!H$50) +($F31*'fnd base rates'!H$51) +($G31*'fnd base rates'!H$52) +($H31*'fnd base rates'!H$53) +($I31*'fnd base rates'!H$54) +($J31*'fnd base rates'!H$55) +($K31*'fnd base rates'!H$56) +($L31*'fnd base rates'!H$57) +($M31*'fnd base rates'!H$58) +($N31*'fnd base rates'!H$59) +(($O31+$P31)*VLOOKUP($S31+14,rate_basefnd,8))) -> 449.399375 | AA31: =(($C31*'fnd base rates'!I$48) +($D31*'fnd base rates'!I$49) +($E31*'fnd base rates'!I$50) +($F31*'fnd base rates'!I$51) +($G31*'fnd base rates'!I$52) +($H31*'fnd base rates'!I$53) +($I31*'fnd base rates'!I$54) +($J31*'fnd base rates'!I$55) +($K31*'fnd base rates'!I$56) +($L31*'fnd base rates'!I$57) +($M31*'fnd base rates'!I$58) +($N31*'fnd base rates'!I$59) +(($O31+$P31)*VLOOKUP($S31+14,rate_basefnd,9))) *$R31 -> 314.47323 | AB31: =(($C31*'fnd base rates'!J$48) +($D31*'fnd base rates'!J$49) +($E31*'fnd base rates'!J$50) +($F31*'fnd base rates'!J$51) +($G31*'fnd base rates'!J$52) +($H31*'fnd base rates'!J$53) +($I31*'fnd base rates'!J$54) +($J31*'fnd base rates'!J$55) +($K31*'fnd base rates'!J$56) +($L31*'fnd base rates'!J$57) +($M31*'fnd base rates'!J$58) +($N31*'fnd base rates'!J$59) +(($O31+$P31)*VLOOKUP($S31+14,rate_basefnd,10))) *$R31 -> 230.27337 | AC31: =(($C31*'fnd base rates'!K$48) +($D31*'fnd base rates'!K$49) +($E31*'fnd base rates'!K$50) +($F31*'fnd base rates'!K$51) +($G31*'fnd base rates'!K$52) +($H31*'fnd base rates'!K$53) +($I31*'fnd base rates'!K$54) +($J31*'fnd base rates'!K$55) +($K31*'fnd base rates'!K$56) +($L31*'fnd base rates'!K$57) +($M31*'fnd base rates'!K$58) +($N31*'fnd base rates'!K$59) +(($O31+$P31)*VLOOKUP($S31+14,rate_basefnd,11))) *$R31 -> 1628.937729 | AD31: =(($C31*'fnd base rates'!L$48) +($D31*'fnd base rates'!L$49) +($E31*'fnd base rates'!L$50) +($F31*'fnd base rates'!L$51) +($G31*'fnd base rates'!L$52) +($H31*'fnd base rates'!L$53) +($I31*'fnd base rates'!L$54) +($J31*'fnd base rates'!L$55) +($K31*'fnd base rates'!L$56) +($L31*'fnd base rates'!L$57) +($M31*'fnd base rates'!L$58) +($N31*'fnd base rates'!L$59) +(($O31+$P31)*VLOOKUP($S31+14,rate_basefnd,12))) -> 1165.11075 | AE31: =(($C31*'fnd base rates'!M$48) +($D31*'fnd base rates'!M$49) +($E31*'fnd base rates'!M$50) +($F31*'fnd base rates'!M$51) +($G31*'fnd base rates'!M$52) +($H31*'fnd base rates'!M$53) +($I31*'fnd base rates'!M$54) +($J31*'fnd base rates'!M$55) +($K31*'fnd base rates'!M$56) +($L31*'fnd base rates'!M$57) +($M31*'fnd base rates'!M$58) +($N31*'fnd base rates'!M$59) +(($O31+$P31)*VLOOKUP($S31+14,rate_basefnd,13))) -> 0 | AF31: 12810.4371 | AH31: 412035314 | AI31: 412 | AJ31: 035 | AK31: 314 | AL31: 1 | AM31: 1 | AN31: 12810.4371 | AO31: 12810 | AP31: 0 | AQ31: 12810
A32: 412035336 | B32: ACADEMY OF THE PACIFIC RIM | C32: ='fnd enro'!C32 -> 0 | D32: ='fnd enro'!D32 -> 0 | E32: ='fnd enro'!E32 -> 0 | F32: ='fnd enro'!F32 -> 0 | G32: ='fnd enro'!G32 -> 1 | H32: ='fnd enro'!H32 -> 2 | I32: ='fnd enro'!I32 -> 0.1125 | J32: ='fnd enro'!J32 -> 0 | K32: ='fnd enro'!K32 -> 0 | L32: ='fnd enro'!L32 -> 0 | M32: ='fnd enro'!M32 -> 0 | N32: ='fnd enro'!N32 -> 0 | O32: ='fnd enro'!O32 -> 1 | P32: ='fnd enro'!P32 -> 2 | Q32: ='fnd enro'!R32 -> 3 | R32: 1.077 | S32: 10 | U32: =(($C32*'fnd base rates'!C$48) +($D32*'fnd base rates'!C$49) +($E32*'fnd base rates'!C$50) +($F32*'fnd base rates'!C$51) +($G32*'fnd base rates'!C$52) +($H32*'fnd base rates'!C$53) +($I32*'fnd base rates'!C$54) +($J32*'fnd base rates'!C$55) +($K32*'fnd base rates'!C$56) +($L32*'fnd base rates'!C$57) +($M32*'fnd base rates'!C$58) +($N32*'fnd base rates'!C$59) +(($O32+$P32)*VLOOKUP($S32+14,rate_basefnd,3))) *$R32 -> 1480.475702 | V32: =(($C32*'fnd base rates'!D$48) +($D32*'fnd base rates'!D$49) +($E32*'fnd base rates'!D$50) +($F32*'fnd base rates'!D$51) +($G32*'fnd base rates'!D$52) +($H32*'fnd base rates'!D$53) +($I32*'fnd base rates'!D$54) +($J32*'fnd base rates'!D$55) +($K32*'fnd base rates'!D$56) +($L32*'fnd base rates'!D$57) +($M32*'fnd base rates'!D$58) +($N32*'fnd base rates'!D$59) +(($O32+$P32)*VLOOKUP($S32+14,rate_basefnd,4))) *$R32 -> 2124.12402 | W32: =(($C32*'fnd base rates'!E$48) +($D32*'fnd base rates'!E$49) +($E32*'fnd base rates'!E$50) +($F32*'fnd base rates'!E$51) +($G32*'fnd base rates'!E$52) +($H32*'fnd base rates'!E$53) +($I32*'fnd base rates'!E$54) +($J32*'fnd base rates'!E$55) +($K32*'fnd base rates'!E$56) +($L32*'fnd base rates'!E$57) +($M32*'fnd base rates'!E$58) +($N32*'fnd base rates'!E$59) +(($O32+$P32)*VLOOKUP($S32+14,rate_basefnd,5))) *$R32 -> 22718.66436 | X32: =(($C32*'fnd base rates'!F$48) +($D32*'fnd base rates'!F$49) +($E32*'fnd base rates'!F$50) +($F32*'fnd base rates'!F$51) +($G32*'fnd base rates'!F$52) +($H32*'fnd base rates'!F$53) +($I32*'fnd base rates'!F$54) +($J32*'fnd base rates'!F$55) +($K32*'fnd base rates'!F$56) +($L32*'fnd base rates'!F$57) +($M32*'fnd base rates'!F$58) +($N32*'fnd base rates'!F$59) +(($O32+$P32)*VLOOKUP($S32+14,rate_basefnd,6))) *$R32 -> 2535.248576 | Y32: =(($C32*'fnd base rates'!G$48) +($D32*'fnd base rates'!G$49) +($E32*'fnd base rates'!G$50) +($F32*'fnd base rates'!G$51) +($G32*'fnd base rates'!G$52) +($H32*'fnd base rates'!G$53) +($I32*'fnd base rates'!G$54) +($J32*'fnd base rates'!G$55) +($K32*'fnd base rates'!G$56) +($L32*'fnd base rates'!G$57) +($M32*'fnd base rates'!G$58) +($N32*'fnd base rates'!G$59) +(($O32+$P32)*VLOOKUP($S32+14,rate_basefnd,7))) *$R32 -> 687.9000937 | Z32: =(($C32*'fnd base rates'!H$48) +($D32*'fnd base rates'!H$49) +($E32*'fnd base rates'!H$50) +($F32*'fnd base rates'!H$51) +($G32*'fnd base rates'!H$52) +($H32*'fnd base rates'!H$53) +($I32*'fnd base rates'!H$54) +($J32*'fnd base rates'!H$55) +($K32*'fnd base rates'!H$56) +($L32*'fnd base rates'!H$57) +($M32*'fnd base rates'!H$58) +($N32*'fnd base rates'!H$59) +(($O32+$P32)*VLOOKUP($S32+14,rate_basefnd,8))) -> 1871.778125 | AA32: =(($C32*'fnd base rates'!I$48) +($D32*'fnd base rates'!I$49) +($E32*'fnd base rates'!I$50) +($F32*'fnd base rates'!I$51) +($G32*'fnd base rates'!I$52) +($H32*'fnd base rates'!I$53) +($I32*'fnd base rates'!I$54) +($J32*'fnd base rates'!I$55) +($K32*'fnd base rates'!I$56) +($L32*'fnd base rates'!I$57) +($M32*'fnd base rates'!I$58) +($N32*'fnd base rates'!I$59) +(($O32+$P32)*VLOOKUP($S32+14,rate_basefnd,9))) *$R32 -> 1102.88031 | AB32: =(($C32*'fnd base rates'!J$48) +($D32*'fnd base rates'!J$49) +($E32*'fnd base rates'!J$50) +($F32*'fnd base rates'!J$51) +($G32*'fnd base rates'!J$52) +($H32*'fnd base rates'!J$53) +($I32*'fnd base rates'!J$54) +($J32*'fnd base rates'!J$55) +($K32*'fnd base rates'!J$56) +($L32*'fnd base rates'!J$57) +($M32*'fnd base rates'!J$58) +($N32*'fnd base rates'!J$59) +(($O32+$P32)*VLOOKUP($S32+14,rate_basefnd,10))) *$R32 -> 1292.25999 | AC32: =(($C32*'fnd base rates'!K$48) +($D32*'fnd base rates'!K$49) +($E32*'fnd base rates'!K$50) +($F32*'fnd base rates'!K$51) +($G32*'fnd base rates'!K$52) +($H32*'fnd base rates'!K$53) +($I32*'fnd base rates'!K$54) +($J32*'fnd base rates'!K$55) +($K32*'fnd base rates'!K$56) +($L32*'fnd base rates'!K$57) +($M32*'fnd base rates'!K$58) +($N32*'fnd base rates'!K$59) +(($O32+$P32)*VLOOKUP($S32+14,rate_basefnd,11))) *$R32 -> 4827.384327 | AD32: =(($C32*'fnd base rates'!L$48) +($D32*'fnd base rates'!L$49) +($E32*'fnd base rates'!L$50) +($F32*'fnd base rates'!L$51) +($G32*'fnd base rates'!L$52) +($H32*'fnd base rates'!L$53) +($I32*'fnd base rates'!L$54) +($J32*'fnd base rates'!L$55) +($K32*'fnd base rates'!L$56) +($L32*'fnd base rates'!L$57) +($M32*'fnd base rates'!L$58) +($N32*'fnd base rates'!L$59) +(($O32+$P32)*VLOOKUP($S32+14,rate_basefnd,12))) -> 3438.99225 | AE32: =(($C32*'fnd base rates'!M$48) +($D32*'fnd base rates'!M$49) +($E32*'fnd base rates'!M$50) +($F32*'fnd base rates'!M$51) +($G32*'fnd base rates'!M$52) +($H32*'fnd base rates'!M$53) +($I32*'fnd base rates'!M$54) +($J32*'fnd base rates'!M$55) +($K32*'fnd base rates'!M$56) +($L32*'fnd base rates'!M$57) +($M32*'fnd base rates'!M$58) +($N32*'fnd base rates'!M$59) +(($O32+$P32)*VLOOKUP($S32+14,rate_basefnd,13))) -> 0 | AF32: 42079.70775 | AH32: 412035336 | AI32: 412 | AJ32: 035 | AK32: 336 | AL32: 1 | AM32: 3 | AN32: 42079.70775 | AO32: 14027 | AP32: 0 | AQ32: 14027
A33: 413114024 | B33: FOUR RIVERS | C33: ='fnd enro'!C33 -> 0 | D33: ='fnd enro'!D33 -> 0 | E33: ='fnd enro'!E33 -> 0 | F33: ='fnd enro'!F33 -> 0 | G33: ='fnd enro'!G33 -> 1 | H33: ='fnd enro'!H33 -> 0 | I33: ='fnd enro'!I33 -> 0.0375 | J33: ='fnd enro'!J33 -> 0 | K33: ='fnd enro'!K33 -> 0 | L33: ='fnd enro'!L33 -> 0 | M33: ='fnd enro'!M33 -> 0 | N33: ='fnd enro'!N33 -> 0 | O33: ='fnd enro'!O33 -> 1 | P33: ='fnd enro'!P33 -> 0 | Q33: ='fnd enro'!R33 -> 1 | R33: 1 | S33: 10 | U33: =(($C33*'fnd base rates'!C$48) +($D33*'fnd base rates'!C$49) +($E33*'fnd base rates'!C$50) +($F33*'fnd base rates'!C$51) +($G33*'fnd base rates'!C$52) +($H33*'fnd base rates'!C$53) +($I33*'fnd base rates'!C$54) +($J33*'fnd base rates'!C$55) +($K33*'fnd base rates'!C$56) +($L33*'fnd base rates'!C$57) +($M33*'fnd base rates'!C$58) +($N33*'fnd base rates'!C$59) +(($O33+$P33)*VLOOKUP($S33+14,rate_basefnd,3))) *$R33 -> 458.20975 | V33: =(($C33*'fnd base rates'!D$48) +($D33*'fnd base rates'!D$49) +($E33*'fnd base rates'!D$50) +($F33*'fnd base rates'!D$51) +($G33*'fnd base rates'!D$52) +($H33*'fnd base rates'!D$53) +($I33*'fnd base rates'!D$54) +($J33*'fnd base rates'!D$55) +($K33*'fnd base rates'!D$56) +($L33*'fnd base rates'!D$57) +($M33*'fnd base rates'!D$58) +($N33*'fnd base rates'!D$59) +(($O33+$P33)*VLOOKUP($S33+14,rate_basefnd,4))) *$R33 -> 657.42 | W33: =(($C33*'fnd base rates'!E$48) +($D33*'fnd base rates'!E$49) +($E33*'fnd base rates'!E$50) +($F33*'fnd base rates'!E$51) +($G33*'fnd base rates'!E$52) +($H33*'fnd base rates'!E$53) +($I33*'fnd base rates'!E$54) +($J33*'fnd base rates'!E$55) +($K33*'fnd base rates'!E$56) +($L33*'fnd base rates'!E$57) +($M33*'fnd base rates'!E$58) +($N33*'fnd base rates'!E$59) +(($O33+$P33)*VLOOKUP($S33+14,rate_basefnd,5))) *$R33 -> 6199.238625 | X33: =(($C33*'fnd base rates'!F$48) +($D33*'fnd base rates'!F$49) +($E33*'fnd base rates'!F$50) +($F33*'fnd base rates'!F$51) +($G33*'fnd base rates'!F$52) +($H33*'fnd base rates'!F$53) +($I33*'fnd base rates'!F$54) +($J33*'fnd base rates'!F$55) +($K33*'fnd base rates'!F$56) +($L33*'fnd base rates'!F$57) +($M33*'fnd base rates'!F$58) +($N33*'fnd base rates'!F$59) +(($O33+$P33)*VLOOKUP($S33+14,rate_basefnd,6))) *$R33 -> 846.80375 | Y33: =(($C33*'fnd base rates'!G$48) +($D33*'fnd base rates'!G$49) +($E33*'fnd base rates'!G$50) +($F33*'fnd base rates'!G$51) +($G33*'fnd base rates'!G$52) +($H33*'fnd base rates'!G$53) +($I33*'fnd base rates'!G$54) +($J33*'fnd base rates'!G$55) +($K33*'fnd base rates'!G$56) +($L33*'fnd base rates'!G$57) +($M33*'fnd base rates'!G$58) +($N33*'fnd base rates'!G$59) +(($O33+$P33)*VLOOKUP($S33+14,rate_basefnd,7))) *$R33 -> 215.52625 | Z33: =(($C33*'fnd base rates'!H$48) +($D33*'fnd base rates'!H$49) +($E33*'fnd base rates'!H$50) +($F33*'fnd base rates'!H$51) +($G33*'fnd base rates'!H$52) +($H33*'fnd base rates'!H$53) +($I33*'fnd base rates'!H$54) +($J33*'fnd base rates'!H$55) +($K33*'fnd base rates'!H$56) +($L33*'fnd base rates'!H$57) +($M33*'fnd base rates'!H$58) +($N33*'fnd base rates'!H$59) +(($O33+$P33)*VLOOKUP($S33+14,rate_basefnd,8))) -> 449.399375 | AA33: =(($C33*'fnd base rates'!I$48) +($D33*'fnd base rates'!I$49) +($E33*'fnd base rates'!I$50) +($F33*'fnd base rates'!I$51) +($G33*'fnd base rates'!I$52) +($H33*'fnd base rates'!I$53) +($I33*'fnd base rates'!I$54) +($J33*'fnd base rates'!I$55) +($K33*'fnd base rates'!I$56) +($L33*'fnd base rates'!I$57) +($M33*'fnd base rates'!I$58) +($N33*'fnd base rates'!I$59) +(($O33+$P33)*VLOOKUP($S33+14,rate_basefnd,9))) *$R33 -> 291.99 | AB33: =(($C33*'fnd base rates'!J$48) +($D33*'fnd base rates'!J$49) +($E33*'fnd base rates'!J$50) +($F33*'fnd base rates'!J$51) +($G33*'fnd base rates'!J$52) +($H33*'fnd base rates'!J$53) +($I33*'fnd base rates'!J$54) +($J33*'fnd base rates'!J$55) +($K33*'fnd base rates'!J$56) +($L33*'fnd base rates'!J$57) +($M33*'fnd base rates'!J$58) +($N33*'fnd base rates'!J$59) +(($O33+$P33)*VLOOKUP($S33+14,rate_basefnd,10))) *$R33 -> 213.81 | AC33: =(($C33*'fnd base rates'!K$48) +($D33*'fnd base rates'!K$49) +($E33*'fnd base rates'!K$50) +($F33*'fnd base rates'!K$51) +($G33*'fnd base rates'!K$52) +($H33*'fnd base rates'!K$53) +($I33*'fnd base rates'!K$54) +($J33*'fnd base rates'!K$55) +($K33*'fnd base rates'!K$56) +($L33*'fnd base rates'!K$57) +($M33*'fnd base rates'!K$58) +($N33*'fnd base rates'!K$59) +(($O33+$P33)*VLOOKUP($S33+14,rate_basefnd,11))) *$R33 -> 1512.477 | AD33: =(($C33*'fnd base rates'!L$48) +($D33*'fnd base rates'!L$49) +($E33*'fnd base rates'!L$50) +($F33*'fnd base rates'!L$51) +($G33*'fnd base rates'!L$52) +($H33*'fnd base rates'!L$53) +($I33*'fnd base rates'!L$54) +($J33*'fnd base rates'!L$55) +($K33*'fnd base rates'!L$56) +($L33*'fnd base rates'!L$57) +($M33*'fnd base rates'!L$58) +($N33*'fnd base rates'!L$59) +(($O33+$P33)*VLOOKUP($S33+14,rate_basefnd,12))) -> 1165.11075 | AE33: =(($C33*'fnd base rates'!M$48) +($D33*'fnd base rates'!M$49) +($E33*'fnd base rates'!M$50) +($F33*'fnd base rates'!M$51) +($G33*'fnd base rates'!M$52) +($H33*'fnd base rates'!M$53) +($I33*'fnd base rates'!M$54) +($J33*'fnd base rates'!M$55) +($K33*'fnd base rates'!M$56) +($L33*'fnd base rates'!M$57) +($M33*'fnd base rates'!M$58) +($N33*'fnd base rates'!M$59) +(($O33+$P33)*VLOOKUP($S33+14,rate_basefnd,13))) -> 0 | AF33: 12009.9855 | AH33: 413114024 | AI33: 413 | AJ33: 114 | AK33: 024 | AL33: 1 | AM33: 1 | AN33: 12009.9855 | AO33: 12010 | AP33: 0 | AQ33: 12010
